{"text_format":"1","workbook":"xlsx","n_sheets":1,"sheets":["FD Post Tax Liability"],"not_rendered":{"charts":0,"images":0,"macros":1,"external_links":0,"defined_names":55,"comments":0,"pivot_tables":0},"unopened":[],"bounds":{"document_bytes":16777216,"sheet_cells":100000,"rows_first":2000,"rows_last":500,"rows_between":2000,"halvings":0,"cell_chars":16384,"cell_head_chars":4096},"cells_cut":0,"cells_raw":0,"read":"whole","date_system":"1900"}

{"sheet":"FD Post Tax Liability","index":0,"n_rows":1004,"n_cols":75,"rows_kept":1004,"cut":false,"hidden":false,"merged":[[0,56,0,57],[1,0,1,1],[7,0,7,1],[18,0,18,1],[18,6,18,8],[4,3,4,8],[3,0,3,1],[0,70,0,73],[0,0,0,1],[34,0,34,1],[6,3,6,8],[7,3,7,8],[9,3,9,8],[10,3,10,8],[11,3,11,8],[12,3,12,8],[13,3,13,8],[14,3,14,8]]}
["Fixed Deposit Calculator",null,null,null,null,null,null,null,null,null,"Month","Fixed","Tax to ","Annual","Financial",null,null,"Cumul",null,null,"FY","unique",null,"Install",null,null,null,null,null,"Days","Pre-tax","Pre-tax","Post-tax ","Post-tax ","Tax to ",null,null,null,null,null,{"$f":"IF(term=\"Quarterly\",4,IF(term=\"Half-yearly\",2,IF(term=\"Yearly\",1,IF(term=\"Monthly\",12))))","v":4},1,null,0,null,null,null,null,null,null,null,null,null,null,null,null,"Days to Months Convertor!!",null,null,null,null,null,null,null,null,null,null,null,{"$f":"IF(B21=0,0,IF(B21=\"\",\"\",(1-IF(taxrd=10%,10.3%,IF(taxrd=20%,20.6%,IF(taxrd=30%,30.9%)))))*B21/IF(taxrd=10%,10.3%,IF(taxrd=20%,20.6%,IF(taxrd=30%,30.9%))))","v":2252.980758890285},null,"No of days in a year used by the bank!",null,null,null,365]
["Investment Tenure in Days",null,null,null,null,null,null,null,null,null,null,"Deposit","be paid","month","month",null,null,"Tax",null,null,"Tax","list",null,null,null,null,null,null,null,null,"Total","Interest","interest","Total","be paid",null,null,null,null,null,{"$f":"IF(term=\"Quarterly\",3,IF(term=\"Half-yearly\",6,IF(term=\"Yearly\",12,IF(term=\"Monthly\",1))))","v":3},2,null,0.1,null,null,null,null,null,null,null,null,null,null,null,null,"Days",{"$f":"rdura","v":400},null,null,null,null,null,null,null,null,null,null,28511.8899565391]
[null,null,null,null,null,null,null,null,null,null,null,null,null,null,null,1,{"$f":"IF(P3=1,\"Start\",\"\")","v":"Start"},null,null,null,null,null,null,null,null,null,null,null,null,null,null,null,null,null,null,null,null,null,null,null,null,{"$f":"AP2+1","v":3},null,0.2,null,null,null,null,null,null,null,null,null,null,null,null,null,null,null,null,null,null,null,null,null,null,null,null,832.3259913382692]
["Fill only the cells with green background",null,null,null,null,null,null,null,null,null,{"$f":"1","v":1},{"$f":"fdamt","v":400000},{"$f":"IF(ISERROR(AN5),\"\",AN5)","v":1007.4834363199681},{"$f":"MONTH(DATEVALUE(\"01-\"&B10))","v":3},{"$f":"IF(K4=\"\",\"\",IF(N4<=3,N4+9,N4-3))","v":12},{"$f":"IF(O4=12,1,\"\")","v":1},{"$f":"IF(P4=1,\"Start\",\"\")","v":"Start"},{"$f":"IF(K4=\"\",\"\",IF(Q3=\"Start\",M4,R3+M4))","v":1007.4834363199681},{"$f":"IF(K4=\"\",\"\",IF(Q4=\"Start\",R4,IF(ISERROR(R5),R4,IF(R5=\"\",R4,\"\"))))","v":1007.4834363199681},{"$f":"IF(ISERROR(S4),\"\",S4)","v":1007.4834363199681},{"$f":"IF(Q4=\"Start\",R4,IF(ISERROR(R5),R4,IF(R5=\"\",R4,1)))","v":1007.4834363199681},{"$f":"INDEX(fortax,MATCH(0,COUNTIF($V$3:V3,fortax),0))","v":1007.4834363199681},{"$f":"IF(U4<>1,K4,-1)","v":1},{"$f":"INDEX(installment,MATCH(0,COUNTIF($X$3:X3,installment),0))","v":1},null,null,null,null,1,{"$f":"1","v":1},{"$f":"IF(AD4=\"\",\"\",fdamt*(1+raterd/factor1)^(factor1*1/ydays))","v":400108.25623606046},{"$f":"IF(AD4=\"\",\"\",AE4-fdamt)","v":108.25623606046429},{"$f":"IF(AD4=\"\",\"\",AF4*(1-IF(taxrd=10%,10.3%,IF(taxrd=20%,20.6%,IF(taxrd=30%,30.9%)))))","v":74.805059117780829},{"$f":"IF(AD4=\"\",\"\",AH3+AG4+L4)","v":400074.80505911779},{"$f":"IF(AD4=\"\",\"\",AF4-AG4)","v":33.45117694268346},{"$f":"IF(INT(AD4/30)-(AD4/30)=0,1,0)","v":0},{"$f":"IF(AJ3=1,AI4,AK3+AI4)","v":33.45117694268346},{"$f":"IF(AJ4=1,AK4,IF(ISERROR(AK5),AK4,IF(AK5=\"\",AK4,\"\")))","v":""},{"$f":"IF(AJ4=1,AK4,IF(ISERROR(AK5),AK4,IF(AK5=\"\",AK4,1)))","v":1},{"$f":"INDEX(fdfortax2,MATCH(0,COUNTIF($AN$3:AN3,fdfortax2),0))","v":1},null,{"$f":"AP3+1","v":4},null,0.3,null,"Jan",{"$f":"MONTH(DATEVALUE(\"01-\"&AT4))","v":1},{"$f":"TEXT((AU4+1),\"MMM\")","v":"Jan"},2000,"-",2001,{"$f":"CONCATENATE(AW4,AX4,AY4)","v":"2000-2001"},{"$f":"LEFT(AZ4,4)","v":"2000"},{"$f":"RIGHT(AZ4,4)","v":"2001"},null,null,"Months",{"$f":"BF2/30","v":13.333333333333334},{"$f":"IF(INT(fdmon)-fdmon=0,fdmon,INT(fdmon)+1)","v":14},{"$f":"fdmon2/12","v":1.1666666666666667},null,null,null,null,null,null,null,null,{"$error":"#VALUE!"}]
["Interest Rate",0.1,null,null,null,null,null,null,null,null,{"$f":"IF(K4<fdmon2,K4+1,\"\")","v":2},null,{"$f":"IF(ISERROR(AN6),\"\",AN6)","v":1015.6955954984564},{"$f":"IF(K4<fdmon2,IF(N4=12,1,N4+1),\"\")","v":4},1,"",{"$f":"IF(P5=1,\"Start\",\"\")","v":""},{"$f":"IF(K5=\"\",\"\",IF(Q4=\"Start\",M5,R4+M5))","v":1015.6955954984564},{"$f":"IF(K5=\"\",\"\",IF(Q5=\"Start\",R5,IF(ISERROR(R6),R5,IF(R6=\"\",R5,\"\"))))","v":""},"",{"$f":"IF(Q5=\"Start\",R5,IF(ISERROR(R6),R5,IF(R6=\"\",R5,1)))","v":1},{"$f":"INDEX(fortax,MATCH(0,COUNTIF($V$3:V4,fortax),0))","v":1},-1,{"$f":"INDEX(installment,MATCH(0,COUNTIF($X$3:X4,installment),0))","v":-1},{"$f":"B11","v":"2003-2004"},{"$f":"LEFT(Y5,4)","v":"2003"},{"$f":"RIGHT(Y5,4)","v":"2004"},{"$f":"IF(ISERROR(V5),\"\",CONCATENATE(Z5,\"-\",AA5))","v":"2003-2004"},{"$f":"IF(K5=\"\",0,IF(O5=1,AC4+1,AC4))","v":2},{"$f":"IF(AD4<rdura,AD4+1,\"\")","v":2},{"$f":"IF(AD5=\"\",\"\",AE4*(1+raterd/factor1)^(factor1*1/ydays))","v":400216.54177065252},{"$f":"IF(AD5=\"\",\"\",AE5-AE4)","v":108.28553459205432},74.825304403109541,400149.63036352088,{"$f":"IF(AD5=\"\",\"\",AF5-AG5)","v":33.460230188944777},{"$f":"IF(INT(AD5/30)-(AD5/30)=0,1,0)","v":0},{"$f":"IF(AJ4=1,AI5,AK4+AI5)","v":66.911407131628238},"",1,{"$f":"INDEX(fdfortax2,MATCH(0,COUNTIF($AN$3:AN4,fdfortax2),0))","v":1007.4834363199681},null,5,null,null,null,"Feb",{"$f":"MONTH(DATEVALUE(\"01-\"&AT5))","v":2},null,{"$f":"AW4+1","v":2001},"-",{"$f":"AY4+1","v":2002},{"$f":"CONCATENATE(AW5,AX5,AY5)","v":"2001-2002"},{"$f":"LEFT(AZ5,4)","v":"2001"},{"$f":"RIGHT(AZ5,4)","v":"2002"},null,null,null,null,null,null,null,null,null,null,null,null,null,null,{"$error":"#VALUE!"}]
["Investment",400000,null,null,null,null,null,null,null,null,3,null,1023.9746933043656,5,2,"","",2039.6702888028221,"","",1,{"$f":"INDEX(fortax,MATCH(0,COUNTIF($V$3:V5,fortax),0))","v":12749.890009508801},-1,{"$f":"INDEX(installment,MATCH(0,COUNTIF($X$3:X5,installment),0))","v":13},null,{"$f":"IF(ISERROR(V6),\"\",Z5+1)","v":2004},{"$f":"IF(ISERROR(V6),\"\",AA5+1)","v":2005},{"$f":"IF(ISERROR(V6),\"\",CONCATENATE(Z6,\"-\",AA6))","v":"2004-2005"},{"$f":"IF(K6=\"\",0,IF(O6=1,AC5+1,AC5))","v":2},3,400324.85661170556,{"$f":"IF(AD6=\"\",\"\",AE6-AE5)","v":108.31484105304116},74.845555167651455,400224.47591868852,33.469285885389709,0,100.38069301701795,"",1,{"$f":"INDEX(fdfortax2,MATCH(0,COUNTIF($AN$3:AN5,fdfortax2),0))","v":1015.6955954984564},null,6,"Quarterly",null,null,"Mar",{"$f":"MONTH(DATEVALUE(\"01-\"&AT6))","v":3},null,{"$f":"AW5+1","v":2002},"-",{"$f":"AY5+1","v":2003},{"$f":"CONCATENATE(AW6,AX6,AY6)","v":"2002-2003"},"2002","2003",null,null,null,null,null,null,null,null,null,null,null,null,null,null,{"$error":"#VALUE!"}]
["Duration of invest. (days)*",400,null,"Note: interest from FD is taxable on accrural basis. ",null,null,null,null,null,null,4,null,1032.3212753651471,6,3,"","",3071.991564167969,"","",1,{"$f":"INDEX(fortax,MATCH(0,COUNTIF($V$3:V6,fortax),0))","v":372.19787456371222},-1,{"$f":"INDEX(installment,MATCH(0,COUNTIF($X$3:X6,installment),0))","v":14},null,2005,{"$f":"IF(ISERROR(V7),\"\",AA6+1)","v":2006},"2005-2006",2,4,400433.20076715114,108.34415544557851,74.865811412894757,400299.34173010144,33.478344032683751,0,133.8590370497017,"",1,{"$f":"INDEX(fdfortax2,MATCH(0,COUNTIF($AN$3:AN6,fdfortax2),0))","v":1023.9746933043656},null,7,"Half-yearly",null,null,"Apr",4,null,2003,"-",2004,"2003-2004","2003","2004",null,null,null,null,null,null,null,null,null,null,null,null,null,null,{"$error":"#VALUE!"}]
[null,null,null," Tax has to be paid as per slab each financial year",null,null,null,null,null,null,5,null,1040.7358917558356,7,4,"","",4112.7274559238049,"","",1,{"$f":"INDEX(fortax,MATCH(0,COUNTIF($V$3:V7,fortax),0))","v":{"$error":"#N/A"}},-1,{"$f":"INDEX(installment,MATCH(0,COUNTIF($X$3:X7,installment),0))","v":{"$error":"#N/A"}},null,"","","",2,5,400541.57424492284,108.37347777170362,74.886073140247206,400374.22780324169,33.487404631456414,0,167.34644168115813,"",1,{"$f":"INDEX(fdfortax2,MATCH(0,COUNTIF($AN$3:AN7,fdfortax2),0))","v":1032.3212753651471},null,8,"Yearly",null,null,"May",5,null,2004,"-",2005,"2004-2005","2004","2005",null,null,null,null,null,null,null,null,null,null,null,null,null,null,{"$error":"#VALUE!"}]
["Type of Compounding","Quarterly",null,null,null,null,null,null,null,null,6,null,1049.2190970352026,8,5,"","",5161.946552959007,"","",1,{"$f":"INDEX(fortax,MATCH(0,COUNTIF($V$3:V8,fortax),0))","v":{"$error":"#N/A"}},-1,{"$f":"INDEX(installment,MATCH(0,COUNTIF($X$3:X8,installment),0))","v":{"$error":"#N/A"}},null,"","","",2,6,400649.97705295653,108.4028080336866,74.90634035127745,400449.13414359296,33.496467682409147,0,200.84290936356729,"",1,{"$f":"INDEX(fdfortax2,MATCH(0,COUNTIF($AN$3:AN8,fdfortax2),0))","v":1040.7358917558356},null,9,"Monthly",null,null,"Jun",6,null,2005,"-",2006,"2005-2006","2005","2006",null,null,null,null,null,null,null,null,null,null,null,null,null,null,{"$error":"#VALUE!"}]
["Month when FD started","Mar",null,"Bank will deduct 10.3% tax. Rest has to be paid by you",null,null,null,null,null,null,7,null,1057.7714502822296,9,6,"","",6219.7180032412361,"","",1,{"$f":"INDEX(fortax,MATCH(0,COUNTIF($V$3:V9,fortax),0))","v":{"$error":"#N/A"}},-1,{"$f":"INDEX(installment,MATCH(0,COUNTIF($X$3:X9,installment),0))","v":{"$error":"#N/A"}},null,"","","",2,7,400758.40919919021,108.43214623368112,74.926613047473666,400524.06075664045,33.505533186207458,0,234.34844254977475,"",{"$f":"IF(AJ10=1,AK10,IF(ISERROR(AK11),AK10,IF(AK11=\"\",AK10,1)))","v":1},{"$f":"INDEX(fdfortax2,MATCH(0,COUNTIF($AN$3:AN9,fdfortax2),0))","v":1049.2190970352026},null,10,null,null,null,"Jul",7,null,2006,"-",2007,"2006-2007","2006","2007",null,null,null,null,null,null,null,null,null,null,null,null,null,null,{"$error":"#VALUE!"}]
["Financial year when FD started","2003-2004",null,"Advance Tax is applicable only when TOTAL* tax payable is ",null,null,null,null,null,null,8,null,1066.3935151331448,10,7,"","",7286.1115183743805,"","",1,{"$f":"INDEX(fortax,MATCH(0,COUNTIF($V$3:V10,fortax),0))","v":{"$error":"#N/A"}},-1,{"$f":"INDEX(installment,MATCH(0,COUNTIF($X$3:X10,installment),0))","v":{"$error":"#N/A"}},null,"","","",2,8,400866.87069156393,108.46149237372447,74.946891230243608,400599.00764787069,33.51460114348086,0,267.86304369325558,"",1,{"$f":"INDEX(fdfortax2,MATCH(0,COUNTIF($AN$3:AN10,fdfortax2),0))","v":1057.7714502822296},null,11,null,null,null,"Aug",8,null,2007,"-",2008,"2007-2008","2007","2008",null,null,null,null,null,null,null,null,null,null,null,null,null,null,{"$error":"#VALUE!"}]
["Applicable tax slab ",0.3,null,"more than Rs. 10,000 in a financial year",null,null,null,null,null,null,9,null,1075.0858598183816,11,8,"","",8361.1973781927627,"","",1,{"$f":"INDEX(fortax,MATCH(0,COUNTIF($V$3:V11,fortax),0))","v":{"$error":"#N/A"}},-1,{"$f":"INDEX(installment,MATCH(0,COUNTIF($X$3:X11,installment),0))","v":{"$error":"#N/A"}},null,"","","",2,9,400975.36153801996,108.49084645602852,74.967174901115712,400673.97482277179,33.523671554912809,0,301.3867152481684,"",1,{"$f":"INDEX(fdfortax2,MATCH(0,COUNTIF($AN$3:AN11,fdfortax2),0))","v":1066.3935151331448},null,12,null,null,null,"Sep",9,null,2008,"-",2009,"2008-2009","2008","2009"]
["Pre-tax Corpus","not applicable!",null,"* FD interest plus all other taxable income sources",null,null,null,null,null,null,10,null,1083.8490572002077,12,9,"","",9445.046435392971,"","",1,{"$f":"INDEX(fortax,MATCH(0,COUNTIF($V$3:V12,fortax),0))","v":{"$error":"#N/A"}},-1,{"$f":"INDEX(installment,MATCH(0,COUNTIF($X$3:X12,installment),0))","v":{"$error":"#N/A"}},null,"","","",2,10,401083.88174650265,108.52020848268876,74.987464061537935,400748.96228683332,33.532744421150824,0,334.91945966931922,"",1,{"$f":"INDEX(fdfortax2,MATCH(0,COUNTIF($AN$3:AN12,fdfortax2),0))","v":1075.0858598183816},null,13,null,null,null,"Oct",10,null,2009,"-",2010,"2009-2010","2009","2010"]
["Total investment",{"$f":"fdamt","v":400000},null,"Most banks use quarterly compounding for FDs and RDs",null,null,null,null,null,null,11,null,1092.6836848101548,1,10,"","",10537.730120203127,"","",1,{"$f":"INDEX(fortax,MATCH(0,COUNTIF($V$3:V13,fortax),0))","v":{"$error":"#N/A"}},-1,{"$f":"INDEX(installment,MATCH(0,COUNTIF($X$3:X13,installment),0))","v":{"$error":"#N/A"}},null,"","","",2,11,401192.43132495863,108.54957845597528,75.007758713078928,400823.97004554642,33.541819742896351,0,368.46127941221556,"",1,{"$f":"INDEX(fdfortax2,MATCH(0,COUNTIF($AN$3:AN13,fdfortax2),0))","v":1083.8490572002077},null,14,null,null,null,"Nov",11,null,2010,"-",2011,"2010-2011","2010","2011"]
["Post-tax Corpus( tax on accural basis) ",null,null,"Feedback welcome:  pattu@iitm.ac.in",null,null,null,null,null,null,12,null,1101.5903248877582,2,11,"","",11639.320445090885,"","",1,{"$f":"INDEX(fortax,MATCH(0,COUNTIF($V$3:V14,fortax),0))","v":{"$error":"#N/A"}},-1,{"$f":"INDEX(installment,MATCH(0,COUNTIF($X$3:X14,installment),0))","v":{"$error":"#N/A"}},null,"","","",2,12,401301.01028133661,108.57895637798356,75.02805885718665,400898.99810440361,33.550897520796909,0,402.01217693301248,"",1,{"$f":"INDEX(fdfortax2,MATCH(0,COUNTIF($AN$3:AN14,fdfortax2),0))","v":1092.6836848101548},null,15,null,null,null,"Dec",12,null,2011,"-",2012,"2011-2012","2011","2012"]
["Post-tax Coprus",{"$f":"MAX(AH4:AH1003)","v":431597.19670676778},null,null,null,null,null,null,null,null,13,null,1110.5695644179164,3,12,1,"Start",12749.890009508801,12749.890009508801,12749.890009508801,12749.890009508801,{"$f":"INDEX(fortax,MATCH(0,COUNTIF($V$3:V15,fortax),0))","v":{"$error":"#N/A"}},13,{"$f":"INDEX(installment,MATCH(0,COUNTIF($X$3:X15,installment),0))","v":{"$error":"#N/A"}},null,"","","",2,13,401409.61862358742,108.60834225080907,75.048364495309073,400974.04646889895,33.5599777555,0,435.57215468851246,"",1,{"$f":"INDEX(fdfortax2,MATCH(0,COUNTIF($AN$3:AN15,fdfortax2),0))","v":1101.5903248877582},null,16,null,null,null,null,null,null,2012,"-",2013,"2012-2013","2012","2013"]
["Total interest earned (post-tax)",{"$f":"SUM(AG4:AG1003)","v":31597.196706767656},null,null,null,null,null,null,null,null,14,null,372.19787456371222,4,1,"","",372.19787456371222,372.19787456371222,372.19787456371222,372.19787456371222,{"$f":"INDEX(fortax,MATCH(0,COUNTIF($V$3:V16,fortax),0))","v":{"$error":"#N/A"}},14,{"$f":"INDEX(installment,MATCH(0,COUNTIF($X$3:X16,installment),0))","v":{"$error":"#N/A"}},null,"","","",3,14,401518.25635966402,108.63773607660551,75.068675628934415,401049.11514452787,33.569060447671092,0,469.14121513618352,"",1,{"$f":"INDEX(fdfortax2,MATCH(0,COUNTIF($AN$3:AN16,fdfortax2),0))","v":1110.5695644179164},null,17,null,null,null,null,null,null,2013,"-",2014,"2013-2014","2013","2014"]
[null,null,null,null,null,null,null,null,null,null,"",null,"","","","","","","","","",{"$f":"INDEX(fortax,MATCH(0,COUNTIF($V$3:V17,fortax),0))","v":{"$error":"#N/A"}},"",{"$f":"INDEX(installment,MATCH(0,COUNTIF($X$3:X17,installment),0))","v":{"$error":"#N/A"}},null,"","","",0,15,401626.92349752167,108.66713785764296,75.088992259631283,401124.20413678751,33.578145598011673,0,502.71936073419522,"",1,{"$f":"INDEX(fdfortax2,MATCH(0,COUNTIF($AN$3:AN17,fdfortax2),0))","v":372.19787456371222},null,18,null,null,null,null,null,null,2014,"-",2015,"2014-2015","2014","2015"]
["Tax to paid each financial year",null,"FY","TDS","Tax you",null,"Advance Tax payable on or before",null,null,null,"",null,"","","","","","","","","",{"$f":"INDEX(fortax,MATCH(0,COUNTIF($V$3:V18,fortax),0))","v":{"$error":"#N/A"}},"",{"$f":"INDEX(installment,MATCH(0,COUNTIF($X$3:X18,installment),0))","v":{"$error":"#N/A"}},null,"","","",0,16,401735.62004511763,108.69654759595869,75.109314388807462,401199.31345117633,33.587233207151229,0,536.30659394134648,"",1,{"$f":"INDEX(fdfortax2,MATCH(0,COUNTIF($AN$3:AN18,fdfortax2),0))","v":{"$error":"#VALUE!"}},null,19,null,null,null,null,null,null,2015,"-",2016,"2015-2016","2015","2016"]
["Financial Year","Amount",null,"(by bank)","need to pay",null,"15th Sep","15th Dec","15th Mar",null,"",null,"","","","","","","","","",null,"",null,null,null,null,null,0,17,401844.34601041139,108.7259652937646,75.129642017991344,401274.44309319434,33.596323275773258,0,569.90291721711969,"",1,{"$f":"INDEX(fdfortax2,MATCH(0,COUNTIF($AN$3:AN19,fdfortax2),0))","v":{"$error":"#N/A"}},null,20,null,null,null,null,null,null,2016,"-",2017,"2016-2017","2016","2017"]
[{"$f":"IF(B21=\"\",\"\",AB5)","v":"2003-2004"},{"$f":"IF(B10=\"Mar\",IF(ISERROR(V4),\"\",V4),IF(ISERROR(V5),\"\",V5))","v":1007.4834363199681},1,{"$f":"IF(B21=0,0,IF(B21=\"\",\"\",10.3%*B21/IF(taxrd=10%,10.3%,IF(taxrd=20%,20.6%,IF(taxrd=30%,30.9%)))))","v":335.82781210665604},{"$f":"IF(B21=\"\",\"\",B21-D21)","v":671.65562421331197},null,{"$f":"IF(B21=\"\",\"\",IF(O4<=6,30%*E21,0))","v":0},{"$f":"IF(B21=\"\",\"\",IF(O4>9,0,IF(G21=0,60%*E21,30%*E21)))","v":0},{"$f":"IF(B21=\"\",\"\",IF(H21=0,100%*E21,40%*E21))","v":671.65562421331197},null,"",null,"","","","","","","","","",null,"",null,null,null,null,null,0,18,401953.10140136455,108.75539095315617,75.149975148630915,401349.59306834295,33.605415804525251,0,603.50833302164494,"",1,{"$f":"INDEX(fdfortax2,MATCH(0,COUNTIF($AN$3:AN20,fdfortax2),0))","v":{"$error":"#N/A"}},null,21,null,null,null,null,null,null,2017,"-",2018,"2017-2018","2017","2018"]
["2004-2005",{"$f":"IF(ISERROR(V6),\"\",V6)","v":12749.890009508801},{"$f":"IF(C21<MAX(AC4:AC123),C21+1,\"\")","v":2},{"$f":"IF(B22=\"\",\"\",10.3%*B22/IF(taxrd=10%,10.3%,IF(taxrd=20%,20.6%,IF(taxrd=30%,30.9%))))","v":4249.963336502934},{"$f":"IF(B22=\"\",\"\",B22-D22)","v":8499.9266730058662},null,{"$f":"IF(B22=\"\",\"\",30%*E22)","v":2549.9780019017599},{"$f":"IF(B22=\"\",\"\",30%*E22)","v":2549.9780019017599},{"$f":"IF(B22=\"\",\"\",40%*E22)","v":3399.9706692023465},null,"",null,"","","","","","","","","",null,"",null,null,null,null,null,0,19,402061.88622594089,108.78482457634527,75.170313782254595,401424.76338212518,33.614510794090677,0,637.12284381573568,"",1,{"$f":"INDEX(fdfortax2,MATCH(0,COUNTIF($AN$3:AN21,fdfortax2),0))","v":{"$error":"#N/A"}},null,22,null,null,null,null,null,null,2018,"-",2019,"2018-2019","2018","2019"]
["2005-2006",372.19787456371222,{"$f":"IF(C22<MAX(AC5:AC124),C22+1,\"\")","v":3},124.06595818790407,248.13191637580815,null,{"$f":"IF(B23=\"\",\"\",30%*E23)","v":74.439574912742444},{"$f":"IF(B23=\"\",\"\",30%*E23)","v":74.439574912742444},{"$f":"IF(B23=\"\",\"\",40%*E23)","v":99.252766550323258},null,"",null,"","","","","","","","","",null,"",null,null,null,null,null,0,20,402170.70049210638,108.81426616548561,75.19065792035056,401499.95404004556,33.623608245135046,0,670.74645206087075,"",1,{"$f":"INDEX(fdfortax2,MATCH(0,COUNTIF($AN$3:AN22,fdfortax2),0))","v":{"$error":"#N/A"}},null,23,null,null,null,null,null,null,2019,"-",2020,"2019-2020","2019","2020"]
["","","","","",null,"",{"$f":"IF(B24=\"\",\"\",30%*E24)","v":""},"",null,"",null,"","","","","","","","","",null,"",null,null,null,null,null,0,21,402279.54420782905,108.84371572267264,75.211007564366795,401575.16504760995,33.632708158305846,0,704.37916021917658,"",1,{"$f":"INDEX(fdfortax2,MATCH(0,COUNTIF($AN$3:AN23,fdfortax2),0))","v":{"$error":"#N/A"}},null,24,null,null,null,null,null,null,2020,"-",2021,"2020-2021","2020","2021"]
["","","","","",null,"","","",null,"",null,"","","","","","","","","",null,"",null,null,null,null,null,0,22,402388.41738107917,108.87317325011827,75.231362715831736,401650.39641032577,33.641810534286535,0,738.02097075346308,"",1,{"$f":"INDEX(fdfortax2,MATCH(0,COUNTIF($AN$3:AN24,fdfortax2),0))","v":{"$error":"#N/A"}},null,25,null,null,null,null,null,null,2021,"-",2022,"2021-2022","2021","2022"]
["","","","","",null,"","","",null,"",null,"","","","","","","","","",null,"",null,null,null,null,null,0,23,402497.32001982915,108.90263874997618,75.251723376233542,401725.64813370199,33.650915373742635,0,771.67188612720565,"",1,{"$f":"INDEX(fdfortax2,MATCH(0,COUNTIF($AN$3:AN25,fdfortax2),0))","v":{"$error":"#N/A"}},null,26,null,null,null,null,null,null,2022,"-",2023,"2022-2023","2022","2023"]
["","","","","",null,"","","",null,"",null,"","","","","","","","","",null,"",null,null,null,null,null,0,24,402606.25213205355,108.93211222440004,75.272089547060432,401800.92022324906,33.660022677339612,0,805.33190880454526,"",1,{"$f":"INDEX(fdfortax2,MATCH(0,COUNTIF($AN$3:AN26,fdfortax2),0))","v":{"$error":"#N/A"}},null,27,null,null,null,null,null,null,2023,"-",2024,"2023-2024","2023","2024"]
["","","","","",null,"","","",null,"",null,"","","","","","","","","",null,"",null,null,null,null,null,0,25,402715.21372572909,108.96159367554355,75.292461229800608,401876.21268447884,33.669132445742946,0,839.00104125028815,"",1,{"$f":"INDEX(fdfortax2,MATCH(0,COUNTIF($AN$3:AN27,fdfortax2),0))","v":{"$error":"#N/A"}},null,28,null,null,null,null,null,null,2024,"-",2025,"2024-2025","2024","2025"]
["","","","","",null,"","","",null,"",null,"","","","","","","","","",null,"",null,null,null,null,null,0,26,402824.20480883465,108.99108310556039,75.312838425942232,401951.52552290476,33.67824467961816,0,872.67928592990631,"",1,{"$f":"INDEX(fdfortax2,MATCH(0,COUNTIF($AN$3:AN28,fdfortax2),0))","v":{"$error":"#N/A"}},null,29,null,null,null,null,null,null,2025,"-",2026,"2025-2026","2025","2026"]
["","","","","",null,"","","",null,"",null,"","","","","","","","","",null,"",null,null,null,null,null,0,27,402933.22538935125,109.02058051660424,75.333221136973535,402026.85874404176,33.687359379630706,0,906.36664530953703,"",1,{"$f":"INDEX(fdfortax2,MATCH(0,COUNTIF($AN$3:AN29,fdfortax2),0))","v":{"$error":"#N/A"}},null,30,null,null,null,null,null,null,2026,"-",2027,"2026-2027","2026","2027"]
["","","","","",null,"","","",null,"",null,"","","","","","","","","",null,"",null,null,null,null,null,0,28,403042.27547526214,109.05008591088699,75.353609364422923,402102.21235340618,33.696476546464069,0,940.06312185600109,"",1,{"$f":"INDEX(fdfortax2,MATCH(0,COUNTIF($AN$3:AN30,fdfortax2),0))","v":{"$error":"#N/A"}},null,31,null,null,null,null,null,null,2027,"-",2028,"2027-2028","2027","2028"]
["Total tax to be payed",{"$f":"B36-B16","v":14129.571320396091},null,null,null,null,null,null,null,null,"",null,"","","","","","","","","",null,"",null,null,null,null,null,0,29,403151.35507455264,109.07959929050412,75.374003109738354,402177.58635651594,33.705596180765767,0,973.76871803676681,"",1,{"$f":"INDEX(fdfortax2,MATCH(0,COUNTIF($AN$3:AN31,fdfortax2),0))","v":{"$error":"#N/A"}},null,32,null,null,null,null,null,null,2028,"-",2029,"2028-2029","2028","2029"]
[null,null,null,null,null,null,null,null,null,null,"",null,"","","","","","","","","",null,"",null,null,null,null,null,0,30,403260.46419521025,109.10912065760931,75.394402374408045,402252.98075889033,33.714718283201265,1,1007.4834363199681,1007.4834363199681,1007.4834363199681,{"$f":"INDEX(fdfortax2,MATCH(0,COUNTIF($AN$3:AN32,fdfortax2),0))","v":{"$error":"#N/A"}},null,33,null,null,null,null,null,null,2029,"-",2030,"2029-2030","2029","2030"]
[null,null,null,null,null,null,null,null,null,null,"",null,"","","","","","","","","",null,"",null,null,null,null,null,0,31,403369.60284522467,109.13865001441445,75.41480715996039,402328.39556605031,33.723842854454062,0,33.723842854454062,"",1,{"$f":"INDEX(fdfortax2,MATCH(0,COUNTIF($AN$3:AN33,fdfortax2),0))","v":{"$error":"#N/A"}},null,34,null,null,null,null,null,null,2030,"-",2031,"2030-2031","2030","2031"]
["For reference purposes only",null,null,null,null,null,null,null,null,null,"",null,"","","","","","","","","",null,"",null,null,null,null,null,0,32,403478.77103258774,109.16818736307323,75.435217467883604,402403.83078351821,33.732969895189626,0,67.456812749643689,"",1,{"$f":"INDEX(fdfortax2,MATCH(0,COUNTIF($AN$3:AN34,fdfortax2),0))","v":{"$error":"#N/A"}},null,35,null,null,null,null,null,null,2031,"-",2032,"2031-2032","2031","2032"]
["Pre-tax Corpus** ",{"$f":"fdamt*(1+raterd/factor1)^(factor1*rdura/ydays)","v":445726.76802716387},null,null,"Financial Year",null,"Post-tax interest",null,null,null,"",null,"","",{"$f":"IF(K36=\"\",\"\",IF(N36<=3,N36+9,N36-3))","v":""},"","","","","","",null,{"$f":"IF(U36<>1,K36,-1)","v":""},null,null,null,null,null,0,33,403587.96876529348,109.19773270573933,75.455633299665877,402479.28641681786,33.74209940607345,0,101.19891215571714,"",1,{"$f":"INDEX(fdfortax2,MATCH(0,COUNTIF($AN$3:AN35,fdfortax2),0))","v":{"$error":"#N/A"}},null,36,null,null,null,null,null,null,2032,"-",2033,"2032-2033","2032","2033"]
["Total interest earned(pre-tax)**",{"$f":"SUM(AF4:AF1003)","v":45726.768027160142},null,null,{"$f":"IF(B21=\"\",\"\",AB5)","v":"2003-2004"},null,{"$f":"IF(ISERR(BQ1),\"\",BQ1)","v":2252.980758890285},null,null,null,{"$f":"IF(K36<fdmon2,K36+1,\"\")","v":""},null,"",{"$f":"IF(K36<fdmon2,IF(N36=12,1,N36+1),\"\")","v":""},"","","","","","","",null,"",null,null,null,null,null,0,34,403697.19605133805,109.22728604456643,75.476054656795412,402554.76247147465,33.751231387771014,0,134.95014354348814,"",1,{"$f":"INDEX(fdfortax2,MATCH(0,COUNTIF($AN$3:AN36,fdfortax2),0))","v":{"$error":"#N/A"}},null,37,null,null,null,null,null,null,2033,"-",2034,"2033-2034","2033","2034"]
[null,null,null,null,{"$f":"IF(B22=\"\",\"\",AB6)","v":"2004-2005"},null,{"$f":"IF(ISERR(BQ2),\"\",BQ2)","v":28511.8899565391},null,null,null,"",null,"","","","","","","","","",null,"",null,null,null,null,null,0,35,403806.45289871976,109.25684738170821,75.496481540760385,402630.25895301544,33.760365840947827,0,168.71050938443597,"",1,{"$f":"INDEX(fdfortax2,MATCH(0,COUNTIF($AN$3:AN37,fdfortax2),0))","v":{"$error":"#N/A"}},null,38,null,null,null,null,null,null,2034,"-",2035,"2034-2035","2034","2035"]
[null,null,null,null,"2005-2006",null,832.3259913382692,null,null,null,"",null,"","","","","","","","","",null,"",null,null,null,null,null,0,36,403915.73931543913,109.28641671937658,75.516913953089215,402705.7758669685,33.76950276628736,0,202.48001215072333,"",1,{"$f":"INDEX(fdfortax2,MATCH(0,COUNTIF($AN$3:AN38,fdfortax2),0))","v":{"$error":"#N/A"}},null,39,null,null,null,null,null,null,2035,"-",2036,"2035-2036","2035","2036"]
[null,null,null,null,"",null,"",null,null,null,"",null,"","","","","","","","","",null,"",null,null,null,null,null,0,37,404025.0553094988,109.31599405966699,75.537351895229904,402781.31321886374,33.778642164437088,0,236.25865431516041,"",1,{"$f":"INDEX(fdfortax2,MATCH(0,COUNTIF($AN$3:AN39,fdfortax2),0))","v":{"$error":"#N/A"}},null,40,null,null,null,null,null,null,2036,"-",2037,"2036-2037","2036","2037"]
[null,null,null,null,"",null,"",null,null,null,"",null,"","","","","","","","","",null,"",null,null,null,null,null,0,38,404134.40088890359,109.34557940479135,75.557795368710828,402856.87101423246,33.787784036080524,0,270.04643835124091,"",1,{"$f":"INDEX(fdfortax2,MATCH(0,COUNTIF($AN$3:AN40,fdfortax2),0))","v":{"$error":"#N/A"}},null,41,null,null,null,null,null,null,2037,"-",2038,"2037-2038","2037","2038"]
[null,null,null,null,"",null,"",null,null,null,"",null,"","","","","","","","","",null,"",null,null,null,null,null,0,39,404243.77606166055,109.37517275696155,75.578244375060436,402932.44925860752,33.796928381901111,0,303.84336673314203,"",1,{"$f":"INDEX(fdfortax2,MATCH(0,COUNTIF($AN$3:AN41,fdfortax2),0))","v":{"$error":"#N/A"}},null,42,null,null,null,null,null,null,2038,"-",2039,"2038-2039","2038","2039"]
[null,null,null,null,"",null,"",null,null,null,"",null,"","","","","","","","","",null,"",null,null,null,null,null,0,40,404353.18083577882,109.40477411827305,75.598698915726686,403008.04795752326,33.806075202546367,0,337.6494419356884,"",1,{"$f":"INDEX(fdfortax2,MATCH(0,COUNTIF($AN$3:AN42,fdfortax2),0))","v":{"$error":"#N/A"}},null,43,null,null,null,null,null,null,2039,"-",2040,"2039-2040","2039","2040"]
[null,null,null,null,"",null,"",null,null,null,"",null,"","","","","","","","","",null,"",null,null,null,null,null,0,41,404462.6152192697,109.43438349087955,75.619158992197782,403083.66711651545,33.815224498681772,0,371.4646664343702,"",1,{"$f":"INDEX(fdfortax2,MATCH(0,COUNTIF($AN$3:AN43,fdfortax2),0))","v":{"$error":"#N/A"}},null,44,null,null,null,null,null,null,2040,"-",2041,"2040-2041","2040","2041"]
[null,null,null,null,"",null,"",null,null,null,"",null,"","","","","","","","","",null,"",null,null,null,null,null,0,42,404572.0792201467,109.46400087699294,75.63962460600213,403159.30674112146,33.824376270990811,0,405.289042705361,"",1,{"$f":"INDEX(fdfortax2,MATCH(0,COUNTIF($AN$3:AN44,fdfortax2),0))","v":{"$error":"#N/A"}},null,45,null,null,null,null,null,null,2041,"-",2042,"2041-2042","2041","2042"]
[null,null,null,null,"",null,"",null,null,null,"",null,"","","","","","","","","",null,"",null,null,null,null,null,0,43,404681.57284642552,109.4936262788251,75.660095758668149,403234.96683688014,33.833530520156955,0,439.12257322551795,"",1,{"$f":"INDEX(fdfortax2,MATCH(0,COUNTIF($AN$3:AN45,fdfortax2),0))","v":{"$error":"#N/A"}},null,46,null,null,null,null,null,null,2042,"-",2043,"2042-2043","2042","2043"]
[null,null,null,null,null,null,null,null,null,null,"",null,"","","","","","","","","",null,"",null,null,null,null,null,0,44,404791.09610612399,109.52325969847152,75.680572451643826,403310.64740933175,33.842687246827694,0,472.96526047234568,"",1,{"$f":"INDEX(fdfortax2,MATCH(0,COUNTIF($AN$3:AN46,fdfortax2),0))","v":{"$error":"#N/A"}},null,47,null,null,null,null,null,null,2043,"-",2044,"2043-2044","2043","2044"]
[null,null,null,null,null,null,null,null,null,null,"",null,"","","","","","","","","",null,"",null,null,null,null,null,0,45,404900.64900726208,109.55290113808587,75.701054686417351,403386.34846401814,33.851846451668521,0,506.81710692401418,"",1,{"$f":"INDEX(fdfortax2,MATCH(0,COUNTIF($AN$3:AN47,fdfortax2),0))","v":{"$error":"#N/A"}},null,48,null,null,null,null,null,null,2044,"-",2045,"2044-2045","2044","2045"]
[null,null,null,null,null,null,null,null,null,null,"",null,"","","","","","","","","",null,"",null,null,null,null,null,0,46,405010.23155786196,109.58255059988005,75.721542464517128,403462.07000648265,33.861008135362923,0,540.67811505937709,"",1,{"$f":"INDEX(fdfortax2,MATCH(0,COUNTIF($AN$3:AN48,fdfortax2),0))","v":{"$error":"#N/A"}},null,49,null,null,null,null,null,null,2045,"-",2046,"2045-2046","2045","2046"]
[null,null,null,null,null,null,null,null,null,null,"",null,"","","","","","","","","",null,"",null,null,null,null,null,0,47,405119.84376594803,109.61220808606595,75.742035787471579,403537.81204227015,33.870172298594369,0,574.5482873579715,"",1,{"$f":"INDEX(fdfortax2,MATCH(0,COUNTIF($AN$3:AN49,fdfortax2),0))","v":{"$error":"#N/A"}},null,50,null,null,null,null,null,null,2046,"-",2047,"2046-2047","2046","2047"]
[null,null,null,null,null,null,null,null,null,null,"",null,"","","","","","","","","",null,"",null,null,null,null,null,0,48,405229.48563954677,109.64187359873904,75.762534656728675,403613.57457692688,33.879338942010364,0,608.42762629998185,"",1,{"$f":"INDEX(fdfortax2,MATCH(0,COUNTIF($AN$3:AN50,fdfortax2),0))","v":{"$error":"#N/A"}},null,51,null,null,null,null,null,null,2047,"-",2048,"2047-2048","2047","2048"]
[null,null,null,null,null,null,null,null,null,null,"",null,"","","","","","","","","",null,"",null,null,null,null,null,0,49,405339.15718668688,109.67154714011122,75.783039073816852,403689.35761600069,33.888508066294364,0,642.31613436627617,"",1,{"$f":"INDEX(fdfortax2,MATCH(0,COUNTIF($AN$3:AN51,fdfortax2),0))","v":{"$error":"#N/A"}},null,52,null,null,null,null,null,null,2048,"-",2049,"2048-2049","2048","2049"]
[null,null,null,null,null,null,null,null,null,null,"",null,"","","","","","","","","",null,"",null,null,null,null,null,0,50,405448.85841539927,109.70122871239437,75.803549040264514,403765.16116504098,33.897679672129854,0,676.21381403840599,"",1,{"$f":"INDEX(fdfortax2,MATCH(0,COUNTIF($AN$3:AN52,fdfortax2),0))","v":{"$error":"#N/A"}},null,53,null,null,null,null,null,null,2049,"-",2050,"2049-2050","2049","2050"]
[null,null,null,null,null,null,null,null,null,null,"",null,"","","","","","","","","",null,"",null,null,null,null,null,0,51,405558.5893337169,109.73091831762576,75.824064557479403,403840.98522959847,33.906853760146362,0,710.1206677985524,"",1,{"$f":"INDEX(fdfortax2,MATCH(0,COUNTIF($AN$3:AN53,fdfortax2),0))","v":{"$error":"#N/A"}},null,54,null,null,null,null,null,null,2050,"-",2051,"2050-2051","2050","2051"]
[null,null,null,null,null,null,null,null,null,null,"",null,"","","","","","","","","",null,"",null,null,null,null,null,0,52,405668.34994967503,109.76061595813371,75.844585627070401,403916.82981522556,33.916030331063311,0,744.03669812961573,"",1,{"$f":"INDEX(fdfortax2,MATCH(0,COUNTIF($AN$3:AN54,fdfortax2),0))","v":{"$error":"#N/A"}},null,55,null,null,null,null,null,null,2051,"-",2052,"2051-2052","2051","2052"]
[null,null,null,null,null,null,null,null,null,null,"",null,"","","","","","","","","",null,"",null,null,null,null,null,0,53,405778.14027131104,109.79032163601369,75.865112250485467,403992.69492747606,33.92520938552822,0,777.96190751514393,"",1,{"$f":"INDEX(fdfortax2,MATCH(0,COUNTIF($AN$3:AN55,fdfortax2),0))","v":{"$error":"#N/A"}},null,56,null,null,null,null,null,null,2052,"-",2053,"2052-2053","2052","2053"]
[null,null,null,null,null,null,null,null,null,null,"",null,"","","","","","","","","",null,"",null,null,null,null,null,0,54,405887.96030666452,109.82003535347758,75.88564442925302,404068.5805719053,33.934390924224559,0,811.89629843936848,"",1,{"$f":"INDEX(fdfortax2,MATCH(0,COUNTIF($AN$3:AN56,fdfortax2),0))","v":{"$error":"#N/A"}},null,57,null,null,null,null,null,null,2053,"-",2054,"2053-2054","2053","2054"]
[null,null,null,null,null,null,null,null,null,null,"",null,"","","","","","","","","",null,"",null,null,null,null,null,0,55,405997.81006377714,109.84975711262086,75.906182164821018,404144.48675407009,33.943574947799846,0,845.83987338716838,"",1,{"$f":"INDEX(fdfortax2,MATCH(0,COUNTIF($AN$3:AN57,fdfortax2),0))","v":{"$error":"#N/A"}},null,58,null,null,null,null,null,null,2054,"-",2055,"2054-2055","2054","2055"]
[null,null,null,null,null,null,null,null,null,null,"",null,"","","","","","","","","",null,"",null,null,null,null,null,0,56,406107.68955069286,109.87948691571364,75.926725458758128,404220.41347952886,33.952761456955514,0,879.79263484412388,"",1,{"$f":"INDEX(fdfortax2,MATCH(0,COUNTIF($AN$3:AN58,fdfortax2),0))","v":{"$error":"#N/A"}},null,59,null,null,null,null,null,null,2055,"-",2056,"2055-2056","2055","2056"]
[null,null,null,null,null,null,null,null,null,null,"",null,"","","","","","","","","",null,"",null,null,null,null,null,0,57,406217.59877545777,109.9092247649096,75.947274312552537,404296.36075384141,33.961950452357058,0,913.75458529648097,"",1,{"$f":"INDEX(fdfortax2,MATCH(0,COUNTIF($AN$3:AN59,fdfortax2),0))","v":{"$error":"#N/A"}},null,60,null,null,null,null,null,null,2056,"-",2057,"2056-2057","2056","2057"]
[null,null,null,null,null,null,null,null,null,null,"",null,"","","","","","","","","",null,"",null,null,null,null,null,0,58,406327.53774612013,109.93897066236241,75.967828727692435,404372.32858256908,33.971141934669973,0,947.72572723115093,"",1,{"$f":"INDEX(fdfortax2,MATCH(0,COUNTIF($AN$3:AN60,fdfortax2),0))","v":{"$error":"#N/A"}},null,61,null,null,null,null,null,null,2057,"-",2058,"2057-2058","2057","2058"]
[null,null,null,null,null,null,null,null,null,null,"",null,"","","","","","","","","",null,"",null,null,null,null,null,0,59,406437.50647073041,109.96872461028397,75.988388705706228,404448.31697127479,33.980335904577743,0,981.70606313572864,"",1,{"$f":"INDEX(fdfortax2,MATCH(0,COUNTIF($AN$3:AN61,fdfortax2),0))","v":{"$error":"#N/A"}},null,62,null,null,null,null,null,null,2058,"-",2059,"2058-2059","2058","2059"]
[null,null,null,null,null,null,null,null,null,null,"",null,"","","","","","","","","",null,"",null,null,null,null,null,0,60,406547.50495734118,109.99848661076976,76.008954248041917,404524.32592552283,33.989532362727843,1,1015.6955954984564,1015.6955954984564,1015.6955954984564,{"$f":"INDEX(fdfortax2,MATCH(0,COUNTIF($AN$3:AN62,fdfortax2),0))","v":{"$error":"#N/A"}},null,63,null,null,null,null,null,null,2059,"-",2060,"2059-2060","2059","2060"]
[null,null,null,null,null,null,null,null,null,null,"",null,"","","","","","","","","",null,"",null,null,null,null,null,0,61,406657.53321400733,110.02825666614808,76.029525356308326,404600.35545087914,33.998731309839755,0,33.998731309839755,"",1,{"$f":"INDEX(fdfortax2,MATCH(0,COUNTIF($AN$3:AN63,fdfortax2),0))","v":{"$error":"#N/A"}},null,64,null,null,null,null,null,null,2060,"-",2061,"2060-2061","2060","2061"]
[null,null,null,null,null,null,null,null,null,null,"",null,"","","","","","","","","",null,"",null,null,null,null,null,0,62,406767.59124878579,110.0580347784562,76.050102031913241,404676.40555291105,34.007932746542963,0,68.006664056382718,"",1,{"$f":"INDEX(fdfortax2,MATCH(0,COUNTIF($AN$3:AN64,fdfortax2),0))","v":{"$error":"#N/A"}},null,65,null,null,null,null,null,null,2061,"-",2062,"2061-2062","2061","2062"]
[null,null,null,null,null,null,null,null,null,null,"",null,"","","","","","","","","",null,"",null,null,null,null,null,0,63,406877.67906973569,110.08782094990602,76.070684276385066,404752.47623718745,34.017136673520952,0,102.02380072990367,"",1,{"$f":"INDEX(fdfortax2,MATCH(0,COUNTIF($AN$3:AN65,fdfortax2),0))","v":{"$error":"#N/A"}},null,66,null,null,null,null,null,null,2062,"-",2063,"2062-2063","2062","2063"]
[null,null,null,null,null,null,null,null,null,null,"",null,"","","","","","","","","",null,"",null,null,null,null,null,0,64,406987.79668491846,110.11761518276762,76.091272091292439,404828.56750927877,34.026343091475184,0,136.05014382137887,"",1,{"$f":"INDEX(fdfortax2,MATCH(0,COUNTIF($AN$3:AN66,fdfortax2),0))","v":{"$error":"#N/A"}},null,67,null,null,null,null,null,null,2063,"-",2064,"2063-2064","2063","2064"]
[null,null,null,null,null,null,null,null,null,null,"",null,"","",{"$f":"IF(K68=\"\",\"\",IF(N68<=3,N68+9,N68-3))","v":""},{"$f":"IF(O68=12,1,\"\")","v":""},"","","",{"$f":"IF(ISERROR(S68),\"\",S68)","v":""},"",null,{"$f":"IF(U68<>1,K68,-1)","v":""},null,null,null,null,null,0,65,407097.9441023976,110.14741747913649,{"$f":"IF(AD68=\"\",\"\",AF68*(1-IF(taxrd=10%,10.3%,IF(taxrd=20%,20.6%,IF(taxrd=30%,30.9%)))))","v":76.111865478083317},{"$f":"IF(AD68=\"\",\"\",AH67+AG68+L68)","v":404904.67937475687},34.035552001053176,0,170.08569582243206,{"$f":"IF(AJ68=1,AK68,IF(ISERROR(AK69),AK68,IF(AK69=\"\",AK68,\"\")))","v":""},1,{"$f":"INDEX(fdfortax2,MATCH(0,COUNTIF($AN$3:AN67,fdfortax2),0))","v":{"$error":"#N/A"}},null,{"$f":"AP67+1","v":68},null,null,null,null,null,null,2064,"-",2065,"2064-2065","2064","2065"]
[null,null,null,null,null,null,null,null,null,null,{"$f":"IF(K68<fdmon2,K68+1,\"\")","v":""},null,{"$f":"IF(ISERROR(AN70),\"\",AN70)","v":""},{"$f":"IF(K68<fdmon2,IF(N68=12,1,N68+1),\"\")","v":""},"","",{"$f":"IF(P69=1,\"Start\",\"\")","v":""},{"$f":"IF(K69=\"\",\"\",IF(Q68=\"Start\",M69,R68+M69))","v":""},{"$f":"IF(K69=\"\",\"\",IF(Q69=\"Start\",R69,IF(ISERROR(R70),R69,IF(R70=\"\",R69,\"\"))))","v":""},"",{"$f":"IF(Q69=\"Start\",R69,IF(ISERROR(R70),R69,IF(R70=\"\",R69,1)))","v":""},null,"",null,null,null,null,null,0,{"$f":"IF(AD68<rdura,AD68+1,\"\")","v":66},{"$f":"IF(AD69=\"\",\"\",AE68*(1+raterd/factor1)^(factor1*1/ydays))","v":407208.12133023876},110.17722784116631,76.132464438245933,404980.81183919514,{"$f":"IF(AD69=\"\",\"\",AF69-AG69)","v":34.044763402920381},{"$f":"IF(INT(AD69/30)-(AD69/30)=0,1,0)","v":0},{"$f":"IF(AJ68=1,AI69,AK68+AI69)","v":204.13045922535244},"",1,{"$f":"INDEX(fdfortax2,MATCH(0,COUNTIF($AN$3:AN68,fdfortax2),0))","v":{"$error":"#N/A"}},null,69,null,null,null,null,null,null,2065,"-",2066,"2065-2066",{"$f":"LEFT(AZ69,4)","v":"2065"},{"$f":"RIGHT(AZ69,4)","v":"2066"}]
[null,null,null,null,null,null,null,null,null,null,"",null,"","","","","","","","","",null,"",null,null,null,null,null,{"$f":"IF(K70=\"\",0,IF(O70=1,AC69+1,AC69))","v":0},67,407318.32837650989,{"$f":"IF(AD70=\"\",\"\",AE70-AE69)","v":110.20704627112718},76.153068973348894,405056.96490816848,34.053977297778289,0,238.18443652313073,"",1,{"$f":"INDEX(fdfortax2,MATCH(0,COUNTIF($AN$3:AN69,fdfortax2),0))","v":{"$error":"#N/A"}},null,70,null,null,null,null,null,null,{"$f":"AW69+1","v":2066},"-",{"$f":"AY69+1","v":2067},{"$f":"CONCATENATE(AW70,AX70,AY70)","v":"2066-2067"},"2066","2067"]
[null,null,null,null,null,null,null,null,null,null,"",null,"","","","","","","","","",null,"",null,null,null,null,null,0,68,407428.56524928106,110.23687277117278,76.173679084880405,405133.13858725334,34.063193686292379,0,272.24763020942311,"",1,{"$f":"INDEX(fdfortax2,MATCH(0,COUNTIF($AN$3:AN70,fdfortax2),0))","v":{"$error":"#N/A"}},null,71,null,null,null,null,null,null,2067,"-",2068,"2067-2068","2067","2068"]
[null,null,null,null,null,null,null,null,null,null,"",null,"","","","","","","","","",null,"",null,null,null,null,null,0,69,407538.83195662458,110.26670734351501,76.194294774368871,405209.33288202772,34.072412569146138,0,306.32004277856925,"",1,{"$f":"INDEX(fdfortax2,MATCH(0,COUNTIF($AN$3:AN71,fdfortax2),0))","v":{"$error":"#N/A"}},null,72,null,null,null,null,null,null,2068,"-",2069,"2068-2069","2068","2069"]
[null,null,null,null,null,null,null,null,null,null,"",null,"","","","","","","","","",null,"",null,null,null,null,null,0,70,407649.12850661483,110.29654999024933,76.214916043262292,405285.547798071,34.08163394698704,0,340.40167672555629,"",1,{"$f":"INDEX(fdfortax2,MATCH(0,COUNTIF($AN$3:AN72,fdfortax2),0))","v":{"$error":"#N/A"}},null,73,null,null,null,null,null,null,2069,"-",2070,"2069-2070","2069","2070"]
[null,null,null,null,null,null,null,null,null,null,"",null,"","","","","","","","","",null,"",null,null,null,null,null,0,71,407759.45490732847,110.32640071364585,76.235542893129292,405361.78334096412,34.090857820516561,0,374.49253454607287,"",{"$f":"IF(AJ74=1,AK74,IF(ISERROR(AK75),AK74,IF(AK75=\"\",AK74,1)))","v":1},{"$f":"INDEX(fdfortax2,MATCH(0,COUNTIF($AN$3:AN73,fdfortax2),0))","v":{"$error":"#N/A"}},null,74,null,null,null,null,null,null,2070,"-",2071,"2070-2071","2070","2071"]
[null,null,null,null,null,null,null,null,null,null,"",null,"","","","","","","","","",null,"",null,null,null,null,null,0,72,407869.81116684427,110.35625951580005,76.256175325417843,405438.03951628954,34.100084190382205,0,408.59261873645505,"",1,{"$f":"INDEX(fdfortax2,MATCH(0,COUNTIF($AN$3:AN74,fdfortax2),0))","v":{"$error":"#N/A"}},null,75,null,null,null,null,null,null,2071,"-",2072,"2071-2072","2071","2072"]
[null,null,null,null,null,null,null,null,null,null,"",null,"","","","","","","","","",null,"",null,null,null,null,null,0,73,407980.19729324331,110.38612639904022,76.276813341736798,405514.31632963126,34.109313057303424,0,442.70193179375849,"",1,{"$f":"INDEX(fdfortax2,MATCH(0,COUNTIF($AN$3:AN75,fdfortax2),0))","v":{"$error":"#N/A"}},null,76,null,null,null,null,null,null,2072,"-",2073,"2072-2073","2072","2073"]
[null,null,null,null,null,null,null,null,null,null,"",null,"","","","","","","","","",null,"",null,null,null,null,null,0,74,408090.61329460872,110.41600136540364,76.297456943493927,405590.61378657474,34.118544421909718,0,476.82047621566824,"",1,{"$f":"INDEX(fdfortax2,MATCH(0,COUNTIF($AN$3:AN76,fdfortax2),0))","v":{"$error":"#N/A"}},null,77,null,null,null,null,null,null,2073,"-",2074,"2073-2074","2073","2074"]
[null,null,null,null,null,null,null,null,null,null,"",null,"","","","","","","","","",null,"",null,null,null,null,null,0,75,408201.05917902594,110.44588441721862,76.31810613229807,405666.93189270707,34.127778284920552,0,510.9482545005888,"",1,{"$f":"INDEX(fdfortax2,MATCH(0,COUNTIF($AN$3:AN77,fdfortax2),0))","v":{"$error":"#N/A"}},null,78,null,null,null,null,null,null,2074,"-",2075,"2074-2075","2074","2075"]
[null,null,null,null,null,null,null,null,null,null,"",null,"","","","","","","","","",null,"",null,null,null,null,null,0,76,408311.53495458246,110.47577555652242,76.338760909556996,405743.27065361664,34.137014646965426,0,545.08526914755419,"",1,{"$f":"INDEX(fdfortax2,MATCH(0,COUNTIF($AN$3:AN78,fdfortax2),0))","v":{"$error":"#N/A"}},null,79,null,null,null,null,null,null,2075,"-",2076,"2075-2076","2075","2076"]
[null,null,null,null,null,null,null,null,null,null,"",null,"","","","","","","","","",null,"",null,null,null,null,null,0,77,408422.0406293681,110.50567478564335,76.359421276879559,405819.63007489353,34.146253508763792,0,579.23152265631802,"",1,{"$f":"INDEX(fdfortax2,MATCH(0,COUNTIF($AN$3:AN79,fdfortax2),0))","v":{"$error":"#N/A"}},null,80,null,null,null,null,null,null,2076,"-",2077,"2076-2077","2076","2077"]
[null,null,null,null,null,null,null,null,null,null,"",null,"","","","","","","","","",null,"",null,null,null,null,null,0,78,408532.57621147478,110.53558210667688,76.380087235713731,405896.01016212924,34.155494870963153,0,613.38701752728116,"",1,{"$f":"INDEX(fdfortax2,MATCH(0,COUNTIF($AN$3:AN80,fdfortax2),0))","v":{"$error":"#N/A"}},null,81,null,null,null,null,null,null,2077,"-",2078,"2077-2078","2077","2078"]
[null,null,null,null,null,null,null,null,null,null,"",null,"","","","","","","","","",null,"",null,null,null,null,null,0,79,408643.14170899661,110.56549752183491,76.400758787587932,405972.41092091682,34.164738734246981,0,647.55175626152811,"",1,{"$f":"INDEX(fdfortax2,MATCH(0,COUNTIF($AN$3:AN81,fdfortax2),0))","v":{"$error":"#N/A"}},null,82,null,null,null,null,null,null,2078,"-",2079,"2078-2079","2078","2079"]
[null,null,null,null,null,null,null,null,null,null,"",null,"","","","","","","","","",null,"",null,null,null,null,null,0,80,408753.73713002994,110.59542103332933,76.421435934030569,406048.83235685085,34.173985099298761,0,681.72574136082687,"",1,{"$f":"INDEX(fdfortax2,MATCH(0,COUNTIF($AN$3:AN82,fdfortax2),0))","v":{"$error":"#N/A"}},null,83,null,null,null,null,null,null,2079,"-",2080,"2079-2080","2079","2080"]
[null,null,null,null,null,null,null,null,null,null,"",null,"","","","","","","","","",null,"",null,null,null,null,null,0,81,408864.36248267331,110.62535264337203,76.442118676570075,406125.2744755274,34.18323396680195,0,715.90897532762881,"",1,{"$f":"INDEX(fdfortax2,MATCH(0,COUNTIF($AN$3:AN83,fdfortax2),0))","v":{"$error":"#N/A"}},null,84,null,null,null,null,null,null,2080,"-",2081,"2080-2081","2080","2081"]
[null,null,null,null,null,null,null,null,null,null,"",null,"","","","","","","","","",null,"",null,null,null,null,null,0,82,408975.01777502737,110.65529235405847,76.462807016654409,406201.73728254408,34.192485337404065,0,750.10146066503285,"",1,{"$f":"INDEX(fdfortax2,MATCH(0,COUNTIF($AN$3:AN84,fdfortax2),0))","v":{"$error":"#N/A"}},null,85,null,null,null,null,null,null,2081,"-",2082,"2081-2082","2081","2082"]
[null,null,null,null,null,null,null,null,null,null,"",null,"","","","","","","","","",null,"",null,null,null,null,null,0,83,409085.70301519509,110.68524016771698,76.483500955892438,406278.2207835,34.201739211824545,0,784.30319987685743,"",1,{"$f":"INDEX(fdfortax2,MATCH(0,COUNTIF($AN$3:AN85,fdfortax2),0))","v":{"$error":"#N/A"}},null,86,null,null,null,null,null,null,2082,"-",2083,"2082-2083","2082","2083"]
[null,null,null,null,null,null,null,null,null,null,"",null,"","","","","","","","","",null,"",null,null,null,null,null,0,84,409196.41821128153,110.71519608644303,76.504200495732135,406354.72498399572,34.210995590710894,0,818.51419546756836,"",1,{"$f":"INDEX(fdfortax2,MATCH(0,COUNTIF($AN$3:AN86,fdfortax2),0))","v":{"$error":"#N/A"}},null,87,null,null,null,null,null,null,2083,"-",2084,"2083-2084","2083","2084"]
[null,null,null,null,null,null,null,null,null,null,"",null,"","","","","","","","","",null,"",null,null,null,null,null,0,85,409307.16337139398,110.7451601124485,76.52490563770192,406431.24988963344,34.220254474746582,0,852.734449942315,"",1,{"$f":"INDEX(fdfortax2,MATCH(0,COUNTIF($AN$3:AN87,fdfortax2),0))","v":{"$error":"#N/A"}},null,88,null,null,null,null,null,null,2084,"-",2085,"2084-2085","2084","2085"]
[null,null,null,null,null,null,null,null,null,null,"",null,"","","","","","","","","",null,"",null,null,null,null,null,0,86,409417.93850364193,110.77513224794529,76.545616383330199,406507.79550601676,34.229515864615095,0,886.9639658069301,"",1,{"$f":"INDEX(fdfortax2,MATCH(0,COUNTIF($AN$3:AN88,fdfortax2),0))","v":{"$error":"#N/A"}},null,89,null,null,null,null,null,null,2085,"-",2086,"2085-2086","2085","2086"]
[null,null,null,null,null,null,null,null,null,null,"",null,"","","","","","","","","",null,"",null,null,null,null,null,0,87,409528.74361613701,110.80511249508709,76.566332734105188,406584.36183875089,34.238779760981899,0,921.20274556791196,"",1,{"$f":"INDEX(fdfortax2,MATCH(0,COUNTIF($AN$3:AN89,fdfortax2),0))","v":{"$error":"#N/A"}},null,90,null,null,null,null,null,null,2086,"-",2087,"2086-2087","2086","2087"]
[null,null,null,null,null,null,null,null,null,null,"",null,"","","","","","","","","",null,"",null,null,null,null,null,0,88,409639.57871699316,110.83510085614398,76.587054691595498,406660.94889344246,34.248046164548484,0,955.4507917324604,"",1,{"$f":"INDEX(fdfortax2,MATCH(0,COUNTIF($AN$3:AN90,fdfortax2),0))","v":{"$error":"#N/A"}},null,91,null,null,null,null,null,null,2087,"-",2088,"2087-2088","2087","2088"]
[null,null,null,null,null,null,null,null,null,null,"",null,"","","","","","","","","",null,"",null,null,null,null,null,0,89,409750.44381432637,110.86509733321145,76.607782257249113,406737.55667569971,34.257315075962339,0,989.70810680842271,"",1,{"$f":"INDEX(fdfortax2,MATCH(0,COUNTIF($AN$3:AN91,fdfortax2),0))","v":{"$error":"#N/A"}},null,92,null,null,null,null,null,null,2088,"-",2089,"2088-2089","2088","2089"]
[null,null,null,null,null,null,null,null,null,null,"",null,"","","","","","","","","",null,"",null,null,null,null,null,0,90,409861.33891625499,110.89510192861781,76.628515432674916,406814.18519113236,34.266586495942889,1,1023.9746933043656,1023.9746933043656,1023.9746933043656,{"$f":"INDEX(fdfortax2,MATCH(0,COUNTIF($AN$3:AN92,fdfortax2),0))","v":{"$error":"#N/A"}},null,93,null,null,null,null,null,null,2089,"-",2090,"2089-2090","2089","2090"]
[null,null,null,null,null,null,null,null,null,null,"",null,"","","","","","","","","",null,"",null,null,null,null,null,0,91,409972.26403089945,110.92511464445852,76.649254219320838,406890.83444535168,34.275860425137679,0,34.275860425137679,"",1,{"$f":"INDEX(fdfortax2,MATCH(0,COUNTIF($AN$3:AN93,fdfortax2),0))","v":{"$error":"#N/A"}},null,94,null,null,null,null,null,null,2090,"-",2091,"2090-2091","2090","2091"]
[null,null,null,null,null,null,null,null,null,null,"",null,"","","","","","","","","",null,"",null,null,null,null,null,0,92,410083.21916638239,110.95513548294548,76.669998618715326,406967.50444397039,34.285136864230154,0,68.560997289367833,"",1,{"$f":"INDEX(fdfortax2,MATCH(0,COUNTIF($AN$3:AN94,fdfortax2),0))","v":{"$error":"#N/A"}},null,95,null,null,null,null,null,null,2091,"-",2092,"2091-2092","2091","2092"]
[null,null,null,null,null,null,null,null,null,null,"",null,"","","","","","","","","",null,"",null,null,null,null,null,0,93,410194.20433082868,110.98516444629058,76.6907486323868,407044.19519260275,34.294415813903782,0,102.85541310327162,"",1,{"$f":"INDEX(fdfortax2,MATCH(0,COUNTIF($AN$3:AN95,fdfortax2),0))","v":{"$error":"#N/A"}},null,96,null,null,null,null,null,null,2092,"-",2093,"2092-2093","2092","2093"]
[null,null,null,null,null,null,null,null,null,null,"",null,"","","","","","","","","",null,"",null,null,null,null,null,0,94,410305.21953236533,111.01520153664751,76.711504261823436,407120.90669686458,34.303697274824074,0,137.1591103780957,"",1,{"$f":"INDEX(fdfortax2,MATCH(0,COUNTIF($AN$3:AN96,fdfortax2),0))","v":{"$error":"#N/A"}},null,97,null,null,null,null,null,null,2093,"-",2094,"2093-2094","2093","2094"]
[null,null,null,null,null,null,null,null,null,null,"",null,"","","","","","","","","",null,"",null,null,null,null,null,0,95,410416.26477912167,111.04524675634457,76.7322655086341,407197.6389623732,34.312981247710468,0,171.47209162580617,"",1,{"$f":"INDEX(fdfortax2,MATCH(0,COUNTIF($AN$3:AN97,fdfortax2),0))","v":{"$error":"#N/A"}},null,98,null,null,null,null,null,null,2094,"-",2095,"2094-2095","2094","2095"]
[null,null,null,null,null,null,null,null,null,null,"",null,"","","","","","","","","",null,"",null,null,null,null,null,0,96,410527.34007922909,111.07530010741903,76.753032374226549,407274.39199474745,34.322267733192476,0,205.79435935899863,"",1,{"$f":"INDEX(fdfortax2,MATCH(0,COUNTIF($AN$3:AN98,fdfortax2),0))","v":{"$error":"#N/A"}},null,99,null,null,null,null,null,null,2095,"-",2096,"2095-2096","2095","2096"]
[null,null,null,null,null,null,null,null,null,null,"",null,"","",{"$f":"IF(K100=\"\",\"\",IF(N100<=3,N100+9,N100-3))","v":""},"","","","","","",null,{"$f":"IF(U100<>1,K100,-1)","v":""},null,null,null,null,null,0,97,410638.44544082129,111.10536159219919,76.773804860209651,407351.16579960764,34.331556731989537,0,240.12591609098817,"",1,{"$f":"INDEX(fdfortax2,MATCH(0,COUNTIF($AN$3:AN99,fdfortax2),0))","v":{"$error":"#N/A"}},null,100,null,null,null,null,null,null,2096,"-",2097,"2096-2097","2096","2097"]
[null,null,null,null,null,null,null,null,null,null,{"$f":"IF(K100<fdmon2,K100+1,\"\")","v":""},null,"",{"$f":"IF(K100<fdmon2,IF(N100=12,1,N100+1),\"\")","v":""},"","","","","","","",null,"",null,null,null,null,null,0,98,410749.58087203413,111.13543121283874,76.79458296807158,407427.96038257569,34.340848244767159,0,274.46676433575533,"",1,{"$f":"INDEX(fdfortax2,MATCH(0,COUNTIF($AN$3:AN100,fdfortax2),0))","v":{"$error":"#N/A"}},null,101,null,null,null,null,null,null,2097,"-",2098,"2097-2098","2097","2098"]
[null,null,null,null,null,null,null,null,null,null,"",null,"","","","","","","","","",null,"",null,null,null,null,null,0,99,410860.74638100568,111.16550897154957,76.815366699340757,407504.77574927505,34.350142272208814,0,308.81690660796414,"",1,{"$f":"INDEX(fdfortax2,MATCH(0,COUNTIF($AN$3:AN101,fdfortax2),0))","v":{"$error":"#N/A"}},null,102,null,null,null,null,null,null,2098,"-",2099,"2098-2099","2098","2099"]
[null,null,null,null,null,null,null,null,null,null,"",null,"","","","","","","","","",null,"",null,null,null,null,null,0,100,410971.94197587617,111.19559487048537,76.836156055505398,407581.61190533056,34.359438814979967,0,343.17634542294411,"",1,{"$f":"INDEX(fdfortax2,MATCH(0,COUNTIF($AN$3:AN102,fdfortax2),0))","v":{"$error":"#N/A"}},null,103,null,null,null,null,null,null,2099,"-",2100,"2099-2100","2099","2100"]
[null,null,null,null,null,null,null,null,null,null,"",null,"","","","","","","","","",null,"",null,null,null,null,null,0,101,411083.16766478808,111.22568891191622,76.856951038134113,407658.46885636868,34.368737873782109,0,377.5450832967262,"",1,{"$f":"INDEX(fdfortax2,MATCH(0,COUNTIF($AN$3:AN103,fdfortax2),0))","v":{"$error":"#N/A"}},null,104,null,null,null,null,null,null,2100,"-",2101,"2100-2101","2100","2101"]
[null,null,null,null,null,null,null,null,null,null,"",null,"","","","","","","","","",null,"",null,null,null,null,null,0,102,411194.42345588608,111.25579109799583,76.877751648715119,407735.3466080174,34.378039449280706,0,411.92312274600692,"",1,{"$f":"INDEX(fdfortax2,MATCH(0,COUNTIF($AN$3:AN104,fdfortax2),0))","v":{"$error":"#N/A"}},null,105,null,null,null,null,null,null,2101,"-",2102,"2101-2102","2101","2102"]
[null,null,null,null,null,null,null,null,null,null,"",null,"","","","","","","","","",null,"",null,null,null,null,null,0,103,411305.70935731701,111.28590143093606,76.898557888776821,407812.24516590615,34.387343542159243,0,446.31046628816614,"",1,{"$f":"INDEX(fdfortax2,MATCH(0,COUNTIF($AN$3:AN105,fdfortax2),0))","v":{"$error":"#N/A"}},null,106,null,null,null,null,null,null,2102,"-",2103,"2102-2103","2102","2103"]
[null,null,null,null,null,null,null,null,null,null,"",null,"","","","","","","","","",null,"",null,null,null,null,null,0,104,411417.02537723002,111.31601991300704,76.919369759887871,407889.16453566606,34.396650153119168,0,480.70711644128528,"",1,{"$f":"INDEX(fdfortax2,MATCH(0,COUNTIF($AN$3:AN106,fdfortax2),0))","v":{"$error":"#N/A"}},null,107,null,null,null,null,null,null,2103,"-",2104,"2103-2104","2103","2104"]
[null,null,null,null,null,null,null,null,null,null,"",null,"","","","","","","","","",null,"",null,null,null,null,null,0,105,411528.37152377632,111.34614654630423,76.940187263496227,407966.10472292954,34.405959282807999,0,515.11307572409328,"",1,{"$f":"INDEX(fdfortax2,MATCH(0,COUNTIF($AN$3:AN107,fdfortax2),0))","v":{"$error":"#N/A"}},null,108,null,null,null,null,null,null,2104,"-",2105,"2104-2105","2104","2105"]
[null,null,null,null,null,null,null,null,null,null,"",null,"","","","","","","","","",null,"",null,null,null,null,null,0,106,411639.74780510948,111.37628133315593,76.961010401210757,408043.06573333073,34.415270931945173,0,549.52834665603848,"",1,{"$f":"INDEX(fdfortax2,MATCH(0,COUNTIF($AN$3:AN108,fdfortax2),0))","v":{"$error":"#N/A"}},null,109,null,null,null,null,null,null,2105,"-",2106,"2105-2106","2105","2106"]
[null,null,null,null,null,null,null,null,null,null,"",null,"","","","","","","","","",null,"",null,null,null,null,null,0,107,411751.15422938514,111.40642427565763,76.981839174479433,408120.04757250519,34.424585101178195,0,583.95293175721667,"",1,{"$f":"INDEX(fdfortax2,MATCH(0,COUNTIF($AN$3:AN109,fdfortax2),0))","v":{"$error":"#N/A"}},null,110,null,null,null,null,null,null,2106,"-",2107,"2106-2107","2106","2107"]
[null,null,null,null,null,null,null,null,null,null,"",null,"","","","","","","","","",null,"",null,null,null,null,null,0,108,411862.59080476122,111.43657537607942,77.002673584870891,408197.05024609005,34.433901791208527,0,618.38683354842522,"",1,{"$f":"INDEX(fdfortax2,MATCH(0,COUNTIF($AN$3:AN110,fdfortax2),0))","v":{"$error":"#N/A"}},null,111,null,null,null,null,null,null,2107,"-",2108,"2107-2108","2107","2108"]
[null,null,null,null,null,null,null,null,null,null,"",null,"","","","","","","","","",null,"",null,null,null,null,null,0,109,411974.05753939779,111.46673463657498,77.023513633873321,408274.07375972392,34.443221002701662,0,652.83005455112686,"",1,{"$f":"INDEX(fdfortax2,MATCH(0,COUNTIF($AN$3:AN111,fdfortax2),0))","v":{"$error":"#N/A"}},null,112,null,null,null,null,null,null,2108,"-",2109,"2108-2109","2108","2109"]
[null,null,null,null,null,null,null,null,null,null,"",null,"","","","","","","","","",null,"",null,null,null,null,null,0,110,412085.55444145721,111.49690205941442,77.044359323055374,408351.11811904697,34.45254273635905,0,687.28259728748594,"",1,{"$f":"INDEX(fdfortax2,MATCH(0,COUNTIF($AN$3:AN112,fdfortax2),0))","v":{"$error":"#N/A"}},null,113,null,null,null,null,null,null,2109,"-",2110,"2109-2110","2109","2110"]
[null,null,null,null,null,null,null,null,null,null,"",null,"","","","","","","","","",null,"",null,null,null,null,null,0,111,412197.08151910402,111.52707764680963,77.065210653945456,408428.1833297009,34.461866992864174,0,721.74446428035014,"",1,{"$f":"INDEX(fdfortax2,MATCH(0,COUNTIF($AN$3:AN113,fdfortax2),0))","v":{"$error":"#N/A"}},null,114,null,null,null,null,null,null,2110,"-",2111,"2110-2111","2110","2111"]
[null,null,null,null,null,null,null,null,null,null,"",null,"","","","","","","","","",null,"",null,null,null,null,null,0,112,412308.63878050493,111.55726140091429,77.086067628031785,408505.26939732896,34.471193772882501,0,756.21565805323269,"",1,{"$f":"INDEX(fdfortax2,MATCH(0,COUNTIF($AN$3:AN114,fdfortax2),0))","v":{"$error":"#N/A"}},null,115,null,null,null,null,null,null,2111,"-",2112,"2111-2112","2111","2112"]
[null,null,null,null,null,null,null,null,null,null,"",null,"","","","","","","","","",null,"",null,null,null,null,null,0,113,412420.22623382887,111.58745332394028,77.106930246842737,408582.37632757582,34.480523077097544,0,790.69618113033027,"",1,{"$f":"INDEX(fdfortax2,MATCH(0,COUNTIF($AN$3:AN115,fdfortax2),0))","v":{"$error":"#N/A"}},null,116,null,null,null,null,null,null,2112,"-",2113,"2112-2113","2112","2113"]
[null,null,null,null,null,null,null,null,null,null,"",null,"","","","","","","","","",null,"",null,null,null,null,null,0,114,412531.84388724709,111.61765341821592,77.127798511987208,408659.50412608782,34.489854906228715,0,825.18603603655902,"",1,{"$f":"INDEX(fdfortax2,MATCH(0,COUNTIF($AN$3:AN116,fdfortax2),0))","v":{"$error":"#N/A"}},null,117,null,null,null,null,null,null,2113,"-",2114,"2113-2114","2113","2114"]
[null,null,null,null,null,null,null,null,null,null,"",null,"","","","","","","","","",null,"",null,null,null,null,null,0,115,412643.49174893287,111.64786168577848,77.148672424872942,408736.65279851272,34.499189260905538,0,859.68522529746451,"",1,{"$f":"INDEX(fdfortax2,MATCH(0,COUNTIF($AN$3:AN117,fdfortax2),0))","v":{"$error":"#N/A"}},null,118,null,null,null,null,null,null,2114,"-",2115,"2114-2115","2114","2115"]
[null,null,null,null,null,null,null,null,null,null,"",null,"","","","","","","","","",null,"",null,null,null,null,null,0,116,412755.16982706182,111.67807812895626,77.169551987108775,408813.8223504998,34.508526141847483,0,894.193751439312,"",1,{"$f":"INDEX(fdfortax2,MATCH(0,COUNTIF($AN$3:AN118,fdfortax2),0))","v":{"$error":"#N/A"}},null,119,null,null,null,null,null,null,2115,"-",2116,"2115-2116","2115","2116"]
[null,null,null,null,null,null,null,null,null,null,"",null,"","","","","","","","","",null,"",null,null,null,null,null,0,117,412866.87812981172,111.70830274990294,77.190437200182942,408891.01278769999,34.51786554972,0,928.711616989032,"",1,{"$f":"INDEX(fdfortax2,MATCH(0,COUNTIF($AN$3:AN119,fdfortax2),0))","v":{"$error":"#N/A"}},null,120,null,null,null,null,null,null,2116,"-",2117,"2116-2117","2116","2117"]
[null,null,null,null,null,null,null,null,null,null,"",null,"","","","","","","","","",null,"",null,null,null,null,null,0,118,412978.61666536261,111.73853555088863,77.211328065664048,408968.22411576565,34.527207485224579,0,963.2388244742566,"",1,{"$f":"INDEX(fdfortax2,MATCH(0,COUNTIF($AN$3:AN120,fdfortax2),0))","v":{"$error":"#N/A"}}]
[null,null,null,null,null,null,null,null,null,null,"",null,"","","","","","","","","",null,"",null,null,null,null,null,0,119,413090.38544189674,111.76877653412521,77.23222458508053,409045.45634035073,34.536551949044679,0,997.77537642330128,"",1,{"$f":"INDEX(fdfortax2,MATCH(0,COUNTIF($AN$3:AN121,fdfortax2),0))","v":{"$error":"#N/A"}}]
[null,null,null,null,null,null,null,null,null,null,"",null,"","","","","","","","","",null,"",null,null,null,null,null,0,120,413202.1844675985,111.79902570176637,77.253126759920562,409122.70946711063,34.545898941845806,1,1032.3212753651471,1032.3212753651471,1032.3212753651471,{"$f":"INDEX(fdfortax2,MATCH(0,COUNTIF($AN$3:AN122,fdfortax2),0))","v":{"$error":"#N/A"}}]
[null,null,null,null,null,null,null,null,null,null,null,null,null,null,null,null,null,null,null,null,null,null,null,null,null,null,null,null,null,121,413314.01375065453,111.829283056024,77.274034591712592,409199.98350170237,34.555248464311404,0,34.555248464311404,"",1,{"$f":"INDEX(fdfortax2,MATCH(0,COUNTIF($AN$3:AN123,fdfortax2),0))","v":{"$error":"#N/A"}}]
[null,null,null,null,null,null,null,null,null,null,null,null,null,null,null,null,null,null,null,null,null,null,null,null,null,null,null,null,null,122,413425.87329925376,111.8595485992264,77.294948082065446,409277.27844978444,34.564600517160954,0,69.119848981472359,"",1,{"$f":"INDEX(fdfortax2,MATCH(0,COUNTIF($AN$3:AN124,fdfortax2),0))","v":{"$error":"#N/A"}}]
[null,null,null,null,null,null,null,null,null,null,null,null,null,null,null,null,null,null,null,null,null,null,null,null,null,null,null,null,null,123,413537.76312158722,111.88982233346906,77.315867232427124,409354.59431701689,34.573955101041932,0,103.69380408251429,"",1,{"$f":"INDEX(fdfortax2,MATCH(0,COUNTIF($AN$3:AN125,fdfortax2),0))","v":{"$error":"#N/A"}}]
[null,null,null,null,null,null,null,null,null,null,null,null,null,null,null,null,null,null,null,null,null,null,null,null,null,null,null,null,null,124,413649.68322584825,111.92010426102206,77.336792044366248,409431.93110906123,34.583312216655813,0,138.2771162991701,"",1,{"$f":"INDEX(fdfortax2,MATCH(0,COUNTIF($AN$3:AN126,fdfortax2),0))","v":{"$error":"#N/A"}}]
[null,null,null,null,null,null,null,null,null,null,null,null,null,null,null,null,null,null,null,null,null,null,null,null,null,null,null,null,null,125,413761.63362023234,111.95039438409731,77.35772251941124,409509.28883158066,34.592671864686068,0,172.86978816385619,"",1,{"$f":"INDEX(fdfortax2,MATCH(0,COUNTIF($AN$3:AN127,fdfortax2),0))","v":{"$error":"#N/A"}}]
[null,null,null,null,null,null,null,null,null,null,null,null,null,null,null,null,null,null,null,null,null,null,null,null,null,null,null,null,null,126,413873.61431293725,111.98069270490669,77.378658659090533,409586.66749023978,34.602034045816154,0,207.47182220967233,"",1,{"$f":"INDEX(fdfortax2,MATCH(0,COUNTIF($AN$3:AN128,fdfortax2),0))","v":{"$error":"#N/A"}}]
[null,null,null,null,null,null,null,null,null,null,null,null,null,null,null,null,null,null,null,null,null,null,null,null,null,null,null,null,null,127,413985.62531216291,112.01099922566209,77.399600464932504,409664.06709070469,34.611398760729585,0,242.0832209704019,"",1,{"$f":"INDEX(fdfortax2,MATCH(0,COUNTIF($AN$3:AN129,fdfortax2),0))","v":{"$error":"#N/A"}}]
[null,null,null,null,null,null,null,null,null,null,null,null,null,null,null,null,null,null,null,null,null,null,null,null,null,null,null,null,null,128,414097.66662611149,112.04131394857541,77.420547938465617,409741.48763864313,34.62076601010979,0,276.70398698051167,"",1,{"$f":"INDEX(fdfortax2,MATCH(0,COUNTIF($AN$3:AN130,fdfortax2),0))","v":{"$error":"#N/A"}}]
[null,null,null,null,null,null,null,null,null,null,null,null,null,null,null,null,null,null,null,null,null,null,null,null,null,null,null,null,null,129,414209.7382629874,112.07163687591674,{"$f":"IF(AD132=\"\",\"\",AF132*(1-IF(taxrd=10%,10.3%,IF(taxrd=20%,20.6%,IF(taxrd=30%,30.9%)))))","v":77.44150108125848},{"$f":"IF(AD132=\"\",\"\",AH131+AG132+L132)","v":409818.92913972441},34.630135794658258,0,311.33412277516993,{"$f":"IF(AJ132=1,AK132,IF(ISERROR(AK133),AK132,IF(AK133=\"\",AK132,\"\")))","v":""},1,{"$f":"INDEX(fdfortax2,MATCH(0,COUNTIF($AN$3:AN131,fdfortax2),0))","v":{"$error":"#N/A"}}]
[null,null,null,null,null,null,null,null,null,null,null,null,null,null,null,null,null,null,null,null,null,null,null,null,null,null,null,null,null,{"$f":"IF(AD132<rdura,AD132+1,\"\")","v":130},{"$f":"IF(AD133=\"\",\"\",AE132*(1+raterd/factor1)^(factor1*1/ydays))","v":414321.84023099724},112.10196800983977,77.462459894799281,409896.39159961918,{"$f":"IF(AD133=\"\",\"\",AF133-AG133)","v":34.639508115040485},{"$f":"IF(INT(AD133/30)-(AD133/30)=0,1,0)","v":0},{"$f":"IF(AJ132=1,AI133,AK132+AI133)","v":345.97363089021042},"",1,{"$f":"INDEX(fdfortax2,MATCH(0,COUNTIF($AN$3:AN132,fdfortax2),0))","v":{"$error":"#N/A"}}]
[null,null,null,null,null,null,null,null,null,null,null,null,null,null,null,null,null,null,null,null,null,null,null,null,null,null,null,null,null,131,414433.97253834986,{"$f":"IF(AD134=\"\",\"\",AE134-AE133)","v":112.13230735261459},77.483424380656686,409973.87502399983,34.648882971957903,0,380.62251386216832,"",1,{"$f":"INDEX(fdfortax2,MATCH(0,COUNTIF($AN$3:AN133,fdfortax2),0))","v":{"$error":"#N/A"}}]
[null,null,null,null,null,null,null,null,null,null,null,null,null,null,null,null,null,null,null,null,null,null,null,null,null,null,null,null,null,132,414546.13519325631,112.1626549064531,77.504394540359101,410051.37941854016,34.658260366093998,0,415.28077422826232,"",1,{"$f":"INDEX(fdfortax2,MATCH(0,COUNTIF($AN$3:AN134,fdfortax2),0))","v":{"$error":"#N/A"}}]
[null,null,null,null,null,null,null,null,null,null,null,null,null,null,null,null,null,null,null,null,null,null,null,null,null,null,null,null,null,133,414658.32820392988,112.19301067356719,77.525370375434932,410128.90478891559,34.667640298132255,0,449.94841452639457,"",1,{"$f":"INDEX(fdfortax2,MATCH(0,COUNTIF($AN$3:AN135,fdfortax2),0))","v":{"$error":"#N/A"}}]
[null,null,null,null,null,null,null,null,null,null,null,null,null,null,null,null,null,null,null,null,null,null,null,null,null,null,null,null,null,134,414770.55157858605,112.22337465616874,77.546351887412612,410206.45114080299,34.677022768756132,0,484.62543729515073,"",1,{"$f":"INDEX(fdfortax2,MATCH(0,COUNTIF($AN$3:AN136,fdfortax2),0))","v":{"$error":"#N/A"}}]
[null,null,null,null,null,null,null,null,null,null,null,null,null,null,null,null,null,null,null,null,null,null,null,null,null,null,null,null,null,135,414882.80532544258,112.25374685652787,77.567339077860765,410284.01847988088,34.686407778667103,0,519.31184507381784,"",{"$f":"IF(AJ138=1,AK138,IF(ISERROR(AK139),AK138,IF(AK139=\"\",AK138,1)))","v":1},{"$f":"INDEX(fdfortax2,MATCH(0,COUNTIF($AN$3:AN137,fdfortax2),0))","v":{"$error":"#N/A"}}]
[null,null,null,null,null,null,null,null,null,null,null,null,null,null,null,null,null,null,null,null,null,null,null,null,null,null,null,null,null,136,414995.08945271943,112.28412727685645,77.588331948307811,410361.6068118292,34.695795328548641,0,554.00764040236652,"",1,{"$f":"INDEX(fdfortax2,MATCH(0,COUNTIF($AN$3:AN138,fdfortax2),0))","v":{"$error":"#N/A"}}]
[null,null,null,null,null,null,null,null,null,null,null,null,null,null,null,null,null,null,null,null,null,null,null,null,null,null,null,null,null,137,415107.40396863874,112.31451591930818,77.609330500241953,410439.21614232945,34.705185419066225,0,588.71282582143272,"",1,{"$f":"INDEX(fdfortax2,MATCH(0,COUNTIF($AN$3:AN139,fdfortax2),0))","v":{"$error":"#N/A"}}]
[null,null,null,null,null,null,null,null,null,null,null,null,null,null,null,null,null,null,null,null,null,null,null,null,null,null,null,null,null,138,415219.74888142489,112.34491278615315,77.630334735231827,410516.84647706465,34.714578050921318,0,623.42740387235403,"",1,{"$f":"INDEX(fdfortax2,MATCH(0,COUNTIF($AN$3:AN140,fdfortax2),0))","v":{"$error":"#N/A"}}]
[null,null,null,null,null,null,null,null,null,null,null,null,null,null,null,null,null,null,null,null,null,null,null,null,null,null,null,null,null,139,415332.12419930456,112.37531787966145,77.651344654846071,410594.4978217195,34.723973224815381,0,658.15137709716942,"",1,{"$f":"INDEX(fdfortax2,MATCH(0,COUNTIF($AN$3:AN141,fdfortax2),0))","v":{"$error":"#N/A"}}]
[null,null,null,null,null,null,null,null,null,null,null,null,null,null,null,null,null,null,null,null,null,null,null,null,null,null,null,null,null,140,415444.5299305066,112.40573120204499,77.67236026061309,410672.17018198012,34.7333709414319,0,692.88474803860129,"",1,{"$f":"INDEX(fdfortax2,MATCH(0,COUNTIF($AN$3:AN142,fdfortax2),0))","v":{"$error":"#N/A"}}]
[null,null,null,null,null,null,null,null,null,null,null,null,null,null,null,null,null,null,null,null,null,null,null,null,null,null,null,null,null,141,415556.96608326206,112.43615275545744,77.693381554021101,410749.86356353416,34.742771201436341,0,727.6275192400376,"",1,{"$f":"INDEX(fdfortax2,MATCH(0,COUNTIF($AN$3:AN143,fdfortax2),0))","v":{"$error":"#N/A"}}]
[null,null,null,null,null,null,null,null,null,null,null,null,null,null,null,null,null,null,null,null,null,null,null,null,null,null,null,null,null,142,415669.43266580423,112.46658254216891,77.714408536638729,410827.57797207078,34.752174005530179,0,762.37969324556775,"",1,{"$f":"INDEX(fdfortax2,MATCH(0,COUNTIF($AN$3:AN144,fdfortax2),0))","v":{"$error":"#N/A"}}]
[null,null,null,null,null,null,null,null,null,null,null,null,null,null,null,null,null,null,null,null,null,null,null,null,null,null,null,null,null,143,415781.92968636868,112.49702056444949,77.735441210034594,410905.31341328082,34.761579354414891,0,797.14127259998259,"",1,{"$f":"INDEX(fdfortax2,MATCH(0,COUNTIF($AN$3:AN145,fdfortax2),0))","v":{"$error":"#N/A"}}]
[null,null,null,null,null,null,null,null,null,null,null,null,null,null,null,null,null,null,null,null,null,null,null,null,null,null,null,null,null,144,415894.45715319319,112.52746682451107,77.75647957573716,410983.06989285658,34.770987248773906,0,831.91225984875655,"",1,{"$f":"INDEX(fdfortax2,MATCH(0,COUNTIF($AN$3:AN146,fdfortax2),0))","v":{"$error":"#N/A"}}]
[null,null,null,null,null,null,null,null,null,null,null,null,null,null,null,null,null,null,null,null,null,null,null,null,null,null,null,null,null,145,416007.01507451769,112.55792132450733,77.777523635234573,411060.84741649183,34.78039768927276,0,866.69265753802927,"",1,{"$f":"INDEX(fdfortax2,MATCH(0,COUNTIF($AN$3:AN147,fdfortax2),0))","v":{"$error":"#N/A"}}]
[null,null,null,null,null,null,null,null,null,null,null,null,null,null,null,null,null,null,null,null,null,null,null,null,null,null,null,null,null,146,416119.60345858446,112.58838406676659,77.798573390135729,411138.64598988194,34.789810676630864,0,901.48246821466012,"",1,{"$f":"INDEX(fdfortax2,MATCH(0,COUNTIF($AN$3:AN148,fdfortax2),0))","v":{"$error":"#N/A"}}]
[null,null,null,null,null,null,null,null,null,null,null,null,null,null,null,null,null,null,null,null,null,null,null,null,null,null,null,null,null,147,416232.22231363796,112.61885505350074,77.819628841969021,411216.46561872389,34.799226211531717,0,936.28169442619185,"",1,{"$f":"INDEX(fdfortax2,MATCH(0,COUNTIF($AN$3:AN149,fdfortax2),0))","v":{"$error":"#N/A"}}]
[null,null,null,null,null,null,null,null,null,null,null,null,null,null,null,null,null,null,null,null,null,null,null,null,null,null,null,null,null,148,416344.87164792483,112.64933428686345,77.84068999222265,411294.30630871613,34.8086442946408,0,971.09033872083262,"",1,{"$f":"INDEX(fdfortax2,MATCH(0,COUNTIF($AN$3:AN150,fdfortax2),0))","v":{"$error":"#N/A"}}]
[null,null,null,null,null,null,null,null,null,null,null,null,null,null,null,null,null,null,null,null,null,null,null,null,null,null,null,null,null,149,416457.55146969401,112.67982176918304,77.861756842505486,411372.16806555865,34.81806492667755,0,1005.9084036475101,"",1,{"$f":"INDEX(fdfortax2,MATCH(0,COUNTIF($AN$3:AN151,fdfortax2),0))","v":{"$error":"#N/A"}}]
[null,null,null,null,null,null,null,null,null,null,null,null,null,null,null,null,null,null,null,null,null,null,null,null,null,null,null,null,null,150,416570.26178719668,112.71031750267139,77.882829394345933,411450.05089495302,34.827488108325454,1,1040.7358917558356,1040.7358917558356,1040.7358917558356,{"$f":"INDEX(fdfortax2,MATCH(0,COUNTIF($AN$3:AN152,fdfortax2),0))","v":{"$error":"#N/A"}}]
[null,null,null,null,null,null,null,null,null,null,null,null,null,null,null,null,null,null,null,null,null,null,null,null,null,null,null,null,null,151,416683.00260868616,112.74082148948219,77.903907649232195,411527.95480260224,34.836913840249991,0,34.836913840249991,"",1,{"$f":"INDEX(fdfortax2,MATCH(0,COUNTIF($AN$3:AN153,fdfortax2),0))","v":{"$error":"#N/A"}}]
[null,null,null,null,null,null,null,null,null,null,null,null,null,null,null,null,null,null,null,null,null,null,null,null,null,null,null,null,null,152,416795.77394241811,112.77133373194374,77.924991608773126,411605.87979421101,34.846342123170615,0,69.683255963420606,"",1,{"$f":"INDEX(fdfortax2,MATCH(0,COUNTIF($AN$3:AN154,fdfortax2),0))","v":{"$error":"#N/A"}}]
[null,null,null,null,null,null,null,null,null,null,null,null,null,null,null,null,null,null,null,null,null,null,null,null,null,null,null,null,null,153,416908.57579665037,112.80185423226794,77.946081274497161,411683.82587548549,34.855772957770782,0,104.53902892119139,"",1,{"$f":"INDEX(fdfortax2,MATCH(0,COUNTIF($AN$3:AN155,fdfortax2),0))","v":{"$error":"#N/A"}}]
[null,null,null,null,null,null,null,null,null,null,null,null,null,null,null,null,null,null,null,null,null,null,null,null,null,null,null,null,null,154,417021.40817964304,112.83238299266668,77.967176647932689,411761.79305213341,34.865206344733991,0,139.40423526592537,"",1,{"$f":"INDEX(fdfortax2,MATCH(0,COUNTIF($AN$3:AN156,fdfortax2),0))","v":{"$error":"#N/A"}}]
[null,null,null,null,null,null,null,null,null,null,null,null,null,null,null,null,null,null,null,null,null,null,null,null,null,null,null,null,null,155,417134.27109965845,112.86292001541005,77.988277730648349,411839.78132986405,34.874642284761705,0,174.27887755068707,"",1,{"$f":"INDEX(fdfortax2,MATCH(0,COUNTIF($AN$3:AN157,fdfortax2),0))","v":{"$error":"#N/A"}}]
[null,null,null,null,null,null,null,null,null,null,null,null,null,null,null,null,null,null,null,null,null,null,null,null,null,null,null,null,null,156,417247.1645649611,112.89346530265175,78.009384524132358,411917.79071438819,34.88408077851939,0,209.16295832920645,"",1,{"$f":"INDEX(fdfortax2,MATCH(0,COUNTIF($AN$3:AN158,fdfortax2),0))","v":{"$error":"#N/A"}}]
[null,null,null,null,null,null,null,null,null,null,null,null,null,null,null,null,null,null,null,null,null,null,null,null,null,null,null,null,null,157,417360.08858381788,112.92401885677828,78.0304970300338,411995.8212114182,34.893521826744475,0,244.05648015595091,"",1,{"$f":"INDEX(fdfortax2,MATCH(0,COUNTIF($AN$3:AN159,fdfortax2),0))","v":{"$error":"#N/A"}}]
[null,null,null,null,null,null,null,null,null,null,null,null,null,null,null,null,null,null,null,null,null,null,null,null,null,null,null,null,null,158,417473.04316449777,112.95458067988511,78.051615249800619,412073.87282666797,34.902965430084492,0,278.95944558603537,"",1,{"$f":"INDEX(fdfortax2,MATCH(0,COUNTIF($AN$3:AN160,fdfortax2),0))","v":{"$error":"#N/A"}}]
[null,null,null,null,null,null,null,null,null,null,null,null,null,null,null,null,null,null,null,null,null,null,null,null,null,null,null,null,null,159,417586.02831527201,112.98515077424236,78.072739185001481,412151.94556585298,34.912411589240875,0,313.87185717527626,"",1,{"$f":"INDEX(fdfortax2,MATCH(0,COUNTIF($AN$3:AN161,fdfortax2),0))","v":{"$error":"#N/A"}}]
[null,null,null,null,null,null,null,null,null,null,null,null,null,null,null,null,null,null,null,null,null,null,null,null,null,null,null,null,null,160,417699.04404441413,113.01572914212011,78.093868837205008,412230.0394346902,34.9218603049151,0,348.79371748019139,"",1,{"$f":"INDEX(fdfortax2,MATCH(0,COUNTIF($AN$3:AN162,fdfortax2),0))","v":{"$error":"#N/A"}}]
[null,null,null,null,null,null,null,null,null,null,null,null,null,null,null,null,null,null,null,null,null,null,null,null,null,null,null,null,null,161,417812.09036019986,113.04631578573026,78.11500420793962,412308.15443889814,34.931311577790638,0,383.72502905798206,"",1,{"$f":"INDEX(fdfortax2,MATCH(0,COUNTIF($AN$3:AN163,fdfortax2),0))","v":{"$error":"#N/A"}}]
[null,null,null,null,null,null,null,null,null,null,null,null,null,null,null,null,null,null,null,null,null,null,null,null,null,null,null,null,null,162,417925.1672709072,113.0769107073429,78.136145298773954,412386.29058419692,34.94076540856895,0,418.66579446655101,"",1,{"$f":"INDEX(fdfortax2,MATCH(0,COUNTIF($AN$3:AN164,fdfortax2),0))","v":{"$error":"#N/A"}}]
[null,null,null,null,null,null,null,null,null,null,null,null,null,null,null,null,null,null,null,null,null,null,null,null,null,null,null,null,null,163,418038.27478481643,113.10751390922815,78.157292111276661,412464.44787630817,34.950221797951485,0,453.61601626450249,"",1,{"$f":"INDEX(fdfortax2,MATCH(0,COUNTIF($AN$3:AN165,fdfortax2),0))","v":{"$error":"#N/A"}}]
[null,null,null,null,null,null,null,null,null,null,null,null,null,null,null,null,null,null,null,null,null,null,null,null,null,null,null,null,null,164,418151.41291020997,113.13812539353967,78.178444646935915,412542.62632095511,34.959680746603752,0,488.57569701110623,"",1,{"$f":"INDEX(fdfortax2,MATCH(0,COUNTIF($AN$3:AN166,fdfortax2),0))","v":{"$error":"#N/A"}}]
[null,null,null,null,null,null,null,null,null,null,null,null,null,null,null,null,null,null,null,null,null,null,null,null,null,null,null,null,null,165,418264.58165537252,113.16874516254757,78.199602907320369,412620.82592386246,34.969142255227197,0,523.54483926633338,"",1,{"$f":"INDEX(fdfortax2,MATCH(0,COUNTIF($AN$3:AN167,fdfortax2),0))","v":{"$error":"#N/A"}}]
[null,null,null,null,null,null,null,null,null,null,null,null,null,null,null,null,null,null,null,null,null,null,null,null,null,null,null,null,null,166,418377.78102859104,113.19937321852194,78.220766893998672,412699.04669075646,34.97860632452327,0,558.52344559085668,"",1,{"$f":"INDEX(fdfortax2,MATCH(0,COUNTIF($AN$3:AN168,fdfortax2),0))","v":{"$error":"#N/A"}}]
[null,null,null,null,null,null,null,null,null,null,null,null,null,null,null,null,null,null,null,null,null,null,null,null,null,null,null,null,null,167,418491.01103815471,113.23000956367468,78.241936608499216,412777.28862736496,34.988072955175468,0,593.51151854603211,"",1,{"$f":"INDEX(fdfortax2,MATCH(0,COUNTIF($AN$3:AN169,fdfortax2),0))","v":{"$error":"#N/A"}}]
[null,null,null,null,null,null,null,null,null,null,null,null,null,null,null,null,null,null,null,null,null,null,null,null,null,null,null,null,null,168,418604.27169235505,113.2606542003341,78.26311205243087,412855.55173941737,34.997542147903232,0,628.50906069393534,"",1,{"$f":"INDEX(fdfortax2,MATCH(0,COUNTIF($AN$3:AN170,fdfortax2),0))","v":{"$error":"#N/A"}}]
[null,null,null,null,null,null,null,null,null,null,null,null,null,null,null,null,null,null,null,null,null,null,null,null,null,null,null,null,null,169,418717.56299948564,113.29130713059567,78.284293227241619,412933.83603264461,35.00701390335405,0,663.51607459728939,"",1,{"$f":"INDEX(fdfortax2,MATCH(0,COUNTIF($AN$3:AN171,fdfortax2),0))","v":{"$error":"#N/A"}}]
[null,null,null,null,null,null,null,null,null,null,null,null,null,null,null,null,null,null,null,null,null,null,null,null,null,null,null,null,null,170,418830.88496784249,113.3219683568459,78.30548013458052,413012.14151277917,35.01648822226538,0,698.53256281955476,"",1,{"$f":"INDEX(fdfortax2,MATCH(0,COUNTIF($AN$3:AN172,fdfortax2),0))","v":{"$error":"#N/A"}}]
[null,null,null,null,null,null,null,null,null,null,null,null,null,null,null,null,null,null,null,null,null,null,null,null,null,null,null,null,null,171,418944.23760572373,113.35263788123848,78.326672775935791,413090.46818555513,35.025965105302689,0,733.55852792485746,"",1,{"$f":"INDEX(fdfortax2,MATCH(0,COUNTIF($AN$3:AN173,fdfortax2),0))","v":{"$error":"#N/A"}}]
[null,null,null,null,null,null,null,null,null,null,null,null,null,null,null,null,null,null,null,null,null,null,null,null,null,null,null,null,null,172,419057.62092142977,113.3833157060435,78.347871152876067,413168.81605670799,35.035444553167437,0,768.59397247802485,"",1,{"$f":"INDEX(fdfortax2,MATCH(0,COUNTIF($AN$3:AN174,fdfortax2),0))","v":{"$error":"#N/A"}}]
[null,null,null,null,null,null,null,null,null,null,null,null,null,null,null,null,null,null,null,null,null,null,null,null,null,null,null,null,null,173,419171.0349232633,113.41400183353107,78.369075266969972,413247.18513197498,35.044926566561102,0,803.63889904458597,"",1,{"$f":"INDEX(fdfortax2,MATCH(0,COUNTIF($AN$3:AN175,fdfortax2),0))","v":{"$error":"#N/A"}}]
[null,null,null,null,null,null,null,null,null,null,null,null,null,null,null,null,null,null,null,null,null,null,null,null,null,null,null,null,null,174,419284.47961952921,113.44469626591308,78.39028511974594,413325.57541709475,35.054411146167141,0,838.6933101907531,"",1,{"$f":"INDEX(fdfortax2,MATCH(0,COUNTIF($AN$3:AN176,fdfortax2),0))","v":{"$error":"#N/A"}}]
[null,null,null,null,null,null,null,null,null,null,null,null,null,null,null,null,null,null,null,null,null,null,null,null,null,null,null,null,null,175,419397.95501853467,113.47539900545962,78.411500712772607,413403.98691780755,35.063898292687014,0,873.75720848344008,"",1,{"$f":"INDEX(fdfortax2,MATCH(0,COUNTIF($AN$3:AN177,fdfortax2),0))","v":{"$error":"#N/A"}}]
[null,null,null,null,null,null,null,null,null,null,null,null,null,null,null,null,null,null,null,null,null,null,null,null,null,null,null,null,null,176,419511.46112858906,113.50611005438259,78.43272204757838,413482.4196398551,35.073388006804208,0,908.83059649024426,"",1,{"$f":"INDEX(fdfortax2,MATCH(0,COUNTIF($AN$3:AN178,fdfortax2),0))","v":{"$error":"#N/A"}}]
[null,null,null,null,null,null,null,null,null,null,null,null,null,null,null,null,null,null,null,null,null,null,null,null,null,null,null,null,null,177,419624.99795800407,113.53682941501029,78.453949125772112,413560.87358898087,35.082880289238176,0,943.91347677948238,"",1,{"$f":"INDEX(fdfortax2,MATCH(0,COUNTIF($AN$3:AN179,fdfortax2),0))","v":{"$error":"#N/A"}}]
[null,null,null,null,null,null,null,null,null,null,null,null,null,null,null,null,null,null,null,null,null,null,null,null,null,null,null,null,null,178,419738.56551509356,113.5675570894964,78.475181948842021,413639.34877092973,35.092375140654383,0,979.00585192013682,"",1,{"$f":"INDEX(fdfortax2,MATCH(0,COUNTIF($AN$3:AN180,fdfortax2),0))","v":{"$error":"#N/A"}}]
[null,null,null,null,null,null,null,null,null,null,null,null,null,null,null,null,null,null,null,null,null,null,null,null,null,null,null,null,null,179,419852.16380817373,113.59829308016924,78.49642051839696,413717.84519144811,35.101872561772282,0,1014.1077244819091,"",1,{"$f":"INDEX(fdfortax2,MATCH(0,COUNTIF($AN$3:AN181,fdfortax2),0))","v":{"$error":"#N/A"}}]
[null,null,null,null,null,null,null,null,null,null,null,null,null,null,null,null,null,null,null,null,null,null,null,null,null,null,null,null,null,180,419965.79284556303,113.6290373892989,78.517664836005551,413796.36285628413,35.11137255329335,1,1049.2190970352026,1049.2190970352026,1049.2190970352026,{"$f":"INDEX(fdfortax2,MATCH(0,COUNTIF($AN$3:AN182,fdfortax2),0))","v":{"$error":"#N/A"}}]
[null,null,null,null,null,null,null,null,null,null,null,null,null,null,null,null,null,null,null,null,null,null,null,null,null,null,null,null,null,181,420079.45263558207,113.65979001903906,78.538914903155998,413874.90177118732,35.120875115883067,0,35.120875115883067,"",1,{"$f":"INDEX(fdfortax2,MATCH(0,COUNTIF($AN$3:AN183,fdfortax2),0))","v":{"$error":"#N/A"}}]
[null,null,null,null,null,null,null,null,null,null,null,null,null,null,null,null,null,null,null,null,null,null,null,null,null,null,null,null,null,182,420193.14318655373,113.69055097165983,78.560170721416952,413953.46194190875,35.130380250242879,0,70.251255366125946,"",1,{"$f":"INDEX(fdfortax2,MATCH(0,COUNTIF($AN$3:AN184,fdfortax2),0))","v":{"$error":"#N/A"}}]
[null,null,null,null,null,null,null,null,null,null,null,null,null,null,null,null,null,null,null,null,null,null,null,null,null,null,null,null,null,183,420306.86450680322,113.72132024948951,78.581432292397253,414032.04337420117,35.139887957092256,0,105.3911433232182,"",1,{"$f":"INDEX(fdfortax2,MATCH(0,COUNTIF($AN$3:AN185,fdfortax2),0))","v":{"$error":"#N/A"}}]
[null,null,null,null,null,null,null,null,null,null,null,null,null,null,null,null,null,null,null,null,null,null,null,null,null,null,null,null,null,184,420420.6166046579,113.75209785468178,78.602699617585117,414110.64607381873,35.149398237096662,0,140.54054156031486,"",1,{"$f":"INDEX(fdfortax2,MATCH(0,COUNTIF($AN$3:AN186,fdfortax2),0))","v":{"$error":"#N/A"}}]
[null,null,null,null,null,null,null,null,null,null,null,null,null,null,null,null,null,null,null,null,null,null,null,null,null,null,null,null,null,185,420534.39948844747,113.78288378956495,78.623972698589384,414189.27004651731,35.158911090975565,0,175.69945265129041,"",1,{"$f":"INDEX(fdfortax2,MATCH(0,COUNTIF($AN$3:AN187,fdfortax2),0))","v":{"$error":"#N/A"}}]
[null,null,null,null,null,null,null,null,null,null,null,null,null,null,null,null,null,null,null,null,null,null,null,null,null,null,null,null,null,186,420648.21316650388,113.81367805640912,78.645251536978705,414267.91529805429,35.168426519430412,0,210.86787917072081,"",1,{"$f":"INDEX(fdfortax2,MATCH(0,COUNTIF($AN$3:AN188,fdfortax2),0))","v":{"$error":"#N/A"}}]
[null,null,null,null,null,null,null,null,null,null,null,null,null,null,null,null,null,null,null,null,null,null,null,null,null,null,null,null,null,187,420762.0576471613,113.84448065742617,78.6665361342815,414346.58183418855,35.177944523144674,0,246.04582369386549,"",1,{"$f":"INDEX(fdfortax2,MATCH(0,COUNTIF($AN$3:AN189,fdfortax2),0))","v":{"$error":"#N/A"}}]
[null,null,null,null,null,null,null,null,null,null,null,null,null,null,null,null,null,null,null,null,null,null,null,null,null,null,null,null,null,188,420875.93293875613,113.87529159482801,78.687826492026161,414425.26966068055,35.187465102801852,0,281.23328879666735,"",1,{"$f":"INDEX(fdfortax2,MATCH(0,COUNTIF($AN$3:AN190,fdfortax2),0))","v":{"$error":"#N/A"}}]
[null,null,null,null,null,null,null,null,null,null,null,null,null,null,null,null,null,null,null,null,null,null,null,null,null,null,null,null,null,189,420989.83904962707,113.90611087094294,78.709122611821584,414503.9787832924,35.196988259121355,0,316.43027705578868,"",1,{"$f":"INDEX(fdfortax2,MATCH(0,COUNTIF($AN$3:AN191,fdfortax2),0))","v":{"$error":"#N/A"}}]
[null,null,null,null,null,null,null,null,null,null,null,null,null,null,null,null,null,null,null,null,null,null,null,null,null,null,null,null,null,190,421103.77598811511,113.93693848804105,78.730424495236377,414582.70920778764,35.206513992804673,0,351.63679104859335,"",1,{"$f":"INDEX(fdfortax2,MATCH(0,COUNTIF($AN$3:AN192,fdfortax2),0))","v":{"$error":"#N/A"}}]
[null,null,null,null,null,null,null,null,null,null,null,null,null,null,null,null,null,null,null,null,null,null,null,null,null,null,null,null,null,191,421217.74376256339,113.96777444827603,78.751732143758744,414661.46093993139,35.216042304517288,0,386.85283335311067,"",1,{"$f":"INDEX(fdfortax2,MATCH(0,COUNTIF($AN$3:AN193,fdfortax2),0))","v":{"$error":"#N/A"}}]
[null,null,null,null,null,null,null,null,null,null,null,null,null,null,null,null,null,null,null,null,null,null,null,null,null,null,null,null,null,192,421331.74238131742,113.9986187540344,78.773045559037769,414740.23398549046,35.225573194996628,0,422.0784065481073,"",1,{"$f":"INDEX(fdfortax2,MATCH(0,COUNTIF($AN$3:AN194,fdfortax2),0))","v":{"$error":"#N/A"}}]
[null,null,null,null,null,null,null,null,null,null,null,null,null,null,null,null,null,null,null,null,null,null,null,null,null,null,null,null,null,193,421445.77185272489,114.02947140746983,{"$f":"IF(AD196=\"\",\"\",AF196*(1-IF(taxrd=10%,10.3%,IF(taxrd=20%,20.6%,IF(taxrd=30%,30.9%)))))","v":78.794364742561655},{"$f":"IF(AD196=\"\",\"\",AH195+AG196+L196)","v":414819.02835023304},35.235106664908173,0,457.31351321301548,{"$f":"IF(AJ196=1,AK196,IF(ISERROR(AK197),AK196,IF(AK197=\"\",AK196,\"\")))","v":""},1,{"$f":"INDEX(fdfortax2,MATCH(0,COUNTIF($AN$3:AN195,fdfortax2),0))","v":{"$error":"#N/A"}}]
[null,null,null,null,null,null,null,null,null,null,null,null,null,null,null,null,null,null,null,null,null,null,null,null,null,null,null,null,null,{"$f":"IF(AD196<rdura,AD196+1,\"\")","v":194},{"$f":"IF(AD197=\"\",\"\",AE196*(1+raterd/factor1)^(factor1*1/ydays))","v":421559.83218513581},114.06033241091063,78.815689695939255,414897.84403992898,{"$f":"IF(AD197=\"\",\"\",AF197-AG197)","v":35.244642714971377},{"$f":"IF(INT(AD197/30)-(AD197/30)=0,1,0)","v":0},{"$f":"IF(AJ196=1,AI197,AK196+AI197)","v":492.55815592798683},"",1,{"$f":"INDEX(fdfortax2,MATCH(0,COUNTIF($AN$3:AN196,fdfortax2),0))","v":{"$error":"#N/A"}}]
[null,null,null,null,null,null,null,null,null,null,null,null,null,null,null,null,null,null,null,null,null,null,null,null,null,null,null,null,null,195,421673.92338690243,{"$f":"IF(AD198=\"\",\"\",AE198-AE197)","v":114.09120176662691},78.837020420739208,414976.68106034974,35.254181345887702,0,527.8123372738745,"",1,{"$f":"INDEX(fdfortax2,MATCH(0,COUNTIF($AN$3:AN197,fdfortax2),0))","v":{"$error":"#N/A"}}]
[null,null,null,null,null,null,null,null,null,null,null,null,null,null,null,null,null,null,null,null,null,null,null,null,null,null,null,null,null,196,421788.0454663792,114.12207947677234,78.858356918449701,415055.53941726818,35.263722558322641,0,563.07605983219719,"",1,{"$f":"INDEX(fdfortax2,MATCH(0,COUNTIF($AN$3:AN198,fdfortax2),0))","v":{"$error":"#N/A"}}]
[null,null,null,null,null,null,null,null,null,null,null,null,null,null,null,null,null,null,null,null,null,null,null,null,null,null,null,null,null,197,421902.19843192294,114.15296554373344,78.879699190719819,415134.41911645891,35.273266353013625,0,598.34932618521077,"",1,{"$f":"INDEX(fdfortax2,MATCH(0,COUNTIF($AN$3:AN199,fdfortax2),0))","v":{"$error":"#N/A"}}]
[null,null,null,null,null,null,null,null,null,null,null,null,null,null,null,null,null,null,null,null,null,null,null,null,null,null,null,null,null,198,422016.3822918926,114.1838599696639,78.901047239037766,415213.32016369794,35.282812730626134,0,633.63213891583689,"",1,{"$f":"INDEX(fdfortax2,MATCH(0,COUNTIF($AN$3:AN200,fdfortax2),0))","v":{"$error":"#N/A"}}]
[null,null,null,null,null,null,null,null,null,null,null,null,null,null,null,null,null,null,null,null,null,null,null,null,null,null,null,null,null,199,422130.59705464955,114.21476275695022,78.922401065052611,415292.242564763,35.292361691897611,0,668.92450060773444,"",{"$f":"IF(AJ202=1,AK202,IF(ISERROR(AK203),AK202,IF(AK203=\"\",AK202,1)))","v":1},{"$f":"INDEX(fdfortax2,MATCH(0,COUNTIF($AN$3:AN201,fdfortax2),0))","v":{"$error":"#N/A"}}]
[null,null,null,null,null,null,null,null,null,null,null,null,null,null,null,null,null,null,null,null,null,null,null,null,null,null,null,null,null,200,422244.8427285573,114.2456739077461,78.943760670252558,415371.18632543326,35.301913237493537,0,704.22641384522797,"",1,{"$f":"INDEX(fdfortax2,MATCH(0,COUNTIF($AN$3:AN202,fdfortax2),0))","v":{"$error":"#N/A"}}]
[null,null,null,null,null,null,null,null,null,null,null,null,null,null,null,null,null,null,null,null,null,null,null,null,null,null,null,null,null,201,422359.11932198162,114.27659342432162,78.965126056206245,415450.15145148948,35.311467368115373,0,739.53788121334333,"",1,{"$f":"INDEX(fdfortax2,MATCH(0,COUNTIF($AN$3:AN203,fdfortax2),0))","v":{"$error":"#N/A"}}]
[null,null,null,null,null,null,null,null,null,null,null,null,null,null,null,null,null,null,null,null,null,null,null,null,null,null,null,null,null,202,422473.42684329062,114.3075213090051,78.986497224522523,415529.13794871402,35.321024084482573,0,774.85890529782591,"",1,{"$f":"INDEX(fdfortax2,MATCH(0,COUNTIF($AN$3:AN204,fdfortax2),0))","v":{"$error":"#N/A"}}]
[null,null,null,null,null,null,null,null,null,null,null,null,null,null,null,null,null,null,null,null,null,null,null,null,null,null,null,null,null,203,422587.76530085469,114.33845756406663,79.007874176770045,415608.1458228908,35.330583387296585,0,810.18948868512246,"",1,{"$f":"INDEX(fdfortax2,MATCH(0,COUNTIF($AN$3:AN205,fdfortax2),0))","v":{"$error":"#N/A"}}]
[null,null,null,null,null,null,null,null,null,null,null,null,null,null,null,null,null,null,null,null,null,null,null,null,null,null,null,null,null,204,422702.13470304635,114.3694021916599,79.029256914436999,415687.17507980525,35.340145277222902,0,845.52963396234532,"",1,{"$f":"INDEX(fdfortax2,MATCH(0,COUNTIF($AN$3:AN206,fdfortax2),0))","v":{"$error":"#N/A"}}]
[null,null,null,null,null,null,null,null,null,null,null,null,null,null,null,null,null,null,null,null,null,null,null,null,null,null,null,null,null,205,422816.53505824052,114.40035519417142,79.050645439172456,415766.22572524444,35.349709754998969,0,880.87934371734423,"",1,{"$f":"INDEX(fdfortax2,MATCH(0,COUNTIF($AN$3:AN207,fdfortax2),0))","v":{"$error":"#N/A"}}]
[null,null,null,null,null,null,null,null,null,null,null,null,null,null,null,null,null,null,null,null,null,null,null,null,null,null,null,null,null,206,422930.96637481434,114.43131657381309,79.07203975250485,415845.29776499694,35.359276821308242,0,916.23862053865241,"",1,{"$f":"INDEX(fdfortax2,MATCH(0,COUNTIF($AN$3:AN208,fdfortax2),0))","v":{"$error":"#N/A"}}]
[null,null,null,null,null,null,null,null,null,null,null,null,null,null,null,null,null,null,null,null,null,null,null,null,null,null,null,null,null,207,423045.42866114719,114.462286332855,79.093439856002817,415924.39120485296,35.368846476852184,0,951.60746701550465,"",1,{"$f":"INDEX(fdfortax2,MATCH(0,COUNTIF($AN$3:AN209,fdfortax2),0))","v":{"$error":"#N/A"}}]
[null,null,null,null,null,null,null,null,null,null,null,null,null,null,null,null,null,null,null,null,null,null,null,null,null,null,null,null,null,208,423159.92192562076,114.49326447356725,79.114845751234981,416003.50605060422,35.37841872233227,0,986.98588573783695,"",1,{"$f":"INDEX(fdfortax2,MATCH(0,COUNTIF($AN$3:AN210,fdfortax2),0))","v":{"$error":"#N/A"}}]
[null,null,null,null,null,null,null,null,null,null,null,null,null,null,null,null,null,null,null,null,null,null,null,null,null,null,null,null,null,209,423274.44617661904,114.52425099827815,79.136257439810208,416082.64230804401,35.38799355846794,0,1022.3738792963049,"",1,{"$f":"INDEX(fdfortax2,MATCH(0,COUNTIF($AN$3:AN211,fdfortax2),0))","v":{"$error":"#N/A"}}]
[null,null,null,null,null,null,null,null,null,null,null,null,null,null,null,null,null,null,null,null,null,null,null,null,null,null,null,null,null,210,423389.00142252818,114.55524590914138,79.157674923216703,416161.7999829672,35.397570985924673,1,1057.7714502822296,1057.7714502822296,1057.7714502822296,{"$f":"INDEX(fdfortax2,MATCH(0,COUNTIF($AN$3:AN212,fdfortax2),0))","v":{"$error":"#N/A"}}]
[null,null,null,null,null,null,null,null,null,null,null,null,null,null,null,null,null,null,null,null,null,null,null,null,null,null,null,null,null,211,423503.58767173666,114.58624920848524,79.179098203063305,416240.97908117028,35.407151005421937,0,35.407151005421937,"",1,{"$f":"INDEX(fdfortax2,MATCH(0,COUNTIF($AN$3:AN213,fdfortax2),0))","v":{"$error":"#N/A"}}]
[null,null,null,null,null,null,null,null,null,null,null,null,null,null,null,null,null,null,null,null,null,null,null,null,null,null,null,null,null,212,423618.20493263524,114.61726089857984,79.200527280918678,416320.1796084512,35.416733617661166,0,70.823884623083103,"",1,{"$f":"INDEX(fdfortax2,MATCH(0,COUNTIF($AN$3:AN214,fdfortax2),0))","v":{"$error":"#N/A"}}]
[null,null,null,null,null,null,null,null,null,null,null,null,null,null,null,null,null,null,null,null,null,null,null,null,null,null,null,null,null,213,423732.853213617,114.64828098175349,79.221962158391662,416399.4015706096,35.426318823361825,0,106.25020344644493,"",1,{"$f":"INDEX(fdfortax2,MATCH(0,COUNTIF($AN$3:AN215,fdfortax2),0))","v":{"$error":"#N/A"}}]
[null,null,null,null,null,null,null,null,null,null,null,null,null,null,null,null,null,null,null,null,null,null,null,null,null,null,null,null,null,214,423847.53252307716,114.67930946015986,79.243402836970475,416478.64497344656,35.435906623189382,0,141.68611006963431,"",1,{"$f":"INDEX(fdfortax2,MATCH(0,COUNTIF($AN$3:AN216,fdfortax2),0))","v":{"$error":"#N/A"}}]
[null,null,null,null,null,null,null,null,null,null,null,null,null,null,null,null,null,null,null,null,null,null,null,null,null,null,null,null,null,215,423962.24286941328,114.71034633612726,79.264849318263941,416557.90982276481,35.445497017863318,0,177.13160708749763,"",1,{"$f":"INDEX(fdfortax2,MATCH(0,COUNTIF($AN$3:AN217,fdfortax2),0))","v":{"$error":"#N/A"}}]
[null,null,null,null,null,null,null,null,null,null,null,null,null,null,null,null,null,null,null,null,null,null,null,null,null,null,null,null,null,216,424076.98426102527,114.741391611984,79.286301603880943,416637.1961243687,35.455090008103056,0,212.5866970956007,"",1,{"$f":"INDEX(fdfortax2,MATCH(0,COUNTIF($AN$3:AN218,fdfortax2),0))","v":{"$error":"#N/A"}}]
[null,null,null,null,null,null,null,null,null,null,null,null,null,null,null,null,null,null,null,null,null,null,null,null,null,null,null,null,null,217,424191.75670631521,114.77244528994197,79.307759695349901,416716.50388406403,35.464685594592069,0,248.05138269019278,"",1,{"$f":"INDEX(fdfortax2,MATCH(0,COUNTIF($AN$3:AN219,fdfortax2),0))","v":{"$error":"#N/A"}}]
[null,null,null,null,null,null,null,null,null,null,null,null,null,null,null,null,null,null,null,null,null,null,null,null,null,null,null,null,null,218,424306.56021368748,114.80350737227127,79.329223594239451,416795.83310765825,35.474283778031818,0,283.52566646822459,"",1,{"$f":"INDEX(fdfortax2,MATCH(0,COUNTIF($AN$3:AN220,fdfortax2),0))","v":{"$error":"#N/A"}}]
[null,null,null,null,null,null,null,null,null,null,null,null,null,null,null,null,null,null,null,null,null,null,null,null,null,null,null,null,null,219,424421.39479154872,114.834577861242,79.350693302118231,416875.18380096037,35.483884559123766,0,319.00955102734838,"",1,{"$f":"INDEX(fdfortax2,MATCH(0,COUNTIF($AN$3:AN221,fdfortax2),0))","v":{"$error":"#N/A"}}]
[null,null,null,null,null,null,null,null,null,null,null,null,null,null,null,null,null,null,null,null,null,null,null,null,null,null,null,null,null,220,424536.2604483079,114.86565675918246,79.372168820595078,416954.55596978095,35.493487938587378,0,354.50303896593573,"",1,{"$f":"INDEX(fdfortax2,MATCH(0,COUNTIF($AN$3:AN222,fdfortax2),0))","v":{"$error":"#N/A"}}]
[null,null,null,null,null,null,null,null,null,null,null,null,null,null,null,null,null,null,null,null,null,null,null,null,null,null,null,null,null,221,424651.15719237621,114.89674406830454,79.393650151198443,417033.94961993216,35.503093917106099,0,390.0061328830418,"",1,{"$f":"INDEX(fdfortax2,MATCH(0,COUNTIF($AN$3:AN223,fdfortax2),0))","v":{"$error":"#N/A"}}]
[null,null,null,null,null,null,null,null,null,null,null,null,null,null,null,null,null,null,null,null,null,null,null,null,null,null,null,null,null,222,424766.08503216715,114.92783979093656,79.415137295537164,417113.36475722771,35.512702495399395,0,425.51883537844117,"",1,{"$f":"INDEX(fdfortax2,MATCH(0,COUNTIF($AN$3:AN224,fdfortax2),0))","v":{"$error":"#N/A"}}]
[null,null,null,null,null,null,null,null,null,null,null,null,null,null,null,null,null,null,null,null,null,null,null,null,null,null,null,null,null,223,424881.04397609644,114.9589439292904,79.436630255139676,417192.80138748285,35.522313674150723,0,461.04114905259189,"",1,{"$f":"INDEX(fdfortax2,MATCH(0,COUNTIF($AN$3:AN225,fdfortax2),0))","v":{"$error":"#N/A"}}]
[null,null,null,null,null,null,null,null,null,null,null,null,null,null,null,null,null,null,null,null,null,null,null,null,null,null,null,null,null,224,424996.03403258213,114.99005648569437,79.458129031614817,417272.25951651449,35.53192745407955,0,496.57307650667144,"",1,{"$f":"INDEX(fdfortax2,MATCH(0,COUNTIF($AN$3:AN226,fdfortax2),0))","v":{"$error":"#N/A"}}]
[null,null,null,null,null,null,null,null,null,null,null,null,null,null,null,null,null,null,null,null,null,null,null,null,null,null,null,null,null,225,425111.05521004461,115.02117746247677,79.479633626571456,417351.73915014107,35.541543835905316,0,532.1146203425767,"",1,{"$f":"INDEX(fdfortax2,MATCH(0,COUNTIF($AN$3:AN227,fdfortax2),0))","v":{"$error":"#N/A"}}]
[null,null,null,null,null,null,null,null,null,null,null,null,null,null,null,null,null,null,null,null,null,null,null,null,null,null,null,null,null,226,425226.1075169064,115.05230686179129,79.501144041497795,417431.24029418256,35.551162820293499,0,567.66578316287018,"",1,{"$f":"INDEX(fdfortax2,MATCH(0,COUNTIF($AN$3:AN228,fdfortax2),0))","v":{"$error":"#N/A"}}]
[null,null,null,null,null,null,null,null,null,null,null,null,null,null,null,null,null,null,null,null,null,null,null,null,null,null,null,null,null,227,425341.19096159242,115.08344468602445,79.522660278042906,417510.76295446057,35.560784407981544,0,603.22656757085178,"",1,{"$f":"INDEX(fdfortax2,MATCH(0,COUNTIF($AN$3:AN229,fdfortax2),0))","v":{"$error":"#N/A"}}]
[null,null,null,null,null,null,null,null,null,null,null,null,null,null,null,null,null,null,null,null,null,null,null,null,null,null,null,null,null,228,425456.30555252987,115.11459093744634,79.544182337775425,417590.30713679834,35.570408599670913,0,638.79697617052273,"",1,{"$f":"INDEX(fdfortax2,MATCH(0,COUNTIF($AN$3:AN230,fdfortax2),0))","v":{"$error":"#N/A"}}]
[null,null,null,null,null,null,null,null,null,null,null,null,null,null,null,null,null,null,null,null,null,null,null,null,null,null,null,null,null,229,425571.45129814814,115.14574561826885,79.565710222223785,417669.87284702057,35.580035396045062,0,674.37701156656783,"",1,{"$f":"INDEX(fdfortax2,MATCH(0,COUNTIF($AN$3:AN231,fdfortax2),0))","v":{"$error":"#N/A"}}]
[null,null,null,null,null,null,null,null,null,null,null,null,null,null,null,null,null,null,null,null,null,null,null,null,null,null,null,null,null,230,425686.62820687896,115.17690873082029,79.587243932996827,417749.46009095357,35.58966479782346,0,709.96667636439133,"",1,{"$f":"INDEX(fdfortax2,MATCH(0,COUNTIF($AN$3:AN232,fdfortax2),0))","v":{"$error":"#N/A"}}]
[null,null,null,null,null,null,null,null,null,null,null,null,null,null,null,null,null,null,null,null,null,null,null,null,null,null,null,null,null,231,425801.83628715633,115.20808027737075,79.608783471663202,417829.06887442525,35.599296805707553,0,745.56597317009891,"",1,{"$f":"INDEX(fdfortax2,MATCH(0,COUNTIF($AN$3:AN233,fdfortax2),0))","v":{"$error":"#N/A"}}]
[null,null,null,null,null,null,null,null,null,null,null,null,null,null,null,null,null,null,null,null,null,null,null,null,null,null,null,null,null,232,425917.07554741652,115.23926026019035,79.630328839791531,417908.69920326507,35.608931420398818,0,781.1749045904977,"",1,{"$f":"INDEX(fdfortax2,MATCH(0,COUNTIF($AN$3:AN234,fdfortax2),0))","v":{"$error":"#N/A"}}]
[null,null,null,null,null,null,null,null,null,null,null,null,null,null,null,null,null,null,null,null,null,null,null,null,null,null,null,null,null,233,426032.34599609813,115.27044868160738,79.651880038990697,417988.35108330409,35.61856864261668,0,816.79347323311436,"",1,{"$f":"INDEX(fdfortax2,MATCH(0,COUNTIF($AN$3:AN235,fdfortax2),0))","v":{"$error":"#N/A"}}]
[null,null,null,null,null,null,null,null,null,null,null,null,null,null,null,null,null,null,null,null,null,null,null,null,null,null,null,null,null,234,426147.64764164196,115.30164554383373,79.67343707078912,418068.02452037489,35.628208473044609,0,852.42168170615901,"",1,{"$f":"INDEX(fdfortax2,MATCH(0,COUNTIF($AN$3:AN236,fdfortax2),0))","v":{"$error":"#N/A"}}]
[null,null,null,null,null,null,null,null,null,null,null,null,null,null,null,null,null,null,null,null,null,null,null,null,null,null,null,null,null,235,426262.98049249122,115.33285084925592,79.694999936835842,418147.71952031174,35.637850912420078,0,888.05953261857906,"",1,{"$f":"INDEX(fdfortax2,MATCH(0,COUNTIF($AN$3:AN237,fdfortax2),0))","v":{"$error":"#N/A"}}]
[null,null,null,null,null,null,null,null,null,null,null,null,null,null,null,null,null,null,null,null,null,null,null,null,null,null,null,null,null,236,426378.3445570913,115.36406460008584,79.716568638659325,418227.43608895043,35.647495961426515,0,923.70702858000561,"",1,{"$f":"INDEX(fdfortax2,MATCH(0,COUNTIF($AN$3:AN238,fdfortax2),0))","v":{"$error":"#N/A"}}]
[null,null,null,null,null,null,null,null,null,null,null,null,null,null,null,null,null,null,null,null,null,null,null,null,null,null,null,null,null,237,426493.7398438899,115.39528679859359,79.738143177828178,418307.17423212825,35.65714362076541,0,959.36417220077101,"",1,{"$f":"INDEX(fdfortax2,MATCH(0,COUNTIF($AN$3:AN239,fdfortax2),0))","v":{"$error":"#N/A"}}]
[null,null,null,null,null,null,null,null,null,null,null,null,null,null,null,null,null,null,null,null,null,null,null,null,null,null,null,null,null,238,426609.166361337,115.42651744710747,79.759723555951268,418386.93395568419,35.666793891156203,0,995.03096609192721,"",1,{"$f":"INDEX(fdfortax2,MATCH(0,COUNTIF($AN$3:AN240,fdfortax2),0))","v":{"$error":"#N/A"}}]
[null,null,null,null,null,null,null,null,null,null,null,null,null,null,null,null,null,null,null,null,null,null,null,null,null,null,null,null,null,239,426724.6241178849,115.45775654789759,79.781309774597247,418466.7152654588,35.676446773300341,0,1030.7074128652275,"",1,{"$f":"INDEX(fdfortax2,MATCH(0,COUNTIF($AN$3:AN241,fdfortax2),0))","v":{"$error":"#N/A"}}]
[null,null,null,null,null,null,null,null,null,null,null,null,null,null,null,null,null,null,null,null,null,null,null,null,null,null,null,null,null,240,426840.11312198819,115.48900410329225,79.802901835374954,418546.51816729415,35.686102267917292,1,1066.3935151331448,1066.3935151331448,1066.3935151331448,{"$f":"INDEX(fdfortax2,MATCH(0,COUNTIF($AN$3:AN242,fdfortax2),0))","v":{"$error":"#N/A"}}]
[null,null,null,null,null,null,null,null,null,null,null,null,null,null,null,null,null,null,null,null,null,null,null,null,null,null,null,null,null,241,426955.6333821037,115.52026011550333,79.824499739812808,418626.34266703395,35.695760375690526,0,35.695760375690526,"",1,{"$f":"INDEX(fdfortax2,MATCH(0,COUNTIF($AN$3:AN243,fdfortax2),0))","v":{"$error":"#N/A"}}]
[null,null,null,null,null,null,null,null,null,null,null,null,null,null,null,null,null,null,null,null,null,null,null,null,null,null,null,null,null,242,427071.18490669056,115.55152458685916,79.846103489519692,418706.18877052347,35.705421097339467,0,71.401181473029993,"",1,{"$f":"INDEX(fdfortax2,MATCH(0,COUNTIF($AN$3:AN244,fdfortax2),0))","v":{"$error":"#N/A"}}]
[null,null,null,null,null,null,null,null,null,null,null,null,null,null,null,null,null,null,null,null,null,null,null,null,null,null,null,null,null,243,427186.76770421024,115.58279751968803,79.86771308610443,418786.0564836096,35.715084433583598,0,107.11626590661359,"",1,{"$f":"INDEX(fdfortax2,MATCH(0,COUNTIF($AN$3:AN245,fdfortax2),0))","v":{"$error":"#N/A"}}]
[null,null,null,null,null,null,null,null,null,null,null,null,null,null,null,null,null,null,null,null,null,null,null,null,null,null,null,null,null,244,427302.38178312645,115.61407891620183,79.889328531095472,418865.94581214071,35.724750385106361,0,142.84101629171994,"",1,{"$f":"INDEX(fdfortax2,MATCH(0,COUNTIF($AN$3:AN246,fdfortax2),0))","v":{"$error":"#N/A"}}]
[null,null,null,null,null,null,null,null,null,null,null,null,null,null,null,null,null,null,null,null,null,null,null,null,null,null,null,null,null,245,427418.02715190523,115.64536877878709,79.910949826141888,418945.85676196683,35.7344189526452,0,178.57543524436514,"",1,{"$f":"INDEX(fdfortax2,MATCH(0,COUNTIF($AN$3:AN247,fdfortax2),0))","v":{"$error":"#N/A"}}]
[null,null,null,null,null,null,null,null,null,null,null,null,null,null,null,null,null,null,null,null,null,null,null,null,null,null,null,null,null,246,427533.70381901489,115.67666710965568,79.932576972772083,419025.78933893959,35.744090136883599,0,214.31952538124875,"",1,{"$f":"INDEX(fdfortax2,MATCH(0,COUNTIF($AN$3:AN248,fdfortax2),0))","v":{"$error":"#N/A"}}]
[null,null,null,null,null,null,null,null,null,null,null,null,null,null,null,null,null,null,null,null,null,null,null,null,null,null,null,null,null,247,427649.41179292597,115.70797391107772,79.954209972554708,419105.74354891217,35.753763938523008,0,250.07328931977176,"",1,{"$f":"INDEX(fdfortax2,MATCH(0,COUNTIF($AN$3:AN249,fdfortax2),0))","v":{"$error":"#N/A"}}]
[null,null,null,null,null,null,null,null,null,null,null,null,null,null,null,null,null,null,null,null,null,null,null,null,null,null,null,null,null,248,427765.15108211141,115.7392891854397,79.975848827138847,419185.71939773933,35.763440358300855,0,285.83672967807263,"",1,{"$f":"INDEX(fdfortax2,MATCH(0,COUNTIF($AN$3:AN250,fdfortax2),0))","v":{"$error":"#N/A"}}]
[null,null,null,null,null,null,null,null,null,null,null,null,null,null,null,null,null,null,null,null,null,null,null,null,null,null,null,null,null,249,427880.92169504636,115.77061293495353,79.997493538052893,419265.71689127741,35.77311939690064,0,321.60984907497328,"",1,{"$f":"INDEX(fdfortax2,MATCH(0,COUNTIF($AN$3:AN251,fdfortax2),0))","v":{"$error":"#N/A"}}]
[null,null,null,null,null,null,null,null,null,null,null,null,null,null,null,null,null,null,null,null,null,null,null,null,null,null,null,null,null,250,427996.72364020831,115.80194516194751,80.019144106905742,419345.7360353843,35.782801055041773,0,357.39265013001506,"",1,{"$f":"INDEX(fdfortax2,MATCH(0,COUNTIF($AN$3:AN252,fdfortax2),0))","v":{"$error":"#N/A"}}]
[null,null,null,null,null,null,null,null,null,null,null,null,null,null,null,null,null,null,null,null,null,null,null,null,null,null,null,null,null,251,428112.55692607706,115.83328586874995,80.040800535306218,419425.77683591959,35.792485333443736,0,393.18513546345878,"",1,{"$f":"INDEX(fdfortax2,MATCH(0,COUNTIF($AN$3:AN253,fdfortax2),0))","v":{"$error":"#N/A"}}]
[null,null,null,null,null,null,null,null,null,null,null,null,null,null,null,null,null,null,null,null,null,null,null,null,null,null,null,null,null,252,428228.42156113463,115.86463505757274,80.06246282478277,419505.83929874439,35.802172232789971,0,428.98730769624876,"",1,{"$f":"INDEX(fdfortax2,MATCH(0,COUNTIF($AN$3:AN254,fdfortax2),0))","v":{"$error":"#N/A"}}]
[null,null,null,null,null,null,null,null,null,null,null,null,null,null,null,null,null,null,null,null,null,null,null,null,null,null,null,null,null,253,428344.31755386543,115.89599273080239,80.084130976984454,419585.92342972138,35.811861753817936,0,464.7991694500667,"",1,{"$f":"INDEX(fdfortax2,MATCH(0,COUNTIF($AN$3:AN255,fdfortax2),0))","v":{"$error":"#N/A"}}]
[null,null,null,null,null,null,null,null,null,null,null,null,null,null,null,null,null,null,null,null,null,null,null,null,null,null,null,null,null,254,428460.24491275608,115.92735889065079,80.105804993439705,419666.02923471481,35.821553897211089,0,500.62072334727782,"",1,{"$f":"INDEX(fdfortax2,MATCH(0,COUNTIF($AN$3:AN256,fdfortax2),0))","v":{"$error":"#N/A"}}]
[null,null,null,null,null,null,null,null,null,null,null,null,null,null,null,null,null,null,null,null,null,null,null,null,null,null,null,null,null,255,428576.20364629559,115.95873353950446,80.127484875797592,419746.1567195906,35.831248663706873,0,536.45197201098472,"",1,{"$f":"INDEX(fdfortax2,MATCH(0,COUNTIF($AN$3:AN257,fdfortax2),0))","v":{"$error":"#N/A"}}]
[null,null,null,null,null,null,null,null,null,null,null,null,null,null,null,null,null,null,null,null,null,null,null,null,null,null,null,null,null,256,428692.19376297516,115.99011667957529,80.149170625586535,419826.3058902162,35.840946053988759,0,572.29291806497349,"",1,{"$f":"INDEX(fdfortax2,MATCH(0,COUNTIF($AN$3:AN258,fdfortax2),0))","v":{"$error":"#N/A"}}]
[null,null,null,null,null,null,null,null,null,null,null,null,null,null,null,null,null,null,null,null,null,null,null,null,null,null,null,null,null,257,428808.21527128835,116.02150831319159,{"$f":"IF(AD260=\"\",\"\",AF260*(1-IF(taxrd=10%,10.3%,IF(taxrd=20%,20.6%,IF(taxrd=30%,30.9%)))))","v":80.170862244415389},{"$f":"IF(AD260=\"\",\"\",AH259+AG260+L260)","v":419906.47675246064},35.8506460687762,0,608.14356413374969,{"$f":"IF(AJ260=1,AK260,IF(ISERROR(AK261),AK260,IF(AK261=\"\",AK260,\"\")))","v":""},1,{"$f":"INDEX(fdfortax2,MATCH(0,COUNTIF($AN$3:AN259,fdfortax2),0))","v":{"$error":"#N/A"}}]
[null,null,null,null,null,null,null,null,null,null,null,null,null,null,null,null,null,null,null,null,null,null,null,null,null,null,null,null,null,{"$f":"IF(AD260<rdura,AD260+1,\"\")","v":258},{"$f":"IF(AD261=\"\",\"\",AE260*(1+raterd/factor1)^(factor1*1/ydays))","v":428924.26817973104},116.05290844268166,80.192559733893034,419986.66931219451,{"$f":"IF(AD261=\"\",\"\",AF261-AG261)","v":35.860348708788621},{"$f":"IF(INT(AD261/30)-(AD261/30)=0,1,0)","v":0},{"$f":"IF(AJ260=1,AI261,AK260+AI261)","v":644.00391284253828},"",1,{"$f":"INDEX(fdfortax2,MATCH(0,COUNTIF($AN$3:AN260,fdfortax2),0))","v":{"$error":"#N/A"}}]
[null,null,null,null,null,null,null,null,null,null,null,null,null,null,null,null,null,null,null,null,null,null,null,null,null,null,null,null,null,259,429040.35249680135,{"$f":"IF(AD262=\"\",\"\",AE262-AE261)","v":116.08431707031559},80.21426309558808,420066.88357529009,35.870053974727512,0,679.8739668172658,"",1,{"$f":"INDEX(fdfortax2,MATCH(0,COUNTIF($AN$3:AN261,fdfortax2),0))","v":{"$error":"#N/A"}}]
[null,null,null,null,null,null,null,null,null,null,null,null,null,null,null,null,null,null,null,null,null,null,null,null,null,null,null,null,null,260,429156.46823099972,116.1157341983635,80.235972331069178,420147.11954762117,35.87976186729432,0,715.75372868456009,"",1,{"$f":"INDEX(fdfortax2,MATCH(0,COUNTIF($AN$3:AN262,fdfortax2),0))","v":{"$error":"#N/A"}}]
[null,null,null,null,null,null,null,null,null,null,null,null,null,null,null,null,null,null,null,null,null,null,null,null,null,null,null,null,null,261,429272.61539082893,116.14715982921189,80.257687441985425,420227.37723506318,35.889472387226462,0,751.64320107178651,"",1,{"$f":"INDEX(fdfortax2,MATCH(0,COUNTIF($AN$3:AN263,fdfortax2),0))","v":{"$error":"#N/A"}}]
[null,null,null,null,null,null,null,null,null,null,null,null,null,null,null,null,null,null,null,null,null,null,null,null,null,null,null,null,null,262,429388.793984794,116.17859396507265,80.279408429865214,420307.65664349304,35.899185535207437,0,787.54238660699389,"",1,{"$f":"INDEX(fdfortax2,MATCH(0,COUNTIF($AN$3:AN264,fdfortax2),0))","v":{"$error":"#N/A"}}]
[null,null,null,null,null,null,null,null,null,null,null,null,null,null,null,null,null,null,null,null,null,null,null,null,null,null,null,null,null,263,429505.00402140233,116.2100366083323,80.301135296357629,420387.95777878939,35.908901311974674,0,823.45128791896855,"",{"$f":"IF(AJ266=1,AK266,IF(ISERROR(AK267),AK266,IF(AK267=\"\",AK266,1)))","v":1},{"$f":"INDEX(fdfortax2,MATCH(0,COUNTIF($AN$3:AN265,fdfortax2),0))","v":{"$error":"#N/A"}}]
[null,null,null,null,null,null,null,null,null,null,null,null,null,null,null,null,null,null,null,null,null,null,null,null,null,null,null,null,null,264,429621.24550916353,116.24148776120273,80.32286804299109,420468.28064683237,35.918619718211644,0,859.36990763718018,"",1,{"$f":"INDEX(fdfortax2,MATCH(0,COUNTIF($AN$3:AN266,fdfortax2),0))","v":{"$error":"#N/A"}}]
[null,null,null,null,null,null,null,null,null,null,null,null,null,null,null,null,null,null,null,null,null,null,null,null,null,null,null,null,null,265,429737.51845658961,116.27294742607046,80.344606671414695,420548.62525350379,35.928340754655764,0,895.29824839183595,"",1,{"$f":"INDEX(fdfortax2,MATCH(0,COUNTIF($AN$3:AN267,fdfortax2),0))","v":{"$error":"#N/A"}}]
[null,null,null,null,null,null,null,null,null,null,null,null,null,null,null,null,null,null,null,null,null,null,null,null,null,null,null,null,null,266,429853.82287219481,116.30441560520558,80.366351183197054,420628.99160468701,35.938064422008523,0,931.23631281384451,"",1,{"$f":"INDEX(fdfortax2,MATCH(0,COUNTIF($AN$3:AN268,fdfortax2),0))","v":{"$error":"#N/A"}}]
[null,null,null,null,null,null,null,null,null,null,null,null,null,null,null,null,null,null,null,null,null,null,null,null,null,null,null,null,null,267,429970.15876449569,116.33589230087819,80.388101579906831,420709.37970626692,35.947790720971355,0,967.1841035348159,"",1,{"$f":"INDEX(fdfortax2,MATCH(0,COUNTIF($AN$3:AN269,fdfortax2),0))","v":{"$error":"#N/A"}}]
[null,null,null,null,null,null,null,null,null,null,null,null,null,null,null,null,null,null,null,null,null,null,null,null,null,null,null,null,null,268,430086.52614201111,116.36737751541659,80.409857863152865,420789.78956413007,35.957519652263727,0,1003.1416231870796,"",1,{"$f":"INDEX(fdfortax2,MATCH(0,COUNTIF($AN$3:AN270,fdfortax2),0))","v":{"$error":"#N/A"}}]
[null,null,null,null,null,null,null,null,null,null,null,null,null,null,null,null,null,null,null,null,null,null,null,null,null,null,null,null,null,269,430202.92501326225,116.3988712511491,80.431620034544039,420870.22118416463,35.967251216605064,0,1039.1088744036847,"",1,{"$f":"INDEX(fdfortax2,MATCH(0,COUNTIF($AN$3:AN271,fdfortax2),0))","v":{"$error":"#N/A"}}]
[null,null,null,null,null,null,null,null,null,null,null,null,null,null,null,null,null,null,null,null,null,null,null,null,null,null,null,null,null,270,430319.3553867726,116.43037351034582,80.453388095648961,420950.67457226029,35.976985414696856,1,1075.0858598183816,1075.0858598183816,1075.0858598183816,{"$f":"INDEX(fdfortax2,MATCH(0,COUNTIF($AN$3:AN272,fdfortax2),0))","v":{"$error":"#N/A"}}]
[null,null,null,null,null,null,null,null,null,null,null,null,null,null,null,null,null,null,null,null,null,null,null,null,null,null,null,null,null,271,430435.81727106794,116.46188429533504,80.475162048076513,421031.14973430836,35.986722247258527,0,35.986722247258527,"",1,{"$f":"INDEX(fdfortax2,MATCH(0,COUNTIF($AN$3:AN273,fdfortax2),0))","v":{"$error":"#N/A"}}]
[null,null,null,null,null,null,null,null,null,null,null,null,null,null,null,null,null,null,null,null,null,null,null,null,null,null,null,null,null,272,430552.31067467638,116.49340360844508,80.496941893435562,421111.64667620178,35.996461715009517,0,71.983183962268043,"",1,{"$f":"INDEX(fdfortax2,MATCH(0,COUNTIF($AN$3:AN274,fdfortax2),0))","v":{"$error":"#N/A"}}]
[null,null,null,null,null,null,null,null,null,null,null,null,null,null,null,null,null,null,null,null,null,null,null,null,null,null,null,null,null,273,430668.83560612833,116.52493145194603,80.518727633294716,421192.16540383507,36.006203818651315,0,107.98938778091936,"",1,{"$f":"INDEX(fdfortax2,MATCH(0,COUNTIF($AN$3:AN275,fdfortax2),0))","v":{"$error":"#N/A"}}]
[null,null,null,null,null,null,null,null,null,null,null,null,null,null,null,null,null,null,null,null,null,null,null,null,null,null,null,null,null,274,430785.39207395649,116.55646782816621,80.540519269262859,421272.70592310431,36.015948558903347,0,144.00533633982269,"",1,{"$f":"INDEX(fdfortax2,MATCH(0,COUNTIF($AN$3:AN276,fdfortax2),0))","v":{"$error":"#N/A"}}]
[null,null,null,null,null,null,null,null,null,null,null,null,null,null,null,null,null,null,null,null,null,null,null,null,null,null,null,null,null,275,430901.98008669587,116.5880127393757,80.562316802908612,421353.26823990722,36.025695936467088,0,180.03103227628978,"",1,{"$f":"INDEX(fdfortax2,MATCH(0,COUNTIF($AN$3:AN277,fdfortax2),0))","v":{"$error":"#N/A"}}]
[null,null,null,null,null,null,null,null,null,null,null,null,null,null,null,null,null,null,null,null,null,null,null,null,null,null,null,null,null,276,431018.59965288383,116.61956618796103,80.584120235881073,421433.85236014309,36.035445952079954,0,216.06647822836973,"",1,{"$f":"INDEX(fdfortax2,MATCH(0,COUNTIF($AN$3:AN278,fdfortax2),0))","v":{"$error":"#N/A"}}]
[null,null,null,null,null,null,null,null,null,null,null,null,null,null,null,null,null,null,null,null,null,null,null,null,null,null,null,null,null,277,431135.25078106002,116.65112817619229,80.605929569748881,421514.45828971284,36.045198606443407,0,252.11167683481312,"",1,{"$f":"INDEX(fdfortax2,MATCH(0,COUNTIF($AN$3:AN279,fdfortax2),0))","v":{"$error":"#N/A"}}]
[null,null,null,null,null,null,null,null,null,null,null,null,null,null,null,null,null,null,null,null,null,null,null,null,null,null,null,null,null,278,431251.93347976636,116.68269870633958,80.627744806080656,421595.0860345189,36.054953900258923,0,288.16663073507203,"",1,{"$f":"INDEX(fdfortax2,MATCH(0,COUNTIF($AN$3:AN280,fdfortax2),0))","v":{"$error":"#N/A"}}]
[null,null,null,null,null,null,null,null,null,null,null,null,null,null,null,null,null,null,null,null,null,null,null,null,null,null,null,null,null,279,431368.64775754715,116.71427778078942,80.649565946525499,421675.73560046544,36.064711834263917,0,324.23134256933594,"",1,{"$f":"INDEX(fdfortax2,MATCH(0,COUNTIF($AN$3:AN281,fdfortax2),0))","v":{"$error":"#N/A"}}]
[null,null,null,null,null,null,null,null,null,null,null,null,null,null,null,null,null,null,null,null,null,null,null,null,null,null,null,null,null,280,431485.39362294896,116.7458654018119,80.671392992652031,421756.40699345811,36.074472409159867,0,360.30581497849579,"",1,{"$f":"INDEX(fdfortax2,MATCH(0,COUNTIF($AN$3:AN282,fdfortax2),0))","v":{"$error":"#N/A"}}]
[null,null,null,null,null,null,null,null,null,null,null,null,null,null,null,null,null,null,null,null,null,null,null,null,null,null,null,null,null,281,431602.1710845207,116.77746157173533,80.69322594606912,421837.10021940415,36.08423562566621,0,396.39005060416201,"",1,{"$f":"INDEX(fdfortax2,MATCH(0,COUNTIF($AN$3:AN283,fdfortax2),0))","v":{"$error":"#N/A"}}]
[null,null,null,null,null,null,null,null,null,null,null,null,null,null,null,null,null,null,null,null,null,null,null,null,null,null,null,null,null,282,431718.98015081353,116.80906629282981,80.715064808345403,421917.81528421247,36.094001484484409,0,432.48405208864642,"",1,{"$f":"INDEX(fdfortax2,MATCH(0,COUNTIF($AN$3:AN284,fdfortax2),0))","v":{"$error":"#N/A"}}]
[null,null,null,null,null,null,null,null,null,null,null,null,null,null,null,null,null,null,null,null,null,null,null,null,null,null,null,null,null,283,431835.82083038101,116.84067956748186,80.736909581129964,421998.55219379358,36.103769986351892,0,468.58782207499831,"",1,{"$f":"INDEX(fdfortax2,MATCH(0,COUNTIF($AN$3:AN285,fdfortax2),0))","v":{"$error":"#N/A"}}]
[null,null,null,null,null,null,null,null,null,null,null,null,null,null,null,null,null,null,null,null,null,null,null,null,null,null,null,null,null,284,431952.69313177897,116.87230139796156,80.758760265991441,422079.31095405959,36.113541131970123,0,504.70136320696844,"",1,{"$f":"INDEX(fdfortax2,MATCH(0,COUNTIF($AN$3:AN286,fdfortax2),0))","v":{"$error":"#N/A"}}]
[null,null,null,null,null,null,null,null,null,null,null,null,null,null,null,null,null,null,null,null,null,null,null,null,null,null,null,null,null,285,432069.59706356551,116.90393178653903,80.780616864498484,422160.09157092409,36.123314922040549,0,540.82467812900904,"",1,{"$f":"INDEX(fdfortax2,MATCH(0,COUNTIF($AN$3:AN287,fdfortax2),0))","v":{"$error":"#N/A"}}]
[null,null,null,null,null,null,null,null,null,null,null,null,null,null,null,null,null,null,null,null,null,null,null,null,null,null,null,null,null,286,432186.53263430117,116.93557073565898,80.802479378340365,422240.89405030245,36.133091357318619,0,576.95776948632761,"",1,{"$f":"INDEX(fdfortax2,MATCH(0,COUNTIF($AN$3:AN288,fdfortax2),0))","v":{"$error":"#N/A"}}]
[null,null,null,null,null,null,null,null,null,null,null,null,null,null,null,null,null,null,null,null,null,null,null,null,null,null,null,null,null,287,432303.4998525487,116.96721824753331,80.82434780904552,422321.71839811152,36.14287043848779,0,613.10063992481537,"",1,{"$f":"INDEX(fdfortax2,MATCH(0,COUNTIF($AN$3:AN289,fdfortax2),0))","v":{"$error":"#N/A"}}]
[null,null,null,null,null,null,null,null,null,null,null,null,null,null,null,null,null,null,null,null,null,null,null,null,null,null,null,null,null,288,432420.49872687319,116.99887432449032,80.846222158222815,422402.56462026975,36.152652166267501,0,649.25329209108281,"",1,{"$f":"INDEX(fdfortax2,MATCH(0,COUNTIF($AN$3:AN290,fdfortax2),0))","v":{"$error":"#N/A"}}]
[null,null,null,null,null,null,null,null,null,null,null,null,null,null,null,null,null,null,null,null,null,null,null,null,null,null,null,null,null,289,432537.52926584211,117.03053896891652,80.868102427521322,422483.43272269727,36.162436541395195,0,685.41572863247802,"",1,{"$f":"INDEX(fdfortax2,MATCH(0,COUNTIF($AN$3:AN291,fdfortax2),0))","v":{"$error":"#N/A"}}]
[null,null,null,null,null,null,null,null,null,null,null,null,null,null,null,null,null,null,null,null,null,null,null,null,null,null,null,null,null,290,432654.59147802513,117.0622121830238,80.889988618469459,422564.32271131576,36.172223564554344,0,721.58795219703234,"",1,{"$f":"INDEX(fdfortax2,MATCH(0,COUNTIF($AN$3:AN292,fdfortax2),0))","v":{"$error":"#N/A"}}]
[null,null,null,null,null,null,null,null,null,null,null,null,null,null,null,null,null,null,null,null,null,null,null,null,null,null,null,null,null,291,432771.68537199433,117.09389396919869,80.911880732716298,422645.23459204845,36.182013236482391,0,757.7699654335147,"",1,{"$f":"INDEX(fdfortax2,MATCH(0,COUNTIF($AN$3:AN293,fdfortax2),0))","v":{"$error":"#N/A"}}]
[null,null,null,null,null,null,null,null,null,null,null,null,null,null,null,null,null,null,null,null,null,null,null,null,null,null,null,null,null,292,432888.8109563241,117.12558432976948,80.93377877187072,422726.16837082035,36.191805557898761,0,793.96177099141346,"",1,{"$f":"INDEX(fdfortax2,MATCH(0,COUNTIF($AN$3:AN294,fdfortax2),0))","v":{"$error":"#N/A"}}]
[null,null,null,null,null,null,null,null,null,null,null,null,null,null,null,null,null,null,null,null,null,null,null,null,null,null,null,null,null,293,433005.96823959117,117.15728326706449,80.955682737541565,422807.12405355787,36.201600529522921,0,830.16337152093638,"",1,{"$f":"INDEX(fdfortax2,MATCH(0,COUNTIF($AN$3:AN295,fdfortax2),0))","v":{"$error":"#N/A"}}]
[null,null,null,null,null,null,null,null,null,null,null,null,null,null,null,null,null,null,null,null,null,null,null,null,null,null,null,null,null,294,433123.15723037452,117.1889907833538,80.977592631297483,422888.10164618917,36.211398152056319,0,866.37476967299267,"",1,{"$f":"INDEX(fdfortax2,MATCH(0,COUNTIF($AN$3:AN296,fdfortax2),0))","v":{"$error":"#N/A"}}]
[null,null,null,null,null,null,null,null,null,null,null,null,null,null,null,null,null,null,null,null,null,null,null,null,null,null,null,null,null,295,433240.37793725549,117.22070688096574,80.999508454747328,422969.10115464393,36.221198426218407,0,902.59596809921106,"",1,{"$f":"INDEX(fdfortax2,MATCH(0,COUNTIF($AN$3:AN297,fdfortax2),0))","v":{"$error":"#N/A"}}]
[null,null,null,null,null,null,null,null,null,null,null,null,null,null,null,null,null,null,null,null,null,null,null,null,null,null,null,null,null,296,433357.63036881771,117.25243156222859,81.021430209499968,423050.12258485344,36.231001352728626,0,938.8269694519397,"",1,{"$f":"INDEX(fdfortax2,MATCH(0,COUNTIF($AN$3:AN298,fdfortax2),0))","v":{"$error":"#N/A"}}]
[null,null,null,null,null,null,null,null,null,null,null,null,null,null,null,null,null,null,null,null,null,null,null,null,null,null,null,null,null,297,433474.91453364724,117.28416482952889,81.043357897204473,423131.16594275064,36.240806932324418,0,975.06777638426411,"",1,{"$f":"INDEX(fdfortax2,MATCH(0,COUNTIF($AN$3:AN299,fdfortax2),0))","v":{"$error":"#N/A"}}]
[null,null,null,null,null,null,null,null,null,null,null,null,null,null,null,null,null,null,null,null,null,null,null,null,null,null,null,null,null,298,433592.23044033232,117.31590668507852,81.065291519389262,423212.23123427003,36.250615165689254,0,1011.3183915499534,"",1,{"$f":"INDEX(fdfortax2,MATCH(0,COUNTIF($AN$3:AN300,fdfortax2),0))","v":{"$error":"#N/A"}}]
[null,null,null,null,null,null,null,null,null,null,null,null,null,null,null,null,null,null,null,null,null,null,null,null,null,null,null,null,null,299,433709.57809746364,117.34765713132219,81.087231077743638,423293.31846534775,36.260426053578556,0,1047.5788176035319,"",1,{"$f":"INDEX(fdfortax2,MATCH(0,COUNTIF($AN$3:AN301,fdfortax2),0))","v":{"$error":"#N/A"}}]
[null,null,null,null,null,null,null,null,null,null,null,null,null,null,null,null,null,null,null,null,null,null,null,null,null,null,null,null,null,300,433826.95751363412,117.37941617047181,81.109176573796034,423374.42764192156,36.270239596675779,1,1083.8490572002077,1083.8490572002077,1083.8490572002077,{"$f":"INDEX(fdfortax2,MATCH(0,COUNTIF($AN$3:AN302,fdfortax2),0))","v":{"$error":"#N/A"}}]
[null,null,null,null,null,null,null,null,null,null,null,null,null,null,null,null,null,null,null,null,null,null,null,null,null,null,null,null,null,301,433944.36869743909,117.4111838049721,81.131128009235724,423455.55876993079,36.280055795736374,0,36.280055795736374,"",1,{"$f":"INDEX(fdfortax2,MATCH(0,COUNTIF($AN$3:AN303,fdfortax2),0))","v":{"$error":"#N/A"}}]
[null,null,null,null,null,null,null,null,null,null,null,null,null,null,null,null,null,null,null,null,null,null,null,null,null,null,null,null,null,302,434061.81165747612,117.44296003703494,81.153085385591154,423536.71185531636,36.289874651443782,0,72.569930447180155,"",1,{"$f":"INDEX(fdfortax2,MATCH(0,COUNTIF($AN$3:AN304,fdfortax2),0))","v":{"$error":"#N/A"}}]
[null,null,null,null,null,null,null,null,null,null,null,null,null,null,null,null,null,null,null,null,null,null,null,null,null,null,null,null,null,303,434179.28640234517,117.47474486904684,81.175048704511383,423617.88690402085,36.299696164535462,0,108.86962661171562,"",1,{"$f":"INDEX(fdfortax2,MATCH(0,COUNTIF($AN$3:AN305,fdfortax2),0))","v":{"$error":"#N/A"}}]
[null,null,null,null,null,null,null,null,null,null,null,null,null,null,null,null,null,null,null,null,null,null,null,null,null,null,null,null,null,304,434296.79294064851,117.50653830333613,81.197017967605277,423699.08392198844,36.309520335730852,0,145.17914694744647,"",1,{"$f":"INDEX(fdfortax2,MATCH(0,COUNTIF($AN$3:AN306,fdfortax2),0))","v":{"$error":"#N/A"}}]
[null,null,null,null,null,null,null,null,null,null,null,null,null,null,null,null,null,null,null,null,null,null,null,null,null,null,null,null,null,305,434414.33128099074,117.53834034223109,81.218993176481689,423780.30291516491,36.319347165749406,0,181.49849411319587,"",1,{"$f":"INDEX(fdfortax2,MATCH(0,COUNTIF($AN$3:AN307,fdfortax2),0))","v":{"$error":"#N/A"}}]
[null,null,null,null,null,null,null,null,null,null,null,null,null,null,null,null,null,null,null,null,null,null,null,null,null,null,null,null,null,306,434531.90143197874,117.57015098800184,81.240974332709285,423861.54388949764,36.329176655292557,0,217.82767076848842,"",1,{"$f":"INDEX(fdfortax2,MATCH(0,COUNTIF($AN$3:AN308,fdfortax2),0))","v":{"$error":"#N/A"}}]
[null,null,null,null,null,null,null,null,null,null,null,null,null,null,null,null,null,null,null,null,null,null,null,null,null,null,null,null,null,307,434649.50340222177,117.60197024303488,81.262961437937108,423942.80685093557,36.339008805097777,0,254.16667957358618,"",1,{"$f":"INDEX(fdfortax2,MATCH(0,COUNTIF($AN$3:AN309,fdfortax2),0))","v":{"$error":"#N/A"}}]
[null,null,null,null,null,null,null,null,null,null,null,null,null,null,null,null,null,null,null,null,null,null,null,null,null,null,null,null,null,308,434767.13720033143,117.63379810965853,81.284954493774052,424024.09180542931,36.348843615884476,0,290.51552318947063,"",1,{"$f":"INDEX(fdfortax2,MATCH(0,COUNTIF($AN$3:AN310,fdfortax2),0))","v":{"$error":"#N/A"}}]
[null,null,null,null,null,null,null,null,null,null,null,null,null,null,null,null,null,null,null,null,null,null,null,null,null,null,null,null,null,309,434884.80283492163,117.66563459020108,81.306953501828957,424105.39875893114,36.358681088372123,0,326.87420427784275,"",1,{"$f":"INDEX(fdfortax2,MATCH(0,COUNTIF($AN$3:AN311,fdfortax2),0))","v":{"$error":"#N/A"}}]
[null,null,null,null,null,null,null,null,null,null,null,null,null,null,null,null,null,null,null,null,null,null,null,null,null,null,null,null,null,310,435002.50031460862,117.69747968699085,81.328958463710677,424186.72771739488,36.368521223280169,0,363.24272550112289,"",1,{"$f":"INDEX(fdfortax2,MATCH(0,COUNTIF($AN$3:AN312,fdfortax2),0))","v":{"$error":"#N/A"}}]
[null,null,null,null,null,null,null,null,null,null,null,null,null,null,null,null,null,null,null,null,null,null,null,null,null,null,null,null,null,311,435120.22964801098,117.72933340235613,81.350969381028094,424268.07868677593,36.378364021328039,0,399.62108952245092,"",1,{"$f":"INDEX(fdfortax2,MATCH(0,COUNTIF($AN$3:AN313,fdfortax2),0))","v":{"$error":"#N/A"}}]
[null,null,null,null,null,null,null,null,null,null,null,null,null,null,null,null,null,null,null,null,null,null,null,null,null,null,null,null,null,312,435237.99084374961,117.76119573862525,81.372986255390046,424349.45167303132,36.388209483235201,0,436.0092990056861,"",1,{"$f":"INDEX(fdfortax2,MATCH(0,COUNTIF($AN$3:AN314,fdfortax2),0))","v":{"$error":"#N/A"}}]
[null,null,null,null,null,null,null,null,null,null,null,null,null,null,null,null,null,null,null,null,null,null,null,null,null,null,null,null,null,313,435355.78391044773,117.79306669812649,81.395009088405416,424430.84668211971,36.398057609721079,0,472.4073566154072,"",1,{"$f":"INDEX(fdfortax2,MATCH(0,COUNTIF($AN$3:AN315,fdfortax2),0))","v":{"$error":"#N/A"}}]
[null,null,null,null,null,null,null,null,null,null,null,null,null,null,null,null,null,null,null,null,null,null,null,null,null,null,null,null,null,314,435473.60885673098,117.82494628324639,81.41703788172326,424512.26372000144,36.40790840152313,0,508.81526501693031,"",1,{"$f":"INDEX(fdfortax2,MATCH(0,COUNTIF($AN$3:AN316,fdfortax2),0))","v":{"$error":"#N/A"}}]
[null,null,null,null,null,null,null,null,null,null,null,null,null,null,null,null,null,null,null,null,null,null,null,null,null,null,null,null,null,315,435591.46569122723,117.85683449625503,81.439072636912229,424593.70279263833,36.417761859342804,0,545.23302687627313,"",1,{"$f":"INDEX(fdfortax2,MATCH(0,COUNTIF($AN$3:AN317,fdfortax2),0))","v":{"$error":"#N/A"}}]
[null,null,null,null,null,null,null,null,null,null,null,null,null,null,null,null,null,null,null,null,null,null,null,null,null,null,null,null,null,316,435709.35442256671,117.88873133948073,81.46111335558119,424675.16390599392,36.427617983899538,0,581.66064486017262,"",1,{"$f":"INDEX(fdfortax2,MATCH(0,COUNTIF($AN$3:AN318,fdfortax2),0))","v":{"$error":"#N/A"}}]
[null,null,null,null,null,null,null,null,null,null,null,null,null,null,null,null,null,null,null,null,null,null,null,null,null,null,null,null,null,317,435827.27505938202,117.92063681530999,81.483160039379214,424756.64706603327,36.437476775930776,0,618.09812163610343,"",1,{"$f":"INDEX(fdfortax2,MATCH(0,COUNTIF($AN$3:AN319,fdfortax2),0))","v":{"$error":"#N/A"}}]
[null,null,null,null,null,null,null,null,null,null,null,null,null,null,null,null,null,null,null,null,null,null,null,null,null,null,null,null,null,318,435945.22761030804,117.95255092601292,81.505212689874938,424838.15227872314,36.447338236137981,0,654.54545987224139,"",1,{"$f":"INDEX(fdfortax2,MATCH(0,COUNTIF($AN$3:AN320,fdfortax2),0))","v":{"$error":"#N/A"}}]
[null,null,null,null,null,null,null,null,null,null,null,null,null,null,null,null,null,null,null,null,null,null,null,null,null,null,null,null,null,319,436063.21208398207,117.98447367403423,81.527271308757662,424919.6795500319,36.457202365276572,0,691.00266223751794,"",1,{"$f":"INDEX(fdfortax2,MATCH(0,COUNTIF($AN$3:AN321,fdfortax2),0))","v":{"$error":"#N/A"}}]
[null,null,null,null,null,null,null,null,null,null,null,null,null,null,null,null,null,null,null,null,null,null,null,null,null,null,null,null,null,320,436181.22848904366,118.01640506158583,81.549335897555821,425001.22888592945,36.467069164030008,0,727.46973140154796,"",1,{"$f":"INDEX(fdfortax2,MATCH(0,COUNTIF($AN$3:AN322,fdfortax2),0))","v":{"$error":"#N/A"}}]
[null,null,null,null,null,null,null,null,null,null,null,null,null,null,null,null,null,null,null,null,null,null,null,null,null,null,null,null,null,321,436299.27683413477,118.04834509111242,{"$f":"IF(AD324=\"\",\"\",AF324*(1-IF(taxrd=10%,10.3%,IF(taxrd=20%,20.6%,IF(taxrd=30%,30.9%)))))","v":81.571406457958687},{"$f":"IF(AD324=\"\",\"\",AH323+AG324+L324)","v":425082.80029238743},36.476938633153736,0,763.9466700347017,{"$f":"IF(AJ324=1,AK324,IF(ISERROR(AK325),AK324,IF(AK325=\"\",AK324,\"\")))","v":""},1,{"$f":"INDEX(fdfortax2,MATCH(0,COUNTIF($AN$3:AN323,fdfortax2),0))","v":{"$error":"#N/A"}}]
[null,null,null,null,null,null,null,null,null,null,null,null,null,null,null,null,null,null,null,null,null,null,null,null,null,null,null,null,null,{"$f":"IF(AD324<rdura,AD324+1,\"\")","v":322},{"$f":"IF(AD325=\"\",\"\",AE324*(1+raterd/factor1)^(factor1*1/ydays))","v":436417.35712789965},118.08029376488412,81.593482991534927,425164.39377537894,{"$f":"IF(AD325=\"\",\"\",AF325-AG325)","v":36.486810773349191},{"$f":"IF(INT(AD325/30)-(AD325/30)=0,1,0)","v":0},{"$f":"IF(AJ324=1,AI325,AK324+AI325)","v":800.43348080805094},"",1,{"$f":"INDEX(fdfortax2,MATCH(0,COUNTIF($AN$3:AN324,fdfortax2),0))","v":{"$error":"#N/A"}}]
[null,null,null,null,null,null,null,null,null,null,null,null,null,null,null,null,null,null,null,null,null,null,null,null,null,null,null,null,null,323,436535.46937898494,{"$f":"IF(AD326=\"\",\"\",AE326-AE325)","v":118.11225108528743},81.615565499933624,425246.00934087887,36.496685585353802,0,836.93016639340476,"",1,{"$f":"INDEX(fdfortax2,MATCH(0,COUNTIF($AN$3:AN325,fdfortax2),0))","v":{"$error":"#N/A"}}]
[null,null,null,null,null,null,null,null,null,null,null,null,null,null,null,null,null,null,null,null,null,null,null,null,null,null,null,null,null,324,436653.61359603959,118.14421705465065,81.637653984763602,425327.64699486364,36.506563069887051,0,873.43672946329184,"",1,{"$f":"INDEX(fdfortax2,MATCH(0,COUNTIF($AN$3:AN326,fdfortax2),0))","v":{"$error":"#N/A"}}]
[null,null,null,null,null,null,null,null,null,null,null,null,null,null,null,null,null,null,null,null,null,null,null,null,null,null,null,null,null,325,436771.78978771484,118.1761916752439,81.659748447593543,425409.30674331123,36.516443227650356,0,909.95317269094221,"",1,{"$f":"INDEX(fdfortax2,MATCH(0,COUNTIF($AN$3:AN327,fdfortax2),0))","v":{"$error":"#N/A"}}]
[null,null,null,null,null,null,null,null,null,null,null,null,null,null,null,null,null,null,null,null,null,null,null,null,null,null,null,null,null,326,436889.99796266435,118.20817494951189,81.681848890112718,425490.98859220132,36.526326059399167,0,946.47949875034135,"",1,{"$f":"INDEX(fdfortax2,MATCH(0,COUNTIF($AN$3:AN328,fdfortax2),0))","v":{"$error":"#N/A"}}]
[null,null,null,null,null,null,null,null,null,null,null,null,null,null,null,null,null,null,null,null,null,null,null,null,null,null,null,null,null,327,437008.23812954407,118.24016687972471,81.703955313889779,425572.69254751521,36.536211565834932,0,983.0157103161763,"",{"$f":"IF(AJ330=1,AK330,IF(ISERROR(AK331),AK330,IF(AK331=\"\",AK330,1)))","v":1},{"$f":"INDEX(fdfortax2,MATCH(0,COUNTIF($AN$3:AN329,fdfortax2),0))","v":{"$error":"#N/A"}}]
[null,null,null,null,null,null,null,null,null,null,null,null,null,null,null,null,null,null,null,null,null,null,null,null,null,null,null,null,null,328,437126.51029701234,118.27216746826889,81.726067720573809,425654.41861523577,36.546099747695081,0,1019.5618100638713,"",1,{"$f":"INDEX(fdfortax2,MATCH(0,COUNTIF($AN$3:AN330,fdfortax2),0))","v":{"$error":"#N/A"}}]
[null,null,null,null,null,null,null,null,null,null,null,null,null,null,null,null,null,null,null,null,null,null,null,null,null,null,null,null,null,329,437244.81447372981,118.30417671747273,81.748186111773663,425736.16680134757,36.555990605699066,0,1056.1178006695704,"",1,{"$f":"INDEX(fdfortax2,MATCH(0,COUNTIF($AN$3:AN331,fdfortax2),0))","v":{"$error":"#N/A"}}]
[null,null,null,null,null,null,null,null,null,null,null,null,null,null,null,null,null,null,null,null,null,null,null,null,null,null,null,null,null,330,437363.15066835954,118.33619462972274,81.770310489138424,425817.93711183668,36.565884140584316,1,1092.6836848101548,1092.6836848101548,1092.6836848101548,{"$f":"INDEX(fdfortax2,MATCH(0,COUNTIF($AN$3:AN332,fdfortax2),0))","v":{"$error":"#N/A"}}]
[null,null,null,null,null,null,null,null,null,null,null,null,null,null,null,null,null,null,null,null,null,null,null,null,null,null,null,null,null,331,437481.51888956677,118.36822120723082,81.792440854196499,425899.72955269087,36.575780353034318,0,36.575780353034318,"",1,{"$f":"INDEX(fdfortax2,MATCH(0,COUNTIF($AN$3:AN333,fdfortax2),0))","v":{"$error":"#N/A"}}]
[null,null,null,null,null,null,null,null,null,null,null,null,null,null,null,null,null,null,null,null,null,null,null,null,null,null,null,null,null,332,437599.91914601927,118.40025645249989,81.814577208677434,425981.54412989953,36.585679243822455,0,73.161459596856773,"",1,{"$f":"INDEX(fdfortax2,MATCH(0,COUNTIF($AN$3:AN334,fdfortax2),0))","v":{"$error":"#N/A"}}]
[null,null,null,null,null,null,null,null,null,null,null,null,null,null,null,null,null,null,null,null,null,null,null,null,null,null,null,null,null,333,437718.35144638701,118.43230036774185,81.836719554109621,426063.38084945362,36.595580813632225,0,109.757040410489,"",1,{"$f":"INDEX(fdfortax2,MATCH(0,COUNTIF($AN$3:AN335,fdfortax2),0))","v":{"$error":"#N/A"}}]
[null,null,null,null,null,null,null,null,null,null,null,null,null,null,null,null,null,null,null,null,null,null,null,null,null,null,null,null,null,334,437836.81579934247,118.46435295545962,81.858867892222605,426145.23971734586,36.605485063237012,0,146.36252547372601,"",1,{"$f":"INDEX(fdfortax2,MATCH(0,COUNTIF($AN$3:AN336,fdfortax2),0))","v":{"$error":"#N/A"}}]
[null,null,null,null,null,null,null,null,null,null,null,null,null,null,null,null,null,null,null,null,null,null,null,null,null,null,null,null,null,335,437955.31221356028,118.49641421780689,81.881022224504562,426227.12073957035,36.615391993302325,0,182.97791746702833,"",1,{"$f":"INDEX(fdfortax2,MATCH(0,COUNTIF($AN$3:AN337,fdfortax2),0))","v":{"$error":"#N/A"}}]
[null,null,null,null,null,null,null,null,null,null,null,null,null,null,null,null,null,null,null,null,null,null,null,null,null,null,null,null,null,336,438073.84069771756,118.52848415728658,81.903182552685038,426309.02392212301,36.625301604601546,0,219.60321907162989,"",1,{"$f":"INDEX(fdfortax2,MATCH(0,COUNTIF($AN$3:AN338,fdfortax2),0))","v":{"$error":"#N/A"}}]
[null,null,null,null,null,null,null,null,null,null,null,null,null,null,null,null,null,null,null,null,null,null,null,null,null,null,null,null,null,337,438192.40126049379,118.56056277622702,81.925348878372873,426390.94927100139,36.635213897854143,0,256.23843296948405,"",1,{"$f":"INDEX(fdfortax2,MATCH(0,COUNTIF($AN$3:AN339,fdfortax2),0))","v":{"$error":"#N/A"}}]
[null,null,null,null,null,null,null,null,null,null,null,null,null,null,null,null,null,null,null,null,null,null,null,null,null,null,null,null,null,338,438310.99391057069,118.59265007689828,81.947521203136716,426472.89679220453,36.645128873761564,0,292.88356184324562,"",1,{"$f":"INDEX(fdfortax2,MATCH(0,COUNTIF($AN$3:AN340,fdfortax2),0))","v":{"$error":"#N/A"}}]
[null,null,null,null,null,null,null,null,null,null,null,null,null,null,null,null,null,null,null,null,null,null,null,null,null,null,null,null,null,339,438429.61865663237,118.62474606168689,81.969699528625654,426554.86649173318,36.655046533061238,0,329.53860837630685,"",1,{"$f":"INDEX(fdfortax2,MATCH(0,COUNTIF($AN$3:AN341,fdfortax2),0))","v":{"$error":"#N/A"}}]
[null,null,null,null,null,null,null,null,null,null,null,null,null,null,null,null,null,null,null,null,null,null,null,null,null,null,null,null,null,340,438548.27550736535,118.65685073297936,81.991883856488741,426636.85837558965,36.664966876490624,0,366.20357525279746,"",1,{"$f":"INDEX(fdfortax2,MATCH(0,COUNTIF($AN$3:AN342,fdfortax2),0))","v":{"$error":"#N/A"}}]
[null,null,null,null,null,null,null,null,null,null,null,null,null,null,null,null,null,null,null,null,null,null,null,null,null,null,null,null,null,341,438666.96447145846,118.688964093104,82.014074188334874,426718.87244977796,36.674889904769131,0,402.87846515756661,"",1,{"$f":"INDEX(fdfortax2,MATCH(0,COUNTIF($AN$3:AN343,fdfortax2),0))","v":{"$error":"#N/A"}}]
[null,null,null,null,null,null,null,null,null,null,null,null,null,null,null,null,null,null,null,null,null,null,null,null,null,null,null,null,null,342,438785.68555760285,118.72108614438912,82.036270525772892,426800.90872030373,36.684815618616227,0,439.56328077618286,"",1,{"$f":"INDEX(fdfortax2,MATCH(0,COUNTIF($AN$3:AN344,fdfortax2),0))","v":{"$error":"#N/A"}}]
[null,null,null,null,null,null,null,null,null,null,null,null,null,null,null,null,null,null,null,null,null,null,null,null,null,null,null,null,null,343,438904.43877449201,118.75321688916301,82.058472870411649,426882.96719317412,36.694744018751365,0,476.25802479493422,"",1,{"$f":"INDEX(fdfortax2,MATCH(0,COUNTIF($AN$3:AN345,fdfortax2),0))","v":{"$error":"#N/A"}}]
[null,null,null,null,null,null,null,null,null,null,null,null,null,null,null,null,null,null,null,null,null,null,null,null,null,null,null,null,null,344,439023.22413082188,118.78535632987041,82.080681223940459,426965.04787439806,36.704675105929951,0,512.96269990086421,"",1,{"$f":"INDEX(fdfortax2,MATCH(0,COUNTIF($AN$3:AN346,fdfortax2),0))","v":{"$error":"#N/A"}}]
[null,null,null,null,null,null,null,null,null,null,null,null,null,null,null,null,null,null,null,null,null,null,null,null,null,null,null,null,null,345,439142.04163529072,118.81750446883962,82.102895587968177,427047.15076998604,36.714608880871438,0,549.67730878173563,"",1,{"$f":"INDEX(fdfortax2,MATCH(0,COUNTIF($AN$3:AN347,fdfortax2),0))","v":{"$error":"#N/A"}}]
[null,null,null,null,null,null,null,null,null,null,null,null,null,null,null,null,null,null,null,null,null,null,null,null,null,null,null,null,null,346,439260.89129659906,118.84966130834073,82.125115964063454,427129.27588595008,36.724545344277274,0,586.40185412601295,"",1,{"$f":"INDEX(fdfortax2,MATCH(0,COUNTIF($AN$3:AN348,fdfortax2),0))","v":{"$error":"#N/A"}}]
[null,null,null,null,null,null,null,null,null,null,null,null,null,null,null,null,null,null,null,null,null,null,null,null,null,null,null,null,null,347,439379.77312344988,118.88182685081847,82.147342353915576,427211.42322830402,36.734484496902894,0,623.1363386229159,"",1,{"$f":"INDEX(fdfortax2,MATCH(0,COUNTIF($AN$3:AN349,fdfortax2),0))","v":{"$error":"#N/A"}}]
[null,null,null,null,null,null,null,null,null,null,null,null,null,null,null,null,null,null,null,null,null,null,null,null,null,null,null,null,null,348,439498.68712454848,118.91400109860115,82.169574759133397,427293.59280306316,36.744426339467751,0,659.88076496238364,"",1,{"$f":"INDEX(fdfortax2,MATCH(0,COUNTIF($AN$3:AN350,fdfortax2),0))","v":{"$error":"#N/A"}}]
[null,null,null,null,null,null,null,null,null,null,null,null,null,null,null,null,null,null,null,null,null,null,null,null,null,null,null,null,null,349,439617.6333086025,118.94618405401707,82.191813181325799,427375.78461624449,36.754370872691268,0,696.63513583507495,"",1,{"$f":"INDEX(fdfortax2,MATCH(0,COUNTIF($AN$3:AN351,fdfortax2),0))","v":{"$error":"#N/A"}}]
[null,null,null,null,null,null,null,null,null,null,null,null,null,null,null,null,null,null,null,null,null,null,null,null,null,null,null,null,null,350,439736.61168432201,118.97837571951095,82.214057622182068,427457.99867386668,36.764318097328882,0,733.39945393240384,"",1,{"$f":"INDEX(fdfortax2,MATCH(0,COUNTIF($AN$3:AN352,fdfortax2),0))","v":{"$error":"#N/A"}}]
[null,null,null,null,null,null,null,null,null,null,null,null,null,null,null,null,null,null,null,null,null,null,null,null,null,null,null,null,null,351,439855.6222604193,119.01057609729469,82.236308083230639,427540.23498194991,36.774268014064049,0,770.17372194646794,"",1,{"$f":"INDEX(fdfortax2,MATCH(0,COUNTIF($AN$3:AN353,fdfortax2),0))","v":{"$error":"#N/A"}}]
[null,null,null,null,null,null,null,null,null,null,null,null,null,null,null,null,null,null,null,null,null,null,null,null,null,null,null,null,null,352,439974.66504560917,119.04278518987121,82.258564566201017,427622.49354651611,36.784220623670194,0,806.95794257013813,"",1,{"$f":"INDEX(fdfortax2,MATCH(0,COUNTIF($AN$3:AN354,fdfortax2),0))","v":{"$error":"#N/A"}}]
[null,null,null,null,null,null,null,null,null,null,null,null,null,null,null,null,null,null,null,null,null,null,null,null,null,null,null,null,null,353,440093.74004860868,119.07500299951062,82.280827072661836,427704.77437358879,36.79417592684878,0,843.7521184969869,"",1,{"$f":"INDEX(fdfortax2,MATCH(0,COUNTIF($AN$3:AN355,fdfortax2),0))","v":{"$error":"#N/A"}}]
[null,null,null,null,null,null,null,null,null,null,null,null,null,null,null,null,null,null,null,null,null,null,null,null,null,null,null,null,null,354,440212.84727813728,119.10722952859942,82.303095604262211,427787.07746919303,36.804133924337208,0,880.55625242132407,"",1,{"$f":"INDEX(fdfortax2,MATCH(0,COUNTIF($AN$3:AN356,fdfortax2),0))","v":{"$error":"#N/A"}}]
[null,null,null,null,null,null,null,null,null,null,null,null,null,null,null,null,null,null,null,null,null,null,null,null,null,null,null,null,null,355,440331.98674291675,119.13946477946592,82.325370162610966,427869.40283935564,36.814094616854959,0,917.37034703817903,"",1,{"$f":"INDEX(fdfortax2,MATCH(0,COUNTIF($AN$3:AN357,fdfortax2),0))","v":{"$error":"#N/A"}}]
[null,null,null,null,null,null,null,null,null,null,null,null,null,null,null,null,null,null,null,null,null,null,null,null,null,null,null,null,null,356,440451.1584516713,119.17170875455486,82.347650749397417,427951.75049010501,36.82405800515744,0,954.19440504333647,"",1,{"$f":"INDEX(fdfortax2,MATCH(0,COUNTIF($AN$3:AN358,fdfortax2),0))","v":{"$error":"#N/A"}}]
[null,null,null,null,null,null,null,null,null,null,null,null,null,null,null,null,null,null,null,null,null,null,null,null,null,null,null,null,null,357,440570.36241312744,119.20396145613631,82.3699373661902,428034.12042747118,36.834024089946112,0,991.02842913328254,"",1,{"$f":"INDEX(fdfortax2,MATCH(0,COUNTIF($AN$3:AN359,fdfortax2),0))","v":{"$error":"#N/A"}}]
[null,null,null,null,null,null,null,null,null,null,null,null,null,null,null,null,null,null,null,null,null,null,null,null,null,null,null,null,null,358,440689.59863601404,119.23622288659681,82.3922300146384,428116.51265748584,36.843992871958406,0,1027.8724220052409,"",1,{"$f":"INDEX(fdfortax2,MATCH(0,COUNTIF($AN$3:AN360,fdfortax2),0))","v":{"$error":"#N/A"}}]
[null,null,null,null,null,null,null,null,null,null,null,null,null,null,null,null,null,null,null,null,null,null,null,null,null,null,null,null,null,359,440808.86712906236,119.26849304832285,82.414528696391102,428198.92718618223,36.853964351931751,0,1064.7263863571727,"",1,{"$f":"INDEX(fdfortax2,MATCH(0,COUNTIF($AN$3:AN361,fdfortax2),0))","v":{"$error":"#N/A"}}]
[null,null,null,null,null,null,null,null,null,null,null,null,null,null,null,null,null,null,null,null,null,null,null,null,null,null,null,null,null,360,440928.167901006,119.30077194364276,82.436833413057158,428281.36401959532,36.8639385305856,1,1101.5903248877582,1101.5903248877582,1101.5903248877582,{"$f":"INDEX(fdfortax2,MATCH(0,COUNTIF($AN$3:AN362,fdfortax2),0))","v":{"$error":"#N/A"}}]
[null,null,null,null,null,null,null,null,null,null,null,null,null,null,null,null,null,null,null,null,null,null,null,null,null,null,null,null,null,361,441047.500960581,119.33305957500124,82.459144166325871,428363.82316376164,36.873915408675373,0,36.873915408675373,"",1,{"$f":"INDEX(fdfortax2,MATCH(0,COUNTIF($AN$3:AN363,fdfortax2),0))","v":{"$error":"#N/A"}}]
[null,null,null,null,null,null,null,null,null,null,null,null,null,null,null,null,null,null,null,null,null,null,null,null,null,null,null,null,null,362,441166.86631652567,119.36535594466841,82.481460957765876,428446.30462471943,36.883894986902533,0,73.757810395577906,"",1,{"$f":"INDEX(fdfortax2,MATCH(0,COUNTIF($AN$3:AN364,fdfortax2),0))","v":{"$error":"#N/A"}}]
[null,null,null,null,null,null,null,null,null,null,null,null,null,null,null,null,null,null,null,null,null,null,null,null,null,null,null,null,null,363,441286.2639775807,119.39766105503077,82.503783789026272,428528.80840850843,36.893877266004495,0,110.6516876615824,"",1,{"$f":"INDEX(fdfortax2,MATCH(0,COUNTIF($AN$3:AN365,fdfortax2),0))","v":{"$error":"#N/A"}}]
[null,null,null,null,null,null,null,null,null,null,null,null,null,null,null,null,null,null,null,null,null,null,null,null,null,null,null,null,null,364,441405.69395248918,119.42997490847483,82.526112661756116,428611.33452117018,36.903862246718717,0,147.55554990830112,"",1,{"$f":"INDEX(fdfortax2,MATCH(0,COUNTIF($AN$3:AN366,fdfortax2),0))","v":{"$error":"#N/A"}}]
[null,null,null,null,null,null,null,null,null,null,null,null,null,null,null,null,null,null,null,null,null,null,null,null,null,null,null,null,null,365,441525.15624999657,119.46229750738712,82.548447577604506,428693.88296874781,36.913849929782614,0,184.46939983808375,"",1,{"$f":"INDEX(fdfortax2,MATCH(0,COUNTIF($AN$3:AN367,fdfortax2),0))","v":{"$error":"#N/A"}}]
[null,null,null,null,null,null,null,null,null,null,null,null,null,null,null,null,null,null,null,null,null,null,null,null,null,null,null,null,null,366,441644.65087885066,119.49462885409594,82.570788538180295,428776.45375728601,36.923840315915641,0,221.39324015399939,"",1,{"$f":"INDEX(fdfortax2,MATCH(0,COUNTIF($AN$3:AN368,fdfortax2),0))","v":{"$error":"#N/A"}}]
[null,null,null,null,null,null,null,null,null,null,null,null,null,null,null,null,null,null,null,null,null,null,null,null,null,null,null,null,null,367,441764.17784780159,119.52696895092959,82.593135545092352,428859.0468928311,36.933833405837234,0,258.32707355983661,"",1,{"$f":"INDEX(fdfortax2,MATCH(0,COUNTIF($AN$3:AN369,fdfortax2),0))","v":{"$error":"#N/A"}}]
[null,null,null,null,null,null,null,null,null,null,null,null,null,null,null,null,null,null,null,null,null,null,null,null,null,null,null,null,null,368,441883.73716560192,119.55931780033279,82.615488600029963,428941.66238143115,36.943829200302829,0,295.27090276013945,"",1,{"$f":"INDEX(fdfortax2,MATCH(0,COUNTIF($AN$3:AN370,fdfortax2),0))","v":{"$error":"#N/A"}}]
[null,null,null,null,null,null,null,null,null,null,null,null,null,null,null,null,null,null,null,null,null,null,null,null,null,null,null,null,null,369,442003.32884100662,119.59167540469207,82.637847704642226,429024.30022913578,36.953827700049843,0,332.22473046018928,"",1,{"$f":"INDEX(fdfortax2,MATCH(0,COUNTIF($AN$3:AN371,fdfortax2),0))","v":{"$error":"#N/A"}}]
[null,null,null,null,null,null,null,null,null,null,null,null,null,null,null,null,null,null,null,null,null,null,null,null,null,null,null,null,null,370,442122.95288277289,119.62404176627751,82.660212860497765,429106.96044199629,36.963828905779749,0,369.18855936596901,"",1,{"$f":"INDEX(fdfortax2,MATCH(0,COUNTIF($AN$3:AN372,fdfortax2),0))","v":{"$error":"#N/A"}}]
[null,null,null,null,null,null,null,null,null,null,null,null,null,null,null,null,null,null,null,null,null,null,null,null,null,null,null,null,null,371,442242.60929966043,119.65641688753385,82.682584069285895,429189.64302606555,36.973832818247956,0,406.16239218421697,"",1,{"$f":"INDEX(fdfortax2,MATCH(0,COUNTIF($AN$3:AN373,fdfortax2),0))","v":{"$error":"#N/A"}}]
[null,null,null,null,null,null,null,null,null,null,null,null,null,null,null,null,null,null,null,null,null,null,null,null,null,null,null,null,null,372,442362.29810043128,119.68880077084759,82.704961332655699,429272.34798739821,36.983839438191893,0,443.14623162240889,"",1,{"$f":"INDEX(fdfortax2,MATCH(0,COUNTIF($AN$3:AN374,fdfortax2),0))","v":{"$error":"#N/A"}}]
[null,null,null,null,null,null,null,null,null,null,null,null,null,null,null,null,null,null,null,null,null,null,null,null,null,null,null,null,null,373,442482.01929384976,119.72119341848884,82.727344652175788,429355.07533205039,36.99384876631305,0,480.14008038872191,"",1,{"$f":"INDEX(fdfortax2,MATCH(0,COUNTIF($AN$3:AN375,fdfortax2),0))","v":{"$error":"#N/A"}}]
[null,null,null,null,null,null,null,null,null,null,null,null,null,null,null,null,null,null,null,null,null,null,null,null,null,null,null,null,null,374,442601.77288868272,119.75359483296052,82.74973402957572,429437.82506607997,37.003860803384796,0,517.14394119210669,"",1,{"$f":"INDEX(fdfortax2,MATCH(0,COUNTIF($AN$3:AN376,fdfortax2),0))","v":{"$error":"#N/A"}}]
[null,null,null,null,null,null,null,null,null,null,null,null,null,null,null,null,null,null,null,null,null,null,null,null,null,null,null,null,null,375,442721.55889369926,119.78600501653273,82.772129466424119,429520.59719554638,37.013875550108608,0,554.15781674221535,"",1,{"$f":"INDEX(fdfortax2,MATCH(0,COUNTIF($AN$3:AN377,fdfortax2),0))","v":{"$error":"#N/A"}}]
[null,null,null,null,null,null,null,null,null,null,null,null,null,null,null,null,null,null,null,null,null,null,null,null,null,null,null,null,null,376,442841.37731767091,119.81842397165019,82.794530964410285,429603.39172651077,37.023893007239906,0,591.18170974945519,"",1,{"$f":"INDEX(fdfortax2,MATCH(0,COUNTIF($AN$3:AN378,fdfortax2),0))","v":{"$error":"#N/A"}}]
[null,null,null,null,null,null,null,null,null,null,null,null,null,null,null,null,null,null,null,null,null,null,null,null,null,null,null,null,null,377,442961.22816937149,119.85085170058301,82.81693852510287,429686.2086650359,37.033913175480137,0,628.21562292493536,"",1,{"$f":"INDEX(fdfortax2,MATCH(0,COUNTIF($AN$3:AN379,fdfortax2),0))","v":{"$error":"#N/A"}}]
[null,null,null,null,null,null,null,null,null,null,null,null,null,null,null,null,null,null,null,null,null,null,null,null,null,null,null,null,null,378,443081.11145757732,119.88328820583411,82.839352150231377,429769.04801718611,37.043936055602728,0,665.25955898053803,"",1,{"$f":"INDEX(fdfortax2,MATCH(0,COUNTIF($AN$3:AN380,fdfortax2),0))","v":{"$error":"#N/A"}}]
[null,null,null,null,null,null,null,null,null,null,null,null,null,null,null,null,null,null,null,null,null,null,null,null,null,null,null,null,null,379,443201.027191067,119.91573348967358,82.861771841364458,429851.90978902747,37.053961648309127,0,702.31352062884719,"",1,{"$f":"INDEX(fdfortax2,MATCH(0,COUNTIF($AN$3:AN381,fdfortax2),0))","v":{"$error":"#N/A"}}]
[null,null,null,null,null,null,null,null,null,null,null,null,null,null,null,null,null,null,null,null,null,null,null,null,null,null,null,null,null,380,443320.9753786216,119.94818755460437,82.88419760023163,429934.79398662772,37.063989954372744,0,739.37751058321987,"",1,{"$f":"INDEX(fdfortax2,MATCH(0,COUNTIF($AN$3:AN382,fdfortax2),0))","v":{"$error":"#N/A"}}]
[null,null,null,null,null,null,null,null,null,null,null,null,null,null,null,null,null,null,null,null,null,null,null,null,null,null,null,null,null,381,443440.95602902444,119.98065040283836,82.906629428361313,430017.7006160561,37.074020974477051,0,776.45153155769697,"",1,{"$f":"INDEX(fdfortax2,MATCH(0,COUNTIF($AN$3:AN383,fdfortax2),0))","v":{"$error":"#N/A"}}]
[null,null,null,null,null,null,null,null,null,null,null,null,null,null,null,null,null,null,null,null,null,null,null,null,null,null,null,null,null,382,443560.96915106132,120.01312203687849,82.92906732748304,430100.62968338357,37.084054709395446,0,813.53558626709241,"",1,{"$f":"INDEX(fdfortax2,MATCH(0,COUNTIF($AN$3:AN384,fdfortax2),0))","v":{"$error":"#N/A"}}]
[null,null,null,null,null,null,null,null,null,null,null,null,null,null,null,null,null,null,null,null,null,null,null,null,null,null,null,null,null,383,443681.01475352037,120.04560245905304,82.951511299205663,430183.58119468275,37.09409115984738,0,850.62967742693979,"",1,{"$f":"INDEX(fdfortax2,MATCH(0,COUNTIF($AN$3:AN385,fdfortax2),0))","v":{"$error":"#N/A"}}]
[null,null,null,null,null,null,null,null,null,null,null,null,null,null,null,null,null,null,null,null,null,null,null,null,null,null,null,null,null,384,443801.09284519212,120.07809167174855,82.973961345178253,430266.5551560279,37.104130326570299,0,887.73380775351006,"",1,{"$f":"INDEX(fdfortax2,MATCH(0,COUNTIF($AN$3:AN386,fdfortax2),0))","v":{"$error":"#N/A"}}]
[null,null,null,null,null,null,null,null,null,null,null,null,null,null,null,null,null,null,null,null,null,null,null,null,null,null,null,null,null,385,443921.20343486947,120.11058967735153,{"$f":"IF(AD388=\"\",\"\",AF388*(1-IF(taxrd=10%,10.3%,IF(taxrd=20%,20.6%,IF(taxrd=30%,30.9%)))))","v":82.996417467049909},{"$f":"IF(AD388=\"\",\"\",AH387+AG388+L388)","v":430349.55157349497},37.114172210301618,0,924.84797996381167,{"$f":"IF(AJ388=1,AK388,IF(ISERROR(AK389),AK388,IF(AK389=\"\",AK388,\"\")))","v":""},1,{"$f":"INDEX(fdfortax2,MATCH(0,COUNTIF($AN$3:AN387,fdfortax2),0))","v":{"$error":"#N/A"}}]
[null,null,null,null,null,null,null,null,null,null,null,null,null,null,null,null,null,null,null,null,null,null,null,null,null,null,null,null,null,{"$f":"IF(AD388<rdura,AD388+1,\"\")","v":386},{"$f":"IF(AD389=\"\",\"\",AE388*(1+raterd/factor1)^(factor1*1/ydays))","v":444041.34653134766},120.14309647819027,83.018879666429484,430432.57045316137,{"$f":"IF(AD389=\"\",\"\",AF389-AG389)","v":37.124216811760789},{"$f":"IF(INT(AD389/30)-(AD389/30)=0,1,0)","v":0},{"$f":"IF(AJ388=1,AI389,AK388+AI389)","v":961.97219677557246},"",1,{"$f":"INDEX(fdfortax2,MATCH(0,COUNTIF($AN$3:AN388,fdfortax2),0))","v":{"$error":"#N/A"}}]
[null,null,null,null,null,null,null,null,null,null,null,null,null,null,null,null,null,null,null,null,null,null,null,null,null,null,null,null,null,387,444161.52214342443,{"$f":"IF(AD390=\"\",\"\",AE390-AE389)","v":120.17561207676772},83.041347945046496,430515.61180110642,37.134264131721224,0,999.10646090729369,"",1,{"$f":"INDEX(fdfortax2,MATCH(0,COUNTIF($AN$3:AN389,fdfortax2),0))","v":{"$error":"#N/A"}}]
[null,null,null,null,null,null,null,null,null,null,null,null,null,null,null,null,null,null,null,null,null,null,null,null,null,null,null,null,null,388,444281.73027989973,120.20813647529576,83.06382230442938,430598.67562341085,37.14431417086638,0,1036.2507750781601,"",1,{"$f":"INDEX(fdfortax2,MATCH(0,COUNTIF($AN$3:AN390,fdfortax2),0))","v":{"$error":"#N/A"}}]
[null,null,null,null,null,null,null,null,null,null,null,null,null,null,null,null,null,null,null,null,null,null,null,null,null,null,null,null,null,389,444401.97094957606,120.24066967633553,83.086302746347855,430681.76192615717,37.154366929987674,0,1073.4051420081478,"",1,{"$f":"INDEX(fdfortax2,MATCH(0,COUNTIF($AN$3:AN391,fdfortax2),0))","v":{"$error":"#N/A"}}]
[null,null,null,null,null,null,null,null,null,null,null,null,null,null,null,null,null,null,null,null,null,null,null,null,null,null,null,null,null,390,444522.24416125816,120.27321168209892,83.108789272330355,430764.87071542948,37.164422409768562,1,1110.5695644179164,1110.5695644179164,1110.5695644179164,{"$f":"INDEX(fdfortax2,MATCH(0,COUNTIF($AN$3:AN392,fdfortax2),0))","v":{"$error":"#N/A"}}]
[null,null,null,null,null,null,null,null,null,null,null,null,null,null,null,null,null,null,null,null,null,null,null,null,null,null,null,null,null,391,444642.54992375325,120.30576249508886,83.1312818841064,430848.00199731358,37.174480610982457,0,37.174480610982457,"",{"$f":"IF(AJ394=1,AK394,IF(ISERROR(AK395),AK394,IF(AK395=\"\",AK394,1)))","v":1},{"$f":"INDEX(fdfortax2,MATCH(0,COUNTIF($AN$3:AN393,fdfortax2),0))","v":{"$error":"#N/A"}}]
[null,null,null,null,null,null,null,null,null,null,null,null,null,null,null,null,null,null,null,null,null,null,null,null,null,null,null,null,null,392,444762.88824587094,120.33832211769186,83.153780583325087,430931.15577789693,37.184541534366772,0,74.359022145349229,"",1,{"$f":"INDEX(fdfortax2,MATCH(0,COUNTIF($AN$3:AN394,fdfortax2),0))","v":{"$error":"#N/A"}}]
[null,null,null,null,null,null,null,null,null,null,null,null,null,null,null,null,null,null,null,null,null,null,null,null,null,null,null,null,null,393,444883.25913642312,120.37089055217803,83.176285371555025,431014.33206326846,37.194605180623,0,111.55362732597223,"",1,{"$f":"INDEX(fdfortax2,MATCH(0,COUNTIF($AN$3:AN395,fdfortax2),0))","v":{"$error":"#N/A"}}]
[null,null,null,null,null,null,null,null,null,null,null,null,null,null,null,null,null,null,null,null,null,null,null,null,null,null,null,null,null,394,445003.66260422417,120.40346780105028,83.198796250525746,431097.53085951897,37.204671550524537,0,148.75829887649678,"",1,{"$f":"INDEX(fdfortax2,MATCH(0,COUNTIF($AN$3:AN396,fdfortax2),0))","v":{"$error":"#N/A"}}]
[null,null,null,null,null,null,null,null,null,null,null,null,null,null,null,null,null,null,null,null,null,null,null,null,null,null,null,null,null,395,445124.09865809081,120.43605386663694,83.221313221846131,431180.75217274082,37.214740644790808,0,185.9730395212876,"",1,{"$f":"INDEX(fdfortax2,MATCH(0,COUNTIF($AN$3:AN397,fdfortax2),0))","v":{"$error":"#N/A"}}]
[null,null,null,null,null,null,null,null,null,null,null,null,null,null,null,null,null,null,null,null,null,null,null,null,null,null,null,null,null,396,445244.56730684213,120.46864875132451,83.243836287165237,431263.99600902799,37.224812464159271,0,223.19785198544687,"",1,{"$f":"INDEX(fdfortax2,MATCH(0,COUNTIF($AN$3:AN398,fdfortax2),0))","v":{"$error":"#N/A"}}]
[null,null,null,null,null,null,null,null,null,null,null,null,null,null,null,null,null,null,null,null,null,null,null,null,null,null,null,null,null,397,445365.06855929963,120.5012524574995,83.266365448132163,431347.26237447612,37.234887009367341,0,260.4327389948142,"",1,{"$f":"INDEX(fdfortax2,MATCH(0,COUNTIF($AN$3:AN399,fdfortax2),0))","v":{"$error":"#N/A"}}]
[null,null,null,null,null,null,null,null,null,null,null,null,null,null,null,null,null,null,null,null,null,null,null,null,null,null,null,null,null,398,445485.60242428724,120.53386498760665,83.288900706436195,431430.55127518257,37.244964281170454,0,297.67770327598464,"",1,{"$f":"INDEX(fdfortax2,MATCH(0,COUNTIF($AN$3:AN400,fdfortax2),0))","v":{"$error":"#N/A"}}]
[null,null,null,null,null,null,null,null,null,null,null,null,null,null,null,null,null,null,null,null,null,null,null,null,null,null,null,null,null,399,445606.16891063115,120.56648634391604,83.311442063645984,431513.86271724623,37.255044280270056,0,334.9327475562547,"",1,{"$f":"INDEX(fdfortax2,MATCH(0,COUNTIF($AN$3:AN401,fdfortax2),0))","v":{"$error":"#N/A"}}]
[null,null,null,null,null,null,null,null,null,null,null,null,null,null,null,null,null,null,null,null,null,null,null,null,null,null,null,null,null,400,445726.76802716014,120.59911652898882,83.333989521531279,431597.19670676778,37.265127007457536,0,372.19787456371222,372.19787456371222,372.19787456371222,{"$f":"INDEX(fdfortax2,MATCH(0,COUNTIF($AN$3:AN402,fdfortax2),0))","v":{"$error":"#N/A"}}]
[null,null,null,null,null,null,null,null,null,null,null,null,null,null,null,null,null,null,null,null,null,null,null,null,null,null,null,null,null,"","","","","","",{"$error":"#VALUE!"},{"$error":"#VALUE!"},{"$error":"#VALUE!"},{"$error":"#VALUE!"},{"$f":"INDEX(fdfortax2,MATCH(0,COUNTIF($AN$3:AN403,fdfortax2),0))","v":{"$error":"#N/A"}}]
[null,null,null,null,null,null,null,null,null,null,null,null,null,null,null,null,null,null,null,null,null,null,null,null,null,null,null,null,null,"","","","","","",{"$error":"#VALUE!"},{"$error":"#VALUE!"},{"$error":"#VALUE!"},{"$error":"#VALUE!"},{"$f":"INDEX(fdfortax2,MATCH(0,COUNTIF($AN$3:AN404,fdfortax2),0))","v":{"$error":"#N/A"}}]
[null,null,null,null,null,null,null,null,null,null,null,null,null,null,null,null,null,null,null,null,null,null,null,null,null,null,null,null,null,"","","","","","",{"$error":"#VALUE!"},{"$error":"#VALUE!"},{"$error":"#VALUE!"},{"$error":"#VALUE!"},{"$f":"INDEX(fdfortax2,MATCH(0,COUNTIF($AN$3:AN405,fdfortax2),0))","v":{"$error":"#N/A"}}]
[null,null,null,null,null,null,null,null,null,null,null,null,null,null,null,null,null,null,null,null,null,null,null,null,null,null,null,null,null,"","","","","","",{"$error":"#VALUE!"},{"$error":"#VALUE!"},{"$error":"#VALUE!"},{"$error":"#VALUE!"},{"$f":"INDEX(fdfortax2,MATCH(0,COUNTIF($AN$3:AN406,fdfortax2),0))","v":{"$error":"#N/A"}}]
[null,null,null,null,null,null,null,null,null,null,null,null,null,null,null,null,null,null,null,null,null,null,null,null,null,null,null,null,null,"","","","","","",{"$error":"#VALUE!"},{"$error":"#VALUE!"},{"$error":"#VALUE!"},{"$error":"#VALUE!"},{"$f":"INDEX(fdfortax2,MATCH(0,COUNTIF($AN$3:AN407,fdfortax2),0))","v":{"$error":"#N/A"}}]
[null,null,null,null,null,null,null,null,null,null,null,null,null,null,null,null,null,null,null,null,null,null,null,null,null,null,null,null,null,"","","","","","",{"$error":"#VALUE!"},{"$error":"#VALUE!"},{"$error":"#VALUE!"},{"$error":"#VALUE!"},{"$f":"INDEX(fdfortax2,MATCH(0,COUNTIF($AN$3:AN408,fdfortax2),0))","v":{"$error":"#N/A"}}]
[null,null,null,null,null,null,null,null,null,null,null,null,null,null,null,null,null,null,null,null,null,null,null,null,null,null,null,null,null,"","","","","","",{"$error":"#VALUE!"},{"$error":"#VALUE!"},{"$error":"#VALUE!"},{"$error":"#VALUE!"},{"$f":"INDEX(fdfortax2,MATCH(0,COUNTIF($AN$3:AN409,fdfortax2),0))","v":{"$error":"#N/A"}}]
[null,null,null,null,null,null,null,null,null,null,null,null,null,null,null,null,null,null,null,null,null,null,null,null,null,null,null,null,null,"","","","","","",{"$error":"#VALUE!"},{"$error":"#VALUE!"},{"$error":"#VALUE!"},{"$error":"#VALUE!"},{"$f":"INDEX(fdfortax2,MATCH(0,COUNTIF($AN$3:AN410,fdfortax2),0))","v":{"$error":"#N/A"}}]
[null,null,null,null,null,null,null,null,null,null,null,null,null,null,null,null,null,null,null,null,null,null,null,null,null,null,null,null,null,"","","","","","",{"$error":"#VALUE!"},{"$error":"#VALUE!"},{"$error":"#VALUE!"},{"$error":"#VALUE!"},{"$f":"INDEX(fdfortax2,MATCH(0,COUNTIF($AN$3:AN411,fdfortax2),0))","v":{"$error":"#N/A"}}]
[null,null,null,null,null,null,null,null,null,null,null,null,null,null,null,null,null,null,null,null,null,null,null,null,null,null,null,null,null,"","","","","","",{"$error":"#VALUE!"},{"$error":"#VALUE!"},{"$error":"#VALUE!"},{"$error":"#VALUE!"},{"$f":"INDEX(fdfortax2,MATCH(0,COUNTIF($AN$3:AN412,fdfortax2),0))","v":{"$error":"#N/A"}}]
[null,null,null,null,null,null,null,null,null,null,null,null,null,null,null,null,null,null,null,null,null,null,null,null,null,null,null,null,null,"","","","","","",{"$error":"#VALUE!"},{"$error":"#VALUE!"},{"$error":"#VALUE!"},{"$error":"#VALUE!"},{"$f":"INDEX(fdfortax2,MATCH(0,COUNTIF($AN$3:AN413,fdfortax2),0))","v":{"$error":"#N/A"}}]
[null,null,null,null,null,null,null,null,null,null,null,null,null,null,null,null,null,null,null,null,null,null,null,null,null,null,null,null,null,"","","","","","",{"$error":"#VALUE!"},{"$error":"#VALUE!"},{"$error":"#VALUE!"},{"$error":"#VALUE!"},{"$f":"INDEX(fdfortax2,MATCH(0,COUNTIF($AN$3:AN414,fdfortax2),0))","v":{"$error":"#N/A"}}]
[null,null,null,null,null,null,null,null,null,null,null,null,null,null,null,null,null,null,null,null,null,null,null,null,null,null,null,null,null,"","","","","","",{"$error":"#VALUE!"},{"$error":"#VALUE!"},{"$error":"#VALUE!"},{"$error":"#VALUE!"},{"$f":"INDEX(fdfortax2,MATCH(0,COUNTIF($AN$3:AN415,fdfortax2),0))","v":{"$error":"#N/A"}}]
[null,null,null,null,null,null,null,null,null,null,null,null,null,null,null,null,null,null,null,null,null,null,null,null,null,null,null,null,null,"","","","","","",{"$error":"#VALUE!"},{"$error":"#VALUE!"},{"$error":"#VALUE!"},{"$error":"#VALUE!"},{"$f":"INDEX(fdfortax2,MATCH(0,COUNTIF($AN$3:AN416,fdfortax2),0))","v":{"$error":"#N/A"}}]
[null,null,null,null,null,null,null,null,null,null,null,null,null,null,null,null,null,null,null,null,null,null,null,null,null,null,null,null,null,"","","","","","",{"$error":"#VALUE!"},{"$error":"#VALUE!"},{"$error":"#VALUE!"},{"$error":"#VALUE!"},{"$f":"INDEX(fdfortax2,MATCH(0,COUNTIF($AN$3:AN417,fdfortax2),0))","v":{"$error":"#N/A"}}]
[null,null,null,null,null,null,null,null,null,null,null,null,null,null,null,null,null,null,null,null,null,null,null,null,null,null,null,null,null,"","","","","","",{"$error":"#VALUE!"},{"$error":"#VALUE!"},{"$error":"#VALUE!"},{"$error":"#VALUE!"},{"$f":"INDEX(fdfortax2,MATCH(0,COUNTIF($AN$3:AN418,fdfortax2),0))","v":{"$error":"#N/A"}}]
[null,null,null,null,null,null,null,null,null,null,null,null,null,null,null,null,null,null,null,null,null,null,null,null,null,null,null,null,null,"","","","","","",{"$error":"#VALUE!"},{"$error":"#VALUE!"},{"$error":"#VALUE!"},{"$error":"#VALUE!"},{"$f":"INDEX(fdfortax2,MATCH(0,COUNTIF($AN$3:AN419,fdfortax2),0))","v":{"$error":"#N/A"}}]
[null,null,null,null,null,null,null,null,null,null,null,null,null,null,null,null,null,null,null,null,null,null,null,null,null,null,null,null,null,"","","","","","",{"$error":"#VALUE!"},{"$error":"#VALUE!"},{"$error":"#VALUE!"},{"$error":"#VALUE!"},{"$f":"INDEX(fdfortax2,MATCH(0,COUNTIF($AN$3:AN420,fdfortax2),0))","v":{"$error":"#N/A"}}]
[null,null,null,null,null,null,null,null,null,null,null,null,null,null,null,null,null,null,null,null,null,null,null,null,null,null,null,null,null,"","","","","","",{"$error":"#VALUE!"},{"$error":"#VALUE!"},{"$error":"#VALUE!"},{"$error":"#VALUE!"},{"$f":"INDEX(fdfortax2,MATCH(0,COUNTIF($AN$3:AN421,fdfortax2),0))","v":{"$error":"#N/A"}}]
[null,null,null,null,null,null,null,null,null,null,null,null,null,null,null,null,null,null,null,null,null,null,null,null,null,null,null,null,null,"","","","","","",{"$error":"#VALUE!"},{"$error":"#VALUE!"},{"$error":"#VALUE!"},{"$error":"#VALUE!"},{"$f":"INDEX(fdfortax2,MATCH(0,COUNTIF($AN$3:AN422,fdfortax2),0))","v":{"$error":"#N/A"}}]
[null,null,null,null,null,null,null,null,null,null,null,null,null,null,null,null,null,null,null,null,null,null,null,null,null,null,null,null,null,"","","","","","",{"$error":"#VALUE!"},{"$error":"#VALUE!"},{"$error":"#VALUE!"},{"$error":"#VALUE!"},{"$f":"INDEX(fdfortax2,MATCH(0,COUNTIF($AN$3:AN423,fdfortax2),0))","v":{"$error":"#N/A"}}]
[null,null,null,null,null,null,null,null,null,null,null,null,null,null,null,null,null,null,null,null,null,null,null,null,null,null,null,null,null,"","","","","","",{"$error":"#VALUE!"},{"$error":"#VALUE!"},{"$error":"#VALUE!"},{"$error":"#VALUE!"},{"$f":"INDEX(fdfortax2,MATCH(0,COUNTIF($AN$3:AN424,fdfortax2),0))","v":{"$error":"#N/A"}}]
[null,null,null,null,null,null,null,null,null,null,null,null,null,null,null,null,null,null,null,null,null,null,null,null,null,null,null,null,null,"","","","","","",{"$error":"#VALUE!"},{"$error":"#VALUE!"},{"$error":"#VALUE!"},{"$error":"#VALUE!"},{"$f":"INDEX(fdfortax2,MATCH(0,COUNTIF($AN$3:AN425,fdfortax2),0))","v":{"$error":"#N/A"}}]
[null,null,null,null,null,null,null,null,null,null,null,null,null,null,null,null,null,null,null,null,null,null,null,null,null,null,null,null,null,"","","","","","",{"$error":"#VALUE!"},{"$error":"#VALUE!"},{"$error":"#VALUE!"},{"$error":"#VALUE!"},{"$f":"INDEX(fdfortax2,MATCH(0,COUNTIF($AN$3:AN426,fdfortax2),0))","v":{"$error":"#N/A"}}]
[null,null,null,null,null,null,null,null,null,null,null,null,null,null,null,null,null,null,null,null,null,null,null,null,null,null,null,null,null,"","","","","","",{"$error":"#VALUE!"},{"$error":"#VALUE!"},{"$error":"#VALUE!"},{"$error":"#VALUE!"},{"$f":"INDEX(fdfortax2,MATCH(0,COUNTIF($AN$3:AN427,fdfortax2),0))","v":{"$error":"#N/A"}}]
[null,null,null,null,null,null,null,null,null,null,null,null,null,null,null,null,null,null,null,null,null,null,null,null,null,null,null,null,null,"","","","","","",{"$error":"#VALUE!"},{"$error":"#VALUE!"},{"$error":"#VALUE!"},{"$error":"#VALUE!"},{"$f":"INDEX(fdfortax2,MATCH(0,COUNTIF($AN$3:AN428,fdfortax2),0))","v":{"$error":"#N/A"}}]
[null,null,null,null,null,null,null,null,null,null,null,null,null,null,null,null,null,null,null,null,null,null,null,null,null,null,null,null,null,"","","","","","",{"$error":"#VALUE!"},{"$error":"#VALUE!"},{"$error":"#VALUE!"},{"$error":"#VALUE!"},{"$f":"INDEX(fdfortax2,MATCH(0,COUNTIF($AN$3:AN429,fdfortax2),0))","v":{"$error":"#N/A"}}]
[null,null,null,null,null,null,null,null,null,null,null,null,null,null,null,null,null,null,null,null,null,null,null,null,null,null,null,null,null,"","","","","","",{"$error":"#VALUE!"},{"$error":"#VALUE!"},{"$error":"#VALUE!"},{"$error":"#VALUE!"},{"$f":"INDEX(fdfortax2,MATCH(0,COUNTIF($AN$3:AN430,fdfortax2),0))","v":{"$error":"#N/A"}}]
[null,null,null,null,null,null,null,null,null,null,null,null,null,null,null,null,null,null,null,null,null,null,null,null,null,null,null,null,null,"","","","","","",{"$error":"#VALUE!"},{"$error":"#VALUE!"},{"$error":"#VALUE!"},{"$error":"#VALUE!"},{"$f":"INDEX(fdfortax2,MATCH(0,COUNTIF($AN$3:AN431,fdfortax2),0))","v":{"$error":"#N/A"}}]
[null,null,null,null,null,null,null,null,null,null,null,null,null,null,null,null,null,null,null,null,null,null,null,null,null,null,null,null,null,"","","","","","",{"$error":"#VALUE!"},{"$error":"#VALUE!"},{"$error":"#VALUE!"},{"$error":"#VALUE!"},{"$f":"INDEX(fdfortax2,MATCH(0,COUNTIF($AN$3:AN432,fdfortax2),0))","v":{"$error":"#N/A"}}]
[null,null,null,null,null,null,null,null,null,null,null,null,null,null,null,null,null,null,null,null,null,null,null,null,null,null,null,null,null,"","","","","","",{"$error":"#VALUE!"},{"$error":"#VALUE!"},{"$error":"#VALUE!"},{"$error":"#VALUE!"},{"$f":"INDEX(fdfortax2,MATCH(0,COUNTIF($AN$3:AN433,fdfortax2),0))","v":{"$error":"#N/A"}}]
[null,null,null,null,null,null,null,null,null,null,null,null,null,null,null,null,null,null,null,null,null,null,null,null,null,null,null,null,null,"","","","","","",{"$error":"#VALUE!"},{"$error":"#VALUE!"},{"$error":"#VALUE!"},{"$error":"#VALUE!"},{"$f":"INDEX(fdfortax2,MATCH(0,COUNTIF($AN$3:AN434,fdfortax2),0))","v":{"$error":"#N/A"}}]
[null,null,null,null,null,null,null,null,null,null,null,null,null,null,null,null,null,null,null,null,null,null,null,null,null,null,null,null,null,"","","","","","",{"$error":"#VALUE!"},{"$error":"#VALUE!"},{"$error":"#VALUE!"},{"$error":"#VALUE!"},{"$f":"INDEX(fdfortax2,MATCH(0,COUNTIF($AN$3:AN435,fdfortax2),0))","v":{"$error":"#N/A"}}]
[null,null,null,null,null,null,null,null,null,null,null,null,null,null,null,null,null,null,null,null,null,null,null,null,null,null,null,null,null,"","","","","","",{"$error":"#VALUE!"},{"$error":"#VALUE!"},{"$error":"#VALUE!"},{"$error":"#VALUE!"},{"$f":"INDEX(fdfortax2,MATCH(0,COUNTIF($AN$3:AN436,fdfortax2),0))","v":{"$error":"#N/A"}}]
[null,null,null,null,null,null,null,null,null,null,null,null,null,null,null,null,null,null,null,null,null,null,null,null,null,null,null,null,null,"","","","","","",{"$error":"#VALUE!"},{"$error":"#VALUE!"},{"$error":"#VALUE!"},{"$error":"#VALUE!"},{"$f":"INDEX(fdfortax2,MATCH(0,COUNTIF($AN$3:AN437,fdfortax2),0))","v":{"$error":"#N/A"}}]
[null,null,null,null,null,null,null,null,null,null,null,null,null,null,null,null,null,null,null,null,null,null,null,null,null,null,null,null,null,"","","","","","",{"$error":"#VALUE!"},{"$error":"#VALUE!"},{"$error":"#VALUE!"},{"$error":"#VALUE!"},{"$f":"INDEX(fdfortax2,MATCH(0,COUNTIF($AN$3:AN438,fdfortax2),0))","v":{"$error":"#N/A"}}]
[null,null,null,null,null,null,null,null,null,null,null,null,null,null,null,null,null,null,null,null,null,null,null,null,null,null,null,null,null,"","","","","","",{"$error":"#VALUE!"},{"$error":"#VALUE!"},{"$error":"#VALUE!"},{"$error":"#VALUE!"},{"$f":"INDEX(fdfortax2,MATCH(0,COUNTIF($AN$3:AN439,fdfortax2),0))","v":{"$error":"#N/A"}}]
[null,null,null,null,null,null,null,null,null,null,null,null,null,null,null,null,null,null,null,null,null,null,null,null,null,null,null,null,null,"","","","","","",{"$error":"#VALUE!"},{"$error":"#VALUE!"},{"$error":"#VALUE!"},{"$error":"#VALUE!"},{"$f":"INDEX(fdfortax2,MATCH(0,COUNTIF($AN$3:AN440,fdfortax2),0))","v":{"$error":"#N/A"}}]
[null,null,null,null,null,null,null,null,null,null,null,null,null,null,null,null,null,null,null,null,null,null,null,null,null,null,null,null,null,"","","","","","",{"$error":"#VALUE!"},{"$error":"#VALUE!"},{"$error":"#VALUE!"},{"$error":"#VALUE!"},{"$f":"INDEX(fdfortax2,MATCH(0,COUNTIF($AN$3:AN441,fdfortax2),0))","v":{"$error":"#N/A"}}]
[null,null,null,null,null,null,null,null,null,null,null,null,null,null,null,null,null,null,null,null,null,null,null,null,null,null,null,null,null,"","","","","","",{"$error":"#VALUE!"},{"$error":"#VALUE!"},{"$error":"#VALUE!"},{"$error":"#VALUE!"},{"$f":"INDEX(fdfortax2,MATCH(0,COUNTIF($AN$3:AN442,fdfortax2),0))","v":{"$error":"#N/A"}}]
[null,null,null,null,null,null,null,null,null,null,null,null,null,null,null,null,null,null,null,null,null,null,null,null,null,null,null,null,null,"","","","","","",{"$error":"#VALUE!"},{"$error":"#VALUE!"},{"$error":"#VALUE!"},{"$error":"#VALUE!"},{"$f":"INDEX(fdfortax2,MATCH(0,COUNTIF($AN$3:AN443,fdfortax2),0))","v":{"$error":"#N/A"}}]
[null,null,null,null,null,null,null,null,null,null,null,null,null,null,null,null,null,null,null,null,null,null,null,null,null,null,null,null,null,"","","","","","",{"$error":"#VALUE!"},{"$error":"#VALUE!"},{"$error":"#VALUE!"},{"$error":"#VALUE!"},{"$f":"INDEX(fdfortax2,MATCH(0,COUNTIF($AN$3:AN444,fdfortax2),0))","v":{"$error":"#N/A"}}]
[null,null,null,null,null,null,null,null,null,null,null,null,null,null,null,null,null,null,null,null,null,null,null,null,null,null,null,null,null,"","","","","","",{"$error":"#VALUE!"},{"$error":"#VALUE!"},{"$error":"#VALUE!"},{"$error":"#VALUE!"},{"$f":"INDEX(fdfortax2,MATCH(0,COUNTIF($AN$3:AN445,fdfortax2),0))","v":{"$error":"#N/A"}}]
[null,null,null,null,null,null,null,null,null,null,null,null,null,null,null,null,null,null,null,null,null,null,null,null,null,null,null,null,null,"","","","","","",{"$error":"#VALUE!"},{"$error":"#VALUE!"},{"$error":"#VALUE!"},{"$error":"#VALUE!"},{"$f":"INDEX(fdfortax2,MATCH(0,COUNTIF($AN$3:AN446,fdfortax2),0))","v":{"$error":"#N/A"}}]
[null,null,null,null,null,null,null,null,null,null,null,null,null,null,null,null,null,null,null,null,null,null,null,null,null,null,null,null,null,"","","","","","",{"$error":"#VALUE!"},{"$error":"#VALUE!"},{"$error":"#VALUE!"},{"$error":"#VALUE!"},{"$f":"INDEX(fdfortax2,MATCH(0,COUNTIF($AN$3:AN447,fdfortax2),0))","v":{"$error":"#N/A"}}]
[null,null,null,null,null,null,null,null,null,null,null,null,null,null,null,null,null,null,null,null,null,null,null,null,null,null,null,null,null,"","","","","","",{"$error":"#VALUE!"},{"$error":"#VALUE!"},{"$error":"#VALUE!"},{"$error":"#VALUE!"},{"$f":"INDEX(fdfortax2,MATCH(0,COUNTIF($AN$3:AN448,fdfortax2),0))","v":{"$error":"#N/A"}}]
[null,null,null,null,null,null,null,null,null,null,null,null,null,null,null,null,null,null,null,null,null,null,null,null,null,null,null,null,null,"","","","","","",{"$error":"#VALUE!"},{"$error":"#VALUE!"},{"$error":"#VALUE!"},{"$error":"#VALUE!"},{"$f":"INDEX(fdfortax2,MATCH(0,COUNTIF($AN$3:AN449,fdfortax2),0))","v":{"$error":"#N/A"}}]
[null,null,null,null,null,null,null,null,null,null,null,null,null,null,null,null,null,null,null,null,null,null,null,null,null,null,null,null,null,"","","","","","",{"$error":"#VALUE!"},{"$error":"#VALUE!"},{"$error":"#VALUE!"},{"$error":"#VALUE!"},{"$f":"INDEX(fdfortax2,MATCH(0,COUNTIF($AN$3:AN450,fdfortax2),0))","v":{"$error":"#N/A"}}]
[null,null,null,null,null,null,null,null,null,null,null,null,null,null,null,null,null,null,null,null,null,null,null,null,null,null,null,null,null,"","","",{"$f":"IF(AD452=\"\",\"\",AF452*(1-IF(taxrd=10%,10.3%,IF(taxrd=20%,20.6%,IF(taxrd=30%,30.9%)))))","v":""},{"$f":"IF(AD452=\"\",\"\",AH451+AG452+L452)","v":""},"",{"$error":"#VALUE!"},{"$error":"#VALUE!"},{"$f":"IF(AJ452=1,AK452,IF(ISERROR(AK453),AK452,IF(AK453=\"\",AK452,\"\")))","v":{"$error":"#VALUE!"}},{"$error":"#VALUE!"},{"$f":"INDEX(fdfortax2,MATCH(0,COUNTIF($AN$3:AN451,fdfortax2),0))","v":{"$error":"#N/A"}}]
[null,null,null,null,null,null,null,null,null,null,null,null,null,null,null,null,null,null,null,null,null,null,null,null,null,null,null,null,null,{"$f":"IF(AD452<rdura,AD452+1,\"\")","v":""},{"$f":"IF(AD453=\"\",\"\",AE452*(1+raterd/factor1)^(factor1*1/ydays))","v":""},"","","",{"$f":"IF(AD453=\"\",\"\",AF453-AG453)","v":""},{"$f":"IF(INT(AD453/30)-(AD453/30)=0,1,0)","v":{"$error":"#VALUE!"}},{"$f":"IF(AJ452=1,AI453,AK452+AI453)","v":{"$error":"#VALUE!"}},{"$error":"#VALUE!"},{"$error":"#VALUE!"},{"$f":"INDEX(fdfortax2,MATCH(0,COUNTIF($AN$3:AN452,fdfortax2),0))","v":{"$error":"#N/A"}}]
[null,null,null,null,null,null,null,null,null,null,null,null,null,null,null,null,null,null,null,null,null,null,null,null,null,null,null,null,null,"","",{"$f":"IF(AD454=\"\",\"\",AE454-AE453)","v":""},"","","",{"$error":"#VALUE!"},{"$error":"#VALUE!"},{"$error":"#VALUE!"},{"$error":"#VALUE!"},{"$f":"INDEX(fdfortax2,MATCH(0,COUNTIF($AN$3:AN453,fdfortax2),0))","v":{"$error":"#N/A"}}]
[null,null,null,null,null,null,null,null,null,null,null,null,null,null,null,null,null,null,null,null,null,null,null,null,null,null,null,null,null,"","","","","","",{"$error":"#VALUE!"},{"$error":"#VALUE!"},{"$error":"#VALUE!"},{"$error":"#VALUE!"},{"$f":"INDEX(fdfortax2,MATCH(0,COUNTIF($AN$3:AN454,fdfortax2),0))","v":{"$error":"#N/A"}}]
[null,null,null,null,null,null,null,null,null,null,null,null,null,null,null,null,null,null,null,null,null,null,null,null,null,null,null,null,null,"","","","","","",{"$error":"#VALUE!"},{"$error":"#VALUE!"},{"$error":"#VALUE!"},{"$error":"#VALUE!"},{"$f":"INDEX(fdfortax2,MATCH(0,COUNTIF($AN$3:AN455,fdfortax2),0))","v":{"$error":"#N/A"}}]
[null,null,null,null,null,null,null,null,null,null,null,null,null,null,null,null,null,null,null,null,null,null,null,null,null,null,null,null,null,"","","","","","",{"$error":"#VALUE!"},{"$error":"#VALUE!"},{"$error":"#VALUE!"},{"$error":"#VALUE!"},{"$f":"INDEX(fdfortax2,MATCH(0,COUNTIF($AN$3:AN456,fdfortax2),0))","v":{"$error":"#N/A"}}]
[null,null,null,null,null,null,null,null,null,null,null,null,null,null,null,null,null,null,null,null,null,null,null,null,null,null,null,null,null,"","","","","","",{"$error":"#VALUE!"},{"$error":"#VALUE!"},{"$error":"#VALUE!"},{"$f":"IF(AJ458=1,AK458,IF(ISERROR(AK459),AK458,IF(AK459=\"\",AK458,1)))","v":{"$error":"#VALUE!"}},{"$f":"INDEX(fdfortax2,MATCH(0,COUNTIF($AN$3:AN457,fdfortax2),0))","v":{"$error":"#N/A"}}]
[null,null,null,null,null,null,null,null,null,null,null,null,null,null,null,null,null,null,null,null,null,null,null,null,null,null,null,null,null,"","","","","","",{"$error":"#VALUE!"},{"$error":"#VALUE!"},{"$error":"#VALUE!"},{"$error":"#VALUE!"},{"$f":"INDEX(fdfortax2,MATCH(0,COUNTIF($AN$3:AN458,fdfortax2),0))","v":{"$error":"#N/A"}}]
[null,null,null,null,null,null,null,null,null,null,null,null,null,null,null,null,null,null,null,null,null,null,null,null,null,null,null,null,null,"","","","","","",{"$error":"#VALUE!"},{"$error":"#VALUE!"},{"$error":"#VALUE!"},{"$error":"#VALUE!"},{"$f":"INDEX(fdfortax2,MATCH(0,COUNTIF($AN$3:AN459,fdfortax2),0))","v":{"$error":"#N/A"}}]
[null,null,null,null,null,null,null,null,null,null,null,null,null,null,null,null,null,null,null,null,null,null,null,null,null,null,null,null,null,"","","","","","",{"$error":"#VALUE!"},{"$error":"#VALUE!"},{"$error":"#VALUE!"},{"$error":"#VALUE!"},{"$f":"INDEX(fdfortax2,MATCH(0,COUNTIF($AN$3:AN460,fdfortax2),0))","v":{"$error":"#N/A"}}]
[null,null,null,null,null,null,null,null,null,null,null,null,null,null,null,null,null,null,null,null,null,null,null,null,null,null,null,null,null,"","","","","","",{"$error":"#VALUE!"},{"$error":"#VALUE!"},{"$error":"#VALUE!"},{"$error":"#VALUE!"},{"$f":"INDEX(fdfortax2,MATCH(0,COUNTIF($AN$3:AN461,fdfortax2),0))","v":{"$error":"#N/A"}}]
[null,null,null,null,null,null,null,null,null,null,null,null,null,null,null,null,null,null,null,null,null,null,null,null,null,null,null,null,null,"","","","","","",{"$error":"#VALUE!"},{"$error":"#VALUE!"},{"$error":"#VALUE!"},{"$error":"#VALUE!"},{"$f":"INDEX(fdfortax2,MATCH(0,COUNTIF($AN$3:AN462,fdfortax2),0))","v":{"$error":"#N/A"}}]
[null,null,null,null,null,null,null,null,null,null,null,null,null,null,null,null,null,null,null,null,null,null,null,null,null,null,null,null,null,"","","","","","",{"$error":"#VALUE!"},{"$error":"#VALUE!"},{"$error":"#VALUE!"},{"$error":"#VALUE!"},{"$f":"INDEX(fdfortax2,MATCH(0,COUNTIF($AN$3:AN463,fdfortax2),0))","v":{"$error":"#N/A"}}]
[null,null,null,null,null,null,null,null,null,null,null,null,null,null,null,null,null,null,null,null,null,null,null,null,null,null,null,null,null,"","","","","","",{"$error":"#VALUE!"},{"$error":"#VALUE!"},{"$error":"#VALUE!"},{"$error":"#VALUE!"},{"$f":"INDEX(fdfortax2,MATCH(0,COUNTIF($AN$3:AN464,fdfortax2),0))","v":{"$error":"#N/A"}}]
[null,null,null,null,null,null,null,null,null,null,null,null,null,null,null,null,null,null,null,null,null,null,null,null,null,null,null,null,null,"","","","","","",{"$error":"#VALUE!"},{"$error":"#VALUE!"},{"$error":"#VALUE!"},{"$error":"#VALUE!"},{"$f":"INDEX(fdfortax2,MATCH(0,COUNTIF($AN$3:AN465,fdfortax2),0))","v":{"$error":"#N/A"}}]
[null,null,null,null,null,null,null,null,null,null,null,null,null,null,null,null,null,null,null,null,null,null,null,null,null,null,null,null,null,"","","","","","",{"$error":"#VALUE!"},{"$error":"#VALUE!"},{"$error":"#VALUE!"},{"$error":"#VALUE!"},{"$f":"INDEX(fdfortax2,MATCH(0,COUNTIF($AN$3:AN466,fdfortax2),0))","v":{"$error":"#N/A"}}]
[null,null,null,null,null,null,null,null,null,null,null,null,null,null,null,null,null,null,null,null,null,null,null,null,null,null,null,null,null,"","","","","","",{"$error":"#VALUE!"},{"$error":"#VALUE!"},{"$error":"#VALUE!"},{"$error":"#VALUE!"},{"$f":"INDEX(fdfortax2,MATCH(0,COUNTIF($AN$3:AN467,fdfortax2),0))","v":{"$error":"#N/A"}}]
[null,null,null,null,null,null,null,null,null,null,null,null,null,null,null,null,null,null,null,null,null,null,null,null,null,null,null,null,null,"","","","","","",{"$error":"#VALUE!"},{"$error":"#VALUE!"},{"$error":"#VALUE!"},{"$error":"#VALUE!"},{"$f":"INDEX(fdfortax2,MATCH(0,COUNTIF($AN$3:AN468,fdfortax2),0))","v":{"$error":"#N/A"}}]
[null,null,null,null,null,null,null,null,null,null,null,null,null,null,null,null,null,null,null,null,null,null,null,null,null,null,null,null,null,"","","","","","",{"$error":"#VALUE!"},{"$error":"#VALUE!"},{"$error":"#VALUE!"},{"$error":"#VALUE!"},{"$f":"INDEX(fdfortax2,MATCH(0,COUNTIF($AN$3:AN469,fdfortax2),0))","v":{"$error":"#N/A"}}]
[null,null,null,null,null,null,null,null,null,null,null,null,null,null,null,null,null,null,null,null,null,null,null,null,null,null,null,null,null,"","","","","","",{"$error":"#VALUE!"},{"$error":"#VALUE!"},{"$error":"#VALUE!"},{"$error":"#VALUE!"},{"$f":"INDEX(fdfortax2,MATCH(0,COUNTIF($AN$3:AN470,fdfortax2),0))","v":{"$error":"#N/A"}}]
[null,null,null,null,null,null,null,null,null,null,null,null,null,null,null,null,null,null,null,null,null,null,null,null,null,null,null,null,null,"","","","","","",{"$error":"#VALUE!"},{"$error":"#VALUE!"},{"$error":"#VALUE!"},{"$error":"#VALUE!"},{"$f":"INDEX(fdfortax2,MATCH(0,COUNTIF($AN$3:AN471,fdfortax2),0))","v":{"$error":"#N/A"}}]
[null,null,null,null,null,null,null,null,null,null,null,null,null,null,null,null,null,null,null,null,null,null,null,null,null,null,null,null,null,"","","","","","",{"$error":"#VALUE!"},{"$error":"#VALUE!"},{"$error":"#VALUE!"},{"$error":"#VALUE!"},{"$f":"INDEX(fdfortax2,MATCH(0,COUNTIF($AN$3:AN472,fdfortax2),0))","v":{"$error":"#N/A"}}]
[null,null,null,null,null,null,null,null,null,null,null,null,null,null,null,null,null,null,null,null,null,null,null,null,null,null,null,null,null,"","","","","","",{"$error":"#VALUE!"},{"$error":"#VALUE!"},{"$error":"#VALUE!"},{"$error":"#VALUE!"},{"$f":"INDEX(fdfortax2,MATCH(0,COUNTIF($AN$3:AN473,fdfortax2),0))","v":{"$error":"#N/A"}}]
[null,null,null,null,null,null,null,null,null,null,null,null,null,null,null,null,null,null,null,null,null,null,null,null,null,null,null,null,null,"","","","","","",{"$error":"#VALUE!"},{"$error":"#VALUE!"},{"$error":"#VALUE!"},{"$error":"#VALUE!"},{"$f":"INDEX(fdfortax2,MATCH(0,COUNTIF($AN$3:AN474,fdfortax2),0))","v":{"$error":"#N/A"}}]
[null,null,null,null,null,null,null,null,null,null,null,null,null,null,null,null,null,null,null,null,null,null,null,null,null,null,null,null,null,"","","","","","",{"$error":"#VALUE!"},{"$error":"#VALUE!"},{"$error":"#VALUE!"},{"$error":"#VALUE!"},{"$f":"INDEX(fdfortax2,MATCH(0,COUNTIF($AN$3:AN475,fdfortax2),0))","v":{"$error":"#N/A"}}]
[null,null,null,null,null,null,null,null,null,null,null,null,null,null,null,null,null,null,null,null,null,null,null,null,null,null,null,null,null,"","","","","","",{"$error":"#VALUE!"},{"$error":"#VALUE!"},{"$error":"#VALUE!"},{"$error":"#VALUE!"},{"$f":"INDEX(fdfortax2,MATCH(0,COUNTIF($AN$3:AN476,fdfortax2),0))","v":{"$error":"#N/A"}}]
[null,null,null,null,null,null,null,null,null,null,null,null,null,null,null,null,null,null,null,null,null,null,null,null,null,null,null,null,null,"","","","","","",{"$error":"#VALUE!"},{"$error":"#VALUE!"},{"$error":"#VALUE!"},{"$error":"#VALUE!"},{"$f":"INDEX(fdfortax2,MATCH(0,COUNTIF($AN$3:AN477,fdfortax2),0))","v":{"$error":"#N/A"}}]
[null,null,null,null,null,null,null,null,null,null,null,null,null,null,null,null,null,null,null,null,null,null,null,null,null,null,null,null,null,"","","","","","",{"$error":"#VALUE!"},{"$error":"#VALUE!"},{"$error":"#VALUE!"},{"$error":"#VALUE!"},{"$f":"INDEX(fdfortax2,MATCH(0,COUNTIF($AN$3:AN478,fdfortax2),0))","v":{"$error":"#N/A"}}]
[null,null,null,null,null,null,null,null,null,null,null,null,null,null,null,null,null,null,null,null,null,null,null,null,null,null,null,null,null,"","","","","","",{"$error":"#VALUE!"},{"$error":"#VALUE!"},{"$error":"#VALUE!"},{"$error":"#VALUE!"},{"$f":"INDEX(fdfortax2,MATCH(0,COUNTIF($AN$3:AN479,fdfortax2),0))","v":{"$error":"#N/A"}}]
[null,null,null,null,null,null,null,null,null,null,null,null,null,null,null,null,null,null,null,null,null,null,null,null,null,null,null,null,null,"","","","","","",{"$error":"#VALUE!"},{"$error":"#VALUE!"},{"$error":"#VALUE!"},{"$error":"#VALUE!"},{"$f":"INDEX(fdfortax2,MATCH(0,COUNTIF($AN$3:AN480,fdfortax2),0))","v":{"$error":"#N/A"}}]
[null,null,null,null,null,null,null,null,null,null,null,null,null,null,null,null,null,null,null,null,null,null,null,null,null,null,null,null,null,"","","","","","",{"$error":"#VALUE!"},{"$error":"#VALUE!"},{"$error":"#VALUE!"},{"$error":"#VALUE!"},{"$f":"INDEX(fdfortax2,MATCH(0,COUNTIF($AN$3:AN481,fdfortax2),0))","v":{"$error":"#N/A"}}]
[null,null,null,null,null,null,null,null,null,null,null,null,null,null,null,null,null,null,null,null,null,null,null,null,null,null,null,null,null,"","","","","","",{"$error":"#VALUE!"},{"$error":"#VALUE!"},{"$error":"#VALUE!"},{"$error":"#VALUE!"},{"$f":"INDEX(fdfortax2,MATCH(0,COUNTIF($AN$3:AN482,fdfortax2),0))","v":{"$error":"#N/A"}}]
[null,null,null,null,null,null,null,null,null,null,null,null,null,null,null,null,null,null,null,null,null,null,null,null,null,null,null,null,null,"","","","","","",{"$error":"#VALUE!"},{"$error":"#VALUE!"},{"$error":"#VALUE!"},{"$error":"#VALUE!"},{"$f":"INDEX(fdfortax2,MATCH(0,COUNTIF($AN$3:AN483,fdfortax2),0))","v":{"$error":"#N/A"}}]
[null,null,null,null,null,null,null,null,null,null,null,null,null,null,null,null,null,null,null,null,null,null,null,null,null,null,null,null,null,"","","","","","",{"$error":"#VALUE!"},{"$error":"#VALUE!"},{"$error":"#VALUE!"},{"$error":"#VALUE!"},{"$f":"INDEX(fdfortax2,MATCH(0,COUNTIF($AN$3:AN484,fdfortax2),0))","v":{"$error":"#N/A"}}]
[null,null,null,null,null,null,null,null,null,null,null,null,null,null,null,null,null,null,null,null,null,null,null,null,null,null,null,null,null,"","","","","","",{"$error":"#VALUE!"},{"$error":"#VALUE!"},{"$error":"#VALUE!"},{"$error":"#VALUE!"},{"$f":"INDEX(fdfortax2,MATCH(0,COUNTIF($AN$3:AN485,fdfortax2),0))","v":{"$error":"#N/A"}}]
[null,null,null,null,null,null,null,null,null,null,null,null,null,null,null,null,null,null,null,null,null,null,null,null,null,null,null,null,null,"","","","","","",{"$error":"#VALUE!"},{"$error":"#VALUE!"},{"$error":"#VALUE!"},{"$error":"#VALUE!"},{"$f":"INDEX(fdfortax2,MATCH(0,COUNTIF($AN$3:AN486,fdfortax2),0))","v":{"$error":"#N/A"}}]
[null,null,null,null,null,null,null,null,null,null,null,null,null,null,null,null,null,null,null,null,null,null,null,null,null,null,null,null,null,"","","","","","",{"$error":"#VALUE!"},{"$error":"#VALUE!"},{"$error":"#VALUE!"},{"$error":"#VALUE!"},{"$f":"INDEX(fdfortax2,MATCH(0,COUNTIF($AN$3:AN487,fdfortax2),0))","v":{"$error":"#N/A"}}]
[null,null,null,null,null,null,null,null,null,null,null,null,null,null,null,null,null,null,null,null,null,null,null,null,null,null,null,null,null,"","","","","","",{"$error":"#VALUE!"},{"$error":"#VALUE!"},{"$error":"#VALUE!"},{"$error":"#VALUE!"},{"$f":"INDEX(fdfortax2,MATCH(0,COUNTIF($AN$3:AN488,fdfortax2),0))","v":{"$error":"#N/A"}}]
[null,null,null,null,null,null,null,null,null,null,null,null,null,null,null,null,null,null,null,null,null,null,null,null,null,null,null,null,null,"","","","","","",{"$error":"#VALUE!"},{"$error":"#VALUE!"},{"$error":"#VALUE!"},{"$error":"#VALUE!"},{"$f":"INDEX(fdfortax2,MATCH(0,COUNTIF($AN$3:AN489,fdfortax2),0))","v":{"$error":"#N/A"}}]
[null,null,null,null,null,null,null,null,null,null,null,null,null,null,null,null,null,null,null,null,null,null,null,null,null,null,null,null,null,"","","","","","",{"$error":"#VALUE!"},{"$error":"#VALUE!"},{"$error":"#VALUE!"},{"$error":"#VALUE!"},{"$f":"INDEX(fdfortax2,MATCH(0,COUNTIF($AN$3:AN490,fdfortax2),0))","v":{"$error":"#N/A"}}]
[null,null,null,null,null,null,null,null,null,null,null,null,null,null,null,null,null,null,null,null,null,null,null,null,null,null,null,null,null,"","","","","","",{"$error":"#VALUE!"},{"$error":"#VALUE!"},{"$error":"#VALUE!"},{"$error":"#VALUE!"},{"$f":"INDEX(fdfortax2,MATCH(0,COUNTIF($AN$3:AN491,fdfortax2),0))","v":{"$error":"#N/A"}}]
[null,null,null,null,null,null,null,null,null,null,null,null,null,null,null,null,null,null,null,null,null,null,null,null,null,null,null,null,null,"","","","","","",{"$error":"#VALUE!"},{"$error":"#VALUE!"},{"$error":"#VALUE!"},{"$error":"#VALUE!"},{"$f":"INDEX(fdfortax2,MATCH(0,COUNTIF($AN$3:AN492,fdfortax2),0))","v":{"$error":"#N/A"}}]
[null,null,null,null,null,null,null,null,null,null,null,null,null,null,null,null,null,null,null,null,null,null,null,null,null,null,null,null,null,"","","","","","",{"$error":"#VALUE!"},{"$error":"#VALUE!"},{"$error":"#VALUE!"},{"$error":"#VALUE!"},{"$f":"INDEX(fdfortax2,MATCH(0,COUNTIF($AN$3:AN493,fdfortax2),0))","v":{"$error":"#N/A"}}]
[null,null,null,null,null,null,null,null,null,null,null,null,null,null,null,null,null,null,null,null,null,null,null,null,null,null,null,null,null,"","","","","","",{"$error":"#VALUE!"},{"$error":"#VALUE!"},{"$error":"#VALUE!"},{"$error":"#VALUE!"},{"$f":"INDEX(fdfortax2,MATCH(0,COUNTIF($AN$3:AN494,fdfortax2),0))","v":{"$error":"#N/A"}}]
[null,null,null,null,null,null,null,null,null,null,null,null,null,null,null,null,null,null,null,null,null,null,null,null,null,null,null,null,null,"","","","","","",{"$error":"#VALUE!"},{"$error":"#VALUE!"},{"$error":"#VALUE!"},{"$error":"#VALUE!"},{"$f":"INDEX(fdfortax2,MATCH(0,COUNTIF($AN$3:AN495,fdfortax2),0))","v":{"$error":"#N/A"}}]
[null,null,null,null,null,null,null,null,null,null,null,null,null,null,null,null,null,null,null,null,null,null,null,null,null,null,null,null,null,"","","","","","",{"$error":"#VALUE!"},{"$error":"#VALUE!"},{"$error":"#VALUE!"},{"$error":"#VALUE!"},{"$f":"INDEX(fdfortax2,MATCH(0,COUNTIF($AN$3:AN496,fdfortax2),0))","v":{"$error":"#N/A"}}]
[null,null,null,null,null,null,null,null,null,null,null,null,null,null,null,null,null,null,null,null,null,null,null,null,null,null,null,null,null,"","","","","","",{"$error":"#VALUE!"},{"$error":"#VALUE!"},{"$error":"#VALUE!"},{"$error":"#VALUE!"},{"$f":"INDEX(fdfortax2,MATCH(0,COUNTIF($AN$3:AN497,fdfortax2),0))","v":{"$error":"#N/A"}}]
[null,null,null,null,null,null,null,null,null,null,null,null,null,null,null,null,null,null,null,null,null,null,null,null,null,null,null,null,null,"","","","","","",{"$error":"#VALUE!"},{"$error":"#VALUE!"},{"$error":"#VALUE!"},{"$error":"#VALUE!"},{"$f":"INDEX(fdfortax2,MATCH(0,COUNTIF($AN$3:AN498,fdfortax2),0))","v":{"$error":"#N/A"}}]
[null,null,null,null,null,null,null,null,null,null,null,null,null,null,null,null,null,null,null,null,null,null,null,null,null,null,null,null,null,"","","","","","",{"$error":"#VALUE!"},{"$error":"#VALUE!"},{"$error":"#VALUE!"},{"$error":"#VALUE!"},{"$f":"INDEX(fdfortax2,MATCH(0,COUNTIF($AN$3:AN499,fdfortax2),0))","v":{"$error":"#N/A"}}]
[null,null,null,null,null,null,null,null,null,null,null,null,null,null,null,null,null,null,null,null,null,null,null,null,null,null,null,null,null,"","","","","","",{"$error":"#VALUE!"},{"$error":"#VALUE!"},{"$error":"#VALUE!"},{"$error":"#VALUE!"},{"$f":"INDEX(fdfortax2,MATCH(0,COUNTIF($AN$3:AN500,fdfortax2),0))","v":{"$error":"#N/A"}}]
[null,null,null,null,null,null,null,null,null,null,null,null,null,null,null,null,null,null,null,null,null,null,null,null,null,null,null,null,null,"","","","","","",{"$error":"#VALUE!"},{"$error":"#VALUE!"},{"$error":"#VALUE!"},{"$error":"#VALUE!"},{"$f":"INDEX(fdfortax2,MATCH(0,COUNTIF($AN$3:AN501,fdfortax2),0))","v":{"$error":"#N/A"}}]
[null,null,null,null,null,null,null,null,null,null,null,null,null,null,null,null,null,null,null,null,null,null,null,null,null,null,null,null,null,"","","","","","",{"$error":"#VALUE!"},{"$error":"#VALUE!"},{"$error":"#VALUE!"},{"$error":"#VALUE!"},{"$f":"INDEX(fdfortax2,MATCH(0,COUNTIF($AN$3:AN502,fdfortax2),0))","v":{"$error":"#N/A"}}]
[null,null,null,null,null,null,null,null,null,null,null,null,null,null,null,null,null,null,null,null,null,null,null,null,null,null,null,null,null,"","","","","","",{"$error":"#VALUE!"},{"$error":"#VALUE!"},{"$error":"#VALUE!"},{"$error":"#VALUE!"},{"$f":"INDEX(fdfortax2,MATCH(0,COUNTIF($AN$3:AN503,fdfortax2),0))","v":{"$error":"#N/A"}}]
[null,null,null,null,null,null,null,null,null,null,null,null,null,null,null,null,null,null,null,null,null,null,null,null,null,null,null,null,null,"","","","","","",{"$error":"#VALUE!"},{"$error":"#VALUE!"},{"$error":"#VALUE!"},{"$error":"#VALUE!"},{"$f":"INDEX(fdfortax2,MATCH(0,COUNTIF($AN$3:AN504,fdfortax2),0))","v":{"$error":"#N/A"}}]
[null,null,null,null,null,null,null,null,null,null,null,null,null,null,null,null,null,null,null,null,null,null,null,null,null,null,null,null,null,"","","","","","",{"$error":"#VALUE!"},{"$error":"#VALUE!"},{"$error":"#VALUE!"},{"$error":"#VALUE!"},{"$f":"INDEX(fdfortax2,MATCH(0,COUNTIF($AN$3:AN505,fdfortax2),0))","v":{"$error":"#N/A"}}]
[null,null,null,null,null,null,null,null,null,null,null,null,null,null,null,null,null,null,null,null,null,null,null,null,null,null,null,null,null,"","","","","","",{"$error":"#VALUE!"},{"$error":"#VALUE!"},{"$error":"#VALUE!"},{"$error":"#VALUE!"},{"$f":"INDEX(fdfortax2,MATCH(0,COUNTIF($AN$3:AN506,fdfortax2),0))","v":{"$error":"#N/A"}}]
[null,null,null,null,null,null,null,null,null,null,null,null,null,null,null,null,null,null,null,null,null,null,null,null,null,null,null,null,null,"","","","","","",{"$error":"#VALUE!"},{"$error":"#VALUE!"},{"$error":"#VALUE!"},{"$error":"#VALUE!"},{"$f":"INDEX(fdfortax2,MATCH(0,COUNTIF($AN$3:AN507,fdfortax2),0))","v":{"$error":"#N/A"}}]
[null,null,null,null,null,null,null,null,null,null,null,null,null,null,null,null,null,null,null,null,null,null,null,null,null,null,null,null,null,"","","","","","",{"$error":"#VALUE!"},{"$error":"#VALUE!"},{"$error":"#VALUE!"},{"$error":"#VALUE!"},{"$f":"INDEX(fdfortax2,MATCH(0,COUNTIF($AN$3:AN508,fdfortax2),0))","v":{"$error":"#N/A"}}]
[null,null,null,null,null,null,null,null,null,null,null,null,null,null,null,null,null,null,null,null,null,null,null,null,null,null,null,null,null,"","","","","","",{"$error":"#VALUE!"},{"$error":"#VALUE!"},{"$error":"#VALUE!"},{"$error":"#VALUE!"},{"$f":"INDEX(fdfortax2,MATCH(0,COUNTIF($AN$3:AN509,fdfortax2),0))","v":{"$error":"#N/A"}}]
[null,null,null,null,null,null,null,null,null,null,null,null,null,null,null,null,null,null,null,null,null,null,null,null,null,null,null,null,null,"","","","","","",{"$error":"#VALUE!"},{"$error":"#VALUE!"},{"$error":"#VALUE!"},{"$error":"#VALUE!"},{"$f":"INDEX(fdfortax2,MATCH(0,COUNTIF($AN$3:AN510,fdfortax2),0))","v":{"$error":"#N/A"}}]
[null,null,null,null,null,null,null,null,null,null,null,null,null,null,null,null,null,null,null,null,null,null,null,null,null,null,null,null,null,"","","","","","",{"$error":"#VALUE!"},{"$error":"#VALUE!"},{"$error":"#VALUE!"},{"$error":"#VALUE!"},{"$f":"INDEX(fdfortax2,MATCH(0,COUNTIF($AN$3:AN511,fdfortax2),0))","v":{"$error":"#N/A"}}]
[null,null,null,null,null,null,null,null,null,null,null,null,null,null,null,null,null,null,null,null,null,null,null,null,null,null,null,null,null,"","","","","","",{"$error":"#VALUE!"},{"$error":"#VALUE!"},{"$error":"#VALUE!"},{"$error":"#VALUE!"},{"$f":"INDEX(fdfortax2,MATCH(0,COUNTIF($AN$3:AN512,fdfortax2),0))","v":{"$error":"#N/A"}}]
[null,null,null,null,null,null,null,null,null,null,null,null,null,null,null,null,null,null,null,null,null,null,null,null,null,null,null,null,null,"","","","","","",{"$error":"#VALUE!"},{"$error":"#VALUE!"},{"$error":"#VALUE!"},{"$error":"#VALUE!"},{"$f":"INDEX(fdfortax2,MATCH(0,COUNTIF($AN$3:AN513,fdfortax2),0))","v":{"$error":"#N/A"}}]
[null,null,null,null,null,null,null,null,null,null,null,null,null,null,null,null,null,null,null,null,null,null,null,null,null,null,null,null,null,"","","","","","",{"$error":"#VALUE!"},{"$error":"#VALUE!"},{"$error":"#VALUE!"},{"$error":"#VALUE!"},{"$f":"INDEX(fdfortax2,MATCH(0,COUNTIF($AN$3:AN514,fdfortax2),0))","v":{"$error":"#N/A"}}]
[null,null,null,null,null,null,null,null,null,null,null,null,null,null,null,null,null,null,null,null,null,null,null,null,null,null,null,null,null,"","","",{"$f":"IF(AD516=\"\",\"\",AF516*(1-IF(taxrd=10%,10.3%,IF(taxrd=20%,20.6%,IF(taxrd=30%,30.9%)))))","v":""},{"$f":"IF(AD516=\"\",\"\",AH515+AG516+L516)","v":""},"",{"$error":"#VALUE!"},{"$error":"#VALUE!"},{"$f":"IF(AJ516=1,AK516,IF(ISERROR(AK517),AK516,IF(AK517=\"\",AK516,\"\")))","v":{"$error":"#VALUE!"}},{"$error":"#VALUE!"},{"$f":"INDEX(fdfortax2,MATCH(0,COUNTIF($AN$3:AN515,fdfortax2),0))","v":{"$error":"#N/A"}}]
[null,null,null,null,null,null,null,null,null,null,null,null,null,null,null,null,null,null,null,null,null,null,null,null,null,null,null,null,null,{"$f":"IF(AD516<rdura,AD516+1,\"\")","v":""},{"$f":"IF(AD517=\"\",\"\",AE516*(1+raterd/factor1)^(factor1*1/ydays))","v":""},"","","",{"$f":"IF(AD517=\"\",\"\",AF517-AG517)","v":""},{"$f":"IF(INT(AD517/30)-(AD517/30)=0,1,0)","v":{"$error":"#VALUE!"}},{"$f":"IF(AJ516=1,AI517,AK516+AI517)","v":{"$error":"#VALUE!"}},{"$error":"#VALUE!"},{"$error":"#VALUE!"},{"$f":"INDEX(fdfortax2,MATCH(0,COUNTIF($AN$3:AN516,fdfortax2),0))","v":{"$error":"#N/A"}}]
[null,null,null,null,null,null,null,null,null,null,null,null,null,null,null,null,null,null,null,null,null,null,null,null,null,null,null,null,null,"","",{"$f":"IF(AD518=\"\",\"\",AE518-AE517)","v":""},"","","",{"$error":"#VALUE!"},{"$error":"#VALUE!"},{"$error":"#VALUE!"},{"$error":"#VALUE!"},{"$f":"INDEX(fdfortax2,MATCH(0,COUNTIF($AN$3:AN517,fdfortax2),0))","v":{"$error":"#N/A"}}]
[null,null,null,null,null,null,null,null,null,null,null,null,null,null,null,null,null,null,null,null,null,null,null,null,null,null,null,null,null,"","","","","","",{"$error":"#VALUE!"},{"$error":"#VALUE!"},{"$error":"#VALUE!"},{"$error":"#VALUE!"},{"$f":"INDEX(fdfortax2,MATCH(0,COUNTIF($AN$3:AN518,fdfortax2),0))","v":{"$error":"#N/A"}}]
[null,null,null,null,null,null,null,null,null,null,null,null,null,null,null,null,null,null,null,null,null,null,null,null,null,null,null,null,null,"","","","","","",{"$error":"#VALUE!"},{"$error":"#VALUE!"},{"$error":"#VALUE!"},{"$error":"#VALUE!"},{"$f":"INDEX(fdfortax2,MATCH(0,COUNTIF($AN$3:AN519,fdfortax2),0))","v":{"$error":"#N/A"}}]
[null,null,null,null,null,null,null,null,null,null,null,null,null,null,null,null,null,null,null,null,null,null,null,null,null,null,null,null,null,"","","","","","",{"$error":"#VALUE!"},{"$error":"#VALUE!"},{"$error":"#VALUE!"},{"$error":"#VALUE!"},{"$f":"INDEX(fdfortax2,MATCH(0,COUNTIF($AN$3:AN520,fdfortax2),0))","v":{"$error":"#N/A"}}]
[null,null,null,null,null,null,null,null,null,null,null,null,null,null,null,null,null,null,null,null,null,null,null,null,null,null,null,null,null,"","","","","","",{"$error":"#VALUE!"},{"$error":"#VALUE!"},{"$error":"#VALUE!"},{"$f":"IF(AJ522=1,AK522,IF(ISERROR(AK523),AK522,IF(AK523=\"\",AK522,1)))","v":{"$error":"#VALUE!"}},{"$f":"INDEX(fdfortax2,MATCH(0,COUNTIF($AN$3:AN521,fdfortax2),0))","v":{"$error":"#N/A"}}]
[null,null,null,null,null,null,null,null,null,null,null,null,null,null,null,null,null,null,null,null,null,null,null,null,null,null,null,null,null,"","","","","","",{"$error":"#VALUE!"},{"$error":"#VALUE!"},{"$error":"#VALUE!"},{"$error":"#VALUE!"},{"$f":"INDEX(fdfortax2,MATCH(0,COUNTIF($AN$3:AN522,fdfortax2),0))","v":{"$error":"#N/A"}}]
[null,null,null,null,null,null,null,null,null,null,null,null,null,null,null,null,null,null,null,null,null,null,null,null,null,null,null,null,null,"","","","","","",{"$error":"#VALUE!"},{"$error":"#VALUE!"},{"$error":"#VALUE!"},{"$error":"#VALUE!"},{"$f":"INDEX(fdfortax2,MATCH(0,COUNTIF($AN$3:AN523,fdfortax2),0))","v":{"$error":"#N/A"}}]
[null,null,null,null,null,null,null,null,null,null,null,null,null,null,null,null,null,null,null,null,null,null,null,null,null,null,null,null,null,"","","","","","",{"$error":"#VALUE!"},{"$error":"#VALUE!"},{"$error":"#VALUE!"},{"$error":"#VALUE!"},{"$f":"INDEX(fdfortax2,MATCH(0,COUNTIF($AN$3:AN524,fdfortax2),0))","v":{"$error":"#N/A"}}]
[null,null,null,null,null,null,null,null,null,null,null,null,null,null,null,null,null,null,null,null,null,null,null,null,null,null,null,null,null,"","","","","","",{"$error":"#VALUE!"},{"$error":"#VALUE!"},{"$error":"#VALUE!"},{"$error":"#VALUE!"},{"$f":"INDEX(fdfortax2,MATCH(0,COUNTIF($AN$3:AN525,fdfortax2),0))","v":{"$error":"#N/A"}}]
[null,null,null,null,null,null,null,null,null,null,null,null,null,null,null,null,null,null,null,null,null,null,null,null,null,null,null,null,null,"","","","","","",{"$error":"#VALUE!"},{"$error":"#VALUE!"},{"$error":"#VALUE!"},{"$error":"#VALUE!"},{"$f":"INDEX(fdfortax2,MATCH(0,COUNTIF($AN$3:AN526,fdfortax2),0))","v":{"$error":"#N/A"}}]
[null,null,null,null,null,null,null,null,null,null,null,null,null,null,null,null,null,null,null,null,null,null,null,null,null,null,null,null,null,"","","","","","",{"$error":"#VALUE!"},{"$error":"#VALUE!"},{"$error":"#VALUE!"},{"$error":"#VALUE!"},{"$f":"INDEX(fdfortax2,MATCH(0,COUNTIF($AN$3:AN527,fdfortax2),0))","v":{"$error":"#N/A"}}]
[null,null,null,null,null,null,null,null,null,null,null,null,null,null,null,null,null,null,null,null,null,null,null,null,null,null,null,null,null,"","","","","","",{"$error":"#VALUE!"},{"$error":"#VALUE!"},{"$error":"#VALUE!"},{"$error":"#VALUE!"},{"$f":"INDEX(fdfortax2,MATCH(0,COUNTIF($AN$3:AN528,fdfortax2),0))","v":{"$error":"#N/A"}}]
[null,null,null,null,null,null,null,null,null,null,null,null,null,null,null,null,null,null,null,null,null,null,null,null,null,null,null,null,null,"","","","","","",{"$error":"#VALUE!"},{"$error":"#VALUE!"},{"$error":"#VALUE!"},{"$error":"#VALUE!"},{"$f":"INDEX(fdfortax2,MATCH(0,COUNTIF($AN$3:AN529,fdfortax2),0))","v":{"$error":"#N/A"}}]
[null,null,null,null,null,null,null,null,null,null,null,null,null,null,null,null,null,null,null,null,null,null,null,null,null,null,null,null,null,"","","","","","",{"$error":"#VALUE!"},{"$error":"#VALUE!"},{"$error":"#VALUE!"},{"$error":"#VALUE!"},{"$f":"INDEX(fdfortax2,MATCH(0,COUNTIF($AN$3:AN530,fdfortax2),0))","v":{"$error":"#N/A"}}]
[null,null,null,null,null,null,null,null,null,null,null,null,null,null,null,null,null,null,null,null,null,null,null,null,null,null,null,null,null,"","","","","","",{"$error":"#VALUE!"},{"$error":"#VALUE!"},{"$error":"#VALUE!"},{"$error":"#VALUE!"},{"$f":"INDEX(fdfortax2,MATCH(0,COUNTIF($AN$3:AN531,fdfortax2),0))","v":{"$error":"#N/A"}}]
[null,null,null,null,null,null,null,null,null,null,null,null,null,null,null,null,null,null,null,null,null,null,null,null,null,null,null,null,null,"","","","","","",{"$error":"#VALUE!"},{"$error":"#VALUE!"},{"$error":"#VALUE!"},{"$error":"#VALUE!"},{"$f":"INDEX(fdfortax2,MATCH(0,COUNTIF($AN$3:AN532,fdfortax2),0))","v":{"$error":"#N/A"}}]
[null,null,null,null,null,null,null,null,null,null,null,null,null,null,null,null,null,null,null,null,null,null,null,null,null,null,null,null,null,"","","","","","",{"$error":"#VALUE!"},{"$error":"#VALUE!"},{"$error":"#VALUE!"},{"$error":"#VALUE!"},{"$f":"INDEX(fdfortax2,MATCH(0,COUNTIF($AN$3:AN533,fdfortax2),0))","v":{"$error":"#N/A"}}]
[null,null,null,null,null,null,null,null,null,null,null,null,null,null,null,null,null,null,null,null,null,null,null,null,null,null,null,null,null,"","","","","","",{"$error":"#VALUE!"},{"$error":"#VALUE!"},{"$error":"#VALUE!"},{"$error":"#VALUE!"},{"$f":"INDEX(fdfortax2,MATCH(0,COUNTIF($AN$3:AN534,fdfortax2),0))","v":{"$error":"#N/A"}}]
[null,null,null,null,null,null,null,null,null,null,null,null,null,null,null,null,null,null,null,null,null,null,null,null,null,null,null,null,null,"","","","","","",{"$error":"#VALUE!"},{"$error":"#VALUE!"},{"$error":"#VALUE!"},{"$error":"#VALUE!"},{"$f":"INDEX(fdfortax2,MATCH(0,COUNTIF($AN$3:AN535,fdfortax2),0))","v":{"$error":"#N/A"}}]
[null,null,null,null,null,null,null,null,null,null,null,null,null,null,null,null,null,null,null,null,null,null,null,null,null,null,null,null,null,"","","","","","",{"$error":"#VALUE!"},{"$error":"#VALUE!"},{"$error":"#VALUE!"},{"$error":"#VALUE!"},{"$f":"INDEX(fdfortax2,MATCH(0,COUNTIF($AN$3:AN536,fdfortax2),0))","v":{"$error":"#N/A"}}]
[null,null,null,null,null,null,null,null,null,null,null,null,null,null,null,null,null,null,null,null,null,null,null,null,null,null,null,null,null,"","","","","","",{"$error":"#VALUE!"},{"$error":"#VALUE!"},{"$error":"#VALUE!"},{"$error":"#VALUE!"},{"$f":"INDEX(fdfortax2,MATCH(0,COUNTIF($AN$3:AN537,fdfortax2),0))","v":{"$error":"#N/A"}}]
[null,null,null,null,null,null,null,null,null,null,null,null,null,null,null,null,null,null,null,null,null,null,null,null,null,null,null,null,null,"","","","","","",{"$error":"#VALUE!"},{"$error":"#VALUE!"},{"$error":"#VALUE!"},{"$error":"#VALUE!"},{"$f":"INDEX(fdfortax2,MATCH(0,COUNTIF($AN$3:AN538,fdfortax2),0))","v":{"$error":"#N/A"}}]
[null,null,null,null,null,null,null,null,null,null,null,null,null,null,null,null,null,null,null,null,null,null,null,null,null,null,null,null,null,"","","","","","",{"$error":"#VALUE!"},{"$error":"#VALUE!"},{"$error":"#VALUE!"},{"$error":"#VALUE!"},{"$f":"INDEX(fdfortax2,MATCH(0,COUNTIF($AN$3:AN539,fdfortax2),0))","v":{"$error":"#N/A"}}]
[null,null,null,null,null,null,null,null,null,null,null,null,null,null,null,null,null,null,null,null,null,null,null,null,null,null,null,null,null,"","","","","","",{"$error":"#VALUE!"},{"$error":"#VALUE!"},{"$error":"#VALUE!"},{"$error":"#VALUE!"},{"$f":"INDEX(fdfortax2,MATCH(0,COUNTIF($AN$3:AN540,fdfortax2),0))","v":{"$error":"#N/A"}}]
[null,null,null,null,null,null,null,null,null,null,null,null,null,null,null,null,null,null,null,null,null,null,null,null,null,null,null,null,null,"","","","","","",{"$error":"#VALUE!"},{"$error":"#VALUE!"},{"$error":"#VALUE!"},{"$error":"#VALUE!"},{"$f":"INDEX(fdfortax2,MATCH(0,COUNTIF($AN$3:AN541,fdfortax2),0))","v":{"$error":"#N/A"}}]
[null,null,null,null,null,null,null,null,null,null,null,null,null,null,null,null,null,null,null,null,null,null,null,null,null,null,null,null,null,"","","","","","",{"$error":"#VALUE!"},{"$error":"#VALUE!"},{"$error":"#VALUE!"},{"$error":"#VALUE!"},{"$f":"INDEX(fdfortax2,MATCH(0,COUNTIF($AN$3:AN542,fdfortax2),0))","v":{"$error":"#N/A"}}]
[null,null,null,null,null,null,null,null,null,null,null,null,null,null,null,null,null,null,null,null,null,null,null,null,null,null,null,null,null,"","","","","","",{"$error":"#VALUE!"},{"$error":"#VALUE!"},{"$error":"#VALUE!"},{"$error":"#VALUE!"},{"$f":"INDEX(fdfortax2,MATCH(0,COUNTIF($AN$3:AN543,fdfortax2),0))","v":{"$error":"#N/A"}}]
[null,null,null,null,null,null,null,null,null,null,null,null,null,null,null,null,null,null,null,null,null,null,null,null,null,null,null,null,null,"","","","","","",{"$error":"#VALUE!"},{"$error":"#VALUE!"},{"$error":"#VALUE!"},{"$error":"#VALUE!"},{"$f":"INDEX(fdfortax2,MATCH(0,COUNTIF($AN$3:AN544,fdfortax2),0))","v":{"$error":"#N/A"}}]
[null,null,null,null,null,null,null,null,null,null,null,null,null,null,null,null,null,null,null,null,null,null,null,null,null,null,null,null,null,"","","","","","",{"$error":"#VALUE!"},{"$error":"#VALUE!"},{"$error":"#VALUE!"},{"$error":"#VALUE!"},{"$f":"INDEX(fdfortax2,MATCH(0,COUNTIF($AN$3:AN545,fdfortax2),0))","v":{"$error":"#N/A"}}]
[null,null,null,null,null,null,null,null,null,null,null,null,null,null,null,null,null,null,null,null,null,null,null,null,null,null,null,null,null,"","","","","","",{"$error":"#VALUE!"},{"$error":"#VALUE!"},{"$error":"#VALUE!"},{"$error":"#VALUE!"},{"$f":"INDEX(fdfortax2,MATCH(0,COUNTIF($AN$3:AN546,fdfortax2),0))","v":{"$error":"#N/A"}}]
[null,null,null,null,null,null,null,null,null,null,null,null,null,null,null,null,null,null,null,null,null,null,null,null,null,null,null,null,null,"","","","","","",{"$error":"#VALUE!"},{"$error":"#VALUE!"},{"$error":"#VALUE!"},{"$error":"#VALUE!"},{"$f":"INDEX(fdfortax2,MATCH(0,COUNTIF($AN$3:AN547,fdfortax2),0))","v":{"$error":"#N/A"}}]
[null,null,null,null,null,null,null,null,null,null,null,null,null,null,null,null,null,null,null,null,null,null,null,null,null,null,null,null,null,"","","","","","",{"$error":"#VALUE!"},{"$error":"#VALUE!"},{"$error":"#VALUE!"},{"$error":"#VALUE!"},{"$f":"INDEX(fdfortax2,MATCH(0,COUNTIF($AN$3:AN548,fdfortax2),0))","v":{"$error":"#N/A"}}]
[null,null,null,null,null,null,null,null,null,null,null,null,null,null,null,null,null,null,null,null,null,null,null,null,null,null,null,null,null,"","","","","","",{"$error":"#VALUE!"},{"$error":"#VALUE!"},{"$error":"#VALUE!"},{"$error":"#VALUE!"},{"$f":"INDEX(fdfortax2,MATCH(0,COUNTIF($AN$3:AN549,fdfortax2),0))","v":{"$error":"#N/A"}}]
[null,null,null,null,null,null,null,null,null,null,null,null,null,null,null,null,null,null,null,null,null,null,null,null,null,null,null,null,null,"","","","","","",{"$error":"#VALUE!"},{"$error":"#VALUE!"},{"$error":"#VALUE!"},{"$error":"#VALUE!"},{"$f":"INDEX(fdfortax2,MATCH(0,COUNTIF($AN$3:AN550,fdfortax2),0))","v":{"$error":"#N/A"}}]
[null,null,null,null,null,null,null,null,null,null,null,null,null,null,null,null,null,null,null,null,null,null,null,null,null,null,null,null,null,"","","","","","",{"$error":"#VALUE!"},{"$error":"#VALUE!"},{"$error":"#VALUE!"},{"$error":"#VALUE!"},{"$f":"INDEX(fdfortax2,MATCH(0,COUNTIF($AN$3:AN551,fdfortax2),0))","v":{"$error":"#N/A"}}]
[null,null,null,null,null,null,null,null,null,null,null,null,null,null,null,null,null,null,null,null,null,null,null,null,null,null,null,null,null,"","","","","","",{"$error":"#VALUE!"},{"$error":"#VALUE!"},{"$error":"#VALUE!"},{"$error":"#VALUE!"},{"$f":"INDEX(fdfortax2,MATCH(0,COUNTIF($AN$3:AN552,fdfortax2),0))","v":{"$error":"#N/A"}}]
[null,null,null,null,null,null,null,null,null,null,null,null,null,null,null,null,null,null,null,null,null,null,null,null,null,null,null,null,null,"","","","","","",{"$error":"#VALUE!"},{"$error":"#VALUE!"},{"$error":"#VALUE!"},{"$error":"#VALUE!"},{"$f":"INDEX(fdfortax2,MATCH(0,COUNTIF($AN$3:AN553,fdfortax2),0))","v":{"$error":"#N/A"}}]
[null,null,null,null,null,null,null,null,null,null,null,null,null,null,null,null,null,null,null,null,null,null,null,null,null,null,null,null,null,"","","","","","",{"$error":"#VALUE!"},{"$error":"#VALUE!"},{"$error":"#VALUE!"},{"$error":"#VALUE!"},{"$f":"INDEX(fdfortax2,MATCH(0,COUNTIF($AN$3:AN554,fdfortax2),0))","v":{"$error":"#N/A"}}]
[null,null,null,null,null,null,null,null,null,null,null,null,null,null,null,null,null,null,null,null,null,null,null,null,null,null,null,null,null,"","","","","","",{"$error":"#VALUE!"},{"$error":"#VALUE!"},{"$error":"#VALUE!"},{"$error":"#VALUE!"},{"$f":"INDEX(fdfortax2,MATCH(0,COUNTIF($AN$3:AN555,fdfortax2),0))","v":{"$error":"#N/A"}}]
[null,null,null,null,null,null,null,null,null,null,null,null,null,null,null,null,null,null,null,null,null,null,null,null,null,null,null,null,null,"","","","","","",{"$error":"#VALUE!"},{"$error":"#VALUE!"},{"$error":"#VALUE!"},{"$error":"#VALUE!"},{"$f":"INDEX(fdfortax2,MATCH(0,COUNTIF($AN$3:AN556,fdfortax2),0))","v":{"$error":"#N/A"}}]
[null,null,null,null,null,null,null,null,null,null,null,null,null,null,null,null,null,null,null,null,null,null,null,null,null,null,null,null,null,"","","","","","",{"$error":"#VALUE!"},{"$error":"#VALUE!"},{"$error":"#VALUE!"},{"$error":"#VALUE!"},{"$f":"INDEX(fdfortax2,MATCH(0,COUNTIF($AN$3:AN557,fdfortax2),0))","v":{"$error":"#N/A"}}]
[null,null,null,null,null,null,null,null,null,null,null,null,null,null,null,null,null,null,null,null,null,null,null,null,null,null,null,null,null,"","","","","","",{"$error":"#VALUE!"},{"$error":"#VALUE!"},{"$error":"#VALUE!"},{"$error":"#VALUE!"},{"$f":"INDEX(fdfortax2,MATCH(0,COUNTIF($AN$3:AN558,fdfortax2),0))","v":{"$error":"#N/A"}}]
[null,null,null,null,null,null,null,null,null,null,null,null,null,null,null,null,null,null,null,null,null,null,null,null,null,null,null,null,null,"","","","","","",{"$error":"#VALUE!"},{"$error":"#VALUE!"},{"$error":"#VALUE!"},{"$error":"#VALUE!"},{"$f":"INDEX(fdfortax2,MATCH(0,COUNTIF($AN$3:AN559,fdfortax2),0))","v":{"$error":"#N/A"}}]
[null,null,null,null,null,null,null,null,null,null,null,null,null,null,null,null,null,null,null,null,null,null,null,null,null,null,null,null,null,"","","","","","",{"$error":"#VALUE!"},{"$error":"#VALUE!"},{"$error":"#VALUE!"},{"$error":"#VALUE!"},{"$f":"INDEX(fdfortax2,MATCH(0,COUNTIF($AN$3:AN560,fdfortax2),0))","v":{"$error":"#N/A"}}]
[null,null,null,null,null,null,null,null,null,null,null,null,null,null,null,null,null,null,null,null,null,null,null,null,null,null,null,null,null,"","","","","","",{"$error":"#VALUE!"},{"$error":"#VALUE!"},{"$error":"#VALUE!"},{"$error":"#VALUE!"},{"$f":"INDEX(fdfortax2,MATCH(0,COUNTIF($AN$3:AN561,fdfortax2),0))","v":{"$error":"#N/A"}}]
[null,null,null,null,null,null,null,null,null,null,null,null,null,null,null,null,null,null,null,null,null,null,null,null,null,null,null,null,null,"","","","","","",{"$error":"#VALUE!"},{"$error":"#VALUE!"},{"$error":"#VALUE!"},{"$error":"#VALUE!"},{"$f":"INDEX(fdfortax2,MATCH(0,COUNTIF($AN$3:AN562,fdfortax2),0))","v":{"$error":"#N/A"}}]
[null,null,null,null,null,null,null,null,null,null,null,null,null,null,null,null,null,null,null,null,null,null,null,null,null,null,null,null,null,"","","","","","",{"$error":"#VALUE!"},{"$error":"#VALUE!"},{"$error":"#VALUE!"},{"$error":"#VALUE!"},{"$f":"INDEX(fdfortax2,MATCH(0,COUNTIF($AN$3:AN563,fdfortax2),0))","v":{"$error":"#N/A"}}]
[null,null,null,null,null,null,null,null,null,null,null,null,null,null,null,null,null,null,null,null,null,null,null,null,null,null,null,null,null,"","","","","","",{"$error":"#VALUE!"},{"$error":"#VALUE!"},{"$error":"#VALUE!"},{"$error":"#VALUE!"},{"$f":"INDEX(fdfortax2,MATCH(0,COUNTIF($AN$3:AN564,fdfortax2),0))","v":{"$error":"#N/A"}}]
[null,null,null,null,null,null,null,null,null,null,null,null,null,null,null,null,null,null,null,null,null,null,null,null,null,null,null,null,null,"","","","","","",{"$error":"#VALUE!"},{"$error":"#VALUE!"},{"$error":"#VALUE!"},{"$error":"#VALUE!"},{"$f":"INDEX(fdfortax2,MATCH(0,COUNTIF($AN$3:AN565,fdfortax2),0))","v":{"$error":"#N/A"}}]
[null,null,null,null,null,null,null,null,null,null,null,null,null,null,null,null,null,null,null,null,null,null,null,null,null,null,null,null,null,"","","","","","",{"$error":"#VALUE!"},{"$error":"#VALUE!"},{"$error":"#VALUE!"},{"$error":"#VALUE!"},{"$f":"INDEX(fdfortax2,MATCH(0,COUNTIF($AN$3:AN566,fdfortax2),0))","v":{"$error":"#N/A"}}]
[null,null,null,null,null,null,null,null,null,null,null,null,null,null,null,null,null,null,null,null,null,null,null,null,null,null,null,null,null,"","","","","","",{"$error":"#VALUE!"},{"$error":"#VALUE!"},{"$error":"#VALUE!"},{"$error":"#VALUE!"},{"$f":"INDEX(fdfortax2,MATCH(0,COUNTIF($AN$3:AN567,fdfortax2),0))","v":{"$error":"#N/A"}}]
[null,null,null,null,null,null,null,null,null,null,null,null,null,null,null,null,null,null,null,null,null,null,null,null,null,null,null,null,null,"","","","","","",{"$error":"#VALUE!"},{"$error":"#VALUE!"},{"$error":"#VALUE!"},{"$error":"#VALUE!"},{"$f":"INDEX(fdfortax2,MATCH(0,COUNTIF($AN$3:AN568,fdfortax2),0))","v":{"$error":"#N/A"}}]
[null,null,null,null,null,null,null,null,null,null,null,null,null,null,null,null,null,null,null,null,null,null,null,null,null,null,null,null,null,"","","","","","",{"$error":"#VALUE!"},{"$error":"#VALUE!"},{"$error":"#VALUE!"},{"$error":"#VALUE!"},{"$f":"INDEX(fdfortax2,MATCH(0,COUNTIF($AN$3:AN569,fdfortax2),0))","v":{"$error":"#N/A"}}]
[null,null,null,null,null,null,null,null,null,null,null,null,null,null,null,null,null,null,null,null,null,null,null,null,null,null,null,null,null,"","","","","","",{"$error":"#VALUE!"},{"$error":"#VALUE!"},{"$error":"#VALUE!"},{"$error":"#VALUE!"},{"$f":"INDEX(fdfortax2,MATCH(0,COUNTIF($AN$3:AN570,fdfortax2),0))","v":{"$error":"#N/A"}}]
[null,null,null,null,null,null,null,null,null,null,null,null,null,null,null,null,null,null,null,null,null,null,null,null,null,null,null,null,null,"","","","","","",{"$error":"#VALUE!"},{"$error":"#VALUE!"},{"$error":"#VALUE!"},{"$error":"#VALUE!"},{"$f":"INDEX(fdfortax2,MATCH(0,COUNTIF($AN$3:AN571,fdfortax2),0))","v":{"$error":"#N/A"}}]
[null,null,null,null,null,null,null,null,null,null,null,null,null,null,null,null,null,null,null,null,null,null,null,null,null,null,null,null,null,"","","","","","",{"$error":"#VALUE!"},{"$error":"#VALUE!"},{"$error":"#VALUE!"},{"$error":"#VALUE!"},{"$f":"INDEX(fdfortax2,MATCH(0,COUNTIF($AN$3:AN572,fdfortax2),0))","v":{"$error":"#N/A"}}]
[null,null,null,null,null,null,null,null,null,null,null,null,null,null,null,null,null,null,null,null,null,null,null,null,null,null,null,null,null,"","","","","","",{"$error":"#VALUE!"},{"$error":"#VALUE!"},{"$error":"#VALUE!"},{"$error":"#VALUE!"},{"$f":"INDEX(fdfortax2,MATCH(0,COUNTIF($AN$3:AN573,fdfortax2),0))","v":{"$error":"#N/A"}}]
[null,null,null,null,null,null,null,null,null,null,null,null,null,null,null,null,null,null,null,null,null,null,null,null,null,null,null,null,null,"","","","","","",{"$error":"#VALUE!"},{"$error":"#VALUE!"},{"$error":"#VALUE!"},{"$error":"#VALUE!"},{"$f":"INDEX(fdfortax2,MATCH(0,COUNTIF($AN$3:AN574,fdfortax2),0))","v":{"$error":"#N/A"}}]
[null,null,null,null,null,null,null,null,null,null,null,null,null,null,null,null,null,null,null,null,null,null,null,null,null,null,null,null,null,"","","","","","",{"$error":"#VALUE!"},{"$error":"#VALUE!"},{"$error":"#VALUE!"},{"$error":"#VALUE!"},{"$f":"INDEX(fdfortax2,MATCH(0,COUNTIF($AN$3:AN575,fdfortax2),0))","v":{"$error":"#N/A"}}]
[null,null,null,null,null,null,null,null,null,null,null,null,null,null,null,null,null,null,null,null,null,null,null,null,null,null,null,null,null,"","","","","","",{"$error":"#VALUE!"},{"$error":"#VALUE!"},{"$error":"#VALUE!"},{"$error":"#VALUE!"},{"$f":"INDEX(fdfortax2,MATCH(0,COUNTIF($AN$3:AN576,fdfortax2),0))","v":{"$error":"#N/A"}}]
[null,null,null,null,null,null,null,null,null,null,null,null,null,null,null,null,null,null,null,null,null,null,null,null,null,null,null,null,null,"","","","","","",{"$error":"#VALUE!"},{"$error":"#VALUE!"},{"$error":"#VALUE!"},{"$error":"#VALUE!"},{"$f":"INDEX(fdfortax2,MATCH(0,COUNTIF($AN$3:AN577,fdfortax2),0))","v":{"$error":"#N/A"}}]
[null,null,null,null,null,null,null,null,null,null,null,null,null,null,null,null,null,null,null,null,null,null,null,null,null,null,null,null,null,"","","","","","",{"$error":"#VALUE!"},{"$error":"#VALUE!"},{"$error":"#VALUE!"},{"$error":"#VALUE!"},{"$f":"INDEX(fdfortax2,MATCH(0,COUNTIF($AN$3:AN578,fdfortax2),0))","v":{"$error":"#N/A"}}]
[null,null,null,null,null,null,null,null,null,null,null,null,null,null,null,null,null,null,null,null,null,null,null,null,null,null,null,null,null,"","","",{"$f":"IF(AD580=\"\",\"\",AF580*(1-IF(taxrd=10%,10.3%,IF(taxrd=20%,20.6%,IF(taxrd=30%,30.9%)))))","v":""},{"$f":"IF(AD580=\"\",\"\",AH579+AG580+L580)","v":""},"",{"$error":"#VALUE!"},{"$error":"#VALUE!"},{"$f":"IF(AJ580=1,AK580,IF(ISERROR(AK581),AK580,IF(AK581=\"\",AK580,\"\")))","v":{"$error":"#VALUE!"}},{"$error":"#VALUE!"},{"$f":"INDEX(fdfortax2,MATCH(0,COUNTIF($AN$3:AN579,fdfortax2),0))","v":{"$error":"#N/A"}}]
[null,null,null,null,null,null,null,null,null,null,null,null,null,null,null,null,null,null,null,null,null,null,null,null,null,null,null,null,null,{"$f":"IF(AD580<rdura,AD580+1,\"\")","v":""},{"$f":"IF(AD581=\"\",\"\",AE580*(1+raterd/factor1)^(factor1*1/ydays))","v":""},"","","",{"$f":"IF(AD581=\"\",\"\",AF581-AG581)","v":""},{"$f":"IF(INT(AD581/30)-(AD581/30)=0,1,0)","v":{"$error":"#VALUE!"}},{"$f":"IF(AJ580=1,AI581,AK580+AI581)","v":{"$error":"#VALUE!"}},{"$error":"#VALUE!"},{"$error":"#VALUE!"},{"$f":"INDEX(fdfortax2,MATCH(0,COUNTIF($AN$3:AN580,fdfortax2),0))","v":{"$error":"#N/A"}}]
[null,null,null,null,null,null,null,null,null,null,null,null,null,null,null,null,null,null,null,null,null,null,null,null,null,null,null,null,null,"","",{"$f":"IF(AD582=\"\",\"\",AE582-AE581)","v":""},"","","",{"$error":"#VALUE!"},{"$error":"#VALUE!"},{"$error":"#VALUE!"},{"$error":"#VALUE!"},{"$f":"INDEX(fdfortax2,MATCH(0,COUNTIF($AN$3:AN581,fdfortax2),0))","v":{"$error":"#N/A"}}]
[null,null,null,null,null,null,null,null,null,null,null,null,null,null,null,null,null,null,null,null,null,null,null,null,null,null,null,null,null,"","","","","","",{"$error":"#VALUE!"},{"$error":"#VALUE!"},{"$error":"#VALUE!"},{"$error":"#VALUE!"},{"$f":"INDEX(fdfortax2,MATCH(0,COUNTIF($AN$3:AN582,fdfortax2),0))","v":{"$error":"#N/A"}}]
[null,null,null,null,null,null,null,null,null,null,null,null,null,null,null,null,null,null,null,null,null,null,null,null,null,null,null,null,null,"","","","","","",{"$error":"#VALUE!"},{"$error":"#VALUE!"},{"$error":"#VALUE!"},{"$error":"#VALUE!"},{"$f":"INDEX(fdfortax2,MATCH(0,COUNTIF($AN$3:AN583,fdfortax2),0))","v":{"$error":"#N/A"}}]
[null,null,null,null,null,null,null,null,null,null,null,null,null,null,null,null,null,null,null,null,null,null,null,null,null,null,null,null,null,"","","","","","",{"$error":"#VALUE!"},{"$error":"#VALUE!"},{"$error":"#VALUE!"},{"$error":"#VALUE!"},{"$f":"INDEX(fdfortax2,MATCH(0,COUNTIF($AN$3:AN584,fdfortax2),0))","v":{"$error":"#N/A"}}]
[null,null,null,null,null,null,null,null,null,null,null,null,null,null,null,null,null,null,null,null,null,null,null,null,null,null,null,null,null,"","","","","","",{"$error":"#VALUE!"},{"$error":"#VALUE!"},{"$error":"#VALUE!"},{"$f":"IF(AJ586=1,AK586,IF(ISERROR(AK587),AK586,IF(AK587=\"\",AK586,1)))","v":{"$error":"#VALUE!"}},{"$f":"INDEX(fdfortax2,MATCH(0,COUNTIF($AN$3:AN585,fdfortax2),0))","v":{"$error":"#N/A"}}]
[null,null,null,null,null,null,null,null,null,null,null,null,null,null,null,null,null,null,null,null,null,null,null,null,null,null,null,null,null,"","","","","","",{"$error":"#VALUE!"},{"$error":"#VALUE!"},{"$error":"#VALUE!"},{"$error":"#VALUE!"},{"$f":"INDEX(fdfortax2,MATCH(0,COUNTIF($AN$3:AN586,fdfortax2),0))","v":{"$error":"#N/A"}}]
[null,null,null,null,null,null,null,null,null,null,null,null,null,null,null,null,null,null,null,null,null,null,null,null,null,null,null,null,null,"","","","","","",{"$error":"#VALUE!"},{"$error":"#VALUE!"},{"$error":"#VALUE!"},{"$error":"#VALUE!"},{"$f":"INDEX(fdfortax2,MATCH(0,COUNTIF($AN$3:AN587,fdfortax2),0))","v":{"$error":"#N/A"}}]
[null,null,null,null,null,null,null,null,null,null,null,null,null,null,null,null,null,null,null,null,null,null,null,null,null,null,null,null,null,"","","","","","",{"$error":"#VALUE!"},{"$error":"#VALUE!"},{"$error":"#VALUE!"},{"$error":"#VALUE!"},{"$f":"INDEX(fdfortax2,MATCH(0,COUNTIF($AN$3:AN588,fdfortax2),0))","v":{"$error":"#N/A"}}]
[null,null,null,null,null,null,null,null,null,null,null,null,null,null,null,null,null,null,null,null,null,null,null,null,null,null,null,null,null,"","","","","","",{"$error":"#VALUE!"},{"$error":"#VALUE!"},{"$error":"#VALUE!"},{"$error":"#VALUE!"},{"$f":"INDEX(fdfortax2,MATCH(0,COUNTIF($AN$3:AN589,fdfortax2),0))","v":{"$error":"#N/A"}}]
[null,null,null,null,null,null,null,null,null,null,null,null,null,null,null,null,null,null,null,null,null,null,null,null,null,null,null,null,null,"","","","","","",{"$error":"#VALUE!"},{"$error":"#VALUE!"},{"$error":"#VALUE!"},{"$error":"#VALUE!"},{"$f":"INDEX(fdfortax2,MATCH(0,COUNTIF($AN$3:AN590,fdfortax2),0))","v":{"$error":"#N/A"}}]
[null,null,null,null,null,null,null,null,null,null,null,null,null,null,null,null,null,null,null,null,null,null,null,null,null,null,null,null,null,"","","","","","",{"$error":"#VALUE!"},{"$error":"#VALUE!"},{"$error":"#VALUE!"},{"$error":"#VALUE!"},{"$f":"INDEX(fdfortax2,MATCH(0,COUNTIF($AN$3:AN591,fdfortax2),0))","v":{"$error":"#N/A"}}]
[null,null,null,null,null,null,null,null,null,null,null,null,null,null,null,null,null,null,null,null,null,null,null,null,null,null,null,null,null,"","","","","","",{"$error":"#VALUE!"},{"$error":"#VALUE!"},{"$error":"#VALUE!"},{"$error":"#VALUE!"},{"$f":"INDEX(fdfortax2,MATCH(0,COUNTIF($AN$3:AN592,fdfortax2),0))","v":{"$error":"#N/A"}}]
[null,null,null,null,null,null,null,null,null,null,null,null,null,null,null,null,null,null,null,null,null,null,null,null,null,null,null,null,null,"","","","","","",{"$error":"#VALUE!"},{"$error":"#VALUE!"},{"$error":"#VALUE!"},{"$error":"#VALUE!"},{"$f":"INDEX(fdfortax2,MATCH(0,COUNTIF($AN$3:AN593,fdfortax2),0))","v":{"$error":"#N/A"}}]
[null,null,null,null,null,null,null,null,null,null,null,null,null,null,null,null,null,null,null,null,null,null,null,null,null,null,null,null,null,"","","","","","",{"$error":"#VALUE!"},{"$error":"#VALUE!"},{"$error":"#VALUE!"},{"$error":"#VALUE!"},{"$f":"INDEX(fdfortax2,MATCH(0,COUNTIF($AN$3:AN594,fdfortax2),0))","v":{"$error":"#N/A"}}]
[null,null,null,null,null,null,null,null,null,null,null,null,null,null,null,null,null,null,null,null,null,null,null,null,null,null,null,null,null,"","","","","","",{"$error":"#VALUE!"},{"$error":"#VALUE!"},{"$error":"#VALUE!"},{"$error":"#VALUE!"},{"$f":"INDEX(fdfortax2,MATCH(0,COUNTIF($AN$3:AN595,fdfortax2),0))","v":{"$error":"#N/A"}}]
[null,null,null,null,null,null,null,null,null,null,null,null,null,null,null,null,null,null,null,null,null,null,null,null,null,null,null,null,null,"","","","","","",{"$error":"#VALUE!"},{"$error":"#VALUE!"},{"$error":"#VALUE!"},{"$error":"#VALUE!"},{"$f":"INDEX(fdfortax2,MATCH(0,COUNTIF($AN$3:AN596,fdfortax2),0))","v":{"$error":"#N/A"}}]
[null,null,null,null,null,null,null,null,null,null,null,null,null,null,null,null,null,null,null,null,null,null,null,null,null,null,null,null,null,"","","","","","",{"$error":"#VALUE!"},{"$error":"#VALUE!"},{"$error":"#VALUE!"},{"$error":"#VALUE!"},{"$f":"INDEX(fdfortax2,MATCH(0,COUNTIF($AN$3:AN597,fdfortax2),0))","v":{"$error":"#N/A"}}]
[null,null,null,null,null,null,null,null,null,null,null,null,null,null,null,null,null,null,null,null,null,null,null,null,null,null,null,null,null,"","","","","","",{"$error":"#VALUE!"},{"$error":"#VALUE!"},{"$error":"#VALUE!"},{"$error":"#VALUE!"},{"$f":"INDEX(fdfortax2,MATCH(0,COUNTIF($AN$3:AN598,fdfortax2),0))","v":{"$error":"#N/A"}}]
[null,null,null,null,null,null,null,null,null,null,null,null,null,null,null,null,null,null,null,null,null,null,null,null,null,null,null,null,null,"","","","","","",{"$error":"#VALUE!"},{"$error":"#VALUE!"},{"$error":"#VALUE!"},{"$error":"#VALUE!"},{"$f":"INDEX(fdfortax2,MATCH(0,COUNTIF($AN$3:AN599,fdfortax2),0))","v":{"$error":"#N/A"}}]
[null,null,null,null,null,null,null,null,null,null,null,null,null,null,null,null,null,null,null,null,null,null,null,null,null,null,null,null,null,"","",{"$f":"IF(AD601=\"\",\"\",AE601-AE600)","v":""},"","",{"$f":"IF(AD601=\"\",\"\",AF601-AG601)","v":""},{"$f":"IF(INT(AD601/30)-(AD601/30)=0,1,0)","v":{"$error":"#VALUE!"}},{"$error":"#VALUE!"},{"$f":"IF(AJ601=1,AK601,IF(ISERROR(AK602),AK601,IF(AK602=\"\",AK601,\"\")))","v":{"$error":"#VALUE!"}},{"$f":"IF(AJ601=1,AK601,IF(ISERROR(AK602),AK601,IF(AK602=\"\",AK601,1)))","v":{"$error":"#VALUE!"}},{"$f":"INDEX(fdfortax2,MATCH(0,COUNTIF($AN$3:AN600,fdfortax2),0))","v":{"$error":"#N/A"}}]
[null,null,null,null,null,null,null,null,null,null,null,null,null,null,null,null,null,null,null,null,null,null,null,null,null,null,null,null,null,"","","","","","",{"$error":"#VALUE!"},{"$error":"#VALUE!"},{"$error":"#VALUE!"},{"$error":"#VALUE!"},{"$f":"INDEX(fdfortax2,MATCH(0,COUNTIF($AN$3:AN601,fdfortax2),0))","v":{"$error":"#N/A"}}]
[null,null,null,null,null,null,null,null,null,null,null,null,null,null,null,null,null,null,null,null,null,null,null,null,null,null,null,null,null,"","","","","","",{"$error":"#VALUE!"},{"$error":"#VALUE!"},{"$error":"#VALUE!"},{"$error":"#VALUE!"},{"$f":"INDEX(fdfortax2,MATCH(0,COUNTIF($AN$3:AN602,fdfortax2),0))","v":{"$error":"#N/A"}}]
[null,null,null,null,null,null,null,null,null,null,null,null,null,null,null,null,null,null,null,null,null,null,null,null,null,null,null,null,null,"","","","","","",{"$error":"#VALUE!"},{"$error":"#VALUE!"},{"$error":"#VALUE!"},{"$error":"#VALUE!"},{"$f":"INDEX(fdfortax2,MATCH(0,COUNTIF($AN$3:AN603,fdfortax2),0))","v":{"$error":"#N/A"}}]
[null,null,null,null,null,null,null,null,null,null,null,null,null,null,null,null,null,null,null,null,null,null,null,null,null,null,null,null,null,"","","","","","",{"$error":"#VALUE!"},{"$error":"#VALUE!"},{"$error":"#VALUE!"},{"$error":"#VALUE!"},{"$f":"INDEX(fdfortax2,MATCH(0,COUNTIF($AN$3:AN604,fdfortax2),0))","v":{"$error":"#N/A"}}]
[null,null,null,null,null,null,null,null,null,null,null,null,null,null,null,null,null,null,null,null,null,null,null,null,null,null,null,null,null,"","","","","","",{"$error":"#VALUE!"},{"$error":"#VALUE!"},{"$error":"#VALUE!"},{"$error":"#VALUE!"},{"$f":"INDEX(fdfortax2,MATCH(0,COUNTIF($AN$3:AN605,fdfortax2),0))","v":{"$error":"#N/A"}}]
[null,null,null,null,null,null,null,null,null,null,null,null,null,null,null,null,null,null,null,null,null,null,null,null,null,null,null,null,null,"","","","","","",{"$error":"#VALUE!"},{"$error":"#VALUE!"},{"$error":"#VALUE!"},{"$error":"#VALUE!"},{"$f":"INDEX(fdfortax2,MATCH(0,COUNTIF($AN$3:AN606,fdfortax2),0))","v":{"$error":"#N/A"}}]
[null,null,null,null,null,null,null,null,null,null,null,null,null,null,null,null,null,null,null,null,null,null,null,null,null,null,null,null,null,"","","","","","",{"$error":"#VALUE!"},{"$error":"#VALUE!"},{"$error":"#VALUE!"},{"$error":"#VALUE!"},{"$f":"INDEX(fdfortax2,MATCH(0,COUNTIF($AN$3:AN607,fdfortax2),0))","v":{"$error":"#N/A"}}]
[null,null,null,null,null,null,null,null,null,null,null,null,null,null,null,null,null,null,null,null,null,null,null,null,null,null,null,null,null,"","","","","","",{"$error":"#VALUE!"},{"$error":"#VALUE!"},{"$error":"#VALUE!"},{"$error":"#VALUE!"},{"$f":"INDEX(fdfortax2,MATCH(0,COUNTIF($AN$3:AN608,fdfortax2),0))","v":{"$error":"#N/A"}}]
[null,null,null,null,null,null,null,null,null,null,null,null,null,null,null,null,null,null,null,null,null,null,null,null,null,null,null,null,null,"","","","","","",{"$error":"#VALUE!"},{"$error":"#VALUE!"},{"$error":"#VALUE!"},{"$error":"#VALUE!"},{"$f":"INDEX(fdfortax2,MATCH(0,COUNTIF($AN$3:AN609,fdfortax2),0))","v":{"$error":"#N/A"}}]
[null,null,null,null,null,null,null,null,null,null,null,null,null,null,null,null,null,null,null,null,null,null,null,null,null,null,null,null,null,"","","","","","",{"$error":"#VALUE!"},{"$error":"#VALUE!"},{"$error":"#VALUE!"},{"$error":"#VALUE!"},{"$f":"INDEX(fdfortax2,MATCH(0,COUNTIF($AN$3:AN610,fdfortax2),0))","v":{"$error":"#N/A"}}]
[null,null,null,null,null,null,null,null,null,null,null,null,null,null,null,null,null,null,null,null,null,null,null,null,null,null,null,null,null,"","","","","","",{"$error":"#VALUE!"},{"$error":"#VALUE!"},{"$error":"#VALUE!"},{"$error":"#VALUE!"},{"$f":"INDEX(fdfortax2,MATCH(0,COUNTIF($AN$3:AN611,fdfortax2),0))","v":{"$error":"#N/A"}}]
[null,null,null,null,null,null,null,null,null,null,null,null,null,null,null,null,null,null,null,null,null,null,null,null,null,null,null,null,null,"","","","","","",{"$error":"#VALUE!"},{"$error":"#VALUE!"},{"$error":"#VALUE!"},{"$error":"#VALUE!"},{"$f":"INDEX(fdfortax2,MATCH(0,COUNTIF($AN$3:AN612,fdfortax2),0))","v":{"$error":"#N/A"}}]
[null,null,null,null,null,null,null,null,null,null,null,null,null,null,null,null,null,null,null,null,null,null,null,null,null,null,null,null,null,"","","","","","",{"$error":"#VALUE!"},{"$error":"#VALUE!"},{"$error":"#VALUE!"},{"$error":"#VALUE!"},{"$f":"INDEX(fdfortax2,MATCH(0,COUNTIF($AN$3:AN613,fdfortax2),0))","v":{"$error":"#N/A"}}]
[null,null,null,null,null,null,null,null,null,null,null,null,null,null,null,null,null,null,null,null,null,null,null,null,null,null,null,null,null,"","","","","","",{"$error":"#VALUE!"},{"$error":"#VALUE!"},{"$error":"#VALUE!"},{"$error":"#VALUE!"},{"$f":"INDEX(fdfortax2,MATCH(0,COUNTIF($AN$3:AN614,fdfortax2),0))","v":{"$error":"#N/A"}}]
[null,null,null,null,null,null,null,null,null,null,null,null,null,null,null,null,null,null,null,null,null,null,null,null,null,null,null,null,null,"","","","","","",{"$error":"#VALUE!"},{"$error":"#VALUE!"},{"$error":"#VALUE!"},{"$error":"#VALUE!"},{"$f":"INDEX(fdfortax2,MATCH(0,COUNTIF($AN$3:AN615,fdfortax2),0))","v":{"$error":"#N/A"}}]
[null,null,null,null,null,null,null,null,null,null,null,null,null,null,null,null,null,null,null,null,null,null,null,null,null,null,null,null,null,"","",{"$f":"IF(AD617=\"\",\"\",AE617-AE616)","v":""},"","",{"$f":"IF(AD617=\"\",\"\",AF617-AG617)","v":""},{"$f":"IF(INT(AD617/30)-(AD617/30)=0,1,0)","v":{"$error":"#VALUE!"}},{"$error":"#VALUE!"},{"$f":"IF(AJ617=1,AK617,IF(ISERROR(AK618),AK617,IF(AK618=\"\",AK617,\"\")))","v":{"$error":"#VALUE!"}},{"$f":"IF(AJ617=1,AK617,IF(ISERROR(AK618),AK617,IF(AK618=\"\",AK617,1)))","v":{"$error":"#VALUE!"}},{"$f":"INDEX(fdfortax2,MATCH(0,COUNTIF($AN$3:AN616,fdfortax2),0))","v":{"$error":"#N/A"}}]
[null,null,null,null,null,null,null,null,null,null,null,null,null,null,null,null,null,null,null,null,null,null,null,null,null,null,null,null,null,"","","","","","",{"$error":"#VALUE!"},{"$error":"#VALUE!"},{"$error":"#VALUE!"},{"$error":"#VALUE!"},{"$f":"INDEX(fdfortax2,MATCH(0,COUNTIF($AN$3:AN617,fdfortax2),0))","v":{"$error":"#N/A"}}]
[null,null,null,null,null,null,null,null,null,null,null,null,null,null,null,null,null,null,null,null,null,null,null,null,null,null,null,null,null,"","","","","","",{"$error":"#VALUE!"},{"$error":"#VALUE!"},{"$error":"#VALUE!"},{"$error":"#VALUE!"},{"$f":"INDEX(fdfortax2,MATCH(0,COUNTIF($AN$3:AN618,fdfortax2),0))","v":{"$error":"#N/A"}}]
[null,null,null,null,null,null,null,null,null,null,null,null,null,null,null,null,null,null,null,null,null,null,null,null,null,null,null,null,null,"","","","","","",{"$error":"#VALUE!"},{"$error":"#VALUE!"},{"$error":"#VALUE!"},{"$error":"#VALUE!"},{"$f":"INDEX(fdfortax2,MATCH(0,COUNTIF($AN$3:AN619,fdfortax2),0))","v":{"$error":"#N/A"}}]
[null,null,null,null,null,null,null,null,null,null,null,null,null,null,null,null,null,null,null,null,null,null,null,null,null,null,null,null,null,"","","","","","",{"$error":"#VALUE!"},{"$error":"#VALUE!"},{"$error":"#VALUE!"},{"$error":"#VALUE!"},{"$f":"INDEX(fdfortax2,MATCH(0,COUNTIF($AN$3:AN620,fdfortax2),0))","v":{"$error":"#N/A"}}]
[null,null,null,null,null,null,null,null,null,null,null,null,null,null,null,null,null,null,null,null,null,null,null,null,null,null,null,null,null,"","","","","","",{"$error":"#VALUE!"},{"$error":"#VALUE!"},{"$error":"#VALUE!"},{"$error":"#VALUE!"},{"$f":"INDEX(fdfortax2,MATCH(0,COUNTIF($AN$3:AN621,fdfortax2),0))","v":{"$error":"#N/A"}}]
[null,null,null,null,null,null,null,null,null,null,null,null,null,null,null,null,null,null,null,null,null,null,null,null,null,null,null,null,null,"","","","","","",{"$error":"#VALUE!"},{"$error":"#VALUE!"},{"$error":"#VALUE!"},{"$error":"#VALUE!"},{"$f":"INDEX(fdfortax2,MATCH(0,COUNTIF($AN$3:AN622,fdfortax2),0))","v":{"$error":"#N/A"}}]
[null,null,null,null,null,null,null,null,null,null,null,null,null,null,null,null,null,null,null,null,null,null,null,null,null,null,null,null,null,"","","","","","",{"$error":"#VALUE!"},{"$error":"#VALUE!"},{"$error":"#VALUE!"},{"$error":"#VALUE!"},{"$f":"INDEX(fdfortax2,MATCH(0,COUNTIF($AN$3:AN623,fdfortax2),0))","v":{"$error":"#N/A"}}]
[null,null,null,null,null,null,null,null,null,null,null,null,null,null,null,null,null,null,null,null,null,null,null,null,null,null,null,null,null,"","","","","","",{"$error":"#VALUE!"},{"$error":"#VALUE!"},{"$error":"#VALUE!"},{"$error":"#VALUE!"},{"$f":"INDEX(fdfortax2,MATCH(0,COUNTIF($AN$3:AN624,fdfortax2),0))","v":{"$error":"#N/A"}}]
[null,null,null,null,null,null,null,null,null,null,null,null,null,null,null,null,null,null,null,null,null,null,null,null,null,null,null,null,null,"","","","","","",{"$error":"#VALUE!"},{"$error":"#VALUE!"},{"$error":"#VALUE!"},{"$error":"#VALUE!"},{"$f":"INDEX(fdfortax2,MATCH(0,COUNTIF($AN$3:AN625,fdfortax2),0))","v":{"$error":"#N/A"}}]
[null,null,null,null,null,null,null,null,null,null,null,null,null,null,null,null,null,null,null,null,null,null,null,null,null,null,null,null,null,"","","","","","",{"$error":"#VALUE!"},{"$error":"#VALUE!"},{"$error":"#VALUE!"},{"$error":"#VALUE!"},{"$f":"INDEX(fdfortax2,MATCH(0,COUNTIF($AN$3:AN626,fdfortax2),0))","v":{"$error":"#N/A"}}]
[null,null,null,null,null,null,null,null,null,null,null,null,null,null,null,null,null,null,null,null,null,null,null,null,null,null,null,null,null,"","","","","","",{"$error":"#VALUE!"},{"$error":"#VALUE!"},{"$error":"#VALUE!"},{"$error":"#VALUE!"},{"$f":"INDEX(fdfortax2,MATCH(0,COUNTIF($AN$3:AN627,fdfortax2),0))","v":{"$error":"#N/A"}}]
[null,null,null,null,null,null,null,null,null,null,null,null,null,null,null,null,null,null,null,null,null,null,null,null,null,null,null,null,null,"","","","","","",{"$error":"#VALUE!"},{"$error":"#VALUE!"},{"$error":"#VALUE!"},{"$error":"#VALUE!"},{"$f":"INDEX(fdfortax2,MATCH(0,COUNTIF($AN$3:AN628,fdfortax2),0))","v":{"$error":"#N/A"}}]
[null,null,null,null,null,null,null,null,null,null,null,null,null,null,null,null,null,null,null,null,null,null,null,null,null,null,null,null,null,"","","","","","",{"$error":"#VALUE!"},{"$error":"#VALUE!"},{"$error":"#VALUE!"},{"$error":"#VALUE!"},{"$f":"INDEX(fdfortax2,MATCH(0,COUNTIF($AN$3:AN629,fdfortax2),0))","v":{"$error":"#N/A"}}]
[null,null,null,null,null,null,null,null,null,null,null,null,null,null,null,null,null,null,null,null,null,null,null,null,null,null,null,null,null,"","","","","","",{"$error":"#VALUE!"},{"$error":"#VALUE!"},{"$error":"#VALUE!"},{"$error":"#VALUE!"},{"$f":"INDEX(fdfortax2,MATCH(0,COUNTIF($AN$3:AN630,fdfortax2),0))","v":{"$error":"#N/A"}}]
[null,null,null,null,null,null,null,null,null,null,null,null,null,null,null,null,null,null,null,null,null,null,null,null,null,null,null,null,null,"","","","","","",{"$error":"#VALUE!"},{"$error":"#VALUE!"},{"$error":"#VALUE!"},{"$error":"#VALUE!"},{"$f":"INDEX(fdfortax2,MATCH(0,COUNTIF($AN$3:AN631,fdfortax2),0))","v":{"$error":"#N/A"}}]
[null,null,null,null,null,null,null,null,null,null,null,null,null,null,null,null,null,null,null,null,null,null,null,null,null,null,null,null,null,"","","","","","",{"$error":"#VALUE!"},{"$error":"#VALUE!"},{"$error":"#VALUE!"},{"$error":"#VALUE!"},{"$f":"INDEX(fdfortax2,MATCH(0,COUNTIF($AN$3:AN632,fdfortax2),0))","v":{"$error":"#N/A"}}]
[null,null,null,null,null,null,null,null,null,null,null,null,null,null,null,null,null,null,null,null,null,null,null,null,null,null,null,null,null,"","","","","","",{"$error":"#VALUE!"},{"$error":"#VALUE!"},{"$error":"#VALUE!"},{"$error":"#VALUE!"},{"$f":"INDEX(fdfortax2,MATCH(0,COUNTIF($AN$3:AN633,fdfortax2),0))","v":{"$error":"#N/A"}}]
[null,null,null,null,null,null,null,null,null,null,null,null,null,null,null,null,null,null,null,null,null,null,null,null,null,null,null,null,null,"","","","","","",{"$error":"#VALUE!"},{"$error":"#VALUE!"},{"$error":"#VALUE!"},{"$error":"#VALUE!"},{"$f":"INDEX(fdfortax2,MATCH(0,COUNTIF($AN$3:AN634,fdfortax2),0))","v":{"$error":"#N/A"}}]
[null,null,null,null,null,null,null,null,null,null,null,null,null,null,null,null,null,null,null,null,null,null,null,null,null,null,null,null,null,"","","","","","",{"$error":"#VALUE!"},{"$error":"#VALUE!"},{"$error":"#VALUE!"},{"$error":"#VALUE!"},{"$f":"INDEX(fdfortax2,MATCH(0,COUNTIF($AN$3:AN635,fdfortax2),0))","v":{"$error":"#N/A"}}]
[null,null,null,null,null,null,null,null,null,null,null,null,null,null,null,null,null,null,null,null,null,null,null,null,null,null,null,null,null,"","","","","","",{"$error":"#VALUE!"},{"$error":"#VALUE!"},{"$error":"#VALUE!"},{"$error":"#VALUE!"},{"$f":"INDEX(fdfortax2,MATCH(0,COUNTIF($AN$3:AN636,fdfortax2),0))","v":{"$error":"#N/A"}}]
[null,null,null,null,null,null,null,null,null,null,null,null,null,null,null,null,null,null,null,null,null,null,null,null,null,null,null,null,null,"","","","","","",{"$error":"#VALUE!"},{"$error":"#VALUE!"},{"$error":"#VALUE!"},{"$error":"#VALUE!"},{"$f":"INDEX(fdfortax2,MATCH(0,COUNTIF($AN$3:AN637,fdfortax2),0))","v":{"$error":"#N/A"}}]
[null,null,null,null,null,null,null,null,null,null,null,null,null,null,null,null,null,null,null,null,null,null,null,null,null,null,null,null,null,"","","","","","",{"$error":"#VALUE!"},{"$error":"#VALUE!"},{"$error":"#VALUE!"},{"$error":"#VALUE!"},{"$f":"INDEX(fdfortax2,MATCH(0,COUNTIF($AN$3:AN638,fdfortax2),0))","v":{"$error":"#N/A"}}]
[null,null,null,null,null,null,null,null,null,null,null,null,null,null,null,null,null,null,null,null,null,null,null,null,null,null,null,null,null,"","","","","","",{"$error":"#VALUE!"},{"$error":"#VALUE!"},{"$error":"#VALUE!"},{"$error":"#VALUE!"},{"$f":"INDEX(fdfortax2,MATCH(0,COUNTIF($AN$3:AN639,fdfortax2),0))","v":{"$error":"#N/A"}}]
[null,null,null,null,null,null,null,null,null,null,null,null,null,null,null,null,null,null,null,null,null,null,null,null,null,null,null,null,null,"","","","","","",{"$error":"#VALUE!"},{"$error":"#VALUE!"},{"$error":"#VALUE!"},{"$error":"#VALUE!"},{"$f":"INDEX(fdfortax2,MATCH(0,COUNTIF($AN$3:AN640,fdfortax2),0))","v":{"$error":"#N/A"}}]
[null,null,null,null,null,null,null,null,null,null,null,null,null,null,null,null,null,null,null,null,null,null,null,null,null,null,null,null,null,"","","","","","",{"$error":"#VALUE!"},{"$error":"#VALUE!"},{"$error":"#VALUE!"},{"$error":"#VALUE!"},{"$f":"INDEX(fdfortax2,MATCH(0,COUNTIF($AN$3:AN641,fdfortax2),0))","v":{"$error":"#N/A"}}]
[null,null,null,null,null,null,null,null,null,null,null,null,null,null,null,null,null,null,null,null,null,null,null,null,null,null,null,null,null,"","","","","","",{"$error":"#VALUE!"},{"$error":"#VALUE!"},{"$error":"#VALUE!"},{"$error":"#VALUE!"},{"$f":"INDEX(fdfortax2,MATCH(0,COUNTIF($AN$3:AN642,fdfortax2),0))","v":{"$error":"#N/A"}}]
[null,null,null,null,null,null,null,null,null,null,null,null,null,null,null,null,null,null,null,null,null,null,null,null,null,null,null,null,null,"","","",{"$f":"IF(AD644=\"\",\"\",AF644*(1-IF(taxrd=10%,10.3%,IF(taxrd=20%,20.6%,IF(taxrd=30%,30.9%)))))","v":""},{"$f":"IF(AD644=\"\",\"\",AH643+AG644+L644)","v":""},"",{"$error":"#VALUE!"},{"$error":"#VALUE!"},{"$error":"#VALUE!"},{"$error":"#VALUE!"},{"$f":"INDEX(fdfortax2,MATCH(0,COUNTIF($AN$3:AN643,fdfortax2),0))","v":{"$error":"#N/A"}}]
[null,null,null,null,null,null,null,null,null,null,null,null,null,null,null,null,null,null,null,null,null,null,null,null,null,null,null,null,null,{"$f":"IF(AD644<rdura,AD644+1,\"\")","v":""},{"$f":"IF(AD645=\"\",\"\",AE644*(1+raterd/factor1)^(factor1*1/ydays))","v":""},"","","","",{"$error":"#VALUE!"},{"$f":"IF(AJ644=1,AI645,AK644+AI645)","v":{"$error":"#VALUE!"}},{"$error":"#VALUE!"},{"$error":"#VALUE!"},{"$f":"INDEX(fdfortax2,MATCH(0,COUNTIF($AN$3:AN644,fdfortax2),0))","v":{"$error":"#N/A"}}]
[null,null,null,null,null,null,null,null,null,null,null,null,null,null,null,null,null,null,null,null,null,null,null,null,null,null,null,null,null,"","","","","","",{"$error":"#VALUE!"},{"$error":"#VALUE!"},{"$error":"#VALUE!"},{"$error":"#VALUE!"},{"$f":"INDEX(fdfortax2,MATCH(0,COUNTIF($AN$3:AN645,fdfortax2),0))","v":{"$error":"#N/A"}}]
[null,null,null,null,null,null,null,null,null,null,null,null,null,null,null,null,null,null,null,null,null,null,null,null,null,null,null,null,null,"","","","","","",{"$error":"#VALUE!"},{"$error":"#VALUE!"},{"$error":"#VALUE!"},{"$error":"#VALUE!"},{"$f":"INDEX(fdfortax2,MATCH(0,COUNTIF($AN$3:AN646,fdfortax2),0))","v":{"$error":"#N/A"}}]
[null,null,null,null,null,null,null,null,null,null,null,null,null,null,null,null,null,null,null,null,null,null,null,null,null,null,null,null,null,"","","","","","",{"$error":"#VALUE!"},{"$error":"#VALUE!"},{"$error":"#VALUE!"},{"$error":"#VALUE!"},{"$f":"INDEX(fdfortax2,MATCH(0,COUNTIF($AN$3:AN647,fdfortax2),0))","v":{"$error":"#N/A"}}]
[null,null,null,null,null,null,null,null,null,null,null,null,null,null,null,null,null,null,null,null,null,null,null,null,null,null,null,null,null,"","","","","","",{"$error":"#VALUE!"},{"$error":"#VALUE!"},{"$error":"#VALUE!"},{"$error":"#VALUE!"},{"$f":"INDEX(fdfortax2,MATCH(0,COUNTIF($AN$3:AN648,fdfortax2),0))","v":{"$error":"#N/A"}}]
[null,null,null,null,null,null,null,null,null,null,null,null,null,null,null,null,null,null,null,null,null,null,null,null,null,null,null,null,null,"","","","","","",{"$error":"#VALUE!"},{"$error":"#VALUE!"},{"$error":"#VALUE!"},{"$error":"#VALUE!"},{"$f":"INDEX(fdfortax2,MATCH(0,COUNTIF($AN$3:AN649,fdfortax2),0))","v":{"$error":"#N/A"}}]
[null,null,null,null,null,null,null,null,null,null,null,null,null,null,null,null,null,null,null,null,null,null,null,null,null,null,null,null,null,"","","","","","",{"$error":"#VALUE!"},{"$error":"#VALUE!"},{"$error":"#VALUE!"},{"$error":"#VALUE!"},{"$f":"INDEX(fdfortax2,MATCH(0,COUNTIF($AN$3:AN650,fdfortax2),0))","v":{"$error":"#N/A"}}]
[null,null,null,null,null,null,null,null,null,null,null,null,null,null,null,null,null,null,null,null,null,null,null,null,null,null,null,null,null,"","","","","","",{"$error":"#VALUE!"},{"$error":"#VALUE!"},{"$error":"#VALUE!"},{"$error":"#VALUE!"},{"$f":"INDEX(fdfortax2,MATCH(0,COUNTIF($AN$3:AN651,fdfortax2),0))","v":{"$error":"#N/A"}}]
[null,null,null,null,null,null,null,null,null,null,null,null,null,null,null,null,null,null,null,null,null,null,null,null,null,null,null,null,null,"","","","","","",{"$error":"#VALUE!"},{"$error":"#VALUE!"},{"$error":"#VALUE!"},{"$error":"#VALUE!"},{"$f":"INDEX(fdfortax2,MATCH(0,COUNTIF($AN$3:AN652,fdfortax2),0))","v":{"$error":"#N/A"}}]
[null,null,null,null,null,null,null,null,null,null,null,null,null,null,null,null,null,null,null,null,null,null,null,null,null,null,null,null,null,"","","","","","",{"$error":"#VALUE!"},{"$error":"#VALUE!"},{"$error":"#VALUE!"},{"$error":"#VALUE!"},{"$f":"INDEX(fdfortax2,MATCH(0,COUNTIF($AN$3:AN653,fdfortax2),0))","v":{"$error":"#N/A"}}]
[null,null,null,null,null,null,null,null,null,null,null,null,null,null,null,null,null,null,null,null,null,null,null,null,null,null,null,null,null,"","","","","","",{"$error":"#VALUE!"},{"$error":"#VALUE!"},{"$error":"#VALUE!"},{"$error":"#VALUE!"},{"$f":"INDEX(fdfortax2,MATCH(0,COUNTIF($AN$3:AN654,fdfortax2),0))","v":{"$error":"#N/A"}}]
[null,null,null,null,null,null,null,null,null,null,null,null,null,null,null,null,null,null,null,null,null,null,null,null,null,null,null,null,null,"","","","","","",{"$error":"#VALUE!"},{"$error":"#VALUE!"},{"$error":"#VALUE!"},{"$error":"#VALUE!"},{"$f":"INDEX(fdfortax2,MATCH(0,COUNTIF($AN$3:AN655,fdfortax2),0))","v":{"$error":"#N/A"}}]
[null,null,null,null,null,null,null,null,null,null,null,null,null,null,null,null,null,null,null,null,null,null,null,null,null,null,null,null,null,"","","","","","",{"$error":"#VALUE!"},{"$error":"#VALUE!"},{"$error":"#VALUE!"},{"$error":"#VALUE!"},{"$f":"INDEX(fdfortax2,MATCH(0,COUNTIF($AN$3:AN656,fdfortax2),0))","v":{"$error":"#N/A"}}]
[null,null,null,null,null,null,null,null,null,null,null,null,null,null,null,null,null,null,null,null,null,null,null,null,null,null,null,null,null,"","","","","","",{"$error":"#VALUE!"},{"$error":"#VALUE!"},{"$error":"#VALUE!"},{"$error":"#VALUE!"},{"$f":"INDEX(fdfortax2,MATCH(0,COUNTIF($AN$3:AN657,fdfortax2),0))","v":{"$error":"#N/A"}}]
[null,null,null,null,null,null,null,null,null,null,null,null,null,null,null,null,null,null,null,null,null,null,null,null,null,null,null,null,null,"","","","","","",{"$error":"#VALUE!"},{"$error":"#VALUE!"},{"$error":"#VALUE!"},{"$error":"#VALUE!"},{"$f":"INDEX(fdfortax2,MATCH(0,COUNTIF($AN$3:AN658,fdfortax2),0))","v":{"$error":"#N/A"}}]
[null,null,null,null,null,null,null,null,null,null,null,null,null,null,null,null,null,null,null,null,null,null,null,null,null,null,null,null,null,"","","","","","",{"$error":"#VALUE!"},{"$error":"#VALUE!"},{"$error":"#VALUE!"},{"$error":"#VALUE!"},{"$f":"INDEX(fdfortax2,MATCH(0,COUNTIF($AN$3:AN659,fdfortax2),0))","v":{"$error":"#N/A"}}]
[null,null,null,null,null,null,null,null,null,null,null,null,null,null,null,null,null,null,null,null,null,null,null,null,null,null,null,null,null,"","","","","","",{"$error":"#VALUE!"},{"$error":"#VALUE!"},{"$error":"#VALUE!"},{"$error":"#VALUE!"},{"$f":"INDEX(fdfortax2,MATCH(0,COUNTIF($AN$3:AN660,fdfortax2),0))","v":{"$error":"#N/A"}}]
[null,null,null,null,null,null,null,null,null,null,null,null,null,null,null,null,null,null,null,null,null,null,null,null,null,null,null,null,null,"","","","","","",{"$error":"#VALUE!"},{"$error":"#VALUE!"},{"$error":"#VALUE!"},{"$error":"#VALUE!"},{"$f":"INDEX(fdfortax2,MATCH(0,COUNTIF($AN$3:AN661,fdfortax2),0))","v":{"$error":"#N/A"}}]
[null,null,null,null,null,null,null,null,null,null,null,null,null,null,null,null,null,null,null,null,null,null,null,null,null,null,null,null,null,"","","","","","",{"$error":"#VALUE!"},{"$error":"#VALUE!"},{"$error":"#VALUE!"},{"$error":"#VALUE!"},{"$f":"INDEX(fdfortax2,MATCH(0,COUNTIF($AN$3:AN662,fdfortax2),0))","v":{"$error":"#N/A"}}]
[null,null,null,null,null,null,null,null,null,null,null,null,null,null,null,null,null,null,null,null,null,null,null,null,null,null,null,null,null,"","","","","","",{"$error":"#VALUE!"},{"$error":"#VALUE!"},{"$error":"#VALUE!"},{"$error":"#VALUE!"},{"$f":"INDEX(fdfortax2,MATCH(0,COUNTIF($AN$3:AN663,fdfortax2),0))","v":{"$error":"#N/A"}}]
[null,null,null,null,null,null,null,null,null,null,null,null,null,null,null,null,null,null,null,null,null,null,null,null,null,null,null,null,null,"","","","","","",{"$error":"#VALUE!"},{"$error":"#VALUE!"},{"$error":"#VALUE!"},{"$error":"#VALUE!"},{"$f":"INDEX(fdfortax2,MATCH(0,COUNTIF($AN$3:AN664,fdfortax2),0))","v":{"$error":"#N/A"}}]
[null,null,null,null,null,null,null,null,null,null,null,null,null,null,null,null,null,null,null,null,null,null,null,null,null,null,null,null,null,"","","","","","",{"$error":"#VALUE!"},{"$error":"#VALUE!"},{"$error":"#VALUE!"},{"$error":"#VALUE!"},{"$f":"INDEX(fdfortax2,MATCH(0,COUNTIF($AN$3:AN665,fdfortax2),0))","v":{"$error":"#N/A"}}]
[null,null,null,null,null,null,null,null,null,null,null,null,null,null,null,null,null,null,null,null,null,null,null,null,null,null,null,null,null,"","","","","","",{"$error":"#VALUE!"},{"$error":"#VALUE!"},{"$error":"#VALUE!"},{"$error":"#VALUE!"},{"$f":"INDEX(fdfortax2,MATCH(0,COUNTIF($AN$3:AN666,fdfortax2),0))","v":{"$error":"#N/A"}}]
[null,null,null,null,null,null,null,null,null,null,null,null,null,null,null,null,null,null,null,null,null,null,null,null,null,null,null,null,null,"","","","","","",{"$error":"#VALUE!"},{"$error":"#VALUE!"},{"$error":"#VALUE!"},{"$error":"#VALUE!"},{"$f":"INDEX(fdfortax2,MATCH(0,COUNTIF($AN$3:AN667,fdfortax2),0))","v":{"$error":"#N/A"}}]
[null,null,null,null,null,null,null,null,null,null,null,null,null,null,null,null,null,null,null,null,null,null,null,null,null,null,null,null,null,"","","","","","",{"$error":"#VALUE!"},{"$error":"#VALUE!"},{"$error":"#VALUE!"},{"$error":"#VALUE!"},{"$f":"INDEX(fdfortax2,MATCH(0,COUNTIF($AN$3:AN668,fdfortax2),0))","v":{"$error":"#N/A"}}]
[null,null,null,null,null,null,null,null,null,null,null,null,null,null,null,null,null,null,null,null,null,null,null,null,null,null,null,null,null,"","","","","","",{"$error":"#VALUE!"},{"$error":"#VALUE!"},{"$error":"#VALUE!"},{"$error":"#VALUE!"},{"$f":"INDEX(fdfortax2,MATCH(0,COUNTIF($AN$3:AN669,fdfortax2),0))","v":{"$error":"#N/A"}}]
[null,null,null,null,null,null,null,null,null,null,null,null,null,null,null,null,null,null,null,null,null,null,null,null,null,null,null,null,null,"","","","","","",{"$error":"#VALUE!"},{"$error":"#VALUE!"},{"$error":"#VALUE!"},{"$error":"#VALUE!"},{"$f":"INDEX(fdfortax2,MATCH(0,COUNTIF($AN$3:AN670,fdfortax2),0))","v":{"$error":"#N/A"}}]
[null,null,null,null,null,null,null,null,null,null,null,null,null,null,null,null,null,null,null,null,null,null,null,null,null,null,null,null,null,"","",{"$f":"IF(AD672=\"\",\"\",AE672-AE671)","v":""},"","",{"$f":"IF(AD672=\"\",\"\",AF672-AG672)","v":""},{"$f":"IF(INT(AD672/30)-(AD672/30)=0,1,0)","v":{"$error":"#VALUE!"}},{"$error":"#VALUE!"},{"$f":"IF(AJ672=1,AK672,IF(ISERROR(AK673),AK672,IF(AK673=\"\",AK672,\"\")))","v":{"$error":"#VALUE!"}},{"$f":"IF(AJ672=1,AK672,IF(ISERROR(AK673),AK672,IF(AK673=\"\",AK672,1)))","v":{"$error":"#VALUE!"}},{"$f":"INDEX(fdfortax2,MATCH(0,COUNTIF($AN$3:AN671,fdfortax2),0))","v":{"$error":"#N/A"}}]
[null,null,null,null,null,null,null,null,null,null,null,null,null,null,null,null,null,null,null,null,null,null,null,null,null,null,null,null,null,"","","","","","",{"$error":"#VALUE!"},{"$error":"#VALUE!"},{"$error":"#VALUE!"},{"$error":"#VALUE!"},{"$f":"INDEX(fdfortax2,MATCH(0,COUNTIF($AN$3:AN672,fdfortax2),0))","v":{"$error":"#N/A"}}]
[null,null,null,null,null,null,null,null,null,null,null,null,null,null,null,null,null,null,null,null,null,null,null,null,null,null,null,null,null,"","","","","","",{"$error":"#VALUE!"},{"$error":"#VALUE!"},{"$error":"#VALUE!"},{"$error":"#VALUE!"},{"$f":"INDEX(fdfortax2,MATCH(0,COUNTIF($AN$3:AN673,fdfortax2),0))","v":{"$error":"#N/A"}}]
[null,null,null,null,null,null,null,null,null,null,null,null,null,null,null,null,null,null,null,null,null,null,null,null,null,null,null,null,null,"","","","","","",{"$error":"#VALUE!"},{"$error":"#VALUE!"},{"$error":"#VALUE!"},{"$error":"#VALUE!"},{"$f":"INDEX(fdfortax2,MATCH(0,COUNTIF($AN$3:AN674,fdfortax2),0))","v":{"$error":"#N/A"}}]
[null,null,null,null,null,null,null,null,null,null,null,null,null,null,null,null,null,null,null,null,null,null,null,null,null,null,null,null,null,"","","","","","",{"$error":"#VALUE!"},{"$error":"#VALUE!"},{"$error":"#VALUE!"},{"$error":"#VALUE!"},{"$f":"INDEX(fdfortax2,MATCH(0,COUNTIF($AN$3:AN675,fdfortax2),0))","v":{"$error":"#N/A"}}]
[null,null,null,null,null,null,null,null,null,null,null,null,null,null,null,null,null,null,null,null,null,null,null,null,null,null,null,null,null,"","","","","","",{"$error":"#VALUE!"},{"$error":"#VALUE!"},{"$error":"#VALUE!"},{"$error":"#VALUE!"},{"$f":"INDEX(fdfortax2,MATCH(0,COUNTIF($AN$3:AN676,fdfortax2),0))","v":{"$error":"#N/A"}}]
[null,null,null,null,null,null,null,null,null,null,null,null,null,null,null,null,null,null,null,null,null,null,null,null,null,null,null,null,null,"","","","","","",{"$error":"#VALUE!"},{"$error":"#VALUE!"},{"$error":"#VALUE!"},{"$error":"#VALUE!"},{"$f":"INDEX(fdfortax2,MATCH(0,COUNTIF($AN$3:AN677,fdfortax2),0))","v":{"$error":"#N/A"}}]
[null,null,null,null,null,null,null,null,null,null,null,null,null,null,null,null,null,null,null,null,null,null,null,null,null,null,null,null,null,"","","","","","",{"$error":"#VALUE!"},{"$error":"#VALUE!"},{"$error":"#VALUE!"},{"$error":"#VALUE!"},{"$f":"INDEX(fdfortax2,MATCH(0,COUNTIF($AN$3:AN678,fdfortax2),0))","v":{"$error":"#N/A"}}]
[null,null,null,null,null,null,null,null,null,null,null,null,null,null,null,null,null,null,null,null,null,null,null,null,null,null,null,null,null,"","","","","","",{"$error":"#VALUE!"},{"$error":"#VALUE!"},{"$error":"#VALUE!"},{"$error":"#VALUE!"},{"$f":"INDEX(fdfortax2,MATCH(0,COUNTIF($AN$3:AN679,fdfortax2),0))","v":{"$error":"#N/A"}}]
[null,null,null,null,null,null,null,null,null,null,null,null,null,null,null,null,null,null,null,null,null,null,null,null,null,null,null,null,null,"","","","","","",{"$error":"#VALUE!"},{"$error":"#VALUE!"},{"$error":"#VALUE!"},{"$error":"#VALUE!"},{"$f":"INDEX(fdfortax2,MATCH(0,COUNTIF($AN$3:AN680,fdfortax2),0))","v":{"$error":"#N/A"}}]
[null,null,null,null,null,null,null,null,null,null,null,null,null,null,null,null,null,null,null,null,null,null,null,null,null,null,null,null,null,"","","","","","",{"$error":"#VALUE!"},{"$error":"#VALUE!"},{"$error":"#VALUE!"},{"$error":"#VALUE!"},{"$f":"INDEX(fdfortax2,MATCH(0,COUNTIF($AN$3:AN681,fdfortax2),0))","v":{"$error":"#N/A"}}]
[null,null,null,null,null,null,null,null,null,null,null,null,null,null,null,null,null,null,null,null,null,null,null,null,null,null,null,null,null,"","","","","","",{"$error":"#VALUE!"},{"$error":"#VALUE!"},{"$error":"#VALUE!"},{"$error":"#VALUE!"},{"$f":"INDEX(fdfortax2,MATCH(0,COUNTIF($AN$3:AN682,fdfortax2),0))","v":{"$error":"#N/A"}}]
[null,null,null,null,null,null,null,null,null,null,null,null,null,null,null,null,null,null,null,null,null,null,null,null,null,null,null,null,null,"","","","","","",{"$error":"#VALUE!"},{"$error":"#VALUE!"},{"$error":"#VALUE!"},{"$error":"#VALUE!"},{"$f":"INDEX(fdfortax2,MATCH(0,COUNTIF($AN$3:AN683,fdfortax2),0))","v":{"$error":"#N/A"}}]
[null,null,null,null,null,null,null,null,null,null,null,null,null,null,null,null,null,null,null,null,null,null,null,null,null,null,null,null,null,"","","","","","",{"$error":"#VALUE!"},{"$error":"#VALUE!"},{"$error":"#VALUE!"},{"$error":"#VALUE!"},{"$f":"INDEX(fdfortax2,MATCH(0,COUNTIF($AN$3:AN684,fdfortax2),0))","v":{"$error":"#N/A"}}]
[null,null,null,null,null,null,null,null,null,null,null,null,null,null,null,null,null,null,null,null,null,null,null,null,null,null,null,null,null,"","","","","","",{"$error":"#VALUE!"},{"$error":"#VALUE!"},{"$error":"#VALUE!"},{"$error":"#VALUE!"},{"$f":"INDEX(fdfortax2,MATCH(0,COUNTIF($AN$3:AN685,fdfortax2),0))","v":{"$error":"#N/A"}}]
[null,null,null,null,null,null,null,null,null,null,null,null,null,null,null,null,null,null,null,null,null,null,null,null,null,null,null,null,null,"","","","","","",{"$error":"#VALUE!"},{"$error":"#VALUE!"},{"$error":"#VALUE!"},{"$error":"#VALUE!"},{"$f":"INDEX(fdfortax2,MATCH(0,COUNTIF($AN$3:AN686,fdfortax2),0))","v":{"$error":"#N/A"}}]
[null,null,null,null,null,null,null,null,null,null,null,null,null,null,null,null,null,null,null,null,null,null,null,null,null,null,null,null,null,"","","","","","",{"$error":"#VALUE!"},{"$error":"#VALUE!"},{"$error":"#VALUE!"},{"$error":"#VALUE!"},{"$f":"INDEX(fdfortax2,MATCH(0,COUNTIF($AN$3:AN687,fdfortax2),0))","v":{"$error":"#N/A"}}]
[null,null,null,null,null,null,null,null,null,null,null,null,null,null,null,null,null,null,null,null,null,null,null,null,null,null,null,null,null,"","","","","","",{"$error":"#VALUE!"},{"$error":"#VALUE!"},{"$error":"#VALUE!"},{"$error":"#VALUE!"},{"$f":"INDEX(fdfortax2,MATCH(0,COUNTIF($AN$3:AN688,fdfortax2),0))","v":{"$error":"#N/A"}}]
[null,null,null,null,null,null,null,null,null,null,null,null,null,null,null,null,null,null,null,null,null,null,null,null,null,null,null,null,null,"","","","","","",{"$error":"#VALUE!"},{"$error":"#VALUE!"},{"$error":"#VALUE!"},{"$error":"#VALUE!"},{"$f":"INDEX(fdfortax2,MATCH(0,COUNTIF($AN$3:AN689,fdfortax2),0))","v":{"$error":"#N/A"}}]
[null,null,null,null,null,null,null,null,null,null,null,null,null,null,null,null,null,null,null,null,null,null,null,null,null,null,null,null,null,"","","","","","",{"$error":"#VALUE!"},{"$error":"#VALUE!"},{"$error":"#VALUE!"},{"$error":"#VALUE!"},{"$f":"INDEX(fdfortax2,MATCH(0,COUNTIF($AN$3:AN690,fdfortax2),0))","v":{"$error":"#N/A"}}]
[null,null,null,null,null,null,null,null,null,null,null,null,null,null,null,null,null,null,null,null,null,null,null,null,null,null,null,null,null,"","","","","","",{"$error":"#VALUE!"},{"$error":"#VALUE!"},{"$error":"#VALUE!"},{"$error":"#VALUE!"},{"$f":"INDEX(fdfortax2,MATCH(0,COUNTIF($AN$3:AN691,fdfortax2),0))","v":{"$error":"#N/A"}}]
[null,null,null,null,null,null,null,null,null,null,null,null,null,null,null,null,null,null,null,null,null,null,null,null,null,null,null,null,null,"","","","","","",{"$error":"#VALUE!"},{"$error":"#VALUE!"},{"$error":"#VALUE!"},{"$error":"#VALUE!"},{"$f":"INDEX(fdfortax2,MATCH(0,COUNTIF($AN$3:AN692,fdfortax2),0))","v":{"$error":"#N/A"}}]
[null,null,null,null,null,null,null,null,null,null,null,null,null,null,null,null,null,null,null,null,null,null,null,null,null,null,null,null,null,"","","","","","",{"$error":"#VALUE!"},{"$error":"#VALUE!"},{"$error":"#VALUE!"},{"$error":"#VALUE!"},{"$f":"INDEX(fdfortax2,MATCH(0,COUNTIF($AN$3:AN693,fdfortax2),0))","v":{"$error":"#N/A"}}]
[null,null,null,null,null,null,null,null,null,null,null,null,null,null,null,null,null,null,null,null,null,null,null,null,null,null,null,null,null,"","","","","","",{"$error":"#VALUE!"},{"$error":"#VALUE!"},{"$error":"#VALUE!"},{"$error":"#VALUE!"},{"$f":"INDEX(fdfortax2,MATCH(0,COUNTIF($AN$3:AN694,fdfortax2),0))","v":{"$error":"#N/A"}}]
[null,null,null,null,null,null,null,null,null,null,null,null,null,null,null,null,null,null,null,null,null,null,null,null,null,null,null,null,null,"","","","","","",{"$error":"#VALUE!"},{"$error":"#VALUE!"},{"$error":"#VALUE!"},{"$error":"#VALUE!"},{"$f":"INDEX(fdfortax2,MATCH(0,COUNTIF($AN$3:AN695,fdfortax2),0))","v":{"$error":"#N/A"}}]
[null,null,null,null,null,null,null,null,null,null,null,null,null,null,null,null,null,null,null,null,null,null,null,null,null,null,null,null,null,"","","","","","",{"$error":"#VALUE!"},{"$error":"#VALUE!"},{"$error":"#VALUE!"},{"$error":"#VALUE!"},{"$f":"INDEX(fdfortax2,MATCH(0,COUNTIF($AN$3:AN696,fdfortax2),0))","v":{"$error":"#N/A"}}]
[null,null,null,null,null,null,null,null,null,null,null,null,null,null,null,null,null,null,null,null,null,null,null,null,null,null,null,null,null,"","","","","","",{"$error":"#VALUE!"},{"$error":"#VALUE!"},{"$error":"#VALUE!"},{"$error":"#VALUE!"},{"$f":"INDEX(fdfortax2,MATCH(0,COUNTIF($AN$3:AN697,fdfortax2),0))","v":{"$error":"#N/A"}}]
[null,null,null,null,null,null,null,null,null,null,null,null,null,null,null,null,null,null,null,null,null,null,null,null,null,null,null,null,null,"","","","","","",{"$error":"#VALUE!"},{"$error":"#VALUE!"},{"$error":"#VALUE!"},{"$error":"#VALUE!"},{"$f":"INDEX(fdfortax2,MATCH(0,COUNTIF($AN$3:AN698,fdfortax2),0))","v":{"$error":"#N/A"}}]
[null,null,null,null,null,null,null,null,null,null,null,null,null,null,null,null,null,null,null,null,null,null,null,null,null,null,null,null,null,"","","","","","",{"$error":"#VALUE!"},{"$error":"#VALUE!"},{"$error":"#VALUE!"},{"$error":"#VALUE!"},{"$f":"INDEX(fdfortax2,MATCH(0,COUNTIF($AN$3:AN699,fdfortax2),0))","v":{"$error":"#N/A"}}]
[null,null,null,null,null,null,null,null,null,null,null,null,null,null,null,null,null,null,null,null,null,null,null,null,null,null,null,null,null,"","","","","","",{"$error":"#VALUE!"},{"$error":"#VALUE!"},{"$error":"#VALUE!"},{"$error":"#VALUE!"},{"$f":"INDEX(fdfortax2,MATCH(0,COUNTIF($AN$3:AN700,fdfortax2),0))","v":{"$error":"#N/A"}}]
[null,null,null,null,null,null,null,null,null,null,null,null,null,null,null,null,null,null,null,null,null,null,null,null,null,null,null,null,null,"","","","","","",{"$error":"#VALUE!"},{"$error":"#VALUE!"},{"$error":"#VALUE!"},{"$error":"#VALUE!"},{"$f":"INDEX(fdfortax2,MATCH(0,COUNTIF($AN$3:AN701,fdfortax2),0))","v":{"$error":"#N/A"}}]
[null,null,null,null,null,null,null,null,null,null,null,null,null,null,null,null,null,null,null,null,null,null,null,null,null,null,null,null,null,"","","","","","",{"$error":"#VALUE!"},{"$error":"#VALUE!"},{"$error":"#VALUE!"},{"$error":"#VALUE!"},{"$f":"INDEX(fdfortax2,MATCH(0,COUNTIF($AN$3:AN702,fdfortax2),0))","v":{"$error":"#N/A"}}]
[null,null,null,null,null,null,null,null,null,null,null,null,null,null,null,null,null,null,null,null,null,null,null,null,null,null,null,null,null,"","","","","","",{"$error":"#VALUE!"},{"$error":"#VALUE!"},{"$error":"#VALUE!"},{"$error":"#VALUE!"},{"$f":"INDEX(fdfortax2,MATCH(0,COUNTIF($AN$3:AN703,fdfortax2),0))","v":{"$error":"#N/A"}}]
[null,null,null,null,null,null,null,null,null,null,null,null,null,null,null,null,null,null,null,null,null,null,null,null,null,null,null,null,null,"","","","","","",{"$error":"#VALUE!"},{"$error":"#VALUE!"},{"$error":"#VALUE!"},{"$error":"#VALUE!"},{"$f":"INDEX(fdfortax2,MATCH(0,COUNTIF($AN$3:AN704,fdfortax2),0))","v":{"$error":"#N/A"}}]
[null,null,null,null,null,null,null,null,null,null,null,null,null,null,null,null,null,null,null,null,null,null,null,null,null,null,null,null,null,"","","","","","",{"$error":"#VALUE!"},{"$error":"#VALUE!"},{"$error":"#VALUE!"},{"$error":"#VALUE!"},{"$f":"INDEX(fdfortax2,MATCH(0,COUNTIF($AN$3:AN705,fdfortax2),0))","v":{"$error":"#N/A"}}]
[null,null,null,null,null,null,null,null,null,null,null,null,null,null,null,null,null,null,null,null,null,null,null,null,null,null,null,null,null,"","","","","","",{"$error":"#VALUE!"},{"$error":"#VALUE!"},{"$error":"#VALUE!"},{"$error":"#VALUE!"},{"$f":"INDEX(fdfortax2,MATCH(0,COUNTIF($AN$3:AN706,fdfortax2),0))","v":{"$error":"#N/A"}}]
[null,null,null,null,null,null,null,null,null,null,null,null,null,null,null,null,null,null,null,null,null,null,null,null,null,null,null,null,null,"","","",{"$f":"IF(AD708=\"\",\"\",AF708*(1-IF(taxrd=10%,10.3%,IF(taxrd=20%,20.6%,IF(taxrd=30%,30.9%)))))","v":""},{"$f":"IF(AD708=\"\",\"\",AH707+AG708+L708)","v":""},"",{"$error":"#VALUE!"},{"$error":"#VALUE!"},{"$error":"#VALUE!"},{"$error":"#VALUE!"},{"$f":"INDEX(fdfortax2,MATCH(0,COUNTIF($AN$3:AN707,fdfortax2),0))","v":{"$error":"#N/A"}}]
[null,null,null,null,null,null,null,null,null,null,null,null,null,null,null,null,null,null,null,null,null,null,null,null,null,null,null,null,null,{"$f":"IF(AD708<rdura,AD708+1,\"\")","v":""},{"$f":"IF(AD709=\"\",\"\",AE708*(1+raterd/factor1)^(factor1*1/ydays))","v":""},"","","","",{"$error":"#VALUE!"},{"$f":"IF(AJ708=1,AI709,AK708+AI709)","v":{"$error":"#VALUE!"}},{"$error":"#VALUE!"},{"$error":"#VALUE!"},{"$f":"INDEX(fdfortax2,MATCH(0,COUNTIF($AN$3:AN708,fdfortax2),0))","v":{"$error":"#N/A"}}]
[null,null,null,null,null,null,null,null,null,null,null,null,null,null,null,null,null,null,null,null,null,null,null,null,null,null,null,null,null,"","","","","","",{"$error":"#VALUE!"},{"$error":"#VALUE!"},{"$error":"#VALUE!"},{"$error":"#VALUE!"},{"$f":"INDEX(fdfortax2,MATCH(0,COUNTIF($AN$3:AN709,fdfortax2),0))","v":{"$error":"#N/A"}}]
[null,null,null,null,null,null,null,null,null,null,null,null,null,null,null,null,null,null,null,null,null,null,null,null,null,null,null,null,null,"","","","","","",{"$error":"#VALUE!"},{"$error":"#VALUE!"},{"$error":"#VALUE!"},{"$error":"#VALUE!"},{"$f":"INDEX(fdfortax2,MATCH(0,COUNTIF($AN$3:AN710,fdfortax2),0))","v":{"$error":"#N/A"}}]
[null,null,null,null,null,null,null,null,null,null,null,null,null,null,null,null,null,null,null,null,null,null,null,null,null,null,null,null,null,"","","","","","",{"$error":"#VALUE!"},{"$error":"#VALUE!"},{"$error":"#VALUE!"},{"$error":"#VALUE!"},{"$f":"INDEX(fdfortax2,MATCH(0,COUNTIF($AN$3:AN711,fdfortax2),0))","v":{"$error":"#N/A"}}]
[null,null,null,null,null,null,null,null,null,null,null,null,null,null,null,null,null,null,null,null,null,null,null,null,null,null,null,null,null,"","","","","","",{"$error":"#VALUE!"},{"$error":"#VALUE!"},{"$error":"#VALUE!"},{"$error":"#VALUE!"},{"$f":"INDEX(fdfortax2,MATCH(0,COUNTIF($AN$3:AN712,fdfortax2),0))","v":{"$error":"#N/A"}}]
[null,null,null,null,null,null,null,null,null,null,null,null,null,null,null,null,null,null,null,null,null,null,null,null,null,null,null,null,null,"","","","","","",{"$error":"#VALUE!"},{"$error":"#VALUE!"},{"$error":"#VALUE!"},{"$error":"#VALUE!"},{"$f":"INDEX(fdfortax2,MATCH(0,COUNTIF($AN$3:AN713,fdfortax2),0))","v":{"$error":"#N/A"}}]
[null,null,null,null,null,null,null,null,null,null,null,null,null,null,null,null,null,null,null,null,null,null,null,null,null,null,null,null,null,"","","","","","",{"$error":"#VALUE!"},{"$error":"#VALUE!"},{"$error":"#VALUE!"},{"$error":"#VALUE!"},{"$f":"INDEX(fdfortax2,MATCH(0,COUNTIF($AN$3:AN714,fdfortax2),0))","v":{"$error":"#N/A"}}]
[null,null,null,null,null,null,null,null,null,null,null,null,null,null,null,null,null,null,null,null,null,null,null,null,null,null,null,null,null,"","","","","","",{"$error":"#VALUE!"},{"$error":"#VALUE!"},{"$error":"#VALUE!"},{"$error":"#VALUE!"},{"$f":"INDEX(fdfortax2,MATCH(0,COUNTIF($AN$3:AN715,fdfortax2),0))","v":{"$error":"#N/A"}}]
[null,null,null,null,null,null,null,null,null,null,null,null,null,null,null,null,null,null,null,null,null,null,null,null,null,null,null,null,null,"","","","","","",{"$error":"#VALUE!"},{"$error":"#VALUE!"},{"$error":"#VALUE!"},{"$error":"#VALUE!"},{"$f":"INDEX(fdfortax2,MATCH(0,COUNTIF($AN$3:AN716,fdfortax2),0))","v":{"$error":"#N/A"}}]
[null,null,null,null,null,null,null,null,null,null,null,null,null,null,null,null,null,null,null,null,null,null,null,null,null,null,null,null,null,"","","","","","",{"$error":"#VALUE!"},{"$error":"#VALUE!"},{"$error":"#VALUE!"},{"$error":"#VALUE!"},{"$f":"INDEX(fdfortax2,MATCH(0,COUNTIF($AN$3:AN717,fdfortax2),0))","v":{"$error":"#N/A"}}]
[null,null,null,null,null,null,null,null,null,null,null,null,null,null,null,null,null,null,null,null,null,null,null,null,null,null,null,null,null,"","","","","","",{"$error":"#VALUE!"},{"$error":"#VALUE!"},{"$error":"#VALUE!"},{"$error":"#VALUE!"},{"$f":"INDEX(fdfortax2,MATCH(0,COUNTIF($AN$3:AN718,fdfortax2),0))","v":{"$error":"#N/A"}}]
[null,null,null,null,null,null,null,null,null,null,null,null,null,null,null,null,null,null,null,null,null,null,null,null,null,null,null,null,null,"","","","","","",{"$error":"#VALUE!"},{"$error":"#VALUE!"},{"$error":"#VALUE!"},{"$error":"#VALUE!"},{"$f":"INDEX(fdfortax2,MATCH(0,COUNTIF($AN$3:AN719,fdfortax2),0))","v":{"$error":"#N/A"}}]
[null,null,null,null,null,null,null,null,null,null,null,null,null,null,null,null,null,null,null,null,null,null,null,null,null,null,null,null,null,"","","","","","",{"$error":"#VALUE!"},{"$error":"#VALUE!"},{"$error":"#VALUE!"},{"$error":"#VALUE!"},{"$f":"INDEX(fdfortax2,MATCH(0,COUNTIF($AN$3:AN720,fdfortax2),0))","v":{"$error":"#N/A"}}]
[null,null,null,null,null,null,null,null,null,null,null,null,null,null,null,null,null,null,null,null,null,null,null,null,null,null,null,null,null,"","","","","","",{"$error":"#VALUE!"},{"$error":"#VALUE!"},{"$error":"#VALUE!"},{"$error":"#VALUE!"},{"$f":"INDEX(fdfortax2,MATCH(0,COUNTIF($AN$3:AN721,fdfortax2),0))","v":{"$error":"#N/A"}}]
[null,null,null,null,null,null,null,null,null,null,null,null,null,null,null,null,null,null,null,null,null,null,null,null,null,null,null,null,null,"","","","","","",{"$error":"#VALUE!"},{"$error":"#VALUE!"},{"$error":"#VALUE!"},{"$error":"#VALUE!"},{"$f":"INDEX(fdfortax2,MATCH(0,COUNTIF($AN$3:AN722,fdfortax2),0))","v":{"$error":"#N/A"}}]
[null,null,null,null,null,null,null,null,null,null,null,null,null,null,null,null,null,null,null,null,null,null,null,null,null,null,null,null,null,"","","","","","",{"$error":"#VALUE!"},{"$error":"#VALUE!"},{"$error":"#VALUE!"},{"$error":"#VALUE!"},{"$f":"INDEX(fdfortax2,MATCH(0,COUNTIF($AN$3:AN723,fdfortax2),0))","v":{"$error":"#N/A"}}]
[null,null,null,null,null,null,null,null,null,null,null,null,null,null,null,null,null,null,null,null,null,null,null,null,null,null,null,null,null,"","","","","","",{"$error":"#VALUE!"},{"$error":"#VALUE!"},{"$error":"#VALUE!"},{"$error":"#VALUE!"},{"$f":"INDEX(fdfortax2,MATCH(0,COUNTIF($AN$3:AN724,fdfortax2),0))","v":{"$error":"#N/A"}}]
[null,null,null,null,null,null,null,null,null,null,null,null,null,null,null,null,null,null,null,null,null,null,null,null,null,null,null,null,null,"","","","","","",{"$error":"#VALUE!"},{"$error":"#VALUE!"},{"$error":"#VALUE!"},{"$error":"#VALUE!"},{"$f":"INDEX(fdfortax2,MATCH(0,COUNTIF($AN$3:AN725,fdfortax2),0))","v":{"$error":"#N/A"}}]
[null,null,null,null,null,null,null,null,null,null,null,null,null,null,null,null,null,null,null,null,null,null,null,null,null,null,null,null,null,"","","","","","",{"$error":"#VALUE!"},{"$error":"#VALUE!"},{"$error":"#VALUE!"},{"$error":"#VALUE!"},{"$f":"INDEX(fdfortax2,MATCH(0,COUNTIF($AN$3:AN726,fdfortax2),0))","v":{"$error":"#N/A"}}]
[null,null,null,null,null,null,null,null,null,null,null,null,null,null,null,null,null,null,null,null,null,null,null,null,null,null,null,null,null,"","","","","","",{"$error":"#VALUE!"},{"$error":"#VALUE!"},{"$error":"#VALUE!"},{"$error":"#VALUE!"},{"$f":"INDEX(fdfortax2,MATCH(0,COUNTIF($AN$3:AN727,fdfortax2),0))","v":{"$error":"#N/A"}}]
[null,null,null,null,null,null,null,null,null,null,null,null,null,null,null,null,null,null,null,null,null,null,null,null,null,null,null,null,null,"","","","","","",{"$error":"#VALUE!"},{"$error":"#VALUE!"},{"$error":"#VALUE!"},{"$error":"#VALUE!"},{"$f":"INDEX(fdfortax2,MATCH(0,COUNTIF($AN$3:AN728,fdfortax2),0))","v":{"$error":"#N/A"}}]
[null,null,null,null,null,null,null,null,null,null,null,null,null,null,null,null,null,null,null,null,null,null,null,null,null,null,null,null,null,"","","","","","",{"$error":"#VALUE!"},{"$error":"#VALUE!"},{"$error":"#VALUE!"},{"$error":"#VALUE!"},{"$f":"INDEX(fdfortax2,MATCH(0,COUNTIF($AN$3:AN729,fdfortax2),0))","v":{"$error":"#N/A"}}]
[null,null,null,null,null,null,null,null,null,null,null,null,null,null,null,null,null,null,null,null,null,null,null,null,null,null,null,null,null,"","","","","","",{"$error":"#VALUE!"},{"$error":"#VALUE!"},{"$error":"#VALUE!"},{"$error":"#VALUE!"},{"$f":"INDEX(fdfortax2,MATCH(0,COUNTIF($AN$3:AN730,fdfortax2),0))","v":{"$error":"#N/A"}}]
[null,null,null,null,null,null,null,null,null,null,null,null,null,null,null,null,null,null,null,null,null,null,null,null,null,null,null,null,null,"","","","","","",{"$error":"#VALUE!"},{"$error":"#VALUE!"},{"$error":"#VALUE!"},{"$error":"#VALUE!"},{"$f":"INDEX(fdfortax2,MATCH(0,COUNTIF($AN$3:AN731,fdfortax2),0))","v":{"$error":"#N/A"}}]
[null,null,null,null,null,null,null,null,null,null,null,null,null,null,null,null,null,null,null,null,null,null,null,null,null,null,null,null,null,"","","","","","",{"$error":"#VALUE!"},{"$error":"#VALUE!"},{"$error":"#VALUE!"},{"$error":"#VALUE!"},{"$f":"INDEX(fdfortax2,MATCH(0,COUNTIF($AN$3:AN732,fdfortax2),0))","v":{"$error":"#N/A"}}]
[null,null,null,null,null,null,null,null,null,null,null,null,null,null,null,null,null,null,null,null,null,null,null,null,null,null,null,null,null,"","","","","","",{"$error":"#VALUE!"},{"$error":"#VALUE!"},{"$error":"#VALUE!"},{"$error":"#VALUE!"},{"$f":"INDEX(fdfortax2,MATCH(0,COUNTIF($AN$3:AN733,fdfortax2),0))","v":{"$error":"#N/A"}}]
[null,null,null,null,null,null,null,null,null,null,null,null,null,null,null,null,null,null,null,null,null,null,null,null,null,null,null,null,null,"","","","","","",{"$error":"#VALUE!"},{"$error":"#VALUE!"},{"$error":"#VALUE!"},{"$error":"#VALUE!"},{"$f":"INDEX(fdfortax2,MATCH(0,COUNTIF($AN$3:AN734,fdfortax2),0))","v":{"$error":"#N/A"}}]
[null,null,null,null,null,null,null,null,null,null,null,null,null,null,null,null,null,null,null,null,null,null,null,null,null,null,null,null,null,"","",{"$f":"IF(AD736=\"\",\"\",AE736-AE735)","v":""},"","",{"$f":"IF(AD736=\"\",\"\",AF736-AG736)","v":""},{"$f":"IF(INT(AD736/30)-(AD736/30)=0,1,0)","v":{"$error":"#VALUE!"}},{"$error":"#VALUE!"},{"$f":"IF(AJ736=1,AK736,IF(ISERROR(AK737),AK736,IF(AK737=\"\",AK736,\"\")))","v":{"$error":"#VALUE!"}},{"$f":"IF(AJ736=1,AK736,IF(ISERROR(AK737),AK736,IF(AK737=\"\",AK736,1)))","v":{"$error":"#VALUE!"}},{"$f":"INDEX(fdfortax2,MATCH(0,COUNTIF($AN$3:AN735,fdfortax2),0))","v":{"$error":"#N/A"}}]
[null,null,null,null,null,null,null,null,null,null,null,null,null,null,null,null,null,null,null,null,null,null,null,null,null,null,null,null,null,"","","","","","",{"$error":"#VALUE!"},{"$error":"#VALUE!"},{"$error":"#VALUE!"},{"$error":"#VALUE!"},{"$f":"INDEX(fdfortax2,MATCH(0,COUNTIF($AN$3:AN736,fdfortax2),0))","v":{"$error":"#N/A"}}]
[null,null,null,null,null,null,null,null,null,null,null,null,null,null,null,null,null,null,null,null,null,null,null,null,null,null,null,null,null,"","","","","","",{"$error":"#VALUE!"},{"$error":"#VALUE!"},{"$error":"#VALUE!"},{"$error":"#VALUE!"},{"$f":"INDEX(fdfortax2,MATCH(0,COUNTIF($AN$3:AN737,fdfortax2),0))","v":{"$error":"#N/A"}}]
[null,null,null,null,null,null,null,null,null,null,null,null,null,null,null,null,null,null,null,null,null,null,null,null,null,null,null,null,null,"","","","","","",{"$error":"#VALUE!"},{"$error":"#VALUE!"},{"$error":"#VALUE!"},{"$error":"#VALUE!"},{"$f":"INDEX(fdfortax2,MATCH(0,COUNTIF($AN$3:AN738,fdfortax2),0))","v":{"$error":"#N/A"}}]
[null,null,null,null,null,null,null,null,null,null,null,null,null,null,null,null,null,null,null,null,null,null,null,null,null,null,null,null,null,"","","","","","",{"$error":"#VALUE!"},{"$error":"#VALUE!"},{"$error":"#VALUE!"},{"$error":"#VALUE!"},{"$f":"INDEX(fdfortax2,MATCH(0,COUNTIF($AN$3:AN739,fdfortax2),0))","v":{"$error":"#N/A"}}]
[null,null,null,null,null,null,null,null,null,null,null,null,null,null,null,null,null,null,null,null,null,null,null,null,null,null,null,null,null,"","","","","","",{"$error":"#VALUE!"},{"$error":"#VALUE!"},{"$error":"#VALUE!"},{"$error":"#VALUE!"},{"$f":"INDEX(fdfortax2,MATCH(0,COUNTIF($AN$3:AN740,fdfortax2),0))","v":{"$error":"#N/A"}}]
[null,null,null,null,null,null,null,null,null,null,null,null,null,null,null,null,null,null,null,null,null,null,null,null,null,null,null,null,null,"","","","","","",{"$error":"#VALUE!"},{"$error":"#VALUE!"},{"$error":"#VALUE!"},{"$error":"#VALUE!"},{"$f":"INDEX(fdfortax2,MATCH(0,COUNTIF($AN$3:AN741,fdfortax2),0))","v":{"$error":"#N/A"}}]
[null,null,null,null,null,null,null,null,null,null,null,null,null,null,null,null,null,null,null,null,null,null,null,null,null,null,null,null,null,"","","","","","",{"$error":"#VALUE!"},{"$error":"#VALUE!"},{"$error":"#VALUE!"},{"$error":"#VALUE!"},{"$f":"INDEX(fdfortax2,MATCH(0,COUNTIF($AN$3:AN742,fdfortax2),0))","v":{"$error":"#N/A"}}]
[null,null,null,null,null,null,null,null,null,null,null,null,null,null,null,null,null,null,null,null,null,null,null,null,null,null,null,null,null,"","","","","","",{"$error":"#VALUE!"},{"$error":"#VALUE!"},{"$error":"#VALUE!"},{"$error":"#VALUE!"},{"$f":"INDEX(fdfortax2,MATCH(0,COUNTIF($AN$3:AN743,fdfortax2),0))","v":{"$error":"#N/A"}}]
[null,null,null,null,null,null,null,null,null,null,null,null,null,null,null,null,null,null,null,null,null,null,null,null,null,null,null,null,null,"","","","","","",{"$error":"#VALUE!"},{"$error":"#VALUE!"},{"$error":"#VALUE!"},{"$error":"#VALUE!"},{"$f":"INDEX(fdfortax2,MATCH(0,COUNTIF($AN$3:AN744,fdfortax2),0))","v":{"$error":"#N/A"}}]
[null,null,null,null,null,null,null,null,null,null,null,null,null,null,null,null,null,null,null,null,null,null,null,null,null,null,null,null,null,"","","","","","",{"$error":"#VALUE!"},{"$error":"#VALUE!"},{"$error":"#VALUE!"},{"$error":"#VALUE!"},{"$f":"INDEX(fdfortax2,MATCH(0,COUNTIF($AN$3:AN745,fdfortax2),0))","v":{"$error":"#N/A"}}]
[null,null,null,null,null,null,null,null,null,null,null,null,null,null,null,null,null,null,null,null,null,null,null,null,null,null,null,null,null,"","","","","","",{"$error":"#VALUE!"},{"$error":"#VALUE!"},{"$error":"#VALUE!"},{"$error":"#VALUE!"},{"$f":"INDEX(fdfortax2,MATCH(0,COUNTIF($AN$3:AN746,fdfortax2),0))","v":{"$error":"#N/A"}}]
[null,null,null,null,null,null,null,null,null,null,null,null,null,null,null,null,null,null,null,null,null,null,null,null,null,null,null,null,null,"","","","","","",{"$error":"#VALUE!"},{"$error":"#VALUE!"},{"$error":"#VALUE!"},{"$error":"#VALUE!"},{"$f":"INDEX(fdfortax2,MATCH(0,COUNTIF($AN$3:AN747,fdfortax2),0))","v":{"$error":"#N/A"}}]
[null,null,null,null,null,null,null,null,null,null,null,null,null,null,null,null,null,null,null,null,null,null,null,null,null,null,null,null,null,"","","","","","",{"$error":"#VALUE!"},{"$error":"#VALUE!"},{"$error":"#VALUE!"},{"$error":"#VALUE!"},{"$f":"INDEX(fdfortax2,MATCH(0,COUNTIF($AN$3:AN748,fdfortax2),0))","v":{"$error":"#N/A"}}]
[null,null,null,null,null,null,null,null,null,null,null,null,null,null,null,null,null,null,null,null,null,null,null,null,null,null,null,null,null,"","","","","","",{"$error":"#VALUE!"},{"$error":"#VALUE!"},{"$error":"#VALUE!"},{"$error":"#VALUE!"},{"$f":"INDEX(fdfortax2,MATCH(0,COUNTIF($AN$3:AN749,fdfortax2),0))","v":{"$error":"#N/A"}}]
[null,null,null,null,null,null,null,null,null,null,null,null,null,null,null,null,null,null,null,null,null,null,null,null,null,null,null,null,null,"","","","","","",{"$error":"#VALUE!"},{"$error":"#VALUE!"},{"$error":"#VALUE!"},{"$error":"#VALUE!"},{"$f":"INDEX(fdfortax2,MATCH(0,COUNTIF($AN$3:AN750,fdfortax2),0))","v":{"$error":"#N/A"}}]
[null,null,null,null,null,null,null,null,null,null,null,null,null,null,null,null,null,null,null,null,null,null,null,null,null,null,null,null,null,"","","","","","",{"$error":"#VALUE!"},{"$error":"#VALUE!"},{"$error":"#VALUE!"},{"$error":"#VALUE!"},{"$f":"INDEX(fdfortax2,MATCH(0,COUNTIF($AN$3:AN751,fdfortax2),0))","v":{"$error":"#N/A"}}]
[null,null,null,null,null,null,null,null,null,null,null,null,null,null,null,null,null,null,null,null,null,null,null,null,null,null,null,null,null,"","","","","","",{"$error":"#VALUE!"},{"$error":"#VALUE!"},{"$error":"#VALUE!"},{"$error":"#VALUE!"},{"$f":"INDEX(fdfortax2,MATCH(0,COUNTIF($AN$3:AN752,fdfortax2),0))","v":{"$error":"#N/A"}}]
[null,null,null,null,null,null,null,null,null,null,null,null,null,null,null,null,null,null,null,null,null,null,null,null,null,null,null,null,null,"","","","","","",{"$error":"#VALUE!"},{"$error":"#VALUE!"},{"$error":"#VALUE!"},{"$error":"#VALUE!"},{"$f":"INDEX(fdfortax2,MATCH(0,COUNTIF($AN$3:AN753,fdfortax2),0))","v":{"$error":"#N/A"}}]
[null,null,null,null,null,null,null,null,null,null,null,null,null,null,null,null,null,null,null,null,null,null,null,null,null,null,null,null,null,"","","","","","",{"$error":"#VALUE!"},{"$error":"#VALUE!"},{"$error":"#VALUE!"},{"$error":"#VALUE!"},{"$f":"INDEX(fdfortax2,MATCH(0,COUNTIF($AN$3:AN754,fdfortax2),0))","v":{"$error":"#N/A"}}]
[null,null,null,null,null,null,null,null,null,null,null,null,null,null,null,null,null,null,null,null,null,null,null,null,null,null,null,null,null,"","","","","","",{"$error":"#VALUE!"},{"$error":"#VALUE!"},{"$error":"#VALUE!"},{"$error":"#VALUE!"},{"$f":"INDEX(fdfortax2,MATCH(0,COUNTIF($AN$3:AN755,fdfortax2),0))","v":{"$error":"#N/A"}}]
[null,null,null,null,null,null,null,null,null,null,null,null,null,null,null,null,null,null,null,null,null,null,null,null,null,null,null,null,null,"","","","","","",{"$error":"#VALUE!"},{"$error":"#VALUE!"},{"$error":"#VALUE!"},{"$error":"#VALUE!"},{"$f":"INDEX(fdfortax2,MATCH(0,COUNTIF($AN$3:AN756,fdfortax2),0))","v":{"$error":"#N/A"}}]
[null,null,null,null,null,null,null,null,null,null,null,null,null,null,null,null,null,null,null,null,null,null,null,null,null,null,null,null,null,"","","","","","",{"$error":"#VALUE!"},{"$error":"#VALUE!"},{"$error":"#VALUE!"},{"$error":"#VALUE!"},{"$f":"INDEX(fdfortax2,MATCH(0,COUNTIF($AN$3:AN757,fdfortax2),0))","v":{"$error":"#N/A"}}]
[null,null,null,null,null,null,null,null,null,null,null,null,null,null,null,null,null,null,null,null,null,null,null,null,null,null,null,null,null,"","","","","","",{"$error":"#VALUE!"},{"$error":"#VALUE!"},{"$error":"#VALUE!"},{"$error":"#VALUE!"},{"$f":"INDEX(fdfortax2,MATCH(0,COUNTIF($AN$3:AN758,fdfortax2),0))","v":{"$error":"#N/A"}}]
[null,null,null,null,null,null,null,null,null,null,null,null,null,null,null,null,null,null,null,null,null,null,null,null,null,null,null,null,null,"","","","","","",{"$error":"#VALUE!"},{"$error":"#VALUE!"},{"$error":"#VALUE!"},{"$error":"#VALUE!"},{"$f":"INDEX(fdfortax2,MATCH(0,COUNTIF($AN$3:AN759,fdfortax2),0))","v":{"$error":"#N/A"}}]
[null,null,null,null,null,null,null,null,null,null,null,null,null,null,null,null,null,null,null,null,null,null,null,null,null,null,null,null,null,"","","","","","",{"$error":"#VALUE!"},{"$error":"#VALUE!"},{"$error":"#VALUE!"},{"$error":"#VALUE!"},{"$f":"INDEX(fdfortax2,MATCH(0,COUNTIF($AN$3:AN760,fdfortax2),0))","v":{"$error":"#N/A"}}]
[null,null,null,null,null,null,null,null,null,null,null,null,null,null,null,null,null,null,null,null,null,null,null,null,null,null,null,null,null,"","","","","","",{"$error":"#VALUE!"},{"$error":"#VALUE!"},{"$error":"#VALUE!"},{"$error":"#VALUE!"},{"$f":"INDEX(fdfortax2,MATCH(0,COUNTIF($AN$3:AN761,fdfortax2),0))","v":{"$error":"#N/A"}}]
[null,null,null,null,null,null,null,null,null,null,null,null,null,null,null,null,null,null,null,null,null,null,null,null,null,null,null,null,null,"","","","","","",{"$error":"#VALUE!"},{"$error":"#VALUE!"},{"$error":"#VALUE!"},{"$error":"#VALUE!"},{"$f":"INDEX(fdfortax2,MATCH(0,COUNTIF($AN$3:AN762,fdfortax2),0))","v":{"$error":"#N/A"}}]
[null,null,null,null,null,null,null,null,null,null,null,null,null,null,null,null,null,null,null,null,null,null,null,null,null,null,null,null,null,"","","","","","",{"$error":"#VALUE!"},{"$error":"#VALUE!"},{"$error":"#VALUE!"},{"$error":"#VALUE!"},{"$f":"INDEX(fdfortax2,MATCH(0,COUNTIF($AN$3:AN763,fdfortax2),0))","v":{"$error":"#N/A"}}]
[null,null,null,null,null,null,null,null,null,null,null,null,null,null,null,null,null,null,null,null,null,null,null,null,null,null,null,null,null,"","","","","","",{"$error":"#VALUE!"},{"$error":"#VALUE!"},{"$error":"#VALUE!"},{"$error":"#VALUE!"},{"$f":"INDEX(fdfortax2,MATCH(0,COUNTIF($AN$3:AN764,fdfortax2),0))","v":{"$error":"#N/A"}}]
[null,null,null,null,null,null,null,null,null,null,null,null,null,null,null,null,null,null,null,null,null,null,null,null,null,null,null,null,null,"","","","","","",{"$error":"#VALUE!"},{"$error":"#VALUE!"},{"$error":"#VALUE!"},{"$error":"#VALUE!"},{"$f":"INDEX(fdfortax2,MATCH(0,COUNTIF($AN$3:AN765,fdfortax2),0))","v":{"$error":"#N/A"}}]
[null,null,null,null,null,null,null,null,null,null,null,null,null,null,null,null,null,null,null,null,null,null,null,null,null,null,null,null,null,"","","","","","",{"$error":"#VALUE!"},{"$error":"#VALUE!"},{"$error":"#VALUE!"},{"$error":"#VALUE!"},{"$f":"INDEX(fdfortax2,MATCH(0,COUNTIF($AN$3:AN766,fdfortax2),0))","v":{"$error":"#N/A"}}]
[null,null,null,null,null,null,null,null,null,null,null,null,null,null,null,null,null,null,null,null,null,null,null,null,null,null,null,null,null,"","","","","","",{"$error":"#VALUE!"},{"$error":"#VALUE!"},{"$error":"#VALUE!"},{"$error":"#VALUE!"},{"$f":"INDEX(fdfortax2,MATCH(0,COUNTIF($AN$3:AN767,fdfortax2),0))","v":{"$error":"#N/A"}}]
[null,null,null,null,null,null,null,null,null,null,null,null,null,null,null,null,null,null,null,null,null,null,null,null,null,null,null,null,null,"","","","","","",{"$error":"#VALUE!"},{"$error":"#VALUE!"},{"$error":"#VALUE!"},{"$error":"#VALUE!"},{"$f":"INDEX(fdfortax2,MATCH(0,COUNTIF($AN$3:AN768,fdfortax2),0))","v":{"$error":"#N/A"}}]
[null,null,null,null,null,null,null,null,null,null,null,null,null,null,null,null,null,null,null,null,null,null,null,null,null,null,null,null,null,"","","","","","",{"$error":"#VALUE!"},{"$error":"#VALUE!"},{"$error":"#VALUE!"},{"$error":"#VALUE!"},{"$f":"INDEX(fdfortax2,MATCH(0,COUNTIF($AN$3:AN769,fdfortax2),0))","v":{"$error":"#N/A"}}]
[null,null,null,null,null,null,null,null,null,null,null,null,null,null,null,null,null,null,null,null,null,null,null,null,null,null,null,null,null,"","","","","","",{"$error":"#VALUE!"},{"$error":"#VALUE!"},{"$error":"#VALUE!"},{"$error":"#VALUE!"},{"$f":"INDEX(fdfortax2,MATCH(0,COUNTIF($AN$3:AN770,fdfortax2),0))","v":{"$error":"#N/A"}}]
[null,null,null,null,null,null,null,null,null,null,null,null,null,null,null,null,null,null,null,null,null,null,null,null,null,null,null,null,null,"","","",{"$f":"IF(AD772=\"\",\"\",AF772*(1-IF(taxrd=10%,10.3%,IF(taxrd=20%,20.6%,IF(taxrd=30%,30.9%)))))","v":""},{"$f":"IF(AD772=\"\",\"\",AH771+AG772+L772)","v":""},"",{"$error":"#VALUE!"},{"$error":"#VALUE!"},{"$error":"#VALUE!"},{"$error":"#VALUE!"},{"$f":"INDEX(fdfortax2,MATCH(0,COUNTIF($AN$3:AN771,fdfortax2),0))","v":{"$error":"#N/A"}}]
[null,null,null,null,null,null,null,null,null,null,null,null,null,null,null,null,null,null,null,null,null,null,null,null,null,null,null,null,null,{"$f":"IF(AD772<rdura,AD772+1,\"\")","v":""},{"$f":"IF(AD773=\"\",\"\",AE772*(1+raterd/factor1)^(factor1*1/ydays))","v":""},"","","","",{"$error":"#VALUE!"},{"$f":"IF(AJ772=1,AI773,AK772+AI773)","v":{"$error":"#VALUE!"}},{"$error":"#VALUE!"},{"$error":"#VALUE!"},{"$f":"INDEX(fdfortax2,MATCH(0,COUNTIF($AN$3:AN772,fdfortax2),0))","v":{"$error":"#N/A"}}]
[null,null,null,null,null,null,null,null,null,null,null,null,null,null,null,null,null,null,null,null,null,null,null,null,null,null,null,null,null,"","","","","","",{"$error":"#VALUE!"},{"$error":"#VALUE!"},{"$error":"#VALUE!"},{"$error":"#VALUE!"},{"$f":"INDEX(fdfortax2,MATCH(0,COUNTIF($AN$3:AN773,fdfortax2),0))","v":{"$error":"#N/A"}}]
[null,null,null,null,null,null,null,null,null,null,null,null,null,null,null,null,null,null,null,null,null,null,null,null,null,null,null,null,null,"","","","","","",{"$error":"#VALUE!"},{"$error":"#VALUE!"},{"$error":"#VALUE!"},{"$error":"#VALUE!"},{"$f":"INDEX(fdfortax2,MATCH(0,COUNTIF($AN$3:AN774,fdfortax2),0))","v":{"$error":"#N/A"}}]
[null,null,null,null,null,null,null,null,null,null,null,null,null,null,null,null,null,null,null,null,null,null,null,null,null,null,null,null,null,"","","","","","",{"$error":"#VALUE!"},{"$error":"#VALUE!"},{"$error":"#VALUE!"},{"$error":"#VALUE!"},{"$f":"INDEX(fdfortax2,MATCH(0,COUNTIF($AN$3:AN775,fdfortax2),0))","v":{"$error":"#N/A"}}]
[null,null,null,null,null,null,null,null,null,null,null,null,null,null,null,null,null,null,null,null,null,null,null,null,null,null,null,null,null,"","","","","","",{"$error":"#VALUE!"},{"$error":"#VALUE!"},{"$error":"#VALUE!"},{"$error":"#VALUE!"},{"$f":"INDEX(fdfortax2,MATCH(0,COUNTIF($AN$3:AN776,fdfortax2),0))","v":{"$error":"#N/A"}}]
[null,null,null,null,null,null,null,null,null,null,null,null,null,null,null,null,null,null,null,null,null,null,null,null,null,null,null,null,null,"","","","","","",{"$error":"#VALUE!"},{"$error":"#VALUE!"},{"$error":"#VALUE!"},{"$error":"#VALUE!"},{"$f":"INDEX(fdfortax2,MATCH(0,COUNTIF($AN$3:AN777,fdfortax2),0))","v":{"$error":"#N/A"}}]
[null,null,null,null,null,null,null,null,null,null,null,null,null,null,null,null,null,null,null,null,null,null,null,null,null,null,null,null,null,"","","","","","",{"$error":"#VALUE!"},{"$error":"#VALUE!"},{"$error":"#VALUE!"},{"$error":"#VALUE!"},{"$f":"INDEX(fdfortax2,MATCH(0,COUNTIF($AN$3:AN778,fdfortax2),0))","v":{"$error":"#N/A"}}]
[null,null,null,null,null,null,null,null,null,null,null,null,null,null,null,null,null,null,null,null,null,null,null,null,null,null,null,null,null,"","","","","","",{"$error":"#VALUE!"},{"$error":"#VALUE!"},{"$error":"#VALUE!"},{"$error":"#VALUE!"},{"$f":"INDEX(fdfortax2,MATCH(0,COUNTIF($AN$3:AN779,fdfortax2),0))","v":{"$error":"#N/A"}}]
[null,null,null,null,null,null,null,null,null,null,null,null,null,null,null,null,null,null,null,null,null,null,null,null,null,null,null,null,null,"","","","","","",{"$error":"#VALUE!"},{"$error":"#VALUE!"},{"$error":"#VALUE!"},{"$error":"#VALUE!"},{"$f":"INDEX(fdfortax2,MATCH(0,COUNTIF($AN$3:AN780,fdfortax2),0))","v":{"$error":"#N/A"}}]
[null,null,null,null,null,null,null,null,null,null,null,null,null,null,null,null,null,null,null,null,null,null,null,null,null,null,null,null,null,"","","","","","",{"$error":"#VALUE!"},{"$error":"#VALUE!"},{"$error":"#VALUE!"},{"$error":"#VALUE!"},{"$f":"INDEX(fdfortax2,MATCH(0,COUNTIF($AN$3:AN781,fdfortax2),0))","v":{"$error":"#N/A"}}]
[null,null,null,null,null,null,null,null,null,null,null,null,null,null,null,null,null,null,null,null,null,null,null,null,null,null,null,null,null,"","","","","","",{"$error":"#VALUE!"},{"$error":"#VALUE!"},{"$error":"#VALUE!"},{"$error":"#VALUE!"},{"$f":"INDEX(fdfortax2,MATCH(0,COUNTIF($AN$3:AN782,fdfortax2),0))","v":{"$error":"#N/A"}}]
[null,null,null,null,null,null,null,null,null,null,null,null,null,null,null,null,null,null,null,null,null,null,null,null,null,null,null,null,null,"","","","","","",{"$error":"#VALUE!"},{"$error":"#VALUE!"},{"$error":"#VALUE!"},{"$error":"#VALUE!"},{"$f":"INDEX(fdfortax2,MATCH(0,COUNTIF($AN$3:AN783,fdfortax2),0))","v":{"$error":"#N/A"}}]
[null,null,null,null,null,null,null,null,null,null,null,null,null,null,null,null,null,null,null,null,null,null,null,null,null,null,null,null,null,"","","","","","",{"$error":"#VALUE!"},{"$error":"#VALUE!"},{"$error":"#VALUE!"},{"$error":"#VALUE!"},{"$f":"INDEX(fdfortax2,MATCH(0,COUNTIF($AN$3:AN784,fdfortax2),0))","v":{"$error":"#N/A"}}]
[null,null,null,null,null,null,null,null,null,null,null,null,null,null,null,null,null,null,null,null,null,null,null,null,null,null,null,null,null,"","","","","","",{"$error":"#VALUE!"},{"$error":"#VALUE!"},{"$error":"#VALUE!"},{"$error":"#VALUE!"},{"$f":"INDEX(fdfortax2,MATCH(0,COUNTIF($AN$3:AN785,fdfortax2),0))","v":{"$error":"#N/A"}}]
[null,null,null,null,null,null,null,null,null,null,null,null,null,null,null,null,null,null,null,null,null,null,null,null,null,null,null,null,null,"","","","","","",{"$error":"#VALUE!"},{"$error":"#VALUE!"},{"$error":"#VALUE!"},{"$error":"#VALUE!"},{"$f":"INDEX(fdfortax2,MATCH(0,COUNTIF($AN$3:AN786,fdfortax2),0))","v":{"$error":"#N/A"}}]
[null,null,null,null,null,null,null,null,null,null,null,null,null,null,null,null,null,null,null,null,null,null,null,null,null,null,null,null,null,"","","","","","",{"$error":"#VALUE!"},{"$error":"#VALUE!"},{"$error":"#VALUE!"},{"$error":"#VALUE!"},{"$f":"INDEX(fdfortax2,MATCH(0,COUNTIF($AN$3:AN787,fdfortax2),0))","v":{"$error":"#N/A"}}]
[null,null,null,null,null,null,null,null,null,null,null,null,null,null,null,null,null,null,null,null,null,null,null,null,null,null,null,null,null,"","","","","","",{"$error":"#VALUE!"},{"$error":"#VALUE!"},{"$error":"#VALUE!"},{"$error":"#VALUE!"},{"$f":"INDEX(fdfortax2,MATCH(0,COUNTIF($AN$3:AN788,fdfortax2),0))","v":{"$error":"#N/A"}}]
[null,null,null,null,null,null,null,null,null,null,null,null,null,null,null,null,null,null,null,null,null,null,null,null,null,null,null,null,null,"","","","","","",{"$error":"#VALUE!"},{"$error":"#VALUE!"},{"$error":"#VALUE!"},{"$error":"#VALUE!"},{"$f":"INDEX(fdfortax2,MATCH(0,COUNTIF($AN$3:AN789,fdfortax2),0))","v":{"$error":"#N/A"}}]
[null,null,null,null,null,null,null,null,null,null,null,null,null,null,null,null,null,null,null,null,null,null,null,null,null,null,null,null,null,"","","","","","",{"$error":"#VALUE!"},{"$error":"#VALUE!"},{"$error":"#VALUE!"},{"$error":"#VALUE!"},{"$f":"INDEX(fdfortax2,MATCH(0,COUNTIF($AN$3:AN790,fdfortax2),0))","v":{"$error":"#N/A"}}]
[null,null,null,null,null,null,null,null,null,null,null,null,null,null,null,null,null,null,null,null,null,null,null,null,null,null,null,null,null,"","","","","","",{"$error":"#VALUE!"},{"$error":"#VALUE!"},{"$error":"#VALUE!"},{"$error":"#VALUE!"},{"$f":"INDEX(fdfortax2,MATCH(0,COUNTIF($AN$3:AN791,fdfortax2),0))","v":{"$error":"#N/A"}}]
[null,null,null,null,null,null,null,null,null,null,null,null,null,null,null,null,null,null,null,null,null,null,null,null,null,null,null,null,null,"","","","","","",{"$error":"#VALUE!"},{"$error":"#VALUE!"},{"$error":"#VALUE!"},{"$error":"#VALUE!"},{"$f":"INDEX(fdfortax2,MATCH(0,COUNTIF($AN$3:AN792,fdfortax2),0))","v":{"$error":"#N/A"}}]
[null,null,null,null,null,null,null,null,null,null,null,null,null,null,null,null,null,null,null,null,null,null,null,null,null,null,null,null,null,"","","","","","",{"$error":"#VALUE!"},{"$error":"#VALUE!"},{"$error":"#VALUE!"},{"$error":"#VALUE!"},{"$f":"INDEX(fdfortax2,MATCH(0,COUNTIF($AN$3:AN793,fdfortax2),0))","v":{"$error":"#N/A"}}]
[null,null,null,null,null,null,null,null,null,null,null,null,null,null,null,null,null,null,null,null,null,null,null,null,null,null,null,null,null,"","","","","","",{"$error":"#VALUE!"},{"$error":"#VALUE!"},{"$error":"#VALUE!"},{"$error":"#VALUE!"},{"$f":"INDEX(fdfortax2,MATCH(0,COUNTIF($AN$3:AN794,fdfortax2),0))","v":{"$error":"#N/A"}}]
[null,null,null,null,null,null,null,null,null,null,null,null,null,null,null,null,null,null,null,null,null,null,null,null,null,null,null,null,null,"","","","","","",{"$error":"#VALUE!"},{"$error":"#VALUE!"},{"$error":"#VALUE!"},{"$error":"#VALUE!"},{"$f":"INDEX(fdfortax2,MATCH(0,COUNTIF($AN$3:AN795,fdfortax2),0))","v":{"$error":"#N/A"}}]
[null,null,null,null,null,null,null,null,null,null,null,null,null,null,null,null,null,null,null,null,null,null,null,null,null,null,null,null,null,"","","","","","",{"$error":"#VALUE!"},{"$error":"#VALUE!"},{"$error":"#VALUE!"},{"$error":"#VALUE!"},{"$f":"INDEX(fdfortax2,MATCH(0,COUNTIF($AN$3:AN796,fdfortax2),0))","v":{"$error":"#N/A"}}]
[null,null,null,null,null,null,null,null,null,null,null,null,null,null,null,null,null,null,null,null,null,null,null,null,null,null,null,null,null,"","","","","","",{"$error":"#VALUE!"},{"$error":"#VALUE!"},{"$error":"#VALUE!"},{"$error":"#VALUE!"},{"$f":"INDEX(fdfortax2,MATCH(0,COUNTIF($AN$3:AN797,fdfortax2),0))","v":{"$error":"#N/A"}}]
[null,null,null,null,null,null,null,null,null,null,null,null,null,null,null,null,null,null,null,null,null,null,null,null,null,null,null,null,null,"","","","","","",{"$error":"#VALUE!"},{"$error":"#VALUE!"},{"$error":"#VALUE!"},{"$error":"#VALUE!"},{"$f":"INDEX(fdfortax2,MATCH(0,COUNTIF($AN$3:AN798,fdfortax2),0))","v":{"$error":"#N/A"}}]
[null,null,null,null,null,null,null,null,null,null,null,null,null,null,null,null,null,null,null,null,null,null,null,null,null,null,null,null,null,"","",{"$f":"IF(AD800=\"\",\"\",AE800-AE799)","v":""},"","",{"$f":"IF(AD800=\"\",\"\",AF800-AG800)","v":""},{"$f":"IF(INT(AD800/30)-(AD800/30)=0,1,0)","v":{"$error":"#VALUE!"}},{"$error":"#VALUE!"},{"$f":"IF(AJ800=1,AK800,IF(ISERROR(AK801),AK800,IF(AK801=\"\",AK800,\"\")))","v":{"$error":"#VALUE!"}},{"$f":"IF(AJ800=1,AK800,IF(ISERROR(AK801),AK800,IF(AK801=\"\",AK800,1)))","v":{"$error":"#VALUE!"}},{"$f":"INDEX(fdfortax2,MATCH(0,COUNTIF($AN$3:AN799,fdfortax2),0))","v":{"$error":"#N/A"}}]
[null,null,null,null,null,null,null,null,null,null,null,null,null,null,null,null,null,null,null,null,null,null,null,null,null,null,null,null,null,"","","","","","",{"$error":"#VALUE!"},{"$error":"#VALUE!"},{"$error":"#VALUE!"},{"$error":"#VALUE!"},{"$f":"INDEX(fdfortax2,MATCH(0,COUNTIF($AN$3:AN800,fdfortax2),0))","v":{"$error":"#N/A"}}]
[null,null,null,null,null,null,null,null,null,null,null,null,null,null,null,null,null,null,null,null,null,null,null,null,null,null,null,null,null,"","","","","","",{"$error":"#VALUE!"},{"$error":"#VALUE!"},{"$error":"#VALUE!"},{"$error":"#VALUE!"},{"$f":"INDEX(fdfortax2,MATCH(0,COUNTIF($AN$3:AN801,fdfortax2),0))","v":{"$error":"#N/A"}}]
[null,null,null,null,null,null,null,null,null,null,null,null,null,null,null,null,null,null,null,null,null,null,null,null,null,null,null,null,null,"","","","","","",{"$error":"#VALUE!"},{"$error":"#VALUE!"},{"$error":"#VALUE!"},{"$error":"#VALUE!"},{"$f":"INDEX(fdfortax2,MATCH(0,COUNTIF($AN$3:AN802,fdfortax2),0))","v":{"$error":"#N/A"}}]
[null,null,null,null,null,null,null,null,null,null,null,null,null,null,null,null,null,null,null,null,null,null,null,null,null,null,null,null,null,"","","","","","",{"$error":"#VALUE!"},{"$error":"#VALUE!"},{"$error":"#VALUE!"},{"$error":"#VALUE!"},{"$f":"INDEX(fdfortax2,MATCH(0,COUNTIF($AN$3:AN803,fdfortax2),0))","v":{"$error":"#N/A"}}]
[null,null,null,null,null,null,null,null,null,null,null,null,null,null,null,null,null,null,null,null,null,null,null,null,null,null,null,null,null,"","","","","","",{"$error":"#VALUE!"},{"$error":"#VALUE!"},{"$error":"#VALUE!"},{"$error":"#VALUE!"},{"$f":"INDEX(fdfortax2,MATCH(0,COUNTIF($AN$3:AN804,fdfortax2),0))","v":{"$error":"#N/A"}}]
[null,null,null,null,null,null,null,null,null,null,null,null,null,null,null,null,null,null,null,null,null,null,null,null,null,null,null,null,null,"","","","","","",{"$error":"#VALUE!"},{"$error":"#VALUE!"},{"$error":"#VALUE!"},{"$error":"#VALUE!"},{"$f":"INDEX(fdfortax2,MATCH(0,COUNTIF($AN$3:AN805,fdfortax2),0))","v":{"$error":"#N/A"}}]
[null,null,null,null,null,null,null,null,null,null,null,null,null,null,null,null,null,null,null,null,null,null,null,null,null,null,null,null,null,"","","","","","",{"$error":"#VALUE!"},{"$error":"#VALUE!"},{"$error":"#VALUE!"},{"$error":"#VALUE!"},{"$f":"INDEX(fdfortax2,MATCH(0,COUNTIF($AN$3:AN806,fdfortax2),0))","v":{"$error":"#N/A"}}]
[null,null,null,null,null,null,null,null,null,null,null,null,null,null,null,null,null,null,null,null,null,null,null,null,null,null,null,null,null,"","","","","","",{"$error":"#VALUE!"},{"$error":"#VALUE!"},{"$error":"#VALUE!"},{"$error":"#VALUE!"},{"$f":"INDEX(fdfortax2,MATCH(0,COUNTIF($AN$3:AN807,fdfortax2),0))","v":{"$error":"#N/A"}}]
[null,null,null,null,null,null,null,null,null,null,null,null,null,null,null,null,null,null,null,null,null,null,null,null,null,null,null,null,null,"","","","","","",{"$error":"#VALUE!"},{"$error":"#VALUE!"},{"$error":"#VALUE!"},{"$error":"#VALUE!"},{"$f":"INDEX(fdfortax2,MATCH(0,COUNTIF($AN$3:AN808,fdfortax2),0))","v":{"$error":"#N/A"}}]
[null,null,null,null,null,null,null,null,null,null,null,null,null,null,null,null,null,null,null,null,null,null,null,null,null,null,null,null,null,"","","","","","",{"$error":"#VALUE!"},{"$error":"#VALUE!"},{"$error":"#VALUE!"},{"$error":"#VALUE!"},{"$f":"INDEX(fdfortax2,MATCH(0,COUNTIF($AN$3:AN809,fdfortax2),0))","v":{"$error":"#N/A"}}]
[null,null,null,null,null,null,null,null,null,null,null,null,null,null,null,null,null,null,null,null,null,null,null,null,null,null,null,null,null,"","","","","","",{"$error":"#VALUE!"},{"$error":"#VALUE!"},{"$error":"#VALUE!"},{"$error":"#VALUE!"},{"$f":"INDEX(fdfortax2,MATCH(0,COUNTIF($AN$3:AN810,fdfortax2),0))","v":{"$error":"#N/A"}}]
[null,null,null,null,null,null,null,null,null,null,null,null,null,null,null,null,null,null,null,null,null,null,null,null,null,null,null,null,null,"","","","","","",{"$error":"#VALUE!"},{"$error":"#VALUE!"},{"$error":"#VALUE!"},{"$error":"#VALUE!"},{"$f":"INDEX(fdfortax2,MATCH(0,COUNTIF($AN$3:AN811,fdfortax2),0))","v":{"$error":"#N/A"}}]
[null,null,null,null,null,null,null,null,null,null,null,null,null,null,null,null,null,null,null,null,null,null,null,null,null,null,null,null,null,"","","","","","",{"$error":"#VALUE!"},{"$error":"#VALUE!"},{"$error":"#VALUE!"},{"$error":"#VALUE!"},{"$f":"INDEX(fdfortax2,MATCH(0,COUNTIF($AN$3:AN812,fdfortax2),0))","v":{"$error":"#N/A"}}]
[null,null,null,null,null,null,null,null,null,null,null,null,null,null,null,null,null,null,null,null,null,null,null,null,null,null,null,null,null,"","","","","","",{"$error":"#VALUE!"},{"$error":"#VALUE!"},{"$error":"#VALUE!"},{"$error":"#VALUE!"},{"$f":"INDEX(fdfortax2,MATCH(0,COUNTIF($AN$3:AN813,fdfortax2),0))","v":{"$error":"#N/A"}}]
[null,null,null,null,null,null,null,null,null,null,null,null,null,null,null,null,null,null,null,null,null,null,null,null,null,null,null,null,null,"","","","","","",{"$error":"#VALUE!"},{"$error":"#VALUE!"},{"$error":"#VALUE!"},{"$error":"#VALUE!"},{"$f":"INDEX(fdfortax2,MATCH(0,COUNTIF($AN$3:AN814,fdfortax2),0))","v":{"$error":"#N/A"}}]
[null,null,null,null,null,null,null,null,null,null,null,null,null,null,null,null,null,null,null,null,null,null,null,null,null,null,null,null,null,"","","","","","",{"$error":"#VALUE!"},{"$error":"#VALUE!"},{"$error":"#VALUE!"},{"$error":"#VALUE!"},{"$f":"INDEX(fdfortax2,MATCH(0,COUNTIF($AN$3:AN815,fdfortax2),0))","v":{"$error":"#N/A"}}]
[null,null,null,null,null,null,null,null,null,null,null,null,null,null,null,null,null,null,null,null,null,null,null,null,null,null,null,null,null,"","","","","","",{"$error":"#VALUE!"},{"$error":"#VALUE!"},{"$error":"#VALUE!"},{"$error":"#VALUE!"},{"$f":"INDEX(fdfortax2,MATCH(0,COUNTIF($AN$3:AN816,fdfortax2),0))","v":{"$error":"#N/A"}}]
[null,null,null,null,null,null,null,null,null,null,null,null,null,null,null,null,null,null,null,null,null,null,null,null,null,null,null,null,null,"","","","","","",{"$error":"#VALUE!"},{"$error":"#VALUE!"},{"$error":"#VALUE!"},{"$error":"#VALUE!"},{"$f":"INDEX(fdfortax2,MATCH(0,COUNTIF($AN$3:AN817,fdfortax2),0))","v":{"$error":"#N/A"}}]
[null,null,null,null,null,null,null,null,null,null,null,null,null,null,null,null,null,null,null,null,null,null,null,null,null,null,null,null,null,"","","","","","",{"$error":"#VALUE!"},{"$error":"#VALUE!"},{"$error":"#VALUE!"},{"$error":"#VALUE!"},{"$f":"INDEX(fdfortax2,MATCH(0,COUNTIF($AN$3:AN818,fdfortax2),0))","v":{"$error":"#N/A"}}]
[null,null,null,null,null,null,null,null,null,null,null,null,null,null,null,null,null,null,null,null,null,null,null,null,null,null,null,null,null,"","","","","","",{"$error":"#VALUE!"},{"$error":"#VALUE!"},{"$error":"#VALUE!"},{"$error":"#VALUE!"},{"$f":"INDEX(fdfortax2,MATCH(0,COUNTIF($AN$3:AN819,fdfortax2),0))","v":{"$error":"#N/A"}}]
[null,null,null,null,null,null,null,null,null,null,null,null,null,null,null,null,null,null,null,null,null,null,null,null,null,null,null,null,null,"","","","","","",{"$error":"#VALUE!"},{"$error":"#VALUE!"},{"$error":"#VALUE!"},{"$error":"#VALUE!"},{"$f":"INDEX(fdfortax2,MATCH(0,COUNTIF($AN$3:AN820,fdfortax2),0))","v":{"$error":"#N/A"}}]
[null,null,null,null,null,null,null,null,null,null,null,null,null,null,null,null,null,null,null,null,null,null,null,null,null,null,null,null,null,"","","","","","",{"$error":"#VALUE!"},{"$error":"#VALUE!"},{"$error":"#VALUE!"},{"$error":"#VALUE!"},{"$f":"INDEX(fdfortax2,MATCH(0,COUNTIF($AN$3:AN821,fdfortax2),0))","v":{"$error":"#N/A"}}]
[null,null,null,null,null,null,null,null,null,null,null,null,null,null,null,null,null,null,null,null,null,null,null,null,null,null,null,null,null,"","","","","","",{"$error":"#VALUE!"},{"$error":"#VALUE!"},{"$error":"#VALUE!"},{"$error":"#VALUE!"},{"$f":"INDEX(fdfortax2,MATCH(0,COUNTIF($AN$3:AN822,fdfortax2),0))","v":{"$error":"#N/A"}}]
[null,null,null,null,null,null,null,null,null,null,null,null,null,null,null,null,null,null,null,null,null,null,null,null,null,null,null,null,null,"","","","","","",{"$error":"#VALUE!"},{"$error":"#VALUE!"},{"$error":"#VALUE!"},{"$error":"#VALUE!"},{"$f":"INDEX(fdfortax2,MATCH(0,COUNTIF($AN$3:AN823,fdfortax2),0))","v":{"$error":"#N/A"}}]
[null,null,null,null,null,null,null,null,null,null,null,null,null,null,null,null,null,null,null,null,null,null,null,null,null,null,null,null,null,"","","","","","",{"$error":"#VALUE!"},{"$error":"#VALUE!"},{"$error":"#VALUE!"},{"$error":"#VALUE!"},{"$f":"INDEX(fdfortax2,MATCH(0,COUNTIF($AN$3:AN824,fdfortax2),0))","v":{"$error":"#N/A"}}]
[null,null,null,null,null,null,null,null,null,null,null,null,null,null,null,null,null,null,null,null,null,null,null,null,null,null,null,null,null,"","","","","","",{"$error":"#VALUE!"},{"$error":"#VALUE!"},{"$error":"#VALUE!"},{"$error":"#VALUE!"},{"$f":"INDEX(fdfortax2,MATCH(0,COUNTIF($AN$3:AN825,fdfortax2),0))","v":{"$error":"#N/A"}}]
[null,null,null,null,null,null,null,null,null,null,null,null,null,null,null,null,null,null,null,null,null,null,null,null,null,null,null,null,null,"","","","","","",{"$error":"#VALUE!"},{"$error":"#VALUE!"},{"$error":"#VALUE!"},{"$error":"#VALUE!"},{"$f":"INDEX(fdfortax2,MATCH(0,COUNTIF($AN$3:AN826,fdfortax2),0))","v":{"$error":"#N/A"}}]
[null,null,null,null,null,null,null,null,null,null,null,null,null,null,null,null,null,null,null,null,null,null,null,null,null,null,null,null,null,"","","","","","",{"$error":"#VALUE!"},{"$error":"#VALUE!"},{"$error":"#VALUE!"},{"$error":"#VALUE!"},{"$f":"INDEX(fdfortax2,MATCH(0,COUNTIF($AN$3:AN827,fdfortax2),0))","v":{"$error":"#N/A"}}]
[null,null,null,null,null,null,null,null,null,null,null,null,null,null,null,null,null,null,null,null,null,null,null,null,null,null,null,null,null,"","","","","","",{"$error":"#VALUE!"},{"$error":"#VALUE!"},{"$error":"#VALUE!"},{"$error":"#VALUE!"},{"$f":"INDEX(fdfortax2,MATCH(0,COUNTIF($AN$3:AN828,fdfortax2),0))","v":{"$error":"#N/A"}}]
[null,null,null,null,null,null,null,null,null,null,null,null,null,null,null,null,null,null,null,null,null,null,null,null,null,null,null,null,null,"","","","","","",{"$error":"#VALUE!"},{"$error":"#VALUE!"},{"$error":"#VALUE!"},{"$error":"#VALUE!"},{"$f":"INDEX(fdfortax2,MATCH(0,COUNTIF($AN$3:AN829,fdfortax2),0))","v":{"$error":"#N/A"}}]
[null,null,null,null,null,null,null,null,null,null,null,null,null,null,null,null,null,null,null,null,null,null,null,null,null,null,null,null,null,"","","","","","",{"$error":"#VALUE!"},{"$error":"#VALUE!"},{"$error":"#VALUE!"},{"$error":"#VALUE!"},{"$f":"INDEX(fdfortax2,MATCH(0,COUNTIF($AN$3:AN830,fdfortax2),0))","v":{"$error":"#N/A"}}]
[null,null,null,null,null,null,null,null,null,null,null,null,null,null,null,null,null,null,null,null,null,null,null,null,null,null,null,null,null,"","","","","","",{"$error":"#VALUE!"},{"$error":"#VALUE!"},{"$error":"#VALUE!"},{"$error":"#VALUE!"},{"$f":"INDEX(fdfortax2,MATCH(0,COUNTIF($AN$3:AN831,fdfortax2),0))","v":{"$error":"#N/A"}}]
[null,null,null,null,null,null,null,null,null,null,null,null,null,null,null,null,null,null,null,null,null,null,null,null,null,null,null,null,null,"","","","","","",{"$error":"#VALUE!"},{"$error":"#VALUE!"},{"$error":"#VALUE!"},{"$error":"#VALUE!"},{"$f":"INDEX(fdfortax2,MATCH(0,COUNTIF($AN$3:AN832,fdfortax2),0))","v":{"$error":"#N/A"}}]
[null,null,null,null,null,null,null,null,null,null,null,null,null,null,null,null,null,null,null,null,null,null,null,null,null,null,null,null,null,"","","","","","",{"$error":"#VALUE!"},{"$error":"#VALUE!"},{"$error":"#VALUE!"},{"$error":"#VALUE!"},{"$f":"INDEX(fdfortax2,MATCH(0,COUNTIF($AN$3:AN833,fdfortax2),0))","v":{"$error":"#N/A"}}]
[null,null,null,null,null,null,null,null,null,null,null,null,null,null,null,null,null,null,null,null,null,null,null,null,null,null,null,null,null,"","","","","","",{"$error":"#VALUE!"},{"$error":"#VALUE!"},{"$error":"#VALUE!"},{"$error":"#VALUE!"},{"$f":"INDEX(fdfortax2,MATCH(0,COUNTIF($AN$3:AN834,fdfortax2),0))","v":{"$error":"#N/A"}}]
[null,null,null,null,null,null,null,null,null,null,null,null,null,null,null,null,null,null,null,null,null,null,null,null,null,null,null,null,null,"","","",{"$f":"IF(AD836=\"\",\"\",AF836*(1-IF(taxrd=10%,10.3%,IF(taxrd=20%,20.6%,IF(taxrd=30%,30.9%)))))","v":""},{"$f":"IF(AD836=\"\",\"\",AH835+AG836+L836)","v":""},"",{"$error":"#VALUE!"},{"$error":"#VALUE!"},{"$error":"#VALUE!"},{"$error":"#VALUE!"},{"$f":"INDEX(fdfortax2,MATCH(0,COUNTIF($AN$3:AN835,fdfortax2),0))","v":{"$error":"#N/A"}}]
[null,null,null,null,null,null,null,null,null,null,null,null,null,null,null,null,null,null,null,null,null,null,null,null,null,null,null,null,null,{"$f":"IF(AD836<rdura,AD836+1,\"\")","v":""},{"$f":"IF(AD837=\"\",\"\",AE836*(1+raterd/factor1)^(factor1*1/ydays))","v":""},"","","","",{"$error":"#VALUE!"},{"$f":"IF(AJ836=1,AI837,AK836+AI837)","v":{"$error":"#VALUE!"}},{"$error":"#VALUE!"},{"$error":"#VALUE!"},{"$f":"INDEX(fdfortax2,MATCH(0,COUNTIF($AN$3:AN836,fdfortax2),0))","v":{"$error":"#N/A"}}]
[null,null,null,null,null,null,null,null,null,null,null,null,null,null,null,null,null,null,null,null,null,null,null,null,null,null,null,null,null,"","","","","","",{"$error":"#VALUE!"},{"$error":"#VALUE!"},{"$error":"#VALUE!"},{"$error":"#VALUE!"},{"$f":"INDEX(fdfortax2,MATCH(0,COUNTIF($AN$3:AN837,fdfortax2),0))","v":{"$error":"#N/A"}}]
[null,null,null,null,null,null,null,null,null,null,null,null,null,null,null,null,null,null,null,null,null,null,null,null,null,null,null,null,null,"","","","","","",{"$error":"#VALUE!"},{"$error":"#VALUE!"},{"$error":"#VALUE!"},{"$error":"#VALUE!"},{"$f":"INDEX(fdfortax2,MATCH(0,COUNTIF($AN$3:AN838,fdfortax2),0))","v":{"$error":"#N/A"}}]
[null,null,null,null,null,null,null,null,null,null,null,null,null,null,null,null,null,null,null,null,null,null,null,null,null,null,null,null,null,"","","","","","",{"$error":"#VALUE!"},{"$error":"#VALUE!"},{"$error":"#VALUE!"},{"$error":"#VALUE!"},{"$f":"INDEX(fdfortax2,MATCH(0,COUNTIF($AN$3:AN839,fdfortax2),0))","v":{"$error":"#N/A"}}]
[null,null,null,null,null,null,null,null,null,null,null,null,null,null,null,null,null,null,null,null,null,null,null,null,null,null,null,null,null,"","","","","","",{"$error":"#VALUE!"},{"$error":"#VALUE!"},{"$error":"#VALUE!"},{"$error":"#VALUE!"},{"$f":"INDEX(fdfortax2,MATCH(0,COUNTIF($AN$3:AN840,fdfortax2),0))","v":{"$error":"#N/A"}}]
[null,null,null,null,null,null,null,null,null,null,null,null,null,null,null,null,null,null,null,null,null,null,null,null,null,null,null,null,null,"","","","","","",{"$error":"#VALUE!"},{"$error":"#VALUE!"},{"$error":"#VALUE!"},{"$error":"#VALUE!"},{"$f":"INDEX(fdfortax2,MATCH(0,COUNTIF($AN$3:AN841,fdfortax2),0))","v":{"$error":"#N/A"}}]
[null,null,null,null,null,null,null,null,null,null,null,null,null,null,null,null,null,null,null,null,null,null,null,null,null,null,null,null,null,"","","","","","",{"$error":"#VALUE!"},{"$error":"#VALUE!"},{"$error":"#VALUE!"},{"$error":"#VALUE!"},{"$f":"INDEX(fdfortax2,MATCH(0,COUNTIF($AN$3:AN842,fdfortax2),0))","v":{"$error":"#N/A"}}]
[null,null,null,null,null,null,null,null,null,null,null,null,null,null,null,null,null,null,null,null,null,null,null,null,null,null,null,null,null,"","","","","","",{"$error":"#VALUE!"},{"$error":"#VALUE!"},{"$error":"#VALUE!"},{"$error":"#VALUE!"},{"$f":"INDEX(fdfortax2,MATCH(0,COUNTIF($AN$3:AN843,fdfortax2),0))","v":{"$error":"#N/A"}}]
[null,null,null,null,null,null,null,null,null,null,null,null,null,null,null,null,null,null,null,null,null,null,null,null,null,null,null,null,null,"","","","","","",{"$error":"#VALUE!"},{"$error":"#VALUE!"},{"$error":"#VALUE!"},{"$error":"#VALUE!"},{"$f":"INDEX(fdfortax2,MATCH(0,COUNTIF($AN$3:AN844,fdfortax2),0))","v":{"$error":"#N/A"}}]
[null,null,null,null,null,null,null,null,null,null,null,null,null,null,null,null,null,null,null,null,null,null,null,null,null,null,null,null,null,"","","","","","",{"$error":"#VALUE!"},{"$error":"#VALUE!"},{"$error":"#VALUE!"},{"$error":"#VALUE!"},{"$f":"INDEX(fdfortax2,MATCH(0,COUNTIF($AN$3:AN845,fdfortax2),0))","v":{"$error":"#N/A"}}]
[null,null,null,null,null,null,null,null,null,null,null,null,null,null,null,null,null,null,null,null,null,null,null,null,null,null,null,null,null,"","","","","","",{"$error":"#VALUE!"},{"$error":"#VALUE!"},{"$error":"#VALUE!"},{"$error":"#VALUE!"},{"$f":"INDEX(fdfortax2,MATCH(0,COUNTIF($AN$3:AN846,fdfortax2),0))","v":{"$error":"#N/A"}}]
[null,null,null,null,null,null,null,null,null,null,null,null,null,null,null,null,null,null,null,null,null,null,null,null,null,null,null,null,null,"","","","","","",{"$error":"#VALUE!"},{"$error":"#VALUE!"},{"$error":"#VALUE!"},{"$error":"#VALUE!"},{"$f":"INDEX(fdfortax2,MATCH(0,COUNTIF($AN$3:AN847,fdfortax2),0))","v":{"$error":"#N/A"}}]
[null,null,null,null,null,null,null,null,null,null,null,null,null,null,null,null,null,null,null,null,null,null,null,null,null,null,null,null,null,"","","","","","",{"$error":"#VALUE!"},{"$error":"#VALUE!"},{"$error":"#VALUE!"},{"$error":"#VALUE!"},{"$f":"INDEX(fdfortax2,MATCH(0,COUNTIF($AN$3:AN848,fdfortax2),0))","v":{"$error":"#N/A"}}]
[null,null,null,null,null,null,null,null,null,null,null,null,null,null,null,null,null,null,null,null,null,null,null,null,null,null,null,null,null,"","","","","","",{"$error":"#VALUE!"},{"$error":"#VALUE!"},{"$error":"#VALUE!"},{"$error":"#VALUE!"},{"$f":"INDEX(fdfortax2,MATCH(0,COUNTIF($AN$3:AN849,fdfortax2),0))","v":{"$error":"#N/A"}}]
[null,null,null,null,null,null,null,null,null,null,null,null,null,null,null,null,null,null,null,null,null,null,null,null,null,null,null,null,null,"","","","","","",{"$error":"#VALUE!"},{"$error":"#VALUE!"},{"$error":"#VALUE!"},{"$error":"#VALUE!"},{"$f":"INDEX(fdfortax2,MATCH(0,COUNTIF($AN$3:AN850,fdfortax2),0))","v":{"$error":"#N/A"}}]
[null,null,null,null,null,null,null,null,null,null,null,null,null,null,null,null,null,null,null,null,null,null,null,null,null,null,null,null,null,"","","","","","",{"$error":"#VALUE!"},{"$error":"#VALUE!"},{"$error":"#VALUE!"},{"$error":"#VALUE!"},{"$f":"INDEX(fdfortax2,MATCH(0,COUNTIF($AN$3:AN851,fdfortax2),0))","v":{"$error":"#N/A"}}]
[null,null,null,null,null,null,null,null,null,null,null,null,null,null,null,null,null,null,null,null,null,null,null,null,null,null,null,null,null,"","","","","","",{"$error":"#VALUE!"},{"$error":"#VALUE!"},{"$error":"#VALUE!"},{"$error":"#VALUE!"},{"$f":"INDEX(fdfortax2,MATCH(0,COUNTIF($AN$3:AN852,fdfortax2),0))","v":{"$error":"#N/A"}}]
[null,null,null,null,null,null,null,null,null,null,null,null,null,null,null,null,null,null,null,null,null,null,null,null,null,null,null,null,null,"","","","","","",{"$error":"#VALUE!"},{"$error":"#VALUE!"},{"$error":"#VALUE!"},{"$error":"#VALUE!"},{"$f":"INDEX(fdfortax2,MATCH(0,COUNTIF($AN$3:AN853,fdfortax2),0))","v":{"$error":"#N/A"}}]
[null,null,null,null,null,null,null,null,null,null,null,null,null,null,null,null,null,null,null,null,null,null,null,null,null,null,null,null,null,"","","","","","",{"$error":"#VALUE!"},{"$error":"#VALUE!"},{"$error":"#VALUE!"},{"$error":"#VALUE!"},{"$f":"INDEX(fdfortax2,MATCH(0,COUNTIF($AN$3:AN854,fdfortax2),0))","v":{"$error":"#N/A"}}]
[null,null,null,null,null,null,null,null,null,null,null,null,null,null,null,null,null,null,null,null,null,null,null,null,null,null,null,null,null,"","","","","","",{"$error":"#VALUE!"},{"$error":"#VALUE!"},{"$error":"#VALUE!"},{"$error":"#VALUE!"},{"$f":"INDEX(fdfortax2,MATCH(0,COUNTIF($AN$3:AN855,fdfortax2),0))","v":{"$error":"#N/A"}}]
[null,null,null,null,null,null,null,null,null,null,null,null,null,null,null,null,null,null,null,null,null,null,null,null,null,null,null,null,null,"","","","","","",{"$error":"#VALUE!"},{"$error":"#VALUE!"},{"$error":"#VALUE!"},{"$error":"#VALUE!"},{"$f":"INDEX(fdfortax2,MATCH(0,COUNTIF($AN$3:AN856,fdfortax2),0))","v":{"$error":"#N/A"}}]
[null,null,null,null,null,null,null,null,null,null,null,null,null,null,null,null,null,null,null,null,null,null,null,null,null,null,null,null,null,"","","","","","",{"$error":"#VALUE!"},{"$error":"#VALUE!"},{"$error":"#VALUE!"},{"$error":"#VALUE!"},{"$f":"INDEX(fdfortax2,MATCH(0,COUNTIF($AN$3:AN857,fdfortax2),0))","v":{"$error":"#N/A"}}]
[null,null,null,null,null,null,null,null,null,null,null,null,null,null,null,null,null,null,null,null,null,null,null,null,null,null,null,null,null,"","","","","","",{"$error":"#VALUE!"},{"$error":"#VALUE!"},{"$error":"#VALUE!"},{"$error":"#VALUE!"},{"$f":"INDEX(fdfortax2,MATCH(0,COUNTIF($AN$3:AN858,fdfortax2),0))","v":{"$error":"#N/A"}}]
[null,null,null,null,null,null,null,null,null,null,null,null,null,null,null,null,null,null,null,null,null,null,null,null,null,null,null,null,null,"","","","","","",{"$error":"#VALUE!"},{"$error":"#VALUE!"},{"$error":"#VALUE!"},{"$error":"#VALUE!"},{"$f":"INDEX(fdfortax2,MATCH(0,COUNTIF($AN$3:AN859,fdfortax2),0))","v":{"$error":"#N/A"}}]
[null,null,null,null,null,null,null,null,null,null,null,null,null,null,null,null,null,null,null,null,null,null,null,null,null,null,null,null,null,"","","","","","",{"$error":"#VALUE!"},{"$error":"#VALUE!"},{"$error":"#VALUE!"},{"$error":"#VALUE!"},{"$f":"INDEX(fdfortax2,MATCH(0,COUNTIF($AN$3:AN860,fdfortax2),0))","v":{"$error":"#N/A"}}]
[null,null,null,null,null,null,null,null,null,null,null,null,null,null,null,null,null,null,null,null,null,null,null,null,null,null,null,null,null,"","","","","","",{"$error":"#VALUE!"},{"$error":"#VALUE!"},{"$error":"#VALUE!"},{"$error":"#VALUE!"},{"$f":"INDEX(fdfortax2,MATCH(0,COUNTIF($AN$3:AN861,fdfortax2),0))","v":{"$error":"#N/A"}}]
[null,null,null,null,null,null,null,null,null,null,null,null,null,null,null,null,null,null,null,null,null,null,null,null,null,null,null,null,null,"","","","","","",{"$error":"#VALUE!"},{"$error":"#VALUE!"},{"$error":"#VALUE!"},{"$error":"#VALUE!"},{"$f":"INDEX(fdfortax2,MATCH(0,COUNTIF($AN$3:AN862,fdfortax2),0))","v":{"$error":"#N/A"}}]
[null,null,null,null,null,null,null,null,null,null,null,null,null,null,null,null,null,null,null,null,null,null,null,null,null,null,null,null,null,"","",{"$f":"IF(AD864=\"\",\"\",AE864-AE863)","v":""},"","",{"$f":"IF(AD864=\"\",\"\",AF864-AG864)","v":""},{"$f":"IF(INT(AD864/30)-(AD864/30)=0,1,0)","v":{"$error":"#VALUE!"}},{"$error":"#VALUE!"},{"$f":"IF(AJ864=1,AK864,IF(ISERROR(AK865),AK864,IF(AK865=\"\",AK864,\"\")))","v":{"$error":"#VALUE!"}},{"$f":"IF(AJ864=1,AK864,IF(ISERROR(AK865),AK864,IF(AK865=\"\",AK864,1)))","v":{"$error":"#VALUE!"}},{"$f":"INDEX(fdfortax2,MATCH(0,COUNTIF($AN$3:AN863,fdfortax2),0))","v":{"$error":"#N/A"}}]
[null,null,null,null,null,null,null,null,null,null,null,null,null,null,null,null,null,null,null,null,null,null,null,null,null,null,null,null,null,"","","","","","",{"$error":"#VALUE!"},{"$error":"#VALUE!"},{"$error":"#VALUE!"},{"$error":"#VALUE!"},{"$f":"INDEX(fdfortax2,MATCH(0,COUNTIF($AN$3:AN864,fdfortax2),0))","v":{"$error":"#N/A"}}]
[null,null,null,null,null,null,null,null,null,null,null,null,null,null,null,null,null,null,null,null,null,null,null,null,null,null,null,null,null,"","","","","","",{"$error":"#VALUE!"},{"$error":"#VALUE!"},{"$error":"#VALUE!"},{"$error":"#VALUE!"},{"$f":"INDEX(fdfortax2,MATCH(0,COUNTIF($AN$3:AN865,fdfortax2),0))","v":{"$error":"#N/A"}}]
[null,null,null,null,null,null,null,null,null,null,null,null,null,null,null,null,null,null,null,null,null,null,null,null,null,null,null,null,null,"","","","","","",{"$error":"#VALUE!"},{"$error":"#VALUE!"},{"$error":"#VALUE!"},{"$error":"#VALUE!"},{"$f":"INDEX(fdfortax2,MATCH(0,COUNTIF($AN$3:AN866,fdfortax2),0))","v":{"$error":"#N/A"}}]
[null,null,null,null,null,null,null,null,null,null,null,null,null,null,null,null,null,null,null,null,null,null,null,null,null,null,null,null,null,"","","","","","",{"$error":"#VALUE!"},{"$error":"#VALUE!"},{"$error":"#VALUE!"},{"$error":"#VALUE!"},{"$f":"INDEX(fdfortax2,MATCH(0,COUNTIF($AN$3:AN867,fdfortax2),0))","v":{"$error":"#N/A"}}]
[null,null,null,null,null,null,null,null,null,null,null,null,null,null,null,null,null,null,null,null,null,null,null,null,null,null,null,null,null,"","","","","","",{"$error":"#VALUE!"},{"$error":"#VALUE!"},{"$error":"#VALUE!"},{"$error":"#VALUE!"},{"$f":"INDEX(fdfortax2,MATCH(0,COUNTIF($AN$3:AN868,fdfortax2),0))","v":{"$error":"#N/A"}}]
[null,null,null,null,null,null,null,null,null,null,null,null,null,null,null,null,null,null,null,null,null,null,null,null,null,null,null,null,null,"","","","","","",{"$error":"#VALUE!"},{"$error":"#VALUE!"},{"$error":"#VALUE!"},{"$error":"#VALUE!"},{"$f":"INDEX(fdfortax2,MATCH(0,COUNTIF($AN$3:AN869,fdfortax2),0))","v":{"$error":"#N/A"}}]
[null,null,null,null,null,null,null,null,null,null,null,null,null,null,null,null,null,null,null,null,null,null,null,null,null,null,null,null,null,"","","","","","",{"$error":"#VALUE!"},{"$error":"#VALUE!"},{"$error":"#VALUE!"},{"$error":"#VALUE!"},{"$f":"INDEX(fdfortax2,MATCH(0,COUNTIF($AN$3:AN870,fdfortax2),0))","v":{"$error":"#N/A"}}]
[null,null,null,null,null,null,null,null,null,null,null,null,null,null,null,null,null,null,null,null,null,null,null,null,null,null,null,null,null,"","","","","","",{"$error":"#VALUE!"},{"$error":"#VALUE!"},{"$error":"#VALUE!"},{"$error":"#VALUE!"},{"$f":"INDEX(fdfortax2,MATCH(0,COUNTIF($AN$3:AN871,fdfortax2),0))","v":{"$error":"#N/A"}}]
[null,null,null,null,null,null,null,null,null,null,null,null,null,null,null,null,null,null,null,null,null,null,null,null,null,null,null,null,null,"","","","","","",{"$error":"#VALUE!"},{"$error":"#VALUE!"},{"$error":"#VALUE!"},{"$error":"#VALUE!"},{"$f":"INDEX(fdfortax2,MATCH(0,COUNTIF($AN$3:AN872,fdfortax2),0))","v":{"$error":"#N/A"}}]
[null,null,null,null,null,null,null,null,null,null,null,null,null,null,null,null,null,null,null,null,null,null,null,null,null,null,null,null,null,"","","","","","",{"$error":"#VALUE!"},{"$error":"#VALUE!"},{"$error":"#VALUE!"},{"$error":"#VALUE!"},{"$f":"INDEX(fdfortax2,MATCH(0,COUNTIF($AN$3:AN873,fdfortax2),0))","v":{"$error":"#N/A"}}]
[null,null,null,null,null,null,null,null,null,null,null,null,null,null,null,null,null,null,null,null,null,null,null,null,null,null,null,null,null,"","","","","","",{"$error":"#VALUE!"},{"$error":"#VALUE!"},{"$error":"#VALUE!"},{"$error":"#VALUE!"},{"$f":"INDEX(fdfortax2,MATCH(0,COUNTIF($AN$3:AN874,fdfortax2),0))","v":{"$error":"#N/A"}}]
[null,null,null,null,null,null,null,null,null,null,null,null,null,null,null,null,null,null,null,null,null,null,null,null,null,null,null,null,null,"","","","","","",{"$error":"#VALUE!"},{"$error":"#VALUE!"},{"$error":"#VALUE!"},{"$error":"#VALUE!"},{"$f":"INDEX(fdfortax2,MATCH(0,COUNTIF($AN$3:AN875,fdfortax2),0))","v":{"$error":"#N/A"}}]
[null,null,null,null,null,null,null,null,null,null,null,null,null,null,null,null,null,null,null,null,null,null,null,null,null,null,null,null,null,"","","","","","",{"$error":"#VALUE!"},{"$error":"#VALUE!"},{"$error":"#VALUE!"},{"$error":"#VALUE!"},{"$f":"INDEX(fdfortax2,MATCH(0,COUNTIF($AN$3:AN876,fdfortax2),0))","v":{"$error":"#N/A"}}]
[null,null,null,null,null,null,null,null,null,null,null,null,null,null,null,null,null,null,null,null,null,null,null,null,null,null,null,null,null,"","","","","","",{"$error":"#VALUE!"},{"$error":"#VALUE!"},{"$error":"#VALUE!"},{"$error":"#VALUE!"},{"$f":"INDEX(fdfortax2,MATCH(0,COUNTIF($AN$3:AN877,fdfortax2),0))","v":{"$error":"#N/A"}}]
[null,null,null,null,null,null,null,null,null,null,null,null,null,null,null,null,null,null,null,null,null,null,null,null,null,null,null,null,null,"","","","","","",{"$error":"#VALUE!"},{"$error":"#VALUE!"},{"$error":"#VALUE!"},{"$error":"#VALUE!"},{"$f":"INDEX(fdfortax2,MATCH(0,COUNTIF($AN$3:AN878,fdfortax2),0))","v":{"$error":"#N/A"}}]
[null,null,null,null,null,null,null,null,null,null,null,null,null,null,null,null,null,null,null,null,null,null,null,null,null,null,null,null,null,"","","","","","",{"$error":"#VALUE!"},{"$error":"#VALUE!"},{"$error":"#VALUE!"},{"$error":"#VALUE!"},{"$f":"INDEX(fdfortax2,MATCH(0,COUNTIF($AN$3:AN879,fdfortax2),0))","v":{"$error":"#N/A"}}]
[null,null,null,null,null,null,null,null,null,null,null,null,null,null,null,null,null,null,null,null,null,null,null,null,null,null,null,null,null,"","","","","","",{"$error":"#VALUE!"},{"$error":"#VALUE!"},{"$error":"#VALUE!"},{"$error":"#VALUE!"},{"$f":"INDEX(fdfortax2,MATCH(0,COUNTIF($AN$3:AN880,fdfortax2),0))","v":{"$error":"#N/A"}}]
[null,null,null,null,null,null,null,null,null,null,null,null,null,null,null,null,null,null,null,null,null,null,null,null,null,null,null,null,null,"","","","","","",{"$error":"#VALUE!"},{"$error":"#VALUE!"},{"$error":"#VALUE!"},{"$error":"#VALUE!"},{"$f":"INDEX(fdfortax2,MATCH(0,COUNTIF($AN$3:AN881,fdfortax2),0))","v":{"$error":"#N/A"}}]
[null,null,null,null,null,null,null,null,null,null,null,null,null,null,null,null,null,null,null,null,null,null,null,null,null,null,null,null,null,"","","","","","",{"$error":"#VALUE!"},{"$error":"#VALUE!"},{"$error":"#VALUE!"},{"$error":"#VALUE!"},{"$f":"INDEX(fdfortax2,MATCH(0,COUNTIF($AN$3:AN882,fdfortax2),0))","v":{"$error":"#N/A"}}]
[null,null,null,null,null,null,null,null,null,null,null,null,null,null,null,null,null,null,null,null,null,null,null,null,null,null,null,null,null,"","","","","","",{"$error":"#VALUE!"},{"$error":"#VALUE!"},{"$error":"#VALUE!"},{"$error":"#VALUE!"},{"$f":"INDEX(fdfortax2,MATCH(0,COUNTIF($AN$3:AN883,fdfortax2),0))","v":{"$error":"#N/A"}}]
[null,null,null,null,null,null,null,null,null,null,null,null,null,null,null,null,null,null,null,null,null,null,null,null,null,null,null,null,null,"","","","","","",{"$error":"#VALUE!"},{"$error":"#VALUE!"},{"$error":"#VALUE!"},{"$error":"#VALUE!"},{"$f":"INDEX(fdfortax2,MATCH(0,COUNTIF($AN$3:AN884,fdfortax2),0))","v":{"$error":"#N/A"}}]
[null,null,null,null,null,null,null,null,null,null,null,null,null,null,null,null,null,null,null,null,null,null,null,null,null,null,null,null,null,"","","","","","",{"$error":"#VALUE!"},{"$error":"#VALUE!"},{"$error":"#VALUE!"},{"$error":"#VALUE!"},{"$f":"INDEX(fdfortax2,MATCH(0,COUNTIF($AN$3:AN885,fdfortax2),0))","v":{"$error":"#N/A"}}]
[null,null,null,null,null,null,null,null,null,null,null,null,null,null,null,null,null,null,null,null,null,null,null,null,null,null,null,null,null,"","","","","","",{"$error":"#VALUE!"},{"$error":"#VALUE!"},{"$error":"#VALUE!"},{"$error":"#VALUE!"},{"$f":"INDEX(fdfortax2,MATCH(0,COUNTIF($AN$3:AN886,fdfortax2),0))","v":{"$error":"#N/A"}}]
[null,null,null,null,null,null,null,null,null,null,null,null,null,null,null,null,null,null,null,null,null,null,null,null,null,null,null,null,null,"","","","","","",{"$error":"#VALUE!"},{"$error":"#VALUE!"},{"$error":"#VALUE!"},{"$error":"#VALUE!"},{"$f":"INDEX(fdfortax2,MATCH(0,COUNTIF($AN$3:AN887,fdfortax2),0))","v":{"$error":"#N/A"}}]
[null,null,null,null,null,null,null,null,null,null,null,null,null,null,null,null,null,null,null,null,null,null,null,null,null,null,null,null,null,"","","","","","",{"$error":"#VALUE!"},{"$error":"#VALUE!"},{"$error":"#VALUE!"},{"$error":"#VALUE!"},{"$f":"INDEX(fdfortax2,MATCH(0,COUNTIF($AN$3:AN888,fdfortax2),0))","v":{"$error":"#N/A"}}]
[null,null,null,null,null,null,null,null,null,null,null,null,null,null,null,null,null,null,null,null,null,null,null,null,null,null,null,null,null,"","","","","","",{"$error":"#VALUE!"},{"$error":"#VALUE!"},{"$error":"#VALUE!"},{"$error":"#VALUE!"},{"$f":"INDEX(fdfortax2,MATCH(0,COUNTIF($AN$3:AN889,fdfortax2),0))","v":{"$error":"#N/A"}}]
[null,null,null,null,null,null,null,null,null,null,null,null,null,null,null,null,null,null,null,null,null,null,null,null,null,null,null,null,null,"","","","","","",{"$error":"#VALUE!"},{"$error":"#VALUE!"},{"$error":"#VALUE!"},{"$error":"#VALUE!"},{"$f":"INDEX(fdfortax2,MATCH(0,COUNTIF($AN$3:AN890,fdfortax2),0))","v":{"$error":"#N/A"}}]
[null,null,null,null,null,null,null,null,null,null,null,null,null,null,null,null,null,null,null,null,null,null,null,null,null,null,null,null,null,"","","","","","",{"$error":"#VALUE!"},{"$error":"#VALUE!"},{"$error":"#VALUE!"},{"$error":"#VALUE!"},{"$f":"INDEX(fdfortax2,MATCH(0,COUNTIF($AN$3:AN891,fdfortax2),0))","v":{"$error":"#N/A"}}]
[null,null,null,null,null,null,null,null,null,null,null,null,null,null,null,null,null,null,null,null,null,null,null,null,null,null,null,null,null,"","","","","","",{"$error":"#VALUE!"},{"$error":"#VALUE!"},{"$error":"#VALUE!"},{"$error":"#VALUE!"},{"$f":"INDEX(fdfortax2,MATCH(0,COUNTIF($AN$3:AN892,fdfortax2),0))","v":{"$error":"#N/A"}}]
[null,null,null,null,null,null,null,null,null,null,null,null,null,null,null,null,null,null,null,null,null,null,null,null,null,null,null,null,null,"","","","","","",{"$error":"#VALUE!"},{"$error":"#VALUE!"},{"$error":"#VALUE!"},{"$error":"#VALUE!"},{"$f":"INDEX(fdfortax2,MATCH(0,COUNTIF($AN$3:AN893,fdfortax2),0))","v":{"$error":"#N/A"}}]
[null,null,null,null,null,null,null,null,null,null,null,null,null,null,null,null,null,null,null,null,null,null,null,null,null,null,null,null,null,"","","","","","",{"$error":"#VALUE!"},{"$error":"#VALUE!"},{"$error":"#VALUE!"},{"$error":"#VALUE!"},{"$f":"INDEX(fdfortax2,MATCH(0,COUNTIF($AN$3:AN894,fdfortax2),0))","v":{"$error":"#N/A"}}]
[null,null,null,null,null,null,null,null,null,null,null,null,null,null,null,null,null,null,null,null,null,null,null,null,null,null,null,null,null,"","","","","","",{"$error":"#VALUE!"},{"$error":"#VALUE!"},{"$error":"#VALUE!"},{"$error":"#VALUE!"},{"$f":"INDEX(fdfortax2,MATCH(0,COUNTIF($AN$3:AN895,fdfortax2),0))","v":{"$error":"#N/A"}}]
[null,null,null,null,null,null,null,null,null,null,null,null,null,null,null,null,null,null,null,null,null,null,null,null,null,null,null,null,null,"","","","","","",{"$error":"#VALUE!"},{"$error":"#VALUE!"},{"$error":"#VALUE!"},{"$error":"#VALUE!"},{"$f":"INDEX(fdfortax2,MATCH(0,COUNTIF($AN$3:AN896,fdfortax2),0))","v":{"$error":"#N/A"}}]
[null,null,null,null,null,null,null,null,null,null,null,null,null,null,null,null,null,null,null,null,null,null,null,null,null,null,null,null,null,"","","","","","",{"$error":"#VALUE!"},{"$error":"#VALUE!"},{"$error":"#VALUE!"},{"$error":"#VALUE!"},{"$f":"INDEX(fdfortax2,MATCH(0,COUNTIF($AN$3:AN897,fdfortax2),0))","v":{"$error":"#N/A"}}]
[null,null,null,null,null,null,null,null,null,null,null,null,null,null,null,null,null,null,null,null,null,null,null,null,null,null,null,null,null,"","","","","","",{"$error":"#VALUE!"},{"$error":"#VALUE!"},{"$error":"#VALUE!"},{"$error":"#VALUE!"},{"$f":"INDEX(fdfortax2,MATCH(0,COUNTIF($AN$3:AN898,fdfortax2),0))","v":{"$error":"#N/A"}}]
[null,null,null,null,null,null,null,null,null,null,null,null,null,null,null,null,null,null,null,null,null,null,null,null,null,null,null,null,null,"","","",{"$f":"IF(AD900=\"\",\"\",AF900*(1-IF(taxrd=10%,10.3%,IF(taxrd=20%,20.6%,IF(taxrd=30%,30.9%)))))","v":""},{"$f":"IF(AD900=\"\",\"\",AH899+AG900+L900)","v":""},"",{"$error":"#VALUE!"},{"$error":"#VALUE!"},{"$error":"#VALUE!"},{"$error":"#VALUE!"},{"$f":"INDEX(fdfortax2,MATCH(0,COUNTIF($AN$3:AN899,fdfortax2),0))","v":{"$error":"#N/A"}}]
[null,null,null,null,null,null,null,null,null,null,null,null,null,null,null,null,null,null,null,null,null,null,null,null,null,null,null,null,null,{"$f":"IF(AD900<rdura,AD900+1,\"\")","v":""},{"$f":"IF(AD901=\"\",\"\",AE900*(1+raterd/factor1)^(factor1*1/ydays))","v":""},"","","","",{"$error":"#VALUE!"},{"$f":"IF(AJ900=1,AI901,AK900+AI901)","v":{"$error":"#VALUE!"}},{"$error":"#VALUE!"},{"$error":"#VALUE!"},{"$f":"INDEX(fdfortax2,MATCH(0,COUNTIF($AN$3:AN900,fdfortax2),0))","v":{"$error":"#N/A"}}]
[null,null,null,null,null,null,null,null,null,null,null,null,null,null,null,null,null,null,null,null,null,null,null,null,null,null,null,null,null,"","","","","","",{"$error":"#VALUE!"},{"$error":"#VALUE!"},{"$error":"#VALUE!"},{"$error":"#VALUE!"},{"$f":"INDEX(fdfortax2,MATCH(0,COUNTIF($AN$3:AN901,fdfortax2),0))","v":{"$error":"#N/A"}}]
[null,null,null,null,null,null,null,null,null,null,null,null,null,null,null,null,null,null,null,null,null,null,null,null,null,null,null,null,null,"","","","","","",{"$error":"#VALUE!"},{"$error":"#VALUE!"},{"$error":"#VALUE!"},{"$error":"#VALUE!"},{"$f":"INDEX(fdfortax2,MATCH(0,COUNTIF($AN$3:AN902,fdfortax2),0))","v":{"$error":"#N/A"}}]
[null,null,null,null,null,null,null,null,null,null,null,null,null,null,null,null,null,null,null,null,null,null,null,null,null,null,null,null,null,"","","","","","",{"$error":"#VALUE!"},{"$error":"#VALUE!"},{"$error":"#VALUE!"},{"$error":"#VALUE!"},{"$f":"INDEX(fdfortax2,MATCH(0,COUNTIF($AN$3:AN903,fdfortax2),0))","v":{"$error":"#N/A"}}]
[null,null,null,null,null,null,null,null,null,null,null,null,null,null,null,null,null,null,null,null,null,null,null,null,null,null,null,null,null,"","","","","","",{"$error":"#VALUE!"},{"$error":"#VALUE!"},{"$error":"#VALUE!"},{"$error":"#VALUE!"},{"$f":"INDEX(fdfortax2,MATCH(0,COUNTIF($AN$3:AN904,fdfortax2),0))","v":{"$error":"#N/A"}}]
[null,null,null,null,null,null,null,null,null,null,null,null,null,null,null,null,null,null,null,null,null,null,null,null,null,null,null,null,null,"","","","","","",{"$error":"#VALUE!"},{"$error":"#VALUE!"},{"$error":"#VALUE!"},{"$error":"#VALUE!"},{"$f":"INDEX(fdfortax2,MATCH(0,COUNTIF($AN$3:AN905,fdfortax2),0))","v":{"$error":"#N/A"}}]
[null,null,null,null,null,null,null,null,null,null,null,null,null,null,null,null,null,null,null,null,null,null,null,null,null,null,null,null,null,"","","","","","",{"$error":"#VALUE!"},{"$error":"#VALUE!"},{"$error":"#VALUE!"},{"$error":"#VALUE!"},{"$f":"INDEX(fdfortax2,MATCH(0,COUNTIF($AN$3:AN906,fdfortax2),0))","v":{"$error":"#N/A"}}]
[null,null,null,null,null,null,null,null,null,null,null,null,null,null,null,null,null,null,null,null,null,null,null,null,null,null,null,null,null,"","","","","","",{"$error":"#VALUE!"},{"$error":"#VALUE!"},{"$error":"#VALUE!"},{"$error":"#VALUE!"},{"$f":"INDEX(fdfortax2,MATCH(0,COUNTIF($AN$3:AN907,fdfortax2),0))","v":{"$error":"#N/A"}}]
[null,null,null,null,null,null,null,null,null,null,null,null,null,null,null,null,null,null,null,null,null,null,null,null,null,null,null,null,null,"","","","","","",{"$error":"#VALUE!"},{"$error":"#VALUE!"},{"$error":"#VALUE!"},{"$error":"#VALUE!"},{"$f":"INDEX(fdfortax2,MATCH(0,COUNTIF($AN$3:AN908,fdfortax2),0))","v":{"$error":"#N/A"}}]
[null,null,null,null,null,null,null,null,null,null,null,null,null,null,null,null,null,null,null,null,null,null,null,null,null,null,null,null,null,"","","","","","",{"$error":"#VALUE!"},{"$error":"#VALUE!"},{"$error":"#VALUE!"},{"$error":"#VALUE!"},{"$f":"INDEX(fdfortax2,MATCH(0,COUNTIF($AN$3:AN909,fdfortax2),0))","v":{"$error":"#N/A"}}]
[null,null,null,null,null,null,null,null,null,null,null,null,null,null,null,null,null,null,null,null,null,null,null,null,null,null,null,null,null,"","","","","","",{"$error":"#VALUE!"},{"$error":"#VALUE!"},{"$error":"#VALUE!"},{"$error":"#VALUE!"},{"$f":"INDEX(fdfortax2,MATCH(0,COUNTIF($AN$3:AN910,fdfortax2),0))","v":{"$error":"#N/A"}}]
[null,null,null,null,null,null,null,null,null,null,null,null,null,null,null,null,null,null,null,null,null,null,null,null,null,null,null,null,null,"","","","","","",{"$error":"#VALUE!"},{"$error":"#VALUE!"},{"$error":"#VALUE!"},{"$error":"#VALUE!"},{"$f":"INDEX(fdfortax2,MATCH(0,COUNTIF($AN$3:AN911,fdfortax2),0))","v":{"$error":"#N/A"}}]
[null,null,null,null,null,null,null,null,null,null,null,null,null,null,null,null,null,null,null,null,null,null,null,null,null,null,null,null,null,"","","","","","",{"$error":"#VALUE!"},{"$error":"#VALUE!"},{"$error":"#VALUE!"},{"$error":"#VALUE!"},{"$f":"INDEX(fdfortax2,MATCH(0,COUNTIF($AN$3:AN912,fdfortax2),0))","v":{"$error":"#N/A"}}]
[null,null,null,null,null,null,null,null,null,null,null,null,null,null,null,null,null,null,null,null,null,null,null,null,null,null,null,null,null,"","","","","","",{"$error":"#VALUE!"},{"$error":"#VALUE!"},{"$error":"#VALUE!"},{"$error":"#VALUE!"},{"$f":"INDEX(fdfortax2,MATCH(0,COUNTIF($AN$3:AN913,fdfortax2),0))","v":{"$error":"#N/A"}}]
[null,null,null,null,null,null,null,null,null,null,null,null,null,null,null,null,null,null,null,null,null,null,null,null,null,null,null,null,null,"","","","","","",{"$error":"#VALUE!"},{"$error":"#VALUE!"},{"$error":"#VALUE!"},{"$error":"#VALUE!"},{"$f":"INDEX(fdfortax2,MATCH(0,COUNTIF($AN$3:AN914,fdfortax2),0))","v":{"$error":"#N/A"}}]
[null,null,null,null,null,null,null,null,null,null,null,null,null,null,null,null,null,null,null,null,null,null,null,null,null,null,null,null,null,"","","","","","",{"$error":"#VALUE!"},{"$error":"#VALUE!"},{"$error":"#VALUE!"},{"$error":"#VALUE!"},{"$f":"INDEX(fdfortax2,MATCH(0,COUNTIF($AN$3:AN915,fdfortax2),0))","v":{"$error":"#N/A"}}]
[null,null,null,null,null,null,null,null,null,null,null,null,null,null,null,null,null,null,null,null,null,null,null,null,null,null,null,null,null,"","","","","","",{"$error":"#VALUE!"},{"$error":"#VALUE!"},{"$error":"#VALUE!"},{"$error":"#VALUE!"},{"$f":"INDEX(fdfortax2,MATCH(0,COUNTIF($AN$3:AN916,fdfortax2),0))","v":{"$error":"#N/A"}}]
[null,null,null,null,null,null,null,null,null,null,null,null,null,null,null,null,null,null,null,null,null,null,null,null,null,null,null,null,null,"","","","","","",{"$error":"#VALUE!"},{"$error":"#VALUE!"},{"$error":"#VALUE!"},{"$error":"#VALUE!"},{"$f":"INDEX(fdfortax2,MATCH(0,COUNTIF($AN$3:AN917,fdfortax2),0))","v":{"$error":"#N/A"}}]
[null,null,null,null,null,null,null,null,null,null,null,null,null,null,null,null,null,null,null,null,null,null,null,null,null,null,null,null,null,"","","","","","",{"$error":"#VALUE!"},{"$error":"#VALUE!"},{"$error":"#VALUE!"},{"$error":"#VALUE!"},{"$f":"INDEX(fdfortax2,MATCH(0,COUNTIF($AN$3:AN918,fdfortax2),0))","v":{"$error":"#N/A"}}]
[null,null,null,null,null,null,null,null,null,null,null,null,null,null,null,null,null,null,null,null,null,null,null,null,null,null,null,null,null,"","","","","","",{"$error":"#VALUE!"},{"$error":"#VALUE!"},{"$error":"#VALUE!"},{"$error":"#VALUE!"},{"$f":"INDEX(fdfortax2,MATCH(0,COUNTIF($AN$3:AN919,fdfortax2),0))","v":{"$error":"#N/A"}}]
[null,null,null,null,null,null,null,null,null,null,null,null,null,null,null,null,null,null,null,null,null,null,null,null,null,null,null,null,null,"","","","","","",{"$error":"#VALUE!"},{"$error":"#VALUE!"},{"$error":"#VALUE!"},{"$error":"#VALUE!"},{"$f":"INDEX(fdfortax2,MATCH(0,COUNTIF($AN$3:AN920,fdfortax2),0))","v":{"$error":"#N/A"}}]
[null,null,null,null,null,null,null,null,null,null,null,null,null,null,null,null,null,null,null,null,null,null,null,null,null,null,null,null,null,"","","","","","",{"$error":"#VALUE!"},{"$error":"#VALUE!"},{"$error":"#VALUE!"},{"$error":"#VALUE!"},{"$f":"INDEX(fdfortax2,MATCH(0,COUNTIF($AN$3:AN921,fdfortax2),0))","v":{"$error":"#N/A"}}]
[null,null,null,null,null,null,null,null,null,null,null,null,null,null,null,null,null,null,null,null,null,null,null,null,null,null,null,null,null,"","","","","","",{"$error":"#VALUE!"},{"$error":"#VALUE!"},{"$error":"#VALUE!"},{"$error":"#VALUE!"},{"$f":"INDEX(fdfortax2,MATCH(0,COUNTIF($AN$3:AN922,fdfortax2),0))","v":{"$error":"#N/A"}}]
[null,null,null,null,null,null,null,null,null,null,null,null,null,null,null,null,null,null,null,null,null,null,null,null,null,null,null,null,null,"","","","","","",{"$error":"#VALUE!"},{"$error":"#VALUE!"},{"$error":"#VALUE!"},{"$error":"#VALUE!"},{"$f":"INDEX(fdfortax2,MATCH(0,COUNTIF($AN$3:AN923,fdfortax2),0))","v":{"$error":"#N/A"}}]
[null,null,null,null,null,null,null,null,null,null,null,null,null,null,null,null,null,null,null,null,null,null,null,null,null,null,null,null,null,"","","","","","",{"$error":"#VALUE!"},{"$error":"#VALUE!"},{"$error":"#VALUE!"},{"$error":"#VALUE!"},{"$f":"INDEX(fdfortax2,MATCH(0,COUNTIF($AN$3:AN924,fdfortax2),0))","v":{"$error":"#N/A"}}]
[null,null,null,null,null,null,null,null,null,null,null,null,null,null,null,null,null,null,null,null,null,null,null,null,null,null,null,null,null,"","","","","","",{"$error":"#VALUE!"},{"$error":"#VALUE!"},{"$error":"#VALUE!"},{"$error":"#VALUE!"},{"$f":"INDEX(fdfortax2,MATCH(0,COUNTIF($AN$3:AN925,fdfortax2),0))","v":{"$error":"#N/A"}}]
[null,null,null,null,null,null,null,null,null,null,null,null,null,null,null,null,null,null,null,null,null,null,null,null,null,null,null,null,null,"","","","","","",{"$error":"#VALUE!"},{"$error":"#VALUE!"},{"$error":"#VALUE!"},{"$error":"#VALUE!"},{"$f":"INDEX(fdfortax2,MATCH(0,COUNTIF($AN$3:AN926,fdfortax2),0))","v":{"$error":"#N/A"}}]
[null,null,null,null,null,null,null,null,null,null,null,null,null,null,null,null,null,null,null,null,null,null,null,null,null,null,null,null,null,"","",{"$f":"IF(AD928=\"\",\"\",AE928-AE927)","v":""},"","",{"$f":"IF(AD928=\"\",\"\",AF928-AG928)","v":""},{"$f":"IF(INT(AD928/30)-(AD928/30)=0,1,0)","v":{"$error":"#VALUE!"}},{"$error":"#VALUE!"},{"$f":"IF(AJ928=1,AK928,IF(ISERROR(AK929),AK928,IF(AK929=\"\",AK928,\"\")))","v":{"$error":"#VALUE!"}},{"$f":"IF(AJ928=1,AK928,IF(ISERROR(AK929),AK928,IF(AK929=\"\",AK928,1)))","v":{"$error":"#VALUE!"}},{"$f":"INDEX(fdfortax2,MATCH(0,COUNTIF($AN$3:AN927,fdfortax2),0))","v":{"$error":"#N/A"}}]
[null,null,null,null,null,null,null,null,null,null,null,null,null,null,null,null,null,null,null,null,null,null,null,null,null,null,null,null,null,"","","","","","",{"$error":"#VALUE!"},{"$error":"#VALUE!"},{"$error":"#VALUE!"},{"$error":"#VALUE!"},{"$f":"INDEX(fdfortax2,MATCH(0,COUNTIF($AN$3:AN928,fdfortax2),0))","v":{"$error":"#N/A"}}]
[null,null,null,null,null,null,null,null,null,null,null,null,null,null,null,null,null,null,null,null,null,null,null,null,null,null,null,null,null,"","","","","","",{"$error":"#VALUE!"},{"$error":"#VALUE!"},{"$error":"#VALUE!"},{"$error":"#VALUE!"},{"$f":"INDEX(fdfortax2,MATCH(0,COUNTIF($AN$3:AN929,fdfortax2),0))","v":{"$error":"#N/A"}}]
[null,null,null,null,null,null,null,null,null,null,null,null,null,null,null,null,null,null,null,null,null,null,null,null,null,null,null,null,null,"","","","","","",{"$error":"#VALUE!"},{"$error":"#VALUE!"},{"$error":"#VALUE!"},{"$error":"#VALUE!"},{"$f":"INDEX(fdfortax2,MATCH(0,COUNTIF($AN$3:AN930,fdfortax2),0))","v":{"$error":"#N/A"}}]
[null,null,null,null,null,null,null,null,null,null,null,null,null,null,null,null,null,null,null,null,null,null,null,null,null,null,null,null,null,"","","","","","",{"$error":"#VALUE!"},{"$error":"#VALUE!"},{"$error":"#VALUE!"},{"$error":"#VALUE!"},{"$f":"INDEX(fdfortax2,MATCH(0,COUNTIF($AN$3:AN931,fdfortax2),0))","v":{"$error":"#N/A"}}]
[null,null,null,null,null,null,null,null,null,null,null,null,null,null,null,null,null,null,null,null,null,null,null,null,null,null,null,null,null,"","","","","","",{"$error":"#VALUE!"},{"$error":"#VALUE!"},{"$error":"#VALUE!"},{"$error":"#VALUE!"},{"$f":"INDEX(fdfortax2,MATCH(0,COUNTIF($AN$3:AN932,fdfortax2),0))","v":{"$error":"#N/A"}}]
[null,null,null,null,null,null,null,null,null,null,null,null,null,null,null,null,null,null,null,null,null,null,null,null,null,null,null,null,null,"","","","","","",{"$error":"#VALUE!"},{"$error":"#VALUE!"},{"$error":"#VALUE!"},{"$error":"#VALUE!"},{"$f":"INDEX(fdfortax2,MATCH(0,COUNTIF($AN$3:AN933,fdfortax2),0))","v":{"$error":"#N/A"}}]
[null,null,null,null,null,null,null,null,null,null,null,null,null,null,null,null,null,null,null,null,null,null,null,null,null,null,null,null,null,"","","","","","",{"$error":"#VALUE!"},{"$error":"#VALUE!"},{"$error":"#VALUE!"},{"$error":"#VALUE!"},{"$f":"INDEX(fdfortax2,MATCH(0,COUNTIF($AN$3:AN934,fdfortax2),0))","v":{"$error":"#N/A"}}]
[null,null,null,null,null,null,null,null,null,null,null,null,null,null,null,null,null,null,null,null,null,null,null,null,null,null,null,null,null,"","","","","","",{"$error":"#VALUE!"},{"$error":"#VALUE!"},{"$error":"#VALUE!"},{"$error":"#VALUE!"},{"$f":"INDEX(fdfortax2,MATCH(0,COUNTIF($AN$3:AN935,fdfortax2),0))","v":{"$error":"#N/A"}}]
[null,null,null,null,null,null,null,null,null,null,null,null,null,null,null,null,null,null,null,null,null,null,null,null,null,null,null,null,null,"","","","","","",{"$error":"#VALUE!"},{"$error":"#VALUE!"},{"$error":"#VALUE!"},{"$error":"#VALUE!"},{"$f":"INDEX(fdfortax2,MATCH(0,COUNTIF($AN$3:AN936,fdfortax2),0))","v":{"$error":"#N/A"}}]
[null,null,null,null,null,null,null,null,null,null,null,null,null,null,null,null,null,null,null,null,null,null,null,null,null,null,null,null,null,"","","","","","",{"$error":"#VALUE!"},{"$error":"#VALUE!"},{"$error":"#VALUE!"},{"$error":"#VALUE!"},{"$f":"INDEX(fdfortax2,MATCH(0,COUNTIF($AN$3:AN937,fdfortax2),0))","v":{"$error":"#N/A"}}]
[null,null,null,null,null,null,null,null,null,null,null,null,null,null,null,null,null,null,null,null,null,null,null,null,null,null,null,null,null,"","","","","","",{"$error":"#VALUE!"},{"$error":"#VALUE!"},{"$error":"#VALUE!"},{"$error":"#VALUE!"},{"$f":"INDEX(fdfortax2,MATCH(0,COUNTIF($AN$3:AN938,fdfortax2),0))","v":{"$error":"#N/A"}}]
[null,null,null,null,null,null,null,null,null,null,null,null,null,null,null,null,null,null,null,null,null,null,null,null,null,null,null,null,null,"","","","","","",{"$error":"#VALUE!"},{"$error":"#VALUE!"},{"$error":"#VALUE!"},{"$error":"#VALUE!"},{"$f":"INDEX(fdfortax2,MATCH(0,COUNTIF($AN$3:AN939,fdfortax2),0))","v":{"$error":"#N/A"}}]
[null,null,null,null,null,null,null,null,null,null,null,null,null,null,null,null,null,null,null,null,null,null,null,null,null,null,null,null,null,"","","","","","",{"$error":"#VALUE!"},{"$error":"#VALUE!"},{"$error":"#VALUE!"},{"$error":"#VALUE!"},{"$f":"INDEX(fdfortax2,MATCH(0,COUNTIF($AN$3:AN940,fdfortax2),0))","v":{"$error":"#N/A"}}]
[null,null,null,null,null,null,null,null,null,null,null,null,null,null,null,null,null,null,null,null,null,null,null,null,null,null,null,null,null,"","","","","","",{"$error":"#VALUE!"},{"$error":"#VALUE!"},{"$error":"#VALUE!"},{"$error":"#VALUE!"},{"$f":"INDEX(fdfortax2,MATCH(0,COUNTIF($AN$3:AN941,fdfortax2),0))","v":{"$error":"#N/A"}}]
[null,null,null,null,null,null,null,null,null,null,null,null,null,null,null,null,null,null,null,null,null,null,null,null,null,null,null,null,null,"","","","","","",{"$error":"#VALUE!"},{"$error":"#VALUE!"},{"$error":"#VALUE!"},{"$error":"#VALUE!"},{"$f":"INDEX(fdfortax2,MATCH(0,COUNTIF($AN$3:AN942,fdfortax2),0))","v":{"$error":"#N/A"}}]
[null,null,null,null,null,null,null,null,null,null,null,null,null,null,null,null,null,null,null,null,null,null,null,null,null,null,null,null,null,"","","","","","",{"$error":"#VALUE!"},{"$error":"#VALUE!"},{"$error":"#VALUE!"},{"$error":"#VALUE!"},{"$f":"INDEX(fdfortax2,MATCH(0,COUNTIF($AN$3:AN943,fdfortax2),0))","v":{"$error":"#N/A"}}]
[null,null,null,null,null,null,null,null,null,null,null,null,null,null,null,null,null,null,null,null,null,null,null,null,null,null,null,null,null,"","","","","","",{"$error":"#VALUE!"},{"$error":"#VALUE!"},{"$error":"#VALUE!"},{"$error":"#VALUE!"},{"$f":"INDEX(fdfortax2,MATCH(0,COUNTIF($AN$3:AN944,fdfortax2),0))","v":{"$error":"#N/A"}}]
[null,null,null,null,null,null,null,null,null,null,null,null,null,null,null,null,null,null,null,null,null,null,null,null,null,null,null,null,null,"","","","","","",{"$error":"#VALUE!"},{"$error":"#VALUE!"},{"$error":"#VALUE!"},{"$error":"#VALUE!"},{"$f":"INDEX(fdfortax2,MATCH(0,COUNTIF($AN$3:AN945,fdfortax2),0))","v":{"$error":"#N/A"}}]
[null,null,null,null,null,null,null,null,null,null,null,null,null,null,null,null,null,null,null,null,null,null,null,null,null,null,null,null,null,"","","","","","",{"$error":"#VALUE!"},{"$error":"#VALUE!"},{"$error":"#VALUE!"},{"$error":"#VALUE!"},{"$f":"INDEX(fdfortax2,MATCH(0,COUNTIF($AN$3:AN946,fdfortax2),0))","v":{"$error":"#N/A"}}]
[null,null,null,null,null,null,null,null,null,null,null,null,null,null,null,null,null,null,null,null,null,null,null,null,null,null,null,null,null,"","","","","","",{"$error":"#VALUE!"},{"$error":"#VALUE!"},{"$error":"#VALUE!"},{"$error":"#VALUE!"},{"$f":"INDEX(fdfortax2,MATCH(0,COUNTIF($AN$3:AN947,fdfortax2),0))","v":{"$error":"#N/A"}}]
[null,null,null,null,null,null,null,null,null,null,null,null,null,null,null,null,null,null,null,null,null,null,null,null,null,null,null,null,null,"","","","","","",{"$error":"#VALUE!"},{"$error":"#VALUE!"},{"$error":"#VALUE!"},{"$error":"#VALUE!"},{"$f":"INDEX(fdfortax2,MATCH(0,COUNTIF($AN$3:AN948,fdfortax2),0))","v":{"$error":"#N/A"}}]
[null,null,null,null,null,null,null,null,null,null,null,null,null,null,null,null,null,null,null,null,null,null,null,null,null,null,null,null,null,"","","","","","",{"$error":"#VALUE!"},{"$error":"#VALUE!"},{"$error":"#VALUE!"},{"$error":"#VALUE!"},{"$f":"INDEX(fdfortax2,MATCH(0,COUNTIF($AN$3:AN949,fdfortax2),0))","v":{"$error":"#N/A"}}]
[null,null,null,null,null,null,null,null,null,null,null,null,null,null,null,null,null,null,null,null,null,null,null,null,null,null,null,null,null,"","","","","","",{"$error":"#VALUE!"},{"$error":"#VALUE!"},{"$error":"#VALUE!"},{"$error":"#VALUE!"},{"$f":"INDEX(fdfortax2,MATCH(0,COUNTIF($AN$3:AN950,fdfortax2),0))","v":{"$error":"#N/A"}}]
[null,null,null,null,null,null,null,null,null,null,null,null,null,null,null,null,null,null,null,null,null,null,null,null,null,null,null,null,null,"","","","","","",{"$error":"#VALUE!"},{"$error":"#VALUE!"},{"$error":"#VALUE!"},{"$error":"#VALUE!"},{"$f":"INDEX(fdfortax2,MATCH(0,COUNTIF($AN$3:AN951,fdfortax2),0))","v":{"$error":"#N/A"}}]
[null,null,null,null,null,null,null,null,null,null,null,null,null,null,null,null,null,null,null,null,null,null,null,null,null,null,null,null,null,"","","","","","",{"$error":"#VALUE!"},{"$error":"#VALUE!"},{"$error":"#VALUE!"},{"$error":"#VALUE!"},{"$f":"INDEX(fdfortax2,MATCH(0,COUNTIF($AN$3:AN952,fdfortax2),0))","v":{"$error":"#N/A"}}]
[null,null,null,null,null,null,null,null,null,null,null,null,null,null,null,null,null,null,null,null,null,null,null,null,null,null,null,null,null,"","","","","","",{"$error":"#VALUE!"},{"$error":"#VALUE!"},{"$error":"#VALUE!"},{"$error":"#VALUE!"},{"$f":"INDEX(fdfortax2,MATCH(0,COUNTIF($AN$3:AN953,fdfortax2),0))","v":{"$error":"#N/A"}}]
[null,null,null,null,null,null,null,null,null,null,null,null,null,null,null,null,null,null,null,null,null,null,null,null,null,null,null,null,null,"","","","","","",{"$error":"#VALUE!"},{"$error":"#VALUE!"},{"$error":"#VALUE!"},{"$error":"#VALUE!"},{"$f":"INDEX(fdfortax2,MATCH(0,COUNTIF($AN$3:AN954,fdfortax2),0))","v":{"$error":"#N/A"}}]
[null,null,null,null,null,null,null,null,null,null,null,null,null,null,null,null,null,null,null,null,null,null,null,null,null,null,null,null,null,"","","","","","",{"$error":"#VALUE!"},{"$error":"#VALUE!"},{"$error":"#VALUE!"},{"$error":"#VALUE!"},{"$f":"INDEX(fdfortax2,MATCH(0,COUNTIF($AN$3:AN955,fdfortax2),0))","v":{"$error":"#N/A"}}]
[null,null,null,null,null,null,null,null,null,null,null,null,null,null,null,null,null,null,null,null,null,null,null,null,null,null,null,null,null,"","","","","","",{"$error":"#VALUE!"},{"$error":"#VALUE!"},{"$error":"#VALUE!"},{"$error":"#VALUE!"},{"$f":"INDEX(fdfortax2,MATCH(0,COUNTIF($AN$3:AN956,fdfortax2),0))","v":{"$error":"#N/A"}}]
[null,null,null,null,null,null,null,null,null,null,null,null,null,null,null,null,null,null,null,null,null,null,null,null,null,null,null,null,null,"","","","","","",{"$error":"#VALUE!"},{"$error":"#VALUE!"},{"$error":"#VALUE!"},{"$error":"#VALUE!"},{"$f":"INDEX(fdfortax2,MATCH(0,COUNTIF($AN$3:AN957,fdfortax2),0))","v":{"$error":"#N/A"}}]
[null,null,null,null,null,null,null,null,null,null,null,null,null,null,null,null,null,null,null,null,null,null,null,null,null,null,null,null,null,"","","","","","",{"$error":"#VALUE!"},{"$error":"#VALUE!"},{"$error":"#VALUE!"},{"$error":"#VALUE!"},{"$f":"INDEX(fdfortax2,MATCH(0,COUNTIF($AN$3:AN958,fdfortax2),0))","v":{"$error":"#N/A"}}]
[null,null,null,null,null,null,null,null,null,null,null,null,null,null,null,null,null,null,null,null,null,null,null,null,null,null,null,null,null,"","","","","","",{"$error":"#VALUE!"},{"$error":"#VALUE!"},{"$error":"#VALUE!"},{"$error":"#VALUE!"},{"$f":"INDEX(fdfortax2,MATCH(0,COUNTIF($AN$3:AN959,fdfortax2),0))","v":{"$error":"#N/A"}}]
[null,null,null,null,null,null,null,null,null,null,null,null,null,null,null,null,null,null,null,null,null,null,null,null,null,null,null,null,null,"","","","","","",{"$error":"#VALUE!"},{"$error":"#VALUE!"},{"$error":"#VALUE!"},{"$error":"#VALUE!"},{"$f":"INDEX(fdfortax2,MATCH(0,COUNTIF($AN$3:AN960,fdfortax2),0))","v":{"$error":"#N/A"}}]
[null,null,null,null,null,null,null,null,null,null,null,null,null,null,null,null,null,null,null,null,null,null,null,null,null,null,null,null,null,"","","","","","",{"$error":"#VALUE!"},{"$error":"#VALUE!"},{"$error":"#VALUE!"},{"$error":"#VALUE!"},{"$f":"INDEX(fdfortax2,MATCH(0,COUNTIF($AN$3:AN961,fdfortax2),0))","v":{"$error":"#N/A"}}]
[null,null,null,null,null,null,null,null,null,null,null,null,null,null,null,null,null,null,null,null,null,null,null,null,null,null,null,null,null,"","","","","","",{"$error":"#VALUE!"},{"$error":"#VALUE!"},{"$error":"#VALUE!"},{"$error":"#VALUE!"},{"$f":"INDEX(fdfortax2,MATCH(0,COUNTIF($AN$3:AN962,fdfortax2),0))","v":{"$error":"#N/A"}}]
[null,null,null,null,null,null,null,null,null,null,null,null,null,null,null,null,null,null,null,null,null,null,null,null,null,null,null,null,null,"","","",{"$f":"IF(AD964=\"\",\"\",AF964*(1-IF(taxrd=10%,10.3%,IF(taxrd=20%,20.6%,IF(taxrd=30%,30.9%)))))","v":""},{"$f":"IF(AD964=\"\",\"\",AH963+AG964+L964)","v":""},"",{"$error":"#VALUE!"},{"$error":"#VALUE!"},{"$error":"#VALUE!"},{"$error":"#VALUE!"},{"$f":"INDEX(fdfortax2,MATCH(0,COUNTIF($AN$3:AN963,fdfortax2),0))","v":{"$error":"#N/A"}}]
[null,null,null,null,null,null,null,null,null,null,null,null,null,null,null,null,null,null,null,null,null,null,null,null,null,null,null,null,null,{"$f":"IF(AD964<rdura,AD964+1,\"\")","v":""},{"$f":"IF(AD965=\"\",\"\",AE964*(1+raterd/factor1)^(factor1*1/ydays))","v":""},"","","","",{"$error":"#VALUE!"},{"$f":"IF(AJ964=1,AI965,AK964+AI965)","v":{"$error":"#VALUE!"}},{"$error":"#VALUE!"},{"$error":"#VALUE!"},{"$f":"INDEX(fdfortax2,MATCH(0,COUNTIF($AN$3:AN964,fdfortax2),0))","v":{"$error":"#N/A"}}]
[null,null,null,null,null,null,null,null,null,null,null,null,null,null,null,null,null,null,null,null,null,null,null,null,null,null,null,null,null,"","","","","","",{"$error":"#VALUE!"},{"$error":"#VALUE!"},{"$error":"#VALUE!"},{"$error":"#VALUE!"},{"$f":"INDEX(fdfortax2,MATCH(0,COUNTIF($AN$3:AN965,fdfortax2),0))","v":{"$error":"#N/A"}}]
[null,null,null,null,null,null,null,null,null,null,null,null,null,null,null,null,null,null,null,null,null,null,null,null,null,null,null,null,null,"","","","","","",{"$error":"#VALUE!"},{"$error":"#VALUE!"},{"$error":"#VALUE!"},{"$error":"#VALUE!"},{"$f":"INDEX(fdfortax2,MATCH(0,COUNTIF($AN$3:AN966,fdfortax2),0))","v":{"$error":"#N/A"}}]
[null,null,null,null,null,null,null,null,null,null,null,null,null,null,null,null,null,null,null,null,null,null,null,null,null,null,null,null,null,"","","","","","",{"$error":"#VALUE!"},{"$error":"#VALUE!"},{"$error":"#VALUE!"},{"$error":"#VALUE!"},{"$f":"INDEX(fdfortax2,MATCH(0,COUNTIF($AN$3:AN967,fdfortax2),0))","v":{"$error":"#N/A"}}]
[null,null,null,null,null,null,null,null,null,null,null,null,null,null,null,null,null,null,null,null,null,null,null,null,null,null,null,null,null,"","","","","","",{"$error":"#VALUE!"},{"$error":"#VALUE!"},{"$error":"#VALUE!"},{"$error":"#VALUE!"},{"$f":"INDEX(fdfortax2,MATCH(0,COUNTIF($AN$3:AN968,fdfortax2),0))","v":{"$error":"#N/A"}}]
[null,null,null,null,null,null,null,null,null,null,null,null,null,null,null,null,null,null,null,null,null,null,null,null,null,null,null,null,null,"","","","","","",{"$error":"#VALUE!"},{"$error":"#VALUE!"},{"$error":"#VALUE!"},{"$error":"#VALUE!"},{"$f":"INDEX(fdfortax2,MATCH(0,COUNTIF($AN$3:AN969,fdfortax2),0))","v":{"$error":"#N/A"}}]
[null,null,null,null,null,null,null,null,null,null,null,null,null,null,null,null,null,null,null,null,null,null,null,null,null,null,null,null,null,"","","","","","",{"$error":"#VALUE!"},{"$error":"#VALUE!"},{"$error":"#VALUE!"},{"$error":"#VALUE!"},{"$f":"INDEX(fdfortax2,MATCH(0,COUNTIF($AN$3:AN970,fdfortax2),0))","v":{"$error":"#N/A"}}]
[null,null,null,null,null,null,null,null,null,null,null,null,null,null,null,null,null,null,null,null,null,null,null,null,null,null,null,null,null,"","","","","","",{"$error":"#VALUE!"},{"$error":"#VALUE!"},{"$error":"#VALUE!"},{"$error":"#VALUE!"},{"$f":"INDEX(fdfortax2,MATCH(0,COUNTIF($AN$3:AN971,fdfortax2),0))","v":{"$error":"#N/A"}}]
[null,null,null,null,null,null,null,null,null,null,null,null,null,null,null,null,null,null,null,null,null,null,null,null,null,null,null,null,null,"","","","","","",{"$error":"#VALUE!"},{"$error":"#VALUE!"},{"$error":"#VALUE!"},{"$error":"#VALUE!"},{"$f":"INDEX(fdfortax2,MATCH(0,COUNTIF($AN$3:AN972,fdfortax2),0))","v":{"$error":"#N/A"}}]
[null,null,null,null,null,null,null,null,null,null,null,null,null,null,null,null,null,null,null,null,null,null,null,null,null,null,null,null,null,"","","","","","",{"$error":"#VALUE!"},{"$error":"#VALUE!"},{"$error":"#VALUE!"},{"$error":"#VALUE!"},{"$f":"INDEX(fdfortax2,MATCH(0,COUNTIF($AN$3:AN973,fdfortax2),0))","v":{"$error":"#N/A"}}]
[null,null,null,null,null,null,null,null,null,null,null,null,null,null,null,null,null,null,null,null,null,null,null,null,null,null,null,null,null,"","","","","","",{"$error":"#VALUE!"},{"$error":"#VALUE!"},{"$error":"#VALUE!"},{"$error":"#VALUE!"},{"$f":"INDEX(fdfortax2,MATCH(0,COUNTIF($AN$3:AN974,fdfortax2),0))","v":{"$error":"#N/A"}}]
[null,null,null,null,null,null,null,null,null,null,null,null,null,null,null,null,null,null,null,null,null,null,null,null,null,null,null,null,null,"","","","","","",{"$error":"#VALUE!"},{"$error":"#VALUE!"},{"$error":"#VALUE!"},{"$error":"#VALUE!"},{"$f":"INDEX(fdfortax2,MATCH(0,COUNTIF($AN$3:AN975,fdfortax2),0))","v":{"$error":"#N/A"}}]
[null,null,null,null,null,null,null,null,null,null,null,null,null,null,null,null,null,null,null,null,null,null,null,null,null,null,null,null,null,"","","","","","",{"$error":"#VALUE!"},{"$error":"#VALUE!"},{"$error":"#VALUE!"},{"$error":"#VALUE!"},{"$f":"INDEX(fdfortax2,MATCH(0,COUNTIF($AN$3:AN976,fdfortax2),0))","v":{"$error":"#N/A"}}]
[null,null,null,null,null,null,null,null,null,null,null,null,null,null,null,null,null,null,null,null,null,null,null,null,null,null,null,null,null,"","","","","","",{"$error":"#VALUE!"},{"$error":"#VALUE!"},{"$error":"#VALUE!"},{"$error":"#VALUE!"},{"$f":"INDEX(fdfortax2,MATCH(0,COUNTIF($AN$3:AN977,fdfortax2),0))","v":{"$error":"#N/A"}}]
[null,null,null,null,null,null,null,null,null,null,null,null,null,null,null,null,null,null,null,null,null,null,null,null,null,null,null,null,null,"","","","","","",{"$error":"#VALUE!"},{"$error":"#VALUE!"},{"$error":"#VALUE!"},{"$error":"#VALUE!"},{"$f":"INDEX(fdfortax2,MATCH(0,COUNTIF($AN$3:AN978,fdfortax2),0))","v":{"$error":"#N/A"}}]
[null,null,null,null,null,null,null,null,null,null,null,null,null,null,null,null,null,null,null,null,null,null,null,null,null,null,null,null,null,"","","","","","",{"$error":"#VALUE!"},{"$error":"#VALUE!"},{"$error":"#VALUE!"},{"$error":"#VALUE!"},{"$f":"INDEX(fdfortax2,MATCH(0,COUNTIF($AN$3:AN979,fdfortax2),0))","v":{"$error":"#N/A"}}]
[null,null,null,null,null,null,null,null,null,null,null,null,null,null,null,null,null,null,null,null,null,null,null,null,null,null,null,null,null,"","","","","","",{"$error":"#VALUE!"},{"$error":"#VALUE!"},{"$error":"#VALUE!"},{"$error":"#VALUE!"},{"$f":"INDEX(fdfortax2,MATCH(0,COUNTIF($AN$3:AN980,fdfortax2),0))","v":{"$error":"#N/A"}}]
[null,null,null,null,null,null,null,null,null,null,null,null,null,null,null,null,null,null,null,null,null,null,null,null,null,null,null,null,null,"","","","","","",{"$error":"#VALUE!"},{"$error":"#VALUE!"},{"$error":"#VALUE!"},{"$error":"#VALUE!"},{"$f":"INDEX(fdfortax2,MATCH(0,COUNTIF($AN$3:AN981,fdfortax2),0))","v":{"$error":"#N/A"}}]
[null,null,null,null,null,null,null,null,null,null,null,null,null,null,null,null,null,null,null,null,null,null,null,null,null,null,null,null,null,"","","","","","",{"$error":"#VALUE!"},{"$error":"#VALUE!"},{"$error":"#VALUE!"},{"$error":"#VALUE!"},{"$f":"INDEX(fdfortax2,MATCH(0,COUNTIF($AN$3:AN982,fdfortax2),0))","v":{"$error":"#N/A"}}]
[null,null,null,null,null,null,null,null,null,null,null,null,null,null,null,null,null,null,null,null,null,null,null,null,null,null,null,null,null,"","","","","","",{"$error":"#VALUE!"},{"$error":"#VALUE!"},{"$error":"#VALUE!"},{"$error":"#VALUE!"},{"$f":"INDEX(fdfortax2,MATCH(0,COUNTIF($AN$3:AN983,fdfortax2),0))","v":{"$error":"#N/A"}}]
[null,null,null,null,null,null,null,null,null,null,null,null,null,null,null,null,null,null,null,null,null,null,null,null,null,null,null,null,null,"","","","","","",{"$error":"#VALUE!"},{"$error":"#VALUE!"},{"$error":"#VALUE!"},{"$error":"#VALUE!"},{"$f":"INDEX(fdfortax2,MATCH(0,COUNTIF($AN$3:AN984,fdfortax2),0))","v":{"$error":"#N/A"}}]
[null,null,null,null,null,null,null,null,null,null,null,null,null,null,null,null,null,null,null,null,null,null,null,null,null,null,null,null,null,"","","","","","",{"$error":"#VALUE!"},{"$error":"#VALUE!"},{"$error":"#VALUE!"},{"$error":"#VALUE!"},{"$f":"INDEX(fdfortax2,MATCH(0,COUNTIF($AN$3:AN985,fdfortax2),0))","v":{"$error":"#N/A"}}]
[null,null,null,null,null,null,null,null,null,null,null,null,null,null,null,null,null,null,null,null,null,null,null,null,null,null,null,null,null,"","","","","","",{"$error":"#VALUE!"},{"$error":"#VALUE!"},{"$error":"#VALUE!"},{"$error":"#VALUE!"},{"$f":"INDEX(fdfortax2,MATCH(0,COUNTIF($AN$3:AN986,fdfortax2),0))","v":{"$error":"#N/A"}}]
[null,null,null,null,null,null,null,null,null,null,null,null,null,null,null,null,null,null,null,null,null,null,null,null,null,null,null,null,null,"","","","","","",{"$error":"#VALUE!"},{"$error":"#VALUE!"},{"$error":"#VALUE!"},{"$error":"#VALUE!"},{"$f":"INDEX(fdfortax2,MATCH(0,COUNTIF($AN$3:AN987,fdfortax2),0))","v":{"$error":"#N/A"}}]
[null,null,null,null,null,null,null,null,null,null,null,null,null,null,null,null,null,null,null,null,null,null,null,null,null,null,null,null,null,"","","","","","",{"$error":"#VALUE!"},{"$error":"#VALUE!"},{"$error":"#VALUE!"},{"$error":"#VALUE!"},{"$f":"INDEX(fdfortax2,MATCH(0,COUNTIF($AN$3:AN988,fdfortax2),0))","v":{"$error":"#N/A"}}]
[null,null,null,null,null,null,null,null,null,null,null,null,null,null,null,null,null,null,null,null,null,null,null,null,null,null,null,null,null,"","","","","","",{"$error":"#VALUE!"},{"$error":"#VALUE!"},{"$error":"#VALUE!"},{"$error":"#VALUE!"},{"$f":"INDEX(fdfortax2,MATCH(0,COUNTIF($AN$3:AN989,fdfortax2),0))","v":{"$error":"#N/A"}}]
[null,null,null,null,null,null,null,null,null,null,null,null,null,null,null,null,null,null,null,null,null,null,null,null,null,null,null,null,null,"","","","","","",{"$error":"#VALUE!"},{"$error":"#VALUE!"},{"$error":"#VALUE!"},{"$error":"#VALUE!"},{"$f":"INDEX(fdfortax2,MATCH(0,COUNTIF($AN$3:AN990,fdfortax2),0))","v":{"$error":"#N/A"}}]
[null,null,null,null,null,null,null,null,null,null,null,null,null,null,null,null,null,null,null,null,null,null,null,null,null,null,null,null,null,"","",{"$f":"IF(AD992=\"\",\"\",AE992-AE991)","v":""},"","",{"$f":"IF(AD992=\"\",\"\",AF992-AG992)","v":""},{"$f":"IF(INT(AD992/30)-(AD992/30)=0,1,0)","v":{"$error":"#VALUE!"}},{"$error":"#VALUE!"},{"$f":"IF(AJ992=1,AK992,IF(ISERROR(AK993),AK992,IF(AK993=\"\",AK992,\"\")))","v":{"$error":"#VALUE!"}},{"$f":"IF(AJ992=1,AK992,IF(ISERROR(AK993),AK992,IF(AK993=\"\",AK992,1)))","v":{"$error":"#VALUE!"}},{"$f":"INDEX(fdfortax2,MATCH(0,COUNTIF($AN$3:AN991,fdfortax2),0))","v":{"$error":"#N/A"}}]
[null,null,null,null,null,null,null,null,null,null,null,null,null,null,null,null,null,null,null,null,null,null,null,null,null,null,null,null,null,"","","","","","",{"$error":"#VALUE!"},{"$error":"#VALUE!"},{"$error":"#VALUE!"},{"$error":"#VALUE!"},{"$f":"INDEX(fdfortax2,MATCH(0,COUNTIF($AN$3:AN992,fdfortax2),0))","v":{"$error":"#N/A"}}]
[null,null,null,null,null,null,null,null,null,null,null,null,null,null,null,null,null,null,null,null,null,null,null,null,null,null,null,null,null,"","","","","","",{"$error":"#VALUE!"},{"$error":"#VALUE!"},{"$error":"#VALUE!"},{"$error":"#VALUE!"},{"$f":"INDEX(fdfortax2,MATCH(0,COUNTIF($AN$3:AN993,fdfortax2),0))","v":{"$error":"#N/A"}}]
[null,null,null,null,null,null,null,null,null,null,null,null,null,null,null,null,null,null,null,null,null,null,null,null,null,null,null,null,null,"","","","","","",{"$error":"#VALUE!"},{"$error":"#VALUE!"},{"$error":"#VALUE!"},{"$error":"#VALUE!"},{"$f":"INDEX(fdfortax2,MATCH(0,COUNTIF($AN$3:AN994,fdfortax2),0))","v":{"$error":"#N/A"}}]
[null,null,null,null,null,null,null,null,null,null,null,null,null,null,null,null,null,null,null,null,null,null,null,null,null,null,null,null,null,"","","","","","",{"$error":"#VALUE!"},{"$error":"#VALUE!"},{"$error":"#VALUE!"},{"$error":"#VALUE!"},{"$f":"INDEX(fdfortax2,MATCH(0,COUNTIF($AN$3:AN995,fdfortax2),0))","v":{"$error":"#N/A"}}]
[null,null,null,null,null,null,null,null,null,null,null,null,null,null,null,null,null,null,null,null,null,null,null,null,null,null,null,null,null,"","","","","","",{"$error":"#VALUE!"},{"$error":"#VALUE!"},{"$error":"#VALUE!"},{"$error":"#VALUE!"},{"$f":"INDEX(fdfortax2,MATCH(0,COUNTIF($AN$3:AN996,fdfortax2),0))","v":{"$error":"#N/A"}}]
[null,null,null,null,null,null,null,null,null,null,null,null,null,null,null,null,null,null,null,null,null,null,null,null,null,null,null,null,null,"","","","","","",{"$error":"#VALUE!"},{"$error":"#VALUE!"},{"$error":"#VALUE!"},{"$error":"#VALUE!"},{"$f":"INDEX(fdfortax2,MATCH(0,COUNTIF($AN$3:AN997,fdfortax2),0))","v":{"$error":"#N/A"}}]
[null,null,null,null,null,null,null,null,null,null,null,null,null,null,null,null,null,null,null,null,null,null,null,null,null,null,null,null,null,"","","","","","",{"$error":"#VALUE!"},{"$error":"#VALUE!"},{"$error":"#VALUE!"},{"$error":"#VALUE!"},{"$f":"INDEX(fdfortax2,MATCH(0,COUNTIF($AN$3:AN998,fdfortax2),0))","v":{"$error":"#N/A"}}]
[null,null,null,null,null,null,null,null,null,null,null,null,null,null,null,null,null,null,null,null,null,null,null,null,null,null,null,null,null,"","","","","","",{"$error":"#VALUE!"},{"$error":"#VALUE!"},{"$error":"#VALUE!"},{"$error":"#VALUE!"},{"$f":"INDEX(fdfortax2,MATCH(0,COUNTIF($AN$3:AN999,fdfortax2),0))","v":{"$error":"#N/A"}}]
[null,null,null,null,null,null,null,null,null,null,null,null,null,null,null,null,null,null,null,null,null,null,null,null,null,null,null,null,null,"","","","","","",{"$error":"#VALUE!"},{"$error":"#VALUE!"},{"$error":"#VALUE!"},{"$error":"#VALUE!"},{"$f":"INDEX(fdfortax2,MATCH(0,COUNTIF($AN$3:AN1000,fdfortax2),0))","v":{"$error":"#N/A"}}]
[null,null,null,null,null,null,null,null,null,null,null,null,null,null,null,null,null,null,null,null,null,null,null,null,null,null,null,null,null,"","","","","","",{"$error":"#VALUE!"},{"$error":"#VALUE!"},{"$error":"#VALUE!"},{"$error":"#VALUE!"},{"$f":"INDEX(fdfortax2,MATCH(0,COUNTIF($AN$3:AN1001,fdfortax2),0))","v":{"$error":"#N/A"}}]
[null,null,null,null,null,null,null,null,null,null,null,null,null,null,null,null,null,null,null,null,null,null,null,null,null,null,null,null,null,"","","","","","",{"$error":"#VALUE!"},{"$error":"#VALUE!"},{"$error":"#VALUE!"},{"$error":"#VALUE!"},{"$f":"INDEX(fdfortax2,MATCH(0,COUNTIF($AN$3:AN1002,fdfortax2),0))","v":{"$error":"#N/A"}}]
[null,null,null,null,null,null,null,null,null,null,null,null,null,null,null,null,null,null,null,null,null,null,null,null,null,null,null,null,null,"",{"$f":"IF(AD1004=\"\",\"\",AE1003*(1+raterd/factor1)^(factor1*1/365))","v":""},"","","","",{"$error":"#VALUE!"},{"$error":"#VALUE!"},{"$error":"#VALUE!"},{"$error":"#VALUE!"},{"$f":"INDEX(fdfortax2,MATCH(0,COUNTIF($AN$3:AN1003,fdfortax2),0))","v":{"$error":"#N/A"}}]